Workbook

Sheet Kold
B2: Bruger: | C2: =Makro!D20 -> 0 | K2: Vægberegning | N2: Betonelement-Foreningen feb 2019
B3: Sagsnavn: | C3: Betonelementhuset | H3: Sag nr.: | I3: 23 - 4545 | L3: =AU18&AU19&AU20&AU21&AU22&AU23&AU24&AU25&AU26&AU27&AU28&AU29&AU30 -> For ny bruger: Klik på knappen 'angiv nyt brugernavn' for ibrugtagning.
B4: Bygningsdel: | C4: Væg modul B/6-7, kld.-4.sal (STR 6.10b) | H4: Dato: | I4: 2010-03-01
B5: Emne: | C5: Normale lastkombinationer | H5: Init: | I5: JFJ
K7: Materialer | M7: fck | N7: 35 | O7: Regningsmæssige parametre
M8: fyk | N8: 550 | P8: fcd | Q8: =N7/(N9) -> 25
M9: gc | N9: 1.4 | P9: fyd | Q9: =N8/MAX(1,N10) -> 458.3333333 | AN9: 1 | AO9: =AW10*1000+0.001 -> 0.101 | AP9: =IF(Makro!E20=1,"-",AX10*1000) -> - | AS9: Forskydningscheck | AW9: N | AX9: M | AY9: hc | AZ9: e0 | BA9: sac | BB9: sat | BD9: Lastpunkt | BE9: 1 | BF9: 2 | BG9: 3 | BH9: 4 | BI9: 5 | BJ9: 6 | BL9: A
M10: gs | N10: 1.2 | P10: Ecd | Q10: =1000*22*((N7+8)/10)^0.3/N9 -> 24340.81871 | AN10: 2 | AO10: =AW11*1000 -> 63.4389673 | AP10: =IF(Makro!E20=1,"-",AX11*1000) -> - | AS10: f_ctd | AT10: =SQRT(N7/10)/N9 -> 1.33630621 | AU10: MPa | AW10: =IF(Makro!$C$11=1,'Ark1'!M10,0)*$AY$38 -> 0.0001 | AX10: =IF(Makro!$C$11=1,'Ark1'!N10,0)*$AY$38 -> 0.01941919309 | AY10: =IF(Makro!$C$11=1,'Ark1'!O10,0) -> 0.04013868786 | AZ10: =IF(Makro!$C$11=1,'Ark1'!P10,0) -> 0.0003210578024 | BA10: =IF(Makro!$C$11=1,'Ark1'!Q10,0) -> 0.6365191477 | BB10: =IF(Makro!$C$11=1,'Ark1'!R10,0) -> 458.3215629 | BD10: Indeks | BE10: =Makro!B2 -> 1 | BF10: =Makro!C2 -> 2 | BG10: =Makro!D2 -> 3 | BH10: =Makro!E2 -> 4 | BI10: =Makro!F2 -> 5 | BJ10: =Makro!G2 -> 6 | BL10: B
K11: Søjlelængde | M11: Ls | N11: 3600 | O11: Krybetal | AN11: 3 | AO11: 124.9872297 | AP11: =IF(Makro!E20=1,"-",AX12*1000) -> - | AS11: r | AT11: =AP41/(N12*N13) -> 0.001862615378 | AW11: =IF(Makro!$C$11=1,'Ark1'!M11,0)*$AY$38 -> 0.0634389673 | AX11: =IF(Makro!$C$11=1,'Ark1'!N11,0)*$AY$38 -> 0.02161434675 | AY11: =IF(Makro!$C$11=1,'Ark1'!O11,0) -> 0.04518142254 | AZ11: =IF(Makro!$C$11=1,'Ark1'!P11,0) -> 0.0003933448487 | BA11: =IF(Makro!$C$11=1,'Ark1'!Q11,0) -> 25.88305533 | BB11: =IF(Makro!$C$11=1,'Ark1'!R11,0) -> 458.3333333 | BE11: =INDEX(BL9:BL17,BE10) -> A | BF11: =INDEX(BL9:BL17,BF10) -> B | BG11: =INDEX($BL$9:$BL$17,BG10) -> C | BH11: =INDEX($BL$9:$BL$17,BH10) -> D | BI11: E | BJ11: F | BL11: C
K12: Tværsnit | M12: h | N12: 180 | P12: RH | Q12: 0.55 | AN12: 4 | AO12: 174.1041691 | AP12: =IF(Makro!E20=1,"-",AX13*1000) -> - | AS12: k | AT12: =MAX(1,1.6-N12/1000) -> 1.42 | AW12: =IF(Makro!$C$11=1,'Ark1'!M12,0)*$AY$38 -> 0.1249872297 | AX12: =IF(Makro!$C$11=1,'Ark1'!N12,0)*$AY$38 -> 0.02335614057 | AY12: =IF(Makro!$C$11=1,'Ark1'!O12,0) -> 0.04941589192 | AZ12: =IF(Makro!$C$11=1,'Ark1'!P12,0) -> 0.000458316779 | BA12: =IF(Makro!$C$11=1,'Ark1'!Q12,0) -> 50.10874754 | BB12: =IF(Makro!$C$11=1,'Ark1'!R12,0) -> 458.3333333 | BD12: N | BE12: =INDEX($AN$30:$AQ$38,BE10,2) -> 29.1 | BF12: 95.5 | BG12: 514.1 | BH12: 561.5 | BI12: 95.5 | BJ12: 514.1 | BL12: D
M13: b | N13: 1000 | P13: to | Q13: 28 | AN13: 5 | AO13: 238.3816785 | AP13: =IF(Makro!E20=1,"-",AX14*1000) -> - | AS13: s_p | AU13: MPa | AW13: =IF(Makro!$C$11=1,'Ark1'!M13,0)*$AY$38 -> 0.1741041691 | AX13: =IF(Makro!$C$11=1,'Ark1'!N13,0)*$AY$38 -> 0.02461346814 | AY13: =IF(Makro!$C$11=1,'Ark1'!O13,0) -> 0.05313596372 | AZ13: =IF(Makro!$C$11=1,'Ark1'!P13,0) -> 0.0004993563809 | BA13: =IF(Makro!$C$11=1,'Ark1'!Q13,0) -> 70.83321383 | BB13: =IF(Makro!$C$11=1,'Ark1'!R13,0) -> 458.3333333 | BD13: N | BE13: =INDEX(Lastresult,1+5*(BE9-1),16)*1000 -> 29.10008793 | BF13: 95.49997694 | BG13: 514.0999102 | BH13: 561.4998438 | BI13: 95.49997694 | BJ13: 514.0999102 | BL13: E
M14: c | N14: 40 | P14: fo | Q14: =AT41 -> 2.076611033 | AN14: 6 | AO14: 329.879615 | AP14: =IF(Makro!E20=1,"-",AX15*1000) -> - | AS14: t_0d | AT14: =0.25*AT12*(1.2+40*AT11)*AT10+0.15*AT13 -> 0.6046105931 | AU14: MPa | AW14: =IF(Makro!$C$11=1,'Ark1'!M14,0)*$AY$38 -> 0.2383816785 | AX14: =IF(Makro!$C$11=1,'Ark1'!N14,0)*$AY$38 -> 0.02593014299 | AY14: =IF(Makro!$C$11=1,'Ark1'!O14,0) -> 0.05742818137 | AZ14: =IF(Makro!$C$11=1,'Ark1'!P14,0) -> 0.0005514539446 | BA14: =IF(Makro!$C$11=1,'Ark1'!Q14,0) -> 96.02608429 | BB14: =IF(Makro!$C$11=1,'Ark1'!R14,0) -> 454.9555829 | BD14: M | BE14: =INDEX($AN$30:$AQ$38,BE10,4) -> 2.6304 | BF14: 7.4112 | BG14: 15.7832 | BH14: 13.8872 | BI14: 6.4392 | BJ14: 14.8112 | BL14: F
K15: Trykarm. | M15: da | N15: 8 | P15: M0Eqp/M0Ed | Q15: 0.9 | AN15: 7 | AO15: 461.3581949 | AP15: =IF(Makro!E20=1,"-",AX16*1000) -> - | AW15: =IF(Makro!$C$11=1,'Ark1'!M15,0)*$AY$38 -> 0.329879615 | AX15: =IF(Makro!$C$11=1,'Ark1'!N15,0)*$AY$38 -> 0.02738499164 | AY15: =IF(Makro!$C$11=1,'Ark1'!O15,0) -> 0.06219541963 | AZ15: =IF(Makro!$C$11=1,'Ark1'!P15,0) -> 0.0006348145189 | BA15: =IF(Makro!$C$11=1,'Ark1'!Q15,0) -> 129.9884525 | BB15: =IF(Makro!$C$11=1,'Ark1'!R15,0) -> 455.6659511 | BD15: Mud | BE15: =INDEX(Lastresult,1+5*(BE9-1),17)*1000 -> 20.48241873 | BF15: 22.56383747 | BG15: 28.42554447 | BH15: 28.44946435 | BI15: 22.56383747 | BJ15: 28.42554447 | BL15: G
M16: Antal | N16: 6.67 | P16: fef | Q16: =Q15*Q14 -> 1.86894993 | AN16: 8 | AO16: 603.7474464 | AP16: =IF(Makro!E20=1,"-",AX17*1000) -> - | AS16: t_d | AT16: =0.5*N11*MAX(Q25:Q28)/(0.8*N12*N13) -> 0.015 | AU16: MPa | AW16: =IF(Makro!$C$11=1,'Ark1'!M16,0)*$AY$38 -> 0.4613581949 | AX16: =IF(Makro!$C$11=1,'Ark1'!N16,0)*$AY$38 -> 0.02827704655 | AY16: =IF(Makro!$C$11=1,'Ark1'!O16,0) -> 0.06750525256 | AZ16: =IF(Makro!$C$11=1,'Ark1'!P16,0) -> 0.0007607799574 | BA16: =IF(Makro!$C$11=1,'Ark1'!Q16,0) -> 177.8648366 | BB16: =IF(Makro!$C$11=1,'Ark1'!R16,0) -> 458.3333333 | BD16: u | BE16: =INDEX(Lastresult,1+5*(BE9-1),15)*1000 -> 31.06423318 | BF16: 33.54253401 | BG16: 42.94358888 | BH16: 43.80368799 | BI16: 33.54253401 | BJ16: 42.94358888 | BL16: H
K17: Trækarm. | M17: da | N17: 8 | O17: Hvis væggen kun forsynes med ét lag | AN17: 9 | AO17: 650.8485514 | AP17: =IF(Makro!E20=1,"-",AX18*1000) -> - | AW17: =IF(Makro!$C$11=1,'Ark1'!M17,0)*$AY$38 -> 0.6037474464 | AX17: =IF(Makro!$C$11=1,'Ark1'!N17,0)*$AY$38 -> 0.02835372287 | AY17: =IF(Makro!$C$11=1,'Ark1'!O17,0) -> 0.0734371256 | AZ17: =IF(Makro!$C$11=1,'Ark1'!P17,0) -> 0.0008791576631 | BA17: =IF(Makro!$C$11=1,'Ark1'!Q17,0) -> 229.6851922 | BB17: =IF(Makro!$C$11=1,'Ark1'!R17,0) -> 457.2314852 | BD17: wr | BE17: - | BF17: - | BG17: - | BH17: - | BI17: - | BJ17: - | BL17: I
M18: Antal | N18: 6.67 | O18: armering, skal det være træklaget. | AN18: 10 | AO18: 710.8167638 | AP18: =IF(Makro!E20=1,"-",AX19*1000) -> - | AS18: Ingen negative inddata | AT18: =IF(MIN(N7,N8,N9,N10,N11,N14,N15,N16,N17,N18,AP40,AP41,N12,N13,N25:Q34,N35:P35,Q12,Q13,Q15,N23)<0,1,0) -> 0 | AU18: =IF(AT18=1,AS18&" ! ","") ->  | AW18: =IF(Makro!$C$11=1,'Ark1'!M18,0)*$AY$38 -> 0.6508485514 | AX18: =IF(Makro!$C$11=1,'Ark1'!N18,0)*$AY$38 -> 0.0281530016 | AY18: =IF(Makro!$C$11=1,'Ark1'!O18,0) -> 0.0800848618 | AZ18: =IF(Makro!$C$11=1,'Ark1'!P18,0) -> 0.0008032212515 | BA18: =IF(Makro!$C$11=1,'Ark1'!Q18,0) -> 230.6843409 | BB18: =IF(Makro!$C$11=1,'Ark1'!R18,0) -> 344.8055836 | BD18: e0 | BE18: =INDEX(Lastresult,1+5*(BE9-1),3)*1000 -> 0.3553127187 | BF18: 0.4279260915 | BG18: 0.8056106497 | BH18: 0.8449978664 | BI18: 0.4279260915 | BJ18: 0.8056106497
K19: Anvendelsestilstand | O19: Kritisk last (central) | AN19: 11 | AO19: 777.7271394 | AP19: =IF(Makro!E20=1,"-",AX20*1000) -> - | AS19: f_ck højst 50 MPa | AT19: =IF(N7>50,1,0) -> 0 | AU19: =IF(AT19=1,AS19&" ! ","") ->  | AW19: =IF(Makro!$C$11=1,'Ark1'!M19,0)*$AY$38 -> 0.7108167638 | AX19: =IF(Makro!$C$11=1,'Ark1'!N19,0)*$AY$38 -> 0.02824088418 | AY19: =IF(Makro!$C$11=1,'Ark1'!O19,0) -> 0.0875597913 | AZ19: =IF(Makro!$C$11=1,'Ark1'!P19,0) -> 0.0007589601805 | BA19: =IF(Makro!$C$11=1,'Ark1'!Q19,0) -> 236.5414081 | BB19: =IF(Makro!$C$11=1,'Ark1'!R19,0) -> 260.81445 | BD19: sc0 | BE19: =('Ark1'!$O$31*'Ark1'!$O$30*Kold!BE18/1000-(Kold!BE18/1000)^2)*$Q$8/('Ark1'!$O$30^2+('Ark1'!$O$31-2)*'Ark1'!$O$30*Kold!BE18/1000) -> 8.076815852 | BF19: =('Ark1'!$O$31*'Ark1'!$O$30*Kold!BF18/1000-(Kold!BF18/1000)^2)*$Q$8/('Ark1'!$O$30^2+('Ark1'!$O$31-2)*'Ark1'!$O$30*Kold!BF18/1000) -> 9.493476822 | BG19: =('Ark1'!$O$31*'Ark1'!$O$30*Kold!BG18/1000-(Kold!BG18/1000)^2)*$Q$8/('Ark1'!$O$30^2+('Ark1'!$O$31-2)*'Ark1'!$O$30*Kold!BG18/1000) -> 15.70453457 | BH19: =('Ark1'!$O$31*'Ark1'!$O$30*Kold!BH18/1000-(Kold!BH18/1000)^2)*$Q$8/('Ark1'!$O$30^2+('Ark1'!$O$31-2)*'Ark1'!$O$30*Kold!BH18/1000) -> 16.2469634 | BI19: =('Ark1'!$O$31*'Ark1'!$O$30*Kold!BI18/1000-(Kold!BI18/1000)^2)*$Q$8/('Ark1'!$O$30^2+('Ark1'!$O$31-2)*'Ark1'!$O$30*Kold!BI18/1000) -> 9.493476822 | BJ19: =('Ark1'!$O$31*'Ark1'!$O$30*Kold!BJ18/1000-(Kold!BJ18/1000)^2)*$Q$8/('Ark1'!$O$30^2+('Ark1'!$O$31-2)*'Ark1'!$O$30*Kold!BJ18/1000) -> 15.70453457
L20: I anvendelsestilstand skønnes a | P20: scrd | Q20: =Q8/(1+12*Q8*N11^2/(PI()^2*Q10*N12^2)) -> 16.67208563 | AN20: 12 | AO20: 876.2143374 | AP20: =IF(Makro!E20=1,"-",AX21*1000) -> - | AS20: f_ck mindst 20 MPa | AT20: =IF(N7<20,1,0) -> 0 | AW20: =IF(Makro!$C$11=1,'Ark1'!M20,0)*$AY$38 -> 0.7777271394 | AX20: =IF(Makro!$C$11=1,'Ark1'!N20,0)*$AY$38 -> 0.02847653178 | AY20: =IF(Makro!$C$11=1,'Ark1'!O20,0) -> 0.09599468428 | AZ20: =IF(Makro!$C$11=1,'Ark1'!P20,0) -> 0.000726845306 | BA20: =IF(Makro!$C$11=1,'Ark1'!Q20,0) -> 243.2733694 | BB20: =IF(Makro!$C$11=1,'Ark1'!R20,0) -> 191.184602 | BD20: sst | BE20: =INDEX(Lastresult,1+5*(BE9-1),12) -> 458.3333333 | BF20: 458.3333333 | BG20: 458.3333333 | BH20: 458.3333333 | BI20: 458.3333333 | BJ20: 458.3333333
L21: til en passende værdi afhængig af | P21: fc | Q21: =AP40/(N12*N13) -> 0.001862615378 | AN21: 13 | AO21: 980.6944004 | AP21: =IF(Makro!E20=1,"-",AX22*1000) -> - | AS21: b og h mindst 90 mm | AT21: =IF(MIN(N12,N13)<90,1,0) -> 0 | AW21: =IF(Makro!$C$11=1,'Ark1'!M21,0)*$AY$38 -> 0.8762143374 | AX21: =IF(Makro!$C$11=1,'Ark1'!N21,0)*$AY$38 -> 0.0287685244 | AY21: =IF(Makro!$C$11=1,'Ark1'!O21,0) -> 0.1055487269 | AZ21: =IF(Makro!$C$11=1,'Ark1'!P21,0) -> 0.0007259522539 | BA21: =IF(Makro!$C$11=1,'Ark1'!Q21,0) -> 258.685618 | BB21: =IF(Makro!$C$11=1,'Ark1'!R21,0) -> 135.960671 | BD21: ssc | BE21: =INDEX(Lastresult,1+5*(BE9-1),10) -> 12.12035409 | BF21: 38.48702702 | BG21: 197.1674415 | BH21: 214.4581782 | BI21: 38.48702702 | BJ21: 197.1674415
L22: forholdet mellem lang- og kort- | P22: ft | Q22: =AP41/(N12*N13) -> 0.001862615378 | AN22: 14 | AO22: 1175.039291 | AP22: =IF(Makro!E20=1,"-",AX23*1000) -> - | AS22: ="A_c og A_t må højst være "&BB35&" mm^2" -> A_c og A_t må højst være 3600 mm^2 | AT22: =IF(OR(AP40>BB35,AP41>BB35),1,0) -> 0 | AW22: =IF(Makro!$C$11=1,'Ark1'!M22,0)*$AY$38 -> 0.9806944004 | AX22: =IF(Makro!$C$11=1,'Ark1'!N22,0)*$AY$38 -> 0.02884427964 | AY22: =IF(Makro!$C$11=1,'Ark1'!O22,0) -> 0.1164138618 | AZ22: =IF(Makro!$C$11=1,'Ark1'!P22,0) -> 0.0007227333284 | BA22: =IF(Makro!$C$11=1,'Ark1'!Q22,0) -> 272.2065048 | BB22: =IF(Makro!$C$11=1,'Ark1'!R22,0) -> 84.02009899 | BD22: hc | BE22: =INDEX(Lastresult,1+5*(BE9-1),2)*1000 -> 42.52830624 | BF22: 47.4352145 | BG22: 69.75170576 | BH22: 71.72538794 | BI22: 47.4352145 | BJ22: 69.75170576
L23: tidslast: | M23: aanv. = | N23: 20 | P23: Ncr | Q23: =MIN(N12*N13*Q20*(1+(200000/Q10)*2*MIN(Q21,Q22)),N12*N13*Q20*(1+(Q9/Q20)*2*MIN(Q21,Q22)))/1000 -> 3092.832027 | AN23: 15 | AO23: 1502.117692 | AP23: =IF(Makro!E20=1,"-",AX24*1000) -> - | AS23: c højst h/3 ved to lag armering | AT23: =IF(AND(N14>N12/3,AP40>0),1,0) -> 0 | AW23: =IF(Makro!$C$11=1,'Ark1'!M23,0)*$AY$38 -> 1.175039291 | AX23: =IF(Makro!$C$11=1,'Ark1'!N23,0)*$AY$38 -> 0.02826114334 | AY23: =IF(Makro!$C$11=1,'Ark1'!O23,0) -> 0.1288229302 | AZ23: =IF(Makro!$C$11=1,'Ark1'!P23,0) -> 0.0007820441214 | BA23: =IF(Makro!$C$11=1,'Ark1'!Q23,0) -> 309.3970318 | BB23: =IF(Makro!$C$11=1,'Ark1'!R23,0) -> 38.93310229
C24: Kontrolparametre | D24: Brudlasttilfælde | J24: Anv. - | K24: Brudlasttilfælde | N24: N1 (kN) | O24: N0 (kN) | P24: N2 (kN) | Q24: w (kN/m) | AN24: 16 | AO24: 1892.031182 | AP24: =IF(Makro!E20=1,"-",AX25*1000) -> - | AS24: ="A_eff > "&TEXT(0.65*N12*N13/N8,0)&" mm^2 symmetrisk om vægmidte ikke opfyldt" -> A_eff > 213 mm^2 symmetrisk om vægmidte ikke opfyldt | AT24: =IF(MIN(AP40,AP41)*2<0.65*N12*N13/N8,IF(AND(AP41>0.65*N12*N13/N8,N14>=N12/2-20,N14<=N12/2+20),0,1),0) -> 0 | AU24: =IF(AT24=1,AS24&" ! ","") ->  | AW24: =IF(Makro!$C$11=1,'Ark1'!M24,0)*$AY$38 -> 1.502117692 | AX24: =IF(Makro!$C$11=1,'Ark1'!N24,0)*$AY$38 -> 0.02488431043 | AY24: =IF(Makro!$C$11=1,'Ark1'!O24,0) -> 0.1430602099 | AZ24: =IF(Makro!$C$11=1,'Ark1'!P24,0) -> 0.0009178421457 | BA24: =IF(Makro!$C$11=1,'Ark1'!Q24,0) -> 379.3963296 | BB24: =IF(Makro!$C$11=1,'Ark1'!R24,0) -> -11.26557374
D25: =IF(Makro!$C$11=1,BE11,"-") -> A | E25: =IF(Makro!$C$11=1,BF11,"-") -> B | F25: =IF(Makro!$C$11=1,BG11,"-") -> C | G25: =IF(Makro!$C$11=1,BH11,"-") -> D | H25: =IF(Makro!$C$11=1,BI11,"-") -> E | I25: =IF(Makro!$C$11=1,BJ11,"-") -> F | J25: tilfælde | K25: A | N25: 11.7 | O25: 9 | P25: 8.4 | Q25: 1.2 | AN25: 17 | AO25: 2145.180279 | AP25: =IF(Makro!E20=1,"-",AX26*1000) -> - | AS25: f_yk højst 600 MPa | AT25: =IF(N8>600,1,0) -> 0 | AW25: =IF(Makro!$C$11=1,'Ark1'!M25,0)*$AY$38 -> 1.892031182 | AX25: =IF(Makro!$C$11=1,'Ark1'!N25,0)*$AY$38 -> 0.01697820523 | AY25: =IF(Makro!$C$11=1,'Ark1'!O25,0) -> 0.159475176 | AZ25: =IF(Makro!$C$11=1,'Ark1'!P25,0) -> 0.001063292827 | BA25: =IF(Makro!$C$11=1,'Ark1'!Q25,0) -> 457.0781252 | BB25: =IF(Makro!$C$11=1,'Ark1'!R25,0) -> -74.50649783
B26: NEd | C26: (kN) | D26: =IF(Makro!$C$11=1,BE13,"-") -> 29.10008793 | E26: =IF(Makro!$C$11=1,BF13,"-") -> 95.49997694 | F26: =IF(Makro!$C$11=1,BG13,"-") -> 514.0999102 | G26: =IF(Makro!$C$11=1,BH13,"-") -> 561.4998438 | H26: =IF(Makro!$C$11=1,BI13,"-") -> 95.49997694 | I26: =IF(Makro!$C$11=1,BJ13,"-") -> 514.0999102 | J26: =N34+O34+P34 -> 70 | K26: B | N26: 78.1 | O26: 9 | P26: 8.4 | Q26: 1.2 | AN26: 18 | AO26: 2145.180279 | AP26: =IF(Makro!E20=1,"-",AX27*1000) -> - | AS26: b skal mindst være 4 h | AT26: =IF(N12>N13/4,1,0) -> 0 | AW26: =IF(Makro!$C$11=1,'Ark1'!M26,0)*$AY$38 -> 2.145180279 | AX26: =IF(Makro!$C$11=1,'Ark1'!N26,0)*$AY$38 -> 0.009004105196 | AY26: =IF(Makro!$C$11=1,'Ark1'!O26,0) -> 0.178500634 | AZ26: =IF(Makro!$C$11=1,'Ark1'!P26,0) -> 0.001084013806 | BA26: =IF(Makro!$C$11=1,'Ark1'!Q26,0) -> 458.3333333 | BB26: =IF(Makro!$C$11=1,'Ark1'!R26,0) -> -134.1577904
B27: M0Ed | C27: (kNm) | D27: =IF(Makro!$C$11=1,BE14,"-") -> 2.6304 | E27: =IF(Makro!$C$11=1,BF14,"-") -> 7.4112 | F27: =IF(Makro!$C$11=1,BG14,"-") -> 15.7832 | G27: =IF(Makro!$C$11=1,BH14,"-") -> 13.8872 | H27: =IF(Makro!$C$11=1,BI14,"-") -> 6.4392 | I27: =IF(Makro!$C$11=1,BJ14,"-") -> 14.8112 | J27: =(N34*N35+O34*O35-P34*P35)/1000+0.125*Q34*(N11/1000)^2 -> 4.2 | K27: C | N27: 78.1 | O27: 427.6 | P27: 8.4 | Q27: 1.2 | AN27: 19 | AO27: 2145.180279 | AP27: =IF(Makro!E20=1,"-",AX28*1000) -> - | AS27: Partialkoefficienter mindst 1,0 | AT27: =IF(MIN(N9,N10)<1,1,0) -> 0 | AW27: =IF(Makro!$C$11=1,'Ark1'!M27,0)*$AY$38 -> 2.145180279 | AX27: =IF(Makro!$C$11=1,'Ark1'!N27,0)*$AY$38 -> 0.009004105196 | AY27: =IF(Makro!$C$11=1,'Ark1'!O27,0) -> 0.178500634 | AZ27: =IF(Makro!$C$11=1,'Ark1'!P27,0) -> 0.001084013806 | BA27: =IF(Makro!$C$11=1,'Ark1'!Q27,0) -> 458.3333333 | BB27: =IF(Makro!$C$11=1,'Ark1'!R27,0) -> -134.1577904
B28: M0Rd | C28: (kNm) | D28: =IF(Makro!$C$11=1,BE15,"-") -> 20.48241873 | E28: =IF(Makro!$C$11=1,BF15,"-") -> 22.56383747 | F28: =IF(Makro!$C$11=1,BG15,"-") -> 28.42554447 | G28: =IF(Makro!$C$11=1,BH15,"-") -> 28.44946435 | H28: =IF(Makro!$C$11=1,BI15,"-") -> 22.56383747 | I28: =IF(Makro!$C$11=1,BJ15,"-") -> 28.42554447 | J28: =IF(AT57+0.00001<0.9*AR51,"ustabil","-") -> - | K28: D | N28: 78.1 | O28: 427.6 | P28: 55.8 | Q28: 1.2 | AS28: Søjlelængde må højst være 60 h | AT28: =IF(N11>60*N12,1,0) -> 0 | AU28: =IF(AT28=1,AS28&" ! ","") ->  | AW28: =IF(Makro!$C$11=1,'Ark1'!M28,0)*$AY$38 -> 2.145180279 | AX28: =IF(Makro!$C$11=1,'Ark1'!N28,0)*$AY$38 -> 0.009004105196 | AY28: =IF(Makro!$C$11=1,'Ark1'!O28,0) -> 0.178500634 | AZ28: =IF(Makro!$C$11=1,'Ark1'!P28,0) -> 0.001084013806 | BA28: =IF(Makro!$C$11=1,'Ark1'!Q28,0) -> 458.3333333 | BB28: =IF(Makro!$C$11=1,'Ark1'!R28,0) -> -134.1577904
B29: u | C29: (mm) | D29: =IF(Makro!$C$11=1,BE16,"-") -> 31.06423318 | E29: =IF(Makro!$C$11=1,BF16,"-") -> 33.54253401 | F29: =IF(Makro!$C$11=1,BG16,"-") -> 42.94358888 | G29: =IF(Makro!$C$11=1,BH16,"-") -> 43.80368799 | H29: =IF(Makro!$C$11=1,BI16,"-") -> 33.54253401 | I29: =IF(Makro!$C$11=1,BJ16,"-") -> 42.94358888 | J29: =AQ86 -> 1.06634532 | K29: E | N29: 78.1 | O29: 9 | P29: 8.4 | Q29: 0.6 | AS29: Programmet indstillet til brandberegning ! | AT29: =IF(Makro!C11=1,0,1) -> 0 | AU29: =IF(AT29=1,AS29&" ! ","") -> 
B30: wk | C30: (mm) | D30: =IF(Makro!$C$11=1,BE17,"-") -> - | E30: =IF(Makro!$C$11=1,BF17,"-") -> - | F30: =IF(Makro!$C$11=1,BG17,"-") -> - | G30: =IF(Makro!$C$11=1,BH17,"-") -> - | H30: =IF(Makro!$C$11=1,BI17,"-") -> - | I30: =IF(Makro!$C$11=1,BJ17,"-") -> - | J30: =IF(AQ81=0,"urevnet",AS86) -> urevnet | K30: F | N30: 78.1 | O30: 427.6 | P30: 8.4 | Q30: 0.6 | AO30: =N25+O25+P25 -> 29.1 | AQ30: =(N25*$N$35+O25*$O$35-P25*$P$35)/1000+0.125*Q25*($N$11/1000)^2 -> 2.6304 | AS30: For ny bruger: Klik på knappen 'angiv nyt brugernavn' for ibrugtagning. | AT30: =Makro!E20 -> 1 | AU30: =IF(AT30=1,AS30,"") -> For ny bruger: Klik på knappen 'angiv nyt brugernavn' for ibrugtagning.
B31: e0 / (1+f) | C31: (o/oo) | D31: =IF(Makro!$C$11=1,BE18,"-") -> 0.3553127187 | E31: =IF(Makro!$C$11=1,BF18,"-") -> 0.4279260915 | F31: =IF(Makro!$C$11=1,BG18,"-") -> 0.8056106497 | G31: =IF(Makro!$C$11=1,BH18,"-") -> 0.8449978664 | H31: =IF(Makro!$C$11=1,BI18,"-") -> 0.4279260915 | I31: =IF(Makro!$C$11=1,BJ18,"-") -> 0.8056106497 | J31: - | K31: G | N31: 78.1 | O31: 427.6 | P31: 59.3 | Q31: 0.6 | AO31: 95.5 | AQ31: 7.4112 | AS31: Beregning af krybetal | AW31: Minimumsarmering
B32: sc0 | C32: (Mpa) | D32: =IF(Makro!$C$11=1,BE19,"-") -> 8.076815852 | E32: =IF(Makro!$C$11=1,BF19,"-") -> 9.493476822 | F32: =IF(Makro!$C$11=1,BG19,"-") -> 15.70453457 | G32: =IF(Makro!$C$11=1,BH19,"-") -> 16.2469634 | H32: =IF(Makro!$C$11=1,BI19,"-") -> 9.493476822 | I32: =IF(Makro!$C$11=1,BJ19,"-") -> 15.70453457 | J32: =IF($J$28="-",IF(AQ81=0,AP78,AQ78),"-") -> 1.102493175 | K32: H | N32: 78.1 | O32: 456 | P32: 8.4 | Q32: 0.6 | S32: NB: Resultaterne skal altid kontrolleres af ansvarlig statiker | AO32: 514.1 | AQ32: 15.7832 | AS32: to | AT32: =Q13 -> 28 | AX32: Maks N | AY32: =MAX($AO$30:$AO$38)*1000 -> 593400 | AZ32: N
B33: sst | C33: (Mpa) | D33: =IF(Makro!$C$11=1,BE20,"-") -> 458.3333333 | E33: =IF(Makro!$C$11=1,BF20,"-") -> 458.3333333 | F33: =IF(Makro!$C$11=1,BG20,"-") -> 458.3333333 | G33: =IF(Makro!$C$11=1,BH20,"-") -> 458.3333333 | H33: =IF(Makro!$C$11=1,BI20,"-") -> 458.3333333 | I33: =IF(Makro!$C$11=1,BJ20,"-") -> 458.3333333 | J33: =IF($J$28="-",IF(AQ81=0,AP76,AQ76),"-") -> 0.9884612994 | K33: I | N33: 78.1 | O33: 456 | P33: 59.3 | Q33: 0.6 | AO33: 561.5 | AQ33: 13.8872 | AS33: RH | AT33: =Q12*100 -> 55 | AX33: Ac | AY33: =$N$12*$N$13 -> 180000 | AZ33: mm2
B34: ssc | C34: (Mpa) | D34: =IF(Makro!$C$11=1,BE21,"-") -> 12.12035409 | E34: =IF(Makro!$C$11=1,BF21,"-") -> 38.48702702 | F34: =IF(Makro!$C$11=1,BG21,"-") -> 197.1674415 | G34: =IF(Makro!$C$11=1,BH21,"-") -> 214.4581782 | H34: =IF(Makro!$C$11=1,BI21,"-") -> 38.48702702 | I34: =IF(Makro!$C$11=1,BJ21,"-") -> 197.1674415 | J34: =IF($J$28="-",IF(AQ81=0,AP79,AQ79),"-") -> 15.46748499 | K34: Anvendelsestilfælde: | N34: 49 | O34: 9 | P34: 12 | Q34: 0.6 | S34: Vejledning: | V34: Betonelementbyggeriers statik | AO34: 95.5 | AQ34: 6.4392 | AS34: h | AT34: =N12 -> 180 | AX34: Asmin | AY34: =ROUND(0.002*AY33,0) -> 360 | AZ34: mm2 | BA34: Asmax | BB34: =ROUND(MAX(0.04*AY33,0.1*$AY$32/Q9),0) -> 7200
B35: x | C35: (mm) | D35: =IF(Makro!$C$11=1,BE22,"-") -> 42.52830624 | E35: =IF(Makro!$C$11=1,BF22,"-") -> 47.4352145 | F35: =IF(Makro!$C$11=1,BG22,"-") -> 69.75170576 | G35: =IF(Makro!$C$11=1,BH22,"-") -> 71.72538794 | H35: =IF(Makro!$C$11=1,BI22,"-") -> 47.4352145 | I35: =IF(Makro!$C$11=1,BJ22,"-") -> 69.75170576 | J35: =IF(AND($J$28="-",J26>0),IF(AQ81=0,"urevnet",AR57*1000),"-") -> urevnet | K35: Excentriciteter (mm) : | N35: 72 | O35: 20 | P35: 40 | S35: Polyteknisk Forlag 2010 eller www.bef.dk | AO35: 514.1 | AQ35: 14.8112 | AS35: b | AT35: =N13 -> 1000 | AX35: ½ Asmin | AY35: =ROUND(AY34/2,0) -> 180 | AZ35: mm2 | BA35: ½ Asmax | BB35: =BB34*0.5 -> 3600
AO36: 565 | AQ36: 12.7752 | AS36: ho | AT36: =2*AT34*AT35/(2*(AT34+AT35)) -> 152.5423729
AO37: 542.5 | AQ37: 15.3792 | AS37: fck | AT37: =N7 -> 35 | AW37: Nulstilling for fejl
AO38: 593.4 | AQ38: 13.3432 | AS38: fcm | AT38: =AT37+8 -> 43 | AX38: Testfaktor | AY38: =IF(MAX(AT18,AT19,AT20,AT22,AT23,AT24,AT26,AT27,AT28)=1,0,1) -> 1
AS39: a1 | AT39: =IF(AT38<35,1,(35/AT38)^0.7) -> 0.8658042477
AN40: Trykarmering | AP40: =N15^2*N16*PI()/4 -> 335.270768 | AQ40: mm^2 | AS40: a2 | AT40: =IF(AT38<35,1,(35/AT38)^0.2) -> 0.9596655786
AN41: Trækarmering | AP41: =N17^2*N18*PI()/4 -> 335.270768 | AQ41: mm^2 | AS41: f | AT41: =(1/(0.1+AT32^0.2))*(16.8/AT38^0.5)*(1+10*AT39*(1-AT33/100)/AT36^(1/3))*AT40 -> 2.076611033
AN44: gc | AO44: 1 | AQ44: ANVENDELSESLAST | AT44: Mo | AV44: sc,max | AW44: sc,min | AX44: sc | AY44: st | AZ44: hc | BA44: u | BB44: a | BC44: Mt | BD44: a*fc | BE44: a*ft | BF44: B | BG44: C | BH44: D | BI44: p | BJ44: q | BK44: C' | BL44: y' | BM44: b | BN44: m | BO44: Ec | BP44: Atr | BQ44: Syt | BR44: Iyt | BS44: z | BT44: Io | BU44: sc | BV44: sm | BW44: hc
AN45: ga | AO45: 1 | AT45: =BC45-AR48*BA45 -> 0.004669379634 | AV45: =IF(BL45*SQRT(4*ABS(BI45)/3)-BF45/3<=AO51,BC45/(BN45*AO52*AO51^2),BU45) -> 1.577359047 | AW45: =IF(BL45*SQRT(4*ABS(BI45)/3)-BF45/3<=AO51,0,BV45) -> 0 | AX45: =BB45*(AZ45-AO53)*AV45/AZ45 -> 17.37721514 | AY45: =BB45*(AO51-AO53-AZ45)*AV45/AZ45 -> 18.04769935 | AZ45: =IF(BL45*SQRT(4*ABS(BI45)/3)-BF45/3<=AO51,BL45*SQRT(4*ABS(BI45)/3)-BF45/3,BW45) -> 0.08905365445 | BA45: =0.1*(AV45/(AZ45*BO45))*AO57^2 -> 0.002295534459 | BB45: =AO54 -> 20 | BC45: =IF(J27>0,AR51+AO51*AR48/20,0)+0.000000000001 -> 0.004830090001 | BD45: =BB45*AO55/(AO51*AO52) -> 0.03725230755 | BE45: =BB45*AO56/(AO51*AO52) -> 0.03725230755 | BF45: =-6*AO51*(0.25-0.5*BC45/(AO51*AR50)) -> -0.06302571057 | BG45: =-6*AO51*(BD45*(0.5*AO51-AO53)-BE45*(0.5*AO51-AO53)-(BD45+BE45)*AO51*BC45/(AO51*AR50)) -> 0.005551394318 | BH45: =6*AO51*((BD45*AO53-BE45*(AO51-AO53))*(0.5*AO51-AO53)-(BD45*AO53+BE45*(AO51-AO53))*BC45/AR50) -> -0.0007007879494 | BI45: =(3*BG45-BF45^2)/3 -> 0.004227314253 | BJ45: =(9*BG45*BF45-27*BH45-2*BF45^3)/27 -> 0.0006027057782 | BK45: =0.5*BJ45*(3/ABS(BI45))^(3/2) -> 5.697186553 | BL45: =IF(BI45>0,SINH(ASINH(BK45)/3),IF(BK45>=1,COSH(ACOSH(BK45)/3),IF(BK45<=-1,-COSH(ACOSH(ABS(BK45))/3),COS(ACOS(BK45)/3)))) -> 0.9063482925 | BM45: =AZ45/AO51 -> 0.4947425247 | BN45: =0.5*BM45*(0.5-BM45/3)+BD45*(0.5-AO53/AO51)*(BM45-AO53/AO51)/BM45+BE45*(0.5-AO53/AO51)*(1-AO53/AO51-BM45)/BM45 -> 0.09451041104 | BO45: =IF(BL45*SQRT(4*ABS(BI45)/3)-BF45/3<=AO51,AO50*(1-AO49*AV45/AO48),AO50*(1-AO49*AV45/AO48-(1-1)*BV45/AO48)) -> 10000 | BP45: =(1+BD45+BE45)*AO51*AO52 -> 0.1934108307 | BQ45: =0.5*(AO51-AO53)*(BE45-BD45)*AO51*AO52 -> 0 | BR45: =AO52*AO51^3/12+(0.5*AO51-AO53)^2*(BD45+BE45)*AO52*AO51 -> 0.0005195270768 | BS45: =BQ45/BP45 -> 0 | BT45: =BR45-BP45*BS45^2 -> 0.0005195270768 | BU45: =AR50/BP45+(BC45+BS45*AR50)*(0.5*AO51+BS45)/BT45 -> 1.198713694 | BV45: =AR50/BP45+(BC45+BS45*AR50)*(-0.5*AO51+BS45)/BT45 -> -0.4747625096 | BW45: =AR50*BT45/((BC45+AR50*BS45)*BP45)+(0.5*AO51+BS45) -> 0.1289342893
AN46: fck | AO46: =N7 -> 35 | AP46: MPa | AT46: =BC46-AR48*BA46 -> 0.004234297368 | AU46: =BA46/BA45 -> 0.7865889488 | AV46: =IF(BL46*SQRT(4*ABS(BI46)/3)-BF46/3<=AO51,BC46/(BN46*AO52*AO51^2),BU46) -> 1.379777321 | AW46: =IF(BL46*SQRT(4*ABS(BI46)/3)-BF46/3<=AO51,0,BV46) -> 0 | AX46: =BB46*(AZ46-AO53)*AV46/AZ46 -> 16.44960791 | AY46: =BB46*(AO51-AO53-AZ46)*AV46/AZ46 -> 11.41523834 | AZ46: =IF(BL46*SQRT(4*ABS(BI46)/3)-BF46/3<=AO51,BL46*SQRT(4*ABS(BI46)/3)-BF46/3,BW46) -> 0.09903354988 | BA46: =0.1*(AV46/(AZ46*BO46))*AO57^2 -> 0.001805642037 | BB46: =AO54 -> 20 | BC46: =AR51+BA45*AR48 -> 0.004360710367 | BD46: =BB46*AO55/(AO51*AO52) -> 0.03725230755 | BE46: =BB46*AO56/(AO51*AO52) -> 0.03725230755 | BF46: =-6*AO51*(0.25-0.5*BC46/(AO51*AR50)) -> -0.08313910724 | BG46: =-6*AO51*(BD46*(0.5*AO51-AO53)-BE46*(0.5*AO51-AO53)-(BD46+BE46)*AO51*BC46/(AO51*AR50)) -> 0.005011919602 | BH46: =6*AO51*((BD46*AO53-BE46*(AO51-AO53))*(0.5*AO51-AO53)-(BD46*AO53+BE46*(AO51-AO53))*BC46/AR50) -> -0.000652235225 | BI46: =(3*BG46-BF46^2)/3 -> 0.002707882551 | BJ46: =(9*BG46*BF46-27*BH46-2*BF46^3)/27 -> 0.0005559076253 | BK46: =0.5*BJ46*(3/ABS(BI46))^(3/2) -> 10.24966762 | BL46: =IF(BI46>0,SINH(ASINH(BK46)/3),IF(BK46>=1,COSH(ACOSH(BK46)/3),IF(BK46<=-1,-COSH(ACOSH(ABS(BK46))/3),COS(ACOS(BK46)/3)))) -> 1.186943879 | BM46: =AZ46/AO51 -> 0.5501863882 | BN46: =0.5*BM46*(0.5-BM46/3)+BD46*(0.5-AO53/AO51)*(BM46-AO53/AO51)/BM46+BE46*(0.5-AO53/AO51)*(1-AO53/AO51-BM46)/BM46 -> 0.09754459952 | BO46: =IF(BL46*SQRT(4*ABS(BI46)/3)-BF46/3<=AO51,AO50*(1-AO49*AV46/AO48),AO50*(1-AO49*AV46/AO48-(1-1)*BV46/AO48)) -> 10000 | BP46: =(1+BD46+BE46)*AO51*AO52 -> 0.1934108307 | BQ46: =0.5*(AO51-AO53)*(BE46-BD46)*AO51*AO52 -> 0 | BR46: =AO52*AO51^3/12+(0.5*AO51-AO53)^2*(BD46+BE46)*AO52*AO51 -> 0.0005195270768 | BS46: =BQ46/BP46 -> 0 | BT46: =BR46-BP46*BS46^2 -> 0.0005195270768 | BU46: =AR50/BP46+(BC46+BS46*AR50)*(0.5*AO51+BS46)/BT46 -> 1.11740096 | BV46: =AR50/BP46+(BC46+BS46*AR50)*(-0.5*AO51+BS46)/BT46 -> -0.3934497755 | BW46: =AR50*BT46/((BC46+AR50*BS46)*BP46)+(0.5*AO51+BS46) -> 0.1331251116
AN47: Es | AO47: 200000 | AP47: MPa | AQ47: Max_N | AR47: =(AO51*AO52+AO54*(AO55+AO56))*AO48/(1+(12*(AO48/AO50)/PI()^2)*(AO57/AO51)^2) -> 2.505140028 | AT47: =BC47-AR48*BA47 -> 0.004202311017 | AU47: =BA47/BA46 -> 0.9817185185 | AV47: =IF(BL47*SQRT(4*ABS(BI47)/3)-BF47/3<=AO51,BC47/(BN47*AO52*AO51^2),BU47) -> 1.365893533 | AW47: =IF(BL47*SQRT(4*ABS(BI47)/3)-BF47/3<=AO51,0,BV47) -> 0 | AX47: =BB47*(AZ47-AO53)*AV47/AZ47 -> 16.37569642 | AY47: =BB47*(AO51-AO53-AZ47)*AV47/AZ47 -> 10.97973916 | AZ47: =IF(BL47*SQRT(4*ABS(BI47)/3)-BF47/3<=AO51,BL47*SQRT(4*ABS(BI47)/3)-BF47/3,BW47) -> 0.09986267837 | BA47: =0.1*(AV47/(AZ47*BO47))*AO57^2 -> 0.001772632226 | BB47: =AO54 -> 20 | BC47: =AR51+BA46*AR48 -> 0.004326412999 | BD47: =BB47*AO55/(AO51*AO52) -> 0.03725230755 | BE47: =BB47*AO56/(AO51*AO52) -> 0.03725230755 | BF47: =-6*AO51*(0.25-0.5*BC47/(AO51*AR50)) -> -0.0846087845 | BG47: =-6*AO51*(BD47*(0.5*AO51-AO53)-BE47*(0.5*AO51-AO53)-(BD47+BE47)*AO51*BC47/(AO51*AR50)) -> 0.004972500416 | BH47: =6*AO51*((BD47*AO53-BE47*(AO51-AO53))*(0.5*AO51-AO53)-(BD47*AO53+BE47*(AO51-AO53))*BC47/AR50) -> -0.0006486874982 | BI47: =(3*BG47-BF47^2)/3 -> 0.002586284944 | BJ47: =(9*BG47*BF47-27*BH47-2*BF47^3)/27 -> 0.0005533139352 | BK47: =0.5*BJ47*(3/ABS(BI47))^(3/2) -> 10.9297175 | BL47: 1.22030316 | BM47: =AZ47/AO51 -> 0.5547926576 | BN47: =0.5*BM47*(0.5-BM47/3)+BD47*(0.5-AO53/AO51)*(BM47-AO53/AO51)/BM47+BE47*(0.5-AO53/AO51)*(1-AO53/AO51-BM47)/BM47 -> 0.09776110818 | BO47: =IF(BL47*SQRT(4*ABS(BI47)/3)-BF47/3<=AO51,AO50*(1-AO49*AV47/AO48),AO50*(1-AO49*AV47/AO48-(1-1)*BV47/AO48)) -> 10000 | BP47: =(1+BD47+BE47)*AO51*AO52 -> 0.1934108307 | BQ47: =0.5*(AO51-AO53)*(BE47-BD47)*AO51*AO52 -> 0 | BR47: =AO52*AO51^3/12+(0.5*AO51-AO53)^2*(BD47+BE47)*AO52*AO51 -> 0.0005195270768 | BS47: 0 | BT47: 0.0005195270768 | BU47: =AR50/BP47+(BC47+BS47*AR50)*(0.5*AO51+BS47)/BT47 -> 1.111459473 | BV47: =AR50/BP47+(BC47+BS47*AR50)*(-0.5*AO51+BS47)/BT47 -> -0.3875082889 | BW47: =AR50*BT47/((BC47+AR50*BS47)*BP47)+(0.5*AO51+BS47) -> 0.1334669832
AN48: fcd | AO48: =AO46/AO44 -> 35 | AP48: MPa | AQ48: Nd | AR48: =J26/1000+0.00001 -> 0.07001 | AS48: MN | AT48: =BC48-AR48*BA48 -> 0.004200154684 | AU48: 0.9987535717 | AV48: =IF(BL48*SQRT(4*ABS(BI48)/3)-BF48/3<=AO51,BC48/(BN48*AO52*AO51^2),BU48) -> 1.364961222 | AW48: =IF(BL48*SQRT(4*ABS(BI48)/3)-BF48/3<=AO51,0,BV48) -> 0 | AX48: =BB48*(AZ48-AO53)*AV48/AZ48 -> 16.37068884 | AY48: =BB48*(AO51-AO53-AZ48)*AV48/AZ48 -> 10.95065015 | AZ48: =IF(BL48*SQRT(4*ABS(BI48)/3)-BF48/3<=AO51,BL48*SQRT(4*ABS(BI48)/3)-BF48/3,BW48) -> 0.09991905758 | BA48: =0.1*(AV48/(AZ48*BO48))*AO57^2 -> 0.001770422767 | BB48: =AO54 -> 20 | BC48: =AR51+BA47*AR48 -> 0.004324101982 | BD48: =BB48*AO55/(AO51*AO52) -> 0.03725230755 | BE48: =BB48*AO56/(AO51*AO52) -> 0.03725230755 | BF48: =-6*AO51*(0.25-0.5*BC48/(AO51*AR50)) -> -0.08470781394 | BG48: =-6*AO51*(BD48*(0.5*AO51-AO53)-BE48*(0.5*AO51-AO53)-(BD48+BE48)*AO51*BC48/(AO51*AR50)) -> 0.004969844282 | BH48: =6*AO51*((BD48*AO53-BE48*(AO51-AO53))*(0.5*AO51-AO53)-(BD48*AO53+BE48*(AO51-AO53))*BC48/AR50) -> -0.0006484484462 | BI48: 0.002578039701 | BJ48: 0.0005531434618 | BK48: 10.97880997 | BL48: 1.222651622 | BM48: =AZ48/AO51 -> 0.5551058755 | BN48: =0.5*BM48*(0.5-BM48/3)+BD48*(0.5-AO53/AO51)*(BM48-AO53/AO51)/BM48+BE48*(0.5-AO53/AO51)*(1-AO53/AO51-BM48)/BM48 -> 0.09777562584 | BO48: =IF(BL48*SQRT(4*ABS(BI48)/3)-BF48/3<=AO51,AO50*(1-AO49*AV48/AO48),AO50*(1-AO49*AV48/AO48-(1-1)*BV48/AO48)) -> 10000 | BP48: =(1+BD48+BE48)*AO51*AO52 -> 0.1934108307 | BQ48: =0.5*(AO51-AO53)*(BE48-BD48)*AO51*AO52 -> 0 | BR48: =AO52*AO51^3/12+(0.5*AO51-AO53)^2*(BD48+BE48)*AO52*AO51 -> 0.0005195270768 | BS48: 0 | BT48: 0.0005195270768 | BU48: =AR50/BP48+(BC48+BS48*AR50)*(0.5*AO51+BS48)/BT48 -> 1.111059126 | BV48: =AR50/BP48+(BC48+BS48*AR50)*(-0.5*AO51+BS48)/BT48 -> -0.3871079411 | BW48: =AR50*BT48/((BC48+AR50*BS48)*BP48)+(0.5*AO51+BS48) -> 0.1334902142
AN49: k | AO49: 0 | AQ49: Nf | AR49: 0 | AS49: MN | AT49: =BC49-AR48*BA49 -> 0.004200010349 | AU49: 0.9999165061 | AV49: =IF(BL49*SQRT(4*ABS(BI49)/3)-BF49/3<=AO51,BC49/(BN49*AO52*AO51^2),BU49) -> 1.364898834 | AW49: =IF(BL49*SQRT(4*ABS(BI49)/3)-BF49/3<=AO51,0,BV49) -> 0 | AX49: =BB49*(AZ49-AO53)*AV49/AZ49 -> 16.37035355 | AY49: =BB49*(AO51-AO53-AZ49)*AV49/AZ49 -> 10.94870428 | AZ49: =IF(BL49*SQRT(4*ABS(BI49)/3)-BF49/3<=AO51,BL49*SQRT(4*ABS(BI49)/3)-BF49/3,BW49) -> 0.09992283355 | BA49: =0.1*(AV49/(AZ49*BO49))*AO57^2 -> 0.001770274947 | BB49: =AO54 -> 20 | BC49: =AR51+BA48*AR48 -> 0.004323947298 | BD49: =BB49*AO55/(AO51*AO52) -> 0.03725230755 | BE49: =BB49*AO56/(AO51*AO52) -> 0.03725230755 | BF49: =-6*AO51*(0.25-0.5*BC49/(AO51*AR50)) -> -0.08471444231 | BG49: =-6*AO51*(BD49*(0.5*AO51-AO53)-BE49*(0.5*AO51-AO53)-(BD49+BE49)*AO51*BC49/(AO51*AR50)) -> 0.004969666498 | BH49: =6*AO51*((BD49*AO53-BE49*(AO51-AO53))*(0.5*AO51-AO53)-(BD49*AO53+BE49*(AO51-AO53))*BC49/AR50) -> -0.0006484324456 | BI49: 0.002577487586 | BJ49: 0.0005531320709 | BK49: 10.98211161 | BL49: 1.222809287 | BM49: =AZ49/AO51 -> 0.555126853 | BN49: =0.5*BM49*(0.5-BM49/3)+BD49*(0.5-AO53/AO51)*(BM49-AO53/AO51)/BM49+BE49*(0.5-AO53/AO51)*(1-AO53/AO51-BM49)/BM49 -> 0.09777659722 | BO49: =IF(BL49*SQRT(4*ABS(BI49)/3)-BF49/3<=AO51,AO50*(1-AO49*AV49/AO48),AO50*(1-AO49*AV49/AO48-(1-1)*BV49/AO48)) -> 10000 | BP49: =(1+BD49+BE49)*AO51*AO52 -> 0.1934108307 | BQ49: =0.5*(AO51-AO53)*(BE49-BD49)*AO51*AO52 -> 0 | BR49: =AO52*AO51^3/12+(0.5*AO51-AO53)^2*(BD49+BE49)*AO52*AO51 -> 0.0005195270768 | BS49: 0 | BT49: 0.0005195270768 | BU49: =AR50/BP49+(BC49+BS49*AR50)*(0.5*AO51+BS49)/BT49 -> 1.111032329 | BV49: =AR50/BP49+(BC49+BS49*AR50)*(-0.5*AO51+BS49)/BT49 -> -0.3870811445 | BW49: =AR50*BT49/((BC49+AR50*BS49)*BP49)+(0.5*AO51+BS49) -> 0.13349177
AN50: E | AO50: =AO47/AO54 -> 10000 | AP50: MPa | AQ50: N | AR50: =AR49+AR48 -> 0.07001 | AS50: MN | AT50: =BC50-AR48*BA50 -> 0.004200000692 | AU50: 0.9999944137 | AV50: =IF(BL50*SQRT(4*ABS(BI50)/3)-BF50/3<=AO51,BC50/(BN50*AO52*AO51^2),BU50) -> 1.36489466 | AW50: =IF(BL50*SQRT(4*ABS(BI50)/3)-BF50/3<=AO51,0,BV50) -> 0 | AX50: =BB50*(AZ50-AO53)*AV50/AZ50 -> 16.37033111 | AY50: =BB50*(AO51-AO53-AZ50)*AV50/AZ50 -> 10.9485741 | AZ50: =IF(BL50*SQRT(4*ABS(BI50)/3)-BF50/3<=AO51,BL50*SQRT(4*ABS(BI50)/3)-BF50/3,BW50) -> 0.09992308618 | BA50: =0.1*(AV50/(AZ50*BO50))*AO57^2 -> 0.001770265058 | BB50: =AO54 -> 20 | BC50: =AR51+BA49*AR48 -> 0.004323936949 | BD50: =BB50*AO55/(AO51*AO52) -> 0.03725230755 | BE50: =BB50*AO56/(AO51*AO52) -> 0.03725230755 | BF50: =-6*AO51*(0.25-0.5*BC50/(AO51*AR50)) -> -0.08471488577 | BG50: =-6*AO51*(BD50*(0.5*AO51-AO53)-BE50*(0.5*AO51-AO53)-(BD50+BE50)*AO51*BC50/(AO51*AR50)) -> 0.004969654604 | BH50: =6*AO51*((BD50*AO53-BE50*(AO51-AO53))*(0.5*AO51-AO53)-(BD50*AO53+BE50*(AO51-AO53))*BC50/AR50) -> -0.0006484313751 | BI50: =(3*BG50-BF50^2)/3 -> 0.002577450646 | BJ50: =(9*BG50*BF50-27*BH50-2*BF50^3)/27 -> 0.0005531313089 | BK50: =0.5*BJ50*(3/ABS(BI50))^(3/2) -> 10.98233257 | BL50: =IF(BI50>0,SINH(ASINH(BK50)/3),IF(BK50>=1,COSH(ACOSH(BK50)/3),IF(BK50<=-1,-COSH(ACOSH(ABS(BK50))/3),COS(ACOS(BK50)/3)))) -> 1.222819837 | BM50: =AZ50/AO51 -> 0.5551282566 | BN50: =0.5*BM50*(0.5-BM50/3)+BD50*(0.5-AO53/AO51)*(BM50-AO53/AO51)/BM50+BE50*(0.5-AO53/AO51)*(1-AO53/AO51-BM50)/BM50 -> 0.09777666221 | BO50: =IF(BL50*SQRT(4*ABS(BI50)/3)-BF50/3<=AO51,AO50*(1-AO49*AV50/AO48),AO50*(1-AO49*AV50/AO48-(1-1)*BV50/AO48)) -> 10000 | BP50: =(1+BD50+BE50)*AO51*AO52 -> 0.1934108307 | BQ50: =0.5*(AO51-AO53)*(BE50-BD50)*AO51*AO52 -> 0 | BR50: =AO52*AO51^3/12+(0.5*AO51-AO53)^2*(BD50+BE50)*AO52*AO51 -> 0.0005195270768 | BS50: 0 | BT50: 0.0005195270768 | BU50: =AR50/BP50+(BC50+BS50*AR50)*(0.5*AO51+BS50)/BT50 -> 1.111030536 | BV50: =AR50/BP50+(BC50+BS50*AR50)*(-0.5*AO51+BS50)/BT50 -> -0.3870793517 | BW50: =AR50*BT50/((BC50+AR50*BS50)*BP50)+(0.5*AO51+BS50) -> 0.1334918741
AN51: h | AO51: =$N$12/1000 -> 0.18 | AP51: m | AQ51: Mo | AR51: =J27/1000 -> 0.0042 | AS51: MNm | AT51: =BC51-AR48*BA51 -> 0.004200000046 | AU51: 0.9999996263 | AV51: =IF(BL51*SQRT(4*ABS(BI51)/3)-BF51/3<=AO51,BC51/(BN51*AO52*AO51^2),BU51) -> 1.364894381 | AW51: =IF(BL51*SQRT(4*ABS(BI51)/3)-BF51/3<=AO51,0,BV51) -> 0 | AX51: =BB51*(AZ51-AO53)*AV51/AZ51 -> 16.37032961 | AY51: =BB51*(AO51-AO53-AZ51)*AV51/AZ51 -> 10.94856539 | AZ51: =IF(BL51*SQRT(4*ABS(BI51)/3)-BF51/3<=AO51,BL51*SQRT(4*ABS(BI51)/3)-BF51/3,BW51) -> 0.09992310308 | BA51: =0.1*(AV51/(AZ51*BO51))*AO57^2 -> 0.001770264396 | BB51: =AO54 -> 20 | BC51: =AR51+BA50*AR48 -> 0.004323936257 | BD51: =BB51*AO55/(AO51*AO52) -> 0.03725230755 | BE51: =BB51*AO56/(AO51*AO52) -> 0.03725230755 | BF51: =-6*AO51*(0.25-0.5*BC51/(AO51*AR50)) -> -0.08471491544 | BG51: =-6*AO51*(BD51*(0.5*AO51-AO53)-BE51*(0.5*AO51-AO53)-(BD51+BE51)*AO51*BC51/(AO51*AR50)) -> 0.004969653808 | BH51: =6*AO51*((BD51*AO53-BE51*(AO51-AO53))*(0.5*AO51-AO53)-(BD51*AO53+BE51*(AO51-AO53))*BC51/AR50) -> -0.0006484313035 | BI51: 0.002577448175 | BJ51: 0.0005531312579 | BK51: 10.98234735 | BL51: 1.222820543 | BM51: =AZ51/AO51 -> 0.5551283504 | BN51: =0.5*BM51*(0.5-BM51/3)+BD51*(0.5-AO53/AO51)*(BM51-AO53/AO51)/BM51+BE51*(0.5-AO53/AO51)*(1-AO53/AO51-BM51)/BM51 -> 0.09777666655 | BO51: =IF(BL51*SQRT(4*ABS(BI51)/3)-BF51/3<=AO51,AO50*(1-AO49*AV51/AO48),AO50*(1-AO49*AV51/AO48-(1-1)*BV51/AO48)) -> 10000 | BP51: =(1+BD51+BE51)*AO51*AO52 -> 0.1934108307 | BQ51: =0.5*(AO51-AO53)*(BE51-BD51)*AO51*AO52 -> 0 | BR51: =AO52*AO51^3/12+(0.5*AO51-AO53)^2*(BD51+BE51)*AO52*AO51 -> 0.0005195270768 | BS51: 0 | BT51: 0.0005195270768 | BU51: =AR50/BP51+(BC51+BS51*AR50)*(0.5*AO51+BS51)/BT51 -> 1.111030416 | BV51: =AR50/BP51+(BC51+BS51*AR50)*(-0.5*AO51+BS51)/BT51 -> -0.3870792318 | BW51: =AR50*BT51/((BC51+AR50*BS51)*BP51)+(0.5*AO51+BS51) -> 0.133491881
AN52: b | AO52: =$N$13/1000 -> 1 | AP52: m | AQ52: u | AR52: =BA57 -> 0.001770264349 | AS52: m | AT52: =BC52-AR48*BA52 -> 0.004200000003 | AU52: 0.999999975 | AV52: =IF(BL52*SQRT(4*ABS(BI52)/3)-BF52/3<=AO51,BC52/(BN52*AO52*AO51^2),BU52) -> 1.364894362 | AW52: =IF(BL52*SQRT(4*ABS(BI52)/3)-BF52/3<=AO51,0,BV52) -> 0 | AX52: =BB52*(AZ52-AO53)*AV52/AZ52 -> 16.37032951 | AY52: =BB52*(AO51-AO53-AZ52)*AV52/AZ52 -> 10.94856481 | AZ52: =IF(BL52*SQRT(4*ABS(BI52)/3)-BF52/3<=AO51,BL52*SQRT(4*ABS(BI52)/3)-BF52/3,BW52) -> 0.09992310421 | BA52: =0.1*(AV52/(AZ52*BO52))*AO57^2 -> 0.001770264352 | BB52: =AO54 -> 20 | BC52: =AR51+BA51*AR48 -> 0.00432393621 | BD52: =BB52*AO55/(AO51*AO52) -> 0.03725230755 | BE52: =BB52*AO56/(AO51*AO52) -> 0.03725230755 | BF52: =-6*AO51*(0.25-0.5*BC52/(AO51*AR50)) -> -0.08471491742 | BG52: =-6*AO51*(BD52*(0.5*AO51-AO53)-BE52*(0.5*AO51-AO53)-(BD52+BE52)*AO51*BC52/(AO51*AR50)) -> 0.004969653755 | BH52: =6*AO51*((BD52*AO53-BE52*(AO51-AO53))*(0.5*AO51-AO53)-(BD52*AO53+BE52*(AO51-AO53))*BC52/AR50) -> -0.0006484312987 | BI52: 0.00257744801 | BJ52: 0.0005531312545 | BK52: 10.98234834 | BL52: 1.222820591 | BM52: =AZ52/AO51 -> 0.5551283567 | BN52: =0.5*BM52*(0.5-BM52/3)+BD52*(0.5-AO53/AO51)*(BM52-AO53/AO51)/BM52+BE52*(0.5-AO53/AO51)*(1-AO53/AO51-BM52)/BM52 -> 0.09777666685 | BO52: =IF(BL52*SQRT(4*ABS(BI52)/3)-BF52/3<=AO51,AO50*(1-AO49*AV52/AO48),AO50*(1-AO49*AV52/AO48-(1-1)*BV52/AO48)) -> 10000 | BP52: =(1+BD52+BE52)*AO51*AO52 -> 0.1934108307 | BQ52: =0.5*(AO51-AO53)*(BE52-BD52)*AO51*AO52 -> 0 | BR52: =AO52*AO51^3/12+(0.5*AO51-AO53)^2*(BD52+BE52)*AO52*AO51 -> 0.0005195270768 | BS52: 0 | BT52: 0.0005195270768 | BU52: =AR50/BP52+(BC52+BS52*AR50)*(0.5*AO51+BS52)/BT52 -> 1.111030408 | BV52: =AR50/BP52+(BC52+BS52*AR50)*(-0.5*AO51+BS52)/BT52 -> -0.3870792238 | BW52: =AR50*BT52/((BC52+AR50*BS52)*BP52)+(0.5*AO51+BS52) -> 0.1334918815
AN53: a | AO53: =N14/1000 -> 0.04 | AP53: m | AQ53: ec,max | AR53: =1000*AV57/BO57 -> 0.1364894361 | AS53: o/oo | AT53: =BC53-AR48*BA53 -> 0.0042 | AU53: 0.9999999983 | AV53: =IF(BL53*SQRT(4*ABS(BI53)/3)-BF53/3<=AO51,BC53/(BN53*AO52*AO51^2),BU53) -> 1.364894361 | AW53: =IF(BL53*SQRT(4*ABS(BI53)/3)-BF53/3<=AO51,0,BV53) -> 0 | AX53: =BB53*(AZ53-AO53)*AV53/AZ53 -> 16.37032951 | AY53: =BB53*(AO51-AO53-AZ53)*AV53/AZ53 -> 10.94856477 | AZ53: =IF(BL53*SQRT(4*ABS(BI53)/3)-BF53/3<=AO51,BL53*SQRT(4*ABS(BI53)/3)-BF53/3,BW53) -> 0.09992310429 | BA53: =0.1*(AV53/(AZ53*BO53))*AO57^2 -> 0.001770264349 | BB53: =AO54 -> 20 | BC53: =AR51+BA52*AR48 -> 0.004323936207 | BD53: =BB53*AO55/(AO51*AO52) -> 0.03725230755 | BE53: =BB53*AO56/(AO51*AO52) -> 0.03725230755 | BF53: =-6*AO51*(0.25-0.5*BC53/(AO51*AR50)) -> -0.08471491756 | BG53: =-6*AO51*(BD53*(0.5*AO51-AO53)-BE53*(0.5*AO51-AO53)-(BD53+BE53)*AO51*BC53/(AO51*AR50)) -> 0.004969653751 | BH53: =6*AO51*((BD53*AO53-BE53*(AO51-AO53))*(0.5*AO51-AO53)-(BD53*AO53+BE53*(AO51-AO53))*BC53/AR50) -> -0.0006484312984 | BI53: 0.002577447999 | BJ53: 0.0005531312542 | BK53: 10.9823484 | BL53: 1.222820594 | BM53: =AZ53/AO51 -> 0.5551283572 | BN53: =0.5*BM53*(0.5-BM53/3)+BD53*(0.5-AO53/AO51)*(BM53-AO53/AO51)/BM53+BE53*(0.5-AO53/AO51)*(1-AO53/AO51-BM53)/BM53 -> 0.09777666687 | BO53: =IF(BL53*SQRT(4*ABS(BI53)/3)-BF53/3<=AO51,AO50*(1-AO49*AV53/AO48),AO50*(1-AO49*AV53/AO48-(1-1)*BV53/AO48)) -> 10000 | BP53: =(1+BD53+BE53)*AO51*AO52 -> 0.1934108307 | BQ53: =0.5*(AO51-AO53)*(BE53-BD53)*AO51*AO52 -> 0 | BR53: =AO52*AO51^3/12+(0.5*AO51-AO53)^2*(BD53+BE53)*AO52*AO51 -> 0.0005195270768 | BS53: 0 | BT53: 0.0005195270768 | BU53: =AR50/BP53+(BC53+BS53*AR50)*(0.5*AO51+BS53)/BT53 -> 1.111030408 | BV53: =AR50/BP53+(BC53+BS53*AR50)*(-0.5*AO51+BS53)/BT53 -> -0.3870792232 | BW53: =AR50*BT53/((BC53+AR50*BS53)*BP53)+(0.5*AO51+BS53) -> 0.1334918815
AN54: a | AO54: =$N$23 -> 20 | AQ54: ec,min | AR54: =1000*AW57/BO57 -> 0 | AS54: o/oo | AT54: =BC54-AR48*BA54 -> 0.0042 | AU54: =BA54/BA53 -> 0.9999999999 | AV54: =IF(BL54*SQRT(4*ABS(BI54)/3)-BF54/3<=AO51,BC54/(BN54*AO52*AO51^2),BU54) -> 1.364894361 | AW54: =IF(BL54*SQRT(4*ABS(BI54)/3)-BF54/3<=AO51,0,BV54) -> 0 | AX54: =BB54*(AZ54-AO53)*AV54/AZ54 -> 16.3703295 | AY54: =BB54*(AO51-AO53-AZ54)*AV54/AZ54 -> 10.94856476 | AZ54: =IF(BL54*SQRT(4*ABS(BI54)/3)-BF54/3<=AO51,BL54*SQRT(4*ABS(BI54)/3)-BF54/3,BW54) -> 0.09992310429 | BA54: =0.1*(AV54/(AZ54*BO54))*AO57^2 -> 0.001770264349 | BB54: =AO54 -> 20 | BC54: =AR51+BA53*AR48 -> 0.004323936207 | BD54: =BB54*AO55/(AO51*AO52) -> 0.03725230755 | BE54: =BB54*AO56/(AO51*AO52) -> 0.03725230755 | BF54: =-6*AO51*(0.25-0.5*BC54/(AO51*AR50)) -> -0.08471491757 | BG54: =-6*AO51*(BD54*(0.5*AO51-AO53)-BE54*(0.5*AO51-AO53)-(BD54+BE54)*AO51*BC54/(AO51*AR50)) -> 0.004969653751 | BH54: =6*AO51*((BD54*AO53-BE54*(AO51-AO53))*(0.5*AO51-AO53)-(BD54*AO53+BE54*(AO51-AO53))*BC54/AR50) -> -0.0006484312984 | BI54: 0.002577447998 | BJ54: 0.0005531312542 | BK54: 10.98234841 | BL54: 1.222820594 | BM54: =AZ54/AO51 -> 0.5551283572 | BN54: =0.5*BM54*(0.5-BM54/3)+BD54*(0.5-AO53/AO51)*(BM54-AO53/AO51)/BM54+BE54*(0.5-AO53/AO51)*(1-AO53/AO51-BM54)/BM54 -> 0.09777666687 | BO54: =IF(BL54*SQRT(4*ABS(BI54)/3)-BF54/3<=AO51,AO50*(1-AO49*AV54/AO48),AO50*(1-AO49*AV54/AO48-(1-1)*BV54/AO48)) -> 10000 | BP54: =(1+BD54+BE54)*AO51*AO52 -> 0.1934108307 | BQ54: =0.5*(AO51-AO53)*(BE54-BD54)*AO51*AO52 -> 0 | BR54: =AO52*AO51^3/12+(0.5*AO51-AO53)^2*(BD54+BE54)*AO52*AO51 -> 0.0005195270768 | BS54: 0 | BT54: 0.0005195270768 | BU54: =AR50/BP54+(BC54+BS54*AR50)*(0.5*AO51+BS54)/BT54 -> 1.111030408 | BV54: =AR50/BP54+(BC54+BS54*AR50)*(-0.5*AO51+BS54)/BT54 -> -0.3870792232 | BW54: =AR50*BT54/((BC54+AR50*BS54)*BP54)+(0.5*AO51+BS54) -> 0.1334918815
AN55: Ac | AO55: =$AP$40/1000000 -> 0.000335270768 | AP55: m2 | AQ55: sa,c | AR55: =AX57 -> 16.3703295 | AS55: MPa | AT55: =BC55-AR48*BA55 -> 0.0042 | AU55: =BA55/BA54 -> 1 | AV55: =IF(BL55*SQRT(4*ABS(BI55)/3)-BF55/3<=AO51,BC55/(BN55*AO52*AO51^2),BU55) -> 1.364894361 | AW55: =IF(BL55*SQRT(4*ABS(BI55)/3)-BF55/3<=AO51,0,BV55) -> 0 | AX55: =BB55*(AZ55-AO53)*AV55/AZ55 -> 16.3703295 | AY55: =BB55*(AO51-AO53-AZ55)*AV55/AZ55 -> 10.94856476 | AZ55: =IF(BL55*SQRT(4*ABS(BI55)/3)-BF55/3<=AO51,BL55*SQRT(4*ABS(BI55)/3)-BF55/3,BW55) -> 0.09992310429 | BA55: =0.1*(AV55/(AZ55*BO55))*AO57^2 -> 0.001770264349 | BB55: =AO54 -> 20 | BC55: =AR51+BA54*AR48 -> 0.004323936207 | BD55: =BB55*AO55/(AO51*AO52) -> 0.03725230755 | BE55: =BB55*AO56/(AO51*AO52) -> 0.03725230755 | BF55: =-6*AO51*(0.25-0.5*BC55/(AO51*AR50)) -> -0.08471491757 | BG55: =-6*AO51*(BD55*(0.5*AO51-AO53)-BE55*(0.5*AO51-AO53)-(BD55+BE55)*AO51*BC55/(AO51*AR50)) -> 0.004969653751 | BH55: =6*AO51*((BD55*AO53-BE55*(AO51-AO53))*(0.5*AO51-AO53)-(BD55*AO53+BE55*(AO51-AO53))*BC55/AR50) -> -0.0006484312984 | BI55: 0.002577447998 | BJ55: 0.0005531312542 | BK55: 10.98234841 | BL55: 1.222820594 | BM55: =AZ55/AO51 -> 0.5551283572 | BN55: =0.5*BM55*(0.5-BM55/3)+BD55*(0.5-AO53/AO51)*(BM55-AO53/AO51)/BM55+BE55*(0.5-AO53/AO51)*(1-AO53/AO51-BM55)/BM55 -> 0.09777666687 | BO55: =IF(BL55*SQRT(4*ABS(BI55)/3)-BF55/3<=AO51,AO50*(1-AO49*AV55/AO48),AO50*(1-AO49*AV55/AO48-(1-1)*BV55/AO48)) -> 10000 | BP55: =(1+BD55+BE55)*AO51*AO52 -> 0.1934108307 | BQ55: =0.5*(AO51-AO53)*(BE55-BD55)*AO51*AO52 -> 0 | BR55: =AO52*AO51^3/12+(0.5*AO51-AO53)^2*(BD55+BE55)*AO52*AO51 -> 0.0005195270768 | BS55: 0 | BT55: 0.0005195270768 | BU55: =AR50/BP55+(BC55+BS55*AR50)*(0.5*AO51+BS55)/BT55 -> 1.111030408 | BV55: =AR50/BP55+(BC55+BS55*AR50)*(-0.5*AO51+BS55)/BT55 -> -0.3870792232 | BW55: =AR50*BT55/((BC55+AR50*BS55)*BP55)+(0.5*AO51+BS55) -> 0.1334918815
AN56: At | AO56: =$AP$41/1000000 -> 0.000335270768 | AP56: m2 | AQ56: sa,t | AR56: =AY57 -> 10.94856476 | AS56: MPa | AT56: =BC56-AR48*BA56 -> 0.0042 | AU56: =BA56/BA55 -> 1 | AV56: =IF(BL56*SQRT(4*ABS(BI56)/3)-BF56/3<=AO51,BC56/(BN56*AO52*AO51^2),BU56) -> 1.364894361 | AW56: =IF(BL56*SQRT(4*ABS(BI56)/3)-BF56/3<=AO51,0,BV56) -> 0 | AX56: =BB56*(AZ56-AO53)*AV56/AZ56 -> 16.3703295 | AY56: =BB56*(AO51-AO53-AZ56)*AV56/AZ56 -> 10.94856476 | AZ56: =IF(BL56*SQRT(4*ABS(BI56)/3)-BF56/3<=AO51,BL56*SQRT(4*ABS(BI56)/3)-BF56/3,BW56) -> 0.09992310429 | BA56: =0.1*(AV56/(AZ56*BO56))*AO57^2 -> 0.001770264349 | BB56: =AO54 -> 20 | BC56: =AR51+BA55*AR48 -> 0.004323936207 | BD56: =BB56*AO55/(AO51*AO52) -> 0.03725230755 | BE56: =BB56*AO56/(AO51*AO52) -> 0.03725230755 | BF56: =-6*AO51*(0.25-0.5*BC56/(AO51*AR50)) -> -0.08471491757 | BG56: =-6*AO51*(BD56*(0.5*AO51-AO53)-BE56*(0.5*AO51-AO53)-(BD56+BE56)*AO51*BC56/(AO51*AR50)) -> 0.004969653751 | BH56: =6*AO51*((BD56*AO53-BE56*(AO51-AO53))*(0.5*AO51-AO53)-(BD56*AO53+BE56*(AO51-AO53))*BC56/AR50) -> -0.0006484312984 | BI56: 0.002577447998 | BJ56: 0.0005531312542 | BK56: 10.98234841 | BL56: 1.222820594 | BM56: =AZ56/AO51 -> 0.5551283572 | BN56: =0.5*BM56*(0.5-BM56/3)+BD56*(0.5-AO53/AO51)*(BM56-AO53/AO51)/BM56+BE56*(0.5-AO53/AO51)*(1-AO53/AO51-BM56)/BM56 -> 0.09777666687 | BO56: =IF(BL56*SQRT(4*ABS(BI56)/3)-BF56/3<=AO51,AO50*(1-AO49*AV56/AO48),AO50*(1-AO49*AV56/AO48-(1-1)*BV56/AO48)) -> 10000 | BP56: =(1+BD56+BE56)*AO51*AO52 -> 0.1934108307 | BQ56: =0.5*(AO51-AO53)*(BE56-BD56)*AO51*AO52 -> 0 | BR56: =AO52*AO51^3/12+(0.5*AO51-AO53)^2*(BD56+BE56)*AO52*AO51 -> 0.0005195270768 | BS56: 0 | BT56: 0.0005195270768 | BU56: =AR50/BP56+(BC56+BS56*AR50)*(0.5*AO51+BS56)/BT56 -> 1.111030408 | BV56: =AR50/BP56+(BC56+BS56*AR50)*(-0.5*AO51+BS56)/BT56 -> -0.3870792232 | BW56: =AR50*BT56/((BC56+AR50*BS56)*BP56)+(0.5*AO51+BS56) -> 0.1334918815
AN57: L | AO57: =$N$11/1000 -> 3.6 | AP57: m | AQ57: hc | AR57: =AZ57 -> 0.09992310429 | AS57: m | AT57: =BC57-AR48*BA57 -> 0.0042 | AU57: =BA57/BA56 -> 1 | AV57: =IF(BL57*SQRT(4*ABS(BI57)/3)-BF57/3<=AO51,BC57/(BN57*AO52*AO51^2),BU57) -> 1.364894361 | AW57: =IF(BL57*SQRT(4*ABS(BI57)/3)-BF57/3<=AO51,0,BV57) -> 0 | AX57: =BB57*(AZ57-AO53)*AV57/AZ57 -> 16.3703295 | AY57: =BB57*(AO51-AO53-AZ57)*AV57/AZ57 -> 10.94856476 | AZ57: =IF(BL57*SQRT(4*ABS(BI57)/3)-BF57/3<=AO51,BL57*SQRT(4*ABS(BI57)/3)-BF57/3,BW57) -> 0.09992310429 | BA57: =0.1*(AV57/(AZ57*BO57))*AO57^2 -> 0.001770264349 | BB57: =AO54 -> 20 | BC57: =AR51+BA56*AR48 -> 0.004323936207 | BD57: =BB57*AO55/(AO51*AO52) -> 0.03725230755 | BE57: =BB57*AO56/(AO51*AO52) -> 0.03725230755 | BF57: =-6*AO51*(0.25-0.5*BC57/(AO51*AR50)) -> -0.08471491757 | BG57: =-6*AO51*(BD57*(0.5*AO51-AO53)-BE57*(0.5*AO51-AO53)-(BD57+BE57)*AO51*BC57/(AO51*AR50)) -> 0.004969653751 | BH57: =6*AO51*((BD57*AO53-BE57*(AO51-AO53))*(0.5*AO51-AO53)-(BD57*AO53+BE57*(AO51-AO53))*BC57/AR50) -> -0.0006484312984 | BI57: 0.002577447998 | BJ57: 0.0005531312542 | BK57: 10.98234841 | BL57: 1.222820594 | BM57: =AZ57/AO51 -> 0.5551283572 | BN57: =0.5*BM57*(0.5-BM57/3)+BD57*(0.5-AO53/AO51)*(BM57-AO53/AO51)/BM57+BE57*(0.5-AO53/AO51)*(1-AO53/AO51-BM57)/BM57 -> 0.09777666687 | BO57: =IF(BL57*SQRT(4*ABS(BI57)/3)-BF57/3<=AO51,AO50*(1-AO49*AV57/AO48),AO50*(1-AO49*AV57/AO48-(1-1)*BV57/AO48)) -> 10000 | BP57: =(1+BD57+BE57)*AO51*AO52 -> 0.1934108307 | BQ57: =0.5*(AO51-AO53)*(BE57-BD57)*AO51*AO52 -> 0 | BR57: =AO52*AO51^3/12+(0.5*AO51-AO53)^2*(BD57+BE57)*AO52*AO51 -> 0.0005195270768 | BS57: 0 | BT57: 0.0005195270768 | BU57: =AR50/BP57+(BC57+BS57*AR50)*(0.5*AO51+BS57)/BT57 -> 1.111030408 | BV57: =AR50/BP57+(BC57+BS57*AR50)*(-0.5*AO51+BS57)/BT57 -> -0.3870792232 | BW57: =AR50*BT57/((BC57+AR50*BS57)*BP57)+(0.5*AO51+BS57) -> 0.1334918815
AN60: ANVENDELSESSTADIE - HENSYN TIL KRYBNING, TENSION STIFFENING, SVIND MV:
AN61: L | AO61: h | AP61: b | AQ61: fck | AR61: fcd | AS61: Ecd | AT61: Ac | AU61: ac | AV61: Esc | AW61: fyd_c | AX61: At | AY61: at | AZ61: Est | BA61: fyd_t | BB61: aeff | BC61: RH | BD61: feff = fctm | BE61: N
AN62: (m) | AO62: (m) | AP62: (m) | AQ62: (Mpa) | AR62: (Mpa) | AS62: (Mpa) | AT62: (m2) | AU62: (m) | AV62: (Mpa) | AW62: (Mpa) | AX62: (m2) | AY62: (m) | AZ62: (Mpa) | BA62: (Mpa) | BD62: (Mpa) | BE62: (MN)
AN63: =AO57 -> 3.6 | AO63: =AO51 -> 0.18 | AP63: =AO52 -> 1 | AQ63: =AO46 -> 35 | AR63: =AO48 -> 35 | AS63: =AO50 -> 10000 | AT63: =AO55 -> 0.000335270768 | AU63: =AO53 -> 0.04 | AV63: 200000 | AW63: =N8 -> 550 | AX63: =AO56 -> 0.000335270768 | AY63: =AO53 -> 0.04 | AZ63: 200000 | BA63: =AW63 -> 550 | BB63: =AO54 -> 20 | BC63: =Q12 -> 0.55 | BD63: =0.3*AQ63^(2/3) -> 3.209962442 | BE63: =AR50 -> 0.07001
AN64: Nedbøjninger | AP64: Urevnet | AQ64: Revnet | AR64: Revnevidder | AT64: Udtørringssvind
AN65: (1+ f) | AP65: 1 | AQ65: 1 | AU65: CEM-klasse: | AV65: N
AN66: aeff | AO66: - | AP66: =BB63 -> 20 | AQ66: =BB63 -> 20 | AR66: aeff | AS66: =BB63 -> 20 | AU66: fcmo | AV66: 10 | AW66: MPa
AN67: hc | AO67: (m) | AP67: - | AQ67: =AR57 -> 0.09992310429 | AR67: kt | AS67: 0.4 | AU67: fcm | AV67: =AQ63+8 -> 43 | AW67: MPa
AN68: Atr | AO68: (m2) | AP68: =AO63*AP63+AP66*AT63+AP66*AX63 -> 0.1934108307 | AQ68: =IF(AQ67>AO63,AP68,AQ67*AP63+AQ66*AT63+AQ66*AX63) -> 0.113333935 | AR68: x1 | AS68: 0 | AU68: ads1 | AV68: 4
AN69: Sy | AO69: (m3) | AP69: =AP66*(0.5*AO63-AU63)*AT63-AP66*(0.5*AO63-AY63)*AX63 -> 0 | AQ69: =IF(AQ67>AO63,AP69,AQ67*AP63*(0.5*AO63-0.5*AQ67)+AQ66*(0.5*AO63-AU63)*AT63-AQ66*(0.5*AO63-AY63)*AX63) -> 0.004000766001 | AR69: As | AS69: =AX63 -> 0.000335270768 | AU69: ads2 | AV69: 0.12
AN70: Iy | AO70: (m4) | AP70: =AP63*AO63^3/12+AP66*(0.5*AO63-AU63)^2*AT63+AP66*(0.5*AO63-AY63)^2*AX63 -> 0.0005195270768 | AQ70: =IF(AQ67>AO63,AP70,AP63*AQ67^3/12+AP63*AQ67*(0.5*AO63-0.5*AQ67)^2+AQ66*(0.5*AO63-AU63)^2*AT63+AQ66*(0.5*AO63-AY63)^2*AX63) -> 0.0002768527795 | AR70: d | AS70: =AO63-(AX63*AY63)/(AX63) -> 0.14 | AU70: RH0 | AV70: 1
AN71: z | AO71: (m) | AP71: =AP69/AP68 -> 0 | AQ71: =AQ69/AQ68 -> 0.03530068907 | AR71: hc,eff | AS71: =MIN(2.5*(AO63-AS70),(AO63-AQ67)/3,AO63/2) -> 0.02669229857 | AU71: RH | AV71: =BC63 -> 0.55
AN72: Io | AO72: (m4) | AP72: =AP70-AP68*AP71^2 -> 0.0005195270768 | AQ72: =AQ70-AQ68*AQ71^2 -> 0.0001356229829 | AR72: Ac,eff | AS72: =AS71*AP63 -> 0.02669229857 | AU72: bRH | AV72: =1.55*(1-(AV71/AV70)^3) -> 1.29211875
AN73: aeff*Sa | AO73: (m3) | AP73: =-(AP66*(0.5*AO63-AU63-AP71)*AT63-AP66*(0.5*AO63-AY63+AP71)*AX63) -> 0 | AQ73: =-(AQ66*(0.5*AO63-AU63-AQ71)*AT63-AQ66*(0.5*AO63-AY63+AQ71)*AX63) -> 0.0004734115654 | AR73: rp,eff | AS73: =AS69/AS72 -> 0.01256058062 | AU73: ecd,0 | AV73: =0.85*((220+110*AV68)*EXP(-AV69*AV67/AV66))*AV72/1000000 -> 0.0004326825068
AN74: Sa/Io | AO74: (m) | AP74: =MAX(AP73/AP72,0) -> 0 | AQ74: =MAX(AQ73/AQ72,0) -> 3.490644101 | AR74: esm-ecm | AS74: =MAX(AQ76-AS67*BD63*(1+AS66*AS73)/AS73,0.6*AQ76)/AV63 -> 3.284569429e-05 | AU74: b | AV74: 1
AN75: Mcr | AO75: (MNm) | AP75: =(BD63+BE63/AP68)*AP72/(0.5*AO63+AP71) -> 0.02061909473 | AR75: feq | AS75: =N17/1000 -> 0.008 | AU75: h0 | AV75: =2*AO63*AP63/(2*(AO63+AP63)) -> 0.1525423729 | AW75: m
AN76: sat | AO76: (MPa) | AP76: =-AP66*AR50/AP68+AP66*(AR51-AR50*(AP71-AP82/1000))*(0.5*AO63+AP71-AY63)/AP72 -> 0.9884612994 | AQ76: =-AQ66*AR50/AQ68+AQ66*(BC57-AR50*AQ71)*(0.5*AO63+AQ71-AY63)/AQ72 -> 10.94856476 | AR76: c | AS76: =AO63-AS70-0.5*AS75 -> 0.036 | AU76: kn | AV76: =IF(AV75<0.1,1,IF(AV75<0.2,0.85+0.15*(0.2-AV75)/0.1,IF(AV75<0.3,0.75+0.1*(0.3-AV75)/0.1,IF(AV75<0.5,0.7+0.05*(0.5-AV75)/0.2,0.7)))) -> 0.9211864407
AN77: sr | AO77: (MPa, v/revnemoment) | AQ77: =-AQ66*AR50/AQ68+AQ66*(AP75-AR50*AQ71)*(0.5*AO63+AQ71-AY63)/AQ72 -> 215.9268391 | AR77: k1 | AS77: 0.8 | AU77: ecd | AV77: =AV73*AV74*AV76 -> 0.0003985812584
AN78: sc0 | AO78: (MPa) | AP78: =-(-AR50/AP68+(AR51-AR50*(AP71-AP82/1000))*(-0.5*AO63+AP71)/AP72) -> 1.102493175 | AQ78: =-(-AR50/AQ68+(BC57-AR50*AQ71)*(-0.5*AO63+AQ71)/AQ72) -> 1.364894361 | AR78: k2 | AS78: 0.5
AN79: sac | AO79: (MPa) | AP79: =-(-AP66*AR50/AP68+AP66*(AR51-AR50*(AP71-AP82/1000))*(-0.5*AO63+AP71+AU63)/AP72) -> 15.46748499 | AQ79: =-(-AQ66*AR50/AQ68+AQ66*(BC57-AR50*AQ71)*(-0.5*AO63+AQ71+AU63)/AQ72) -> 16.3703295 | AR79: k3 | AS79: =3.4*(25/N17)^(2/3) -> 7.267397773 | AT79: Autogent svind
AN80: EI | AO80: (MNm2) | AP80: =AP72*AS63 -> 5.195270768 | AQ80: =AQ72*AS63 -> 1.356229829 | AR80: k4 | AS80: 0.425 | AU80: eca | AV80: =2.5*(AQ63-10)/1000000 -> 6.25e-05
AN81: x | AO81: (faktor vedr. tension stiffening) | AQ81: =MAX(IF(AQ77>AQ76,0,1-0.5*(AQ77/AQ76)^2),0) -> 0 | AR81: s,rmaks | AS81: =MIN(1.3*(AO63-AQ67),AS79*AS76+AS77*AS78*AS80*AS75/AS73) -> 0.1040999644
AN82: u | AO82: (mm, elastisk u) | AP82: =1000*AR51/(10*AP80/AN63^2-AR50) -> 1.06634532 | AQ82: =AR52*1000 -> 1.770264349 | AR82: wk | AS82: =MAX(1000*AS81*AS74,0) -> 0.003419235607 | AT82: Resulterende svind
AN83: uts | AO83: (mm, incl tension stiffening) | AQ83: =AQ81*AQ82+(1-AQ81)*AP82 -> 1.06634532 | AU83: esc | AV83: =AV77+AV80 -> 0.0004610812584
AN84: us | AO84: (mm, svindtillæg - langtid) | AP84: =1000*0.125*AV83*AP74*AN63^2 -> 0 | AQ84: =1000*0.125*AV83*AQ74*AN63^2 -> 2.607342331
AN85: ucs | AO85: (mm, svindtillæg incl tension stiffening) | AQ85: =AQ81*AQ84+(1-AQ81)*AP84 -> 0
AN86: ures | AO86: (mm, resulterende udbøjning) | AQ86: =AQ85+AQ83 -> 1.06634532 | AR86: wk, res | AS86: =AS82 -> 0.003419235607

Sheet Brand
B2: Bruger: | C2: =Kold!C2 -> 0 | K2: =Kold!K2 -> Vægberegning | N2: =Kold!N2 -> Betonelement-Foreningen feb 2019
B3: Sagsnavn: | C3: =Kold!C3 -> Betonelementhuset | H3: Sag nr.: | I3: =Kold!I3 -> 23 - 4545 | L3: =AU28&AU29&AU30&AU31&AU32&AU33&AU34&AU35&AU36&AU37&AU38 -> Programmet indstillet til kold beregning ! For ny bruger: Klik på knappen 'angiv nyt brugernavn' for ibrugtagning. | AS3: =Makro!B5 -> 2
B4: Bygningsdel: | C4: =Kold!C4 -> Væg modul B/6-7, kld.-4.sal (STR 6.10b) | H4: Dato: | I4: =Kold!I4 -> 2010-03-01 | AS4: =Makro!B6 -> Tilslag: Kvartsholdigt
B5: Emne: | C5: Brandlastkombinationer | H5: Init: | I5: =Kold!I5 -> JFJ | AS5: =Makro!B7 -> Tilslag: Søsand / granit
K7: Materialer | M7: fck | N7: =Kold!N7 -> 35 | O7: Regningsmæssige parametre
M8: fyk | N8: =Kold!N8 -> 550 | P8: fcd | Q8: =N7/(N9)*Q19 -> 35
M9: gc | N9: 1 | P9: fyd,tryk | Q9: =N8/MAX(1,N10)*Q20 -> 431.8046027 | AN9: 1 | AO9: 0 | AP9: =BB10*1000 -> 0 | AW9: gc | AX9: =N9 -> 1 | BA9: N | BB9: M | BC9: hc | BD9: e0 | BE9: sac | BF9: sat | BH9: =Kold!N25 -> 11.7 | BI9: =Kold!O25 -> 9 | BJ9: =Kold!P25 -> 8.4 | BK9: =Kold!Q25 -> 1.2 | HA9: =Makro!A20 -> 0 | HD9: Bruger skal registreres | HE9: 1
M10: gs | N10: 1 | P10: fyd,træk | Q10: =N8/MAX(1,N10)*Q22 -> 431.8046027 | AN10: 2 | AO10: =BA11*1000 -> 0 | AP10: 0 | AS10: Tillægsexc fra svækket rand | AT10: =0.5*(AU20-AU21)*Q18/1000 -> 0 | AW10: ga | AX10: =N10 -> 1 | BA10: =IF(Makro!$C$11=-1,'Ark1'!M10,0)*$AT$40 -> 0 | BB10: =IF(Makro!$C$11=-1,'Ark1'!N10,0)*$AT$40 -> 0 | BC10: =IF(Makro!$C$11=-1,'Ark1'!O10,0) -> 0 | BD10: =IF(Makro!$C$11=-1,'Ark1'!P10,0) -> 0 | BE10: =IF(Makro!$C$11=-1,'Ark1'!Q10,0) -> 0 | BF10: =IF(Makro!$C$11=-1,'Ark1'!R10,0) -> 0 | BH10: =Kold!N26 -> 78.1 | BI10: =Kold!O26 -> 9 | BJ10: =Kold!P26 -> 8.4 | BK10: =Kold!Q26 -> 1.2
K11: Søjlelængde | M11: Ls, kold | N11: =Kold!N11 -> 3600 | O11: Krybning | AN11: 3 | AO11: 0 | AP11: 0 | AS11: uterminsk, revnet tværsnit | AT11: =1.1*Firsidig!X34*AX27^2/(800000*(AX21-AX24))+IF(OR(BH32=10,AR61=1),0,$Q$16/1000)-0.4*AX32 -> 0.03015627379 | AU11: m | AW11: fck | AX11: =N7 -> 35 | AY11: MPa | BA11: =IF(Makro!$C$11=-1,'Ark1'!M11,0)*$AT$40 -> 0 | BB11: =IF(Makro!$C$11=-1,'Ark1'!N11,0)*$AT$40 -> 0 | BC11: =IF(Makro!$C$11=-1,'Ark1'!O11,0) -> 0 | BD11: =IF(Makro!$C$11=-1,'Ark1'!P11,0) -> 0 | BE11: =IF(Makro!$C$11=-1,'Ark1'!Q11,0) -> 0 | BF11: =IF(Makro!$C$11=-1,'Ark1'!R11,0) -> 0 | BH11: =Kold!N27 -> 78.1 | BI11: =Kold!O27 -> 427.6 | BJ11: =Kold!P27 -> 8.4 | BK11: =Kold!Q27 -> 1.2
K12: Tværsnit | M12: h | N12: =Kold!N12 -> 180 | P12: fo | Q12: =Kold!Q14 -> 2.076611033 | AN12: 4 | AO12: 0 | AP12: 0 | AS12: uterminsk, urevnet tværsnit | AT12: =IF(1.1*Firsidig!V13*AX27^2/(800000*AX21)+IF(OR(BH32=10,AR61=1),0,$Q$16/1000)>AT11,1.1*Firsidig!V13*AX27^2/(800000*AX21)+IF(OR(BH32=10,AR61=1),0,$Q$16/1000),AT11)-0.4*AX32 -> 0.03561838816 | AU12: m | AW12: Es_c | AX12: =Firsidig!E34*200000 -> 192278.1424 | AY12: MPa | BA12: =IF(Makro!$C$11=-1,'Ark1'!M12,0)*$AT$40 -> 0 | BB12: =IF(Makro!$C$11=-1,'Ark1'!N12,0)*$AT$40 -> 0 | BC12: =IF(Makro!$C$11=-1,'Ark1'!O12,0) -> 0 | BD12: =IF(Makro!$C$11=-1,'Ark1'!P12,0) -> 0 | BE12: =IF(Makro!$C$11=-1,'Ark1'!Q12,0) -> 0 | BF12: =IF(Makro!$C$11=-1,'Ark1'!R12,0) -> 0 | BH12: =Kold!N28 -> 78.1 | BI12: =Kold!O28 -> 427.6 | BJ12: =Kold!P28 -> 55.8 | BK12: =Kold!Q28 -> 1.2
M13: b | N13: =Kold!N13 -> 1000 | P13: M0Eqp/M0Ed | Q13: 1 | AN13: 5 | AO13: 0 | AP13: 0 | AW13: Es_t | AX13: =Firsidig!E40*200000 -> 192278.1424 | AY13: MPa | BA13: =IF(Makro!$C$11=-1,'Ark1'!M13,0)*$AT$40 -> 0 | BB13: =IF(Makro!$C$11=-1,'Ark1'!N13,0)*$AT$40 -> 0 | BC13: =IF(Makro!$C$11=-1,'Ark1'!O13,0) -> 0 | BD13: =IF(Makro!$C$11=-1,'Ark1'!P13,0) -> 0 | BE13: =IF(Makro!$C$11=-1,'Ark1'!Q13,0) -> 0 | BF13: =IF(Makro!$C$11=-1,'Ark1'!R13,0) -> 0 | BH13: =Kold!N29 -> 78.1 | BI13: =Kold!O29 -> 9 | BJ13: =Kold!P29 -> 8.4 | BK13: =Kold!Q29 -> 0.6
M14: c | N14: =Kold!N14 -> 40 | P14: fef | Q14: =Q12*Q13 -> 2.076611033 | AN14: 6 | AO14: 0 | AP14: 0 | AS14: =Makro!D5 -> 2 | AT14: h | AU14: =N12-AU20*Q18-Q18*AU21 -> 118.0066183 | AW14: fcd | AX14: =AX11/AX9 -> 35 | AY14: MPa | BA14: =IF(Makro!$C$11=-1,'Ark1'!M14,0)*$AT$40 -> 0 | BB14: =IF(Makro!$C$11=-1,'Ark1'!N14,0)*$AT$40 -> 0 | BC14: =IF(Makro!$C$11=-1,'Ark1'!O14,0) -> 0 | BD14: =IF(Makro!$C$11=-1,'Ark1'!P14,0) -> 0 | BE14: =IF(Makro!$C$11=-1,'Ark1'!Q14,0) -> 0 | BF14: =IF(Makro!$C$11=-1,'Ark1'!R14,0) -> 0 | BH14: =Kold!N30 -> 78.1 | BI14: =Kold!O30 -> 427.6 | BJ14: =Kold!P30 -> 8.4 | BK14: =Kold!Q30 -> 0.6
K15: Trykarm. | M15: da | N15: =Kold!N15 -> 8 | P15: =IF(OR(BH32=10,AR61=1),"Der regnes med fuld krybning","Udbøjningstillæg fra krybning:") -> Udbøjningstillæg fra krybning: | AN15: 7 | AO15: 0 | AP15: 0 | AS15: =Makro!D6 -> Stål: Varmvalset | AT15: b | AU15: =N13-2*Q18*AU22 -> 1000 | AW15: k | AX15: =0.8-400*AX14/AX16 -> -0.2681363223 | AY15: MPa | BA15: =IF(Makro!$C$11=-1,'Ark1'!M15,0)*$AT$40 -> 0 | BB15: =IF(Makro!$C$11=-1,'Ark1'!N15,0)*$AT$40 -> 0 | BC15: =IF(Makro!$C$11=-1,'Ark1'!O15,0) -> 0 | BD15: =IF(Makro!$C$11=-1,'Ark1'!P15,0) -> 0 | BE15: =IF(Makro!$C$11=-1,'Ark1'!Q15,0) -> 0 | BF15: =IF(Makro!$C$11=-1,'Ark1'!R15,0) -> 0 | BH15: =Kold!N31 -> 78.1 | BI15: =Kold!O31 -> 427.6 | BJ15: =Kold!P31 -> 59.3 | BK15: =Kold!Q31 -> 0.6
M16: Antal | N16: =Kold!N16 -> 6.67 | P16: Dukrybning | Q16: =IF(OR(BH32=10,AR61=1),"- ",AS68*1000) -> 0.08740744992 | AN16: 8 | AO16: 0 | AP16: 0 | AS16: =Makro!D7 -> Stål: Bratkølet | AT16: ac | AU16: =N14-AU20*Q18 -> 9.003309173 | AW16: Eo | AX16: =2*AX14/Firsidig!F21 -> 13106.94123 | AY16: MPa | BA16: =IF(Makro!$C$11=-1,'Ark1'!M16,0)*$AT$40 -> 0 | BB16: =IF(Makro!$C$11=-1,'Ark1'!N16,0)*$AT$40 -> 0 | BC16: =IF(Makro!$C$11=-1,'Ark1'!O16,0) -> 0 | BD16: =IF(Makro!$C$11=-1,'Ark1'!P16,0) -> 0 | BE16: =IF(Makro!$C$11=-1,'Ark1'!Q16,0) -> 0 | BF16: =IF(Makro!$C$11=-1,'Ark1'!R16,0) -> 0 | BH16: =Kold!N32 -> 78.1 | BI16: =Kold!O32 -> 456 | BJ16: =Kold!P32 -> 8.4 | BK16: =Kold!Q32 -> 0.6
K17: Trækarm. | M17: da | N17: =Kold!N17 -> 8 | O17: Reduktionsparametre | AN17: 9 | AO17: 0 | AP17: 0 | AS17: =Makro!D8 -> Stål: Kolddeformeret | AT17: at | AU17: =N14-AU21*Q18 -> 9.003309173 | AW17: Ncr | AX17: =(AX21*AX22+2*MIN(AX12*AX25,AX13*AX26))*AX14/(1+12*(AX14/AX16)*(AX27/(PI()*AX21))^2) -> 1820.811304 | AY17: MN | BA17: =IF(Makro!$C$11=-1,'Ark1'!M17,0)*$AT$40 -> 0 | BB17: =IF(Makro!$C$11=-1,'Ark1'!N17,0)*$AT$40 -> 0 | BC17: =IF(Makro!$C$11=-1,'Ark1'!O17,0) -> 0 | BD17: =IF(Makro!$C$11=-1,'Ark1'!P17,0) -> 0 | BE17: =IF(Makro!$C$11=-1,'Ark1'!Q17,0) -> 0 | BF17: =IF(Makro!$C$11=-1,'Ark1'!R17,0) -> 0 | BH17: =Kold!N33 -> 78.1 | BI17: =Kold!O33 -> 456 | BJ17: =Kold!P33 -> 59.3 | BK17: =Kold!Q33 -> 0.6
M18: Antal | N18: =Kold!N18 -> 6.67 | O18: Randzone: | P18: a | Q18: =Firsidig!E24*1000 -> 30.99669083 | AN18: 10 | AO18: 0 | AP18: 0 | AS18: =IF(AS14=1,"Q",IF(AS14=2,"AC","C")) -> AC | AW18: fyk | AX18: =N8 -> 550 | BA18: =IF(Makro!$C$11=-1,'Ark1'!M18,0)*$AT$40 -> 0 | BB18: =IF(Makro!$C$11=-1,'Ark1'!N18,0)*$AT$40 -> 0 | BC18: =IF(Makro!$C$11=-1,'Ark1'!O18,0) -> 0 | BD18: =IF(Makro!$C$11=-1,'Ark1'!P18,0) -> 0 | BE18: =IF(Makro!$C$11=-1,'Ark1'!Q18,0) -> 0 | BF18: =IF(Makro!$C$11=-1,'Ark1'!R18,0) -> 0
K19: Brandpåvirkning, tid : | N19: 120 | O19: Beton: | P19: kc,M | Q19: =Firsidig!E21 -> 1 | AN19: 11 | AO19: 0 | AP19: 0 | AW19: fyd_c | AX19: =Firsidig!E35*AX18/AX10 -> 431.8046027 | BA19: =IF(Makro!$C$11=-1,'Ark1'!M19,0)*$AT$40 -> 0 | BB19: =IF(Makro!$C$11=-1,'Ark1'!N19,0)*$AT$40 -> 0 | BC19: =IF(Makro!$C$11=-1,'Ark1'!O19,0) -> 0 | BD19: =IF(Makro!$C$11=-1,'Ark1'!P19,0) -> 0 | BE19: =IF(Makro!$C$11=-1,'Ark1'!Q19,0) -> 0 | BF19: =IF(Makro!$C$11=-1,'Ark1'!R19,0) -> 0 | BH19: =Kold!N35 -> 72 | BI19: =Kold!O35 -> 20 | BJ19: =Kold!P35 -> 40 | BK19: =Kold!Q35 -> 0
L20: Brand, trykside | N20: =IF(AT20=2,"JA","NEJ") -> JA | O20: Trykarm: | P20: fsy,q / fyk | Q20: =Firsidig!E35 -> 0.7850992777 | AN20: 12 | AO20: 0 | AP20: 0 | AS20: Brand, trykside | AT20: =Makro!F5 -> 2 | AU20: =AT20-1 -> 1 | AW20: fyd_t | AX20: =Firsidig!E41*AX18/AX10 -> 431.8046027 | BA20: =IF(Makro!$C$11=-1,'Ark1'!M20,0)*$AT$40 -> 0 | BB20: =IF(Makro!$C$11=-1,'Ark1'!N20,0)*$AT$40 -> 0 | BC20: =IF(Makro!$C$11=-1,'Ark1'!O20,0) -> 0 | BD20: =IF(Makro!$C$11=-1,'Ark1'!P20,0) -> 0 | BE20: =IF(Makro!$C$11=-1,'Ark1'!Q20,0) -> 0 | BF20: =IF(Makro!$C$11=-1,'Ark1'!R20,0) -> 0
L21: Brand, trækside | N21: =IF(AT21=2,"JA","NEJ") -> JA | P21: Es,q / Es | Q21: =Firsidig!E34 -> 0.9613907121 | AN21: 13 | AO21: 0 | AP21: 0 | AS21: Brand, trækside | AT21: =Makro!G5 -> 2 | AU21: =AT21-1 -> 1 | AW21: h | AX21: =AU14/1000 -> 0.1180066183 | AY21: m | BA21: =IF(Makro!$C$11=-1,'Ark1'!M21,0)*$AT$40 -> 0 | BB21: =IF(Makro!$C$11=-1,'Ark1'!N21,0)*$AT$40 -> 0 | BC21: =IF(Makro!$C$11=-1,'Ark1'!O21,0) -> 0 | BD21: =IF(Makro!$C$11=-1,'Ark1'!P21,0) -> 0 | BE21: =IF(Makro!$C$11=-1,'Ark1'!Q21,0) -> 0 | BF21: =IF(Makro!$C$11=-1,'Ark1'!R21,0) -> 0
O22: Trækarm: | P22: fsy,q / fyk | Q22: =Firsidig!E41 -> 0.7850992777 | AN22: 14 | AO22: 0 | AP22: 0 | AS22: Brand, sider | AT22: 1 | AU22: =AT22-1 -> 0 | AW22: b | AX22: =AU15/1000 -> 1 | AY22: m | BA22: =IF(Makro!$C$11=-1,'Ark1'!M22,0)*$AT$40 -> 0 | BB22: =IF(Makro!$C$11=-1,'Ark1'!N22,0)*$AT$40 -> 0 | BC22: =IF(Makro!$C$11=-1,'Ark1'!O22,0) -> 0 | BD22: =IF(Makro!$C$11=-1,'Ark1'!P22,0) -> 0 | BE22: =IF(Makro!$C$11=-1,'Ark1'!Q22,0) -> 0 | BF22: =IF(Makro!$C$11=-1,'Ark1'!R22,0) -> 0
K23: =INDEX($AS$4:$AS$5,$AS$3,1)&" "&INDEX($AS$15:$AS$17,$AS$14,1) -> Tilslag: Søsand / granit Stål: Bratkølet | P23: Es,q / Es | Q23: =Firsidig!E40 -> 0.9613907121 | AN23: 15 | AO23: 0 | AP23: 0 | AW23: ac | AX23: =AU16/1000 -> 0.009003309173 | AY23: m | BA23: =IF(Makro!$C$11=-1,'Ark1'!M23,0)*$AT$40 -> 0 | BB23: =IF(Makro!$C$11=-1,'Ark1'!N23,0)*$AT$40 -> 0 | BC23: =IF(Makro!$C$11=-1,'Ark1'!O23,0) -> 0 | BD23: =IF(Makro!$C$11=-1,'Ark1'!P23,0) -> 0 | BE23: =IF(Makro!$C$11=-1,'Ark1'!Q23,0) -> 0 | BF23: =IF(Makro!$C$11=-1,'Ark1'!R23,0) -> 0
C24: Kontrolparametre | D24: Brandlasttilfælde | J24: Ref-last | K24: Brandlasttilfælde | N24: N1 (kN) | O24: N0 (kN) | P24: N2 (kN) | Q24: w (kN/m) | AN24: 16 | AO24: 0 | AP24: 0 | AU24: =Makro!F6 -> NEJ | AW24: at | AX24: =AU17/1000 -> 0.009003309173 | AY24: m | BA24: =IF(Makro!$C$11=-1,'Ark1'!M24,0)*$AT$40 -> 0 | BB24: =IF(Makro!$C$11=-1,'Ark1'!N24,0)*$AT$40 -> 0 | BC24: =IF(Makro!$C$11=-1,'Ark1'!O24,0) -> 0 | BD24: =IF(Makro!$C$11=-1,'Ark1'!P24,0) -> 0 | BE24: =IF(Makro!$C$11=-1,'Ark1'!Q24,0) -> 0 | BF24: =IF(Makro!$C$11=-1,'Ark1'!R24,0) -> 0
D25: =IF(Makro!$C$11=-1,Brand!BB33,"-") -> - | E25: =IF(Makro!$C$11=-1,Brand!BC33,"-") -> - | F25: =IF(Makro!$C$11=-1,Brand!BD33,"-") -> - | G25: =IF(Makro!$C$11=-1,Brand!BE33,"-") -> - | H25: =IF(Makro!$C$11=-1,Brand!BF33,"-") -> - | I25: =IF(Makro!$C$11=-1,Brand!BG33,"-") -> - | J25: =IF(Makro!$C$11=-1,Brand!BH33,"-") -> - | K25: A | N25: 8.4 | O25: 9 | P25: 11.7 | Q25: 0.16 | AN25: 17 | AO25: 0 | AP25: 0 | AU25: =Makro!F7 -> JA | AW25: Ac | AX25: =AP40/1000000 -> 0.000335270768 | AY25: m2 | BA25: =IF(Makro!$C$11=-1,'Ark1'!M25,0)*$AT$40 -> 0 | BB25: =IF(Makro!$C$11=-1,'Ark1'!N25,0)*$AT$40 -> 0 | BC25: =IF(Makro!$C$11=-1,'Ark1'!O25,0) -> 0 | BD25: =IF(Makro!$C$11=-1,'Ark1'!P25,0) -> 0 | BE25: =IF(Makro!$C$11=-1,'Ark1'!Q25,0) -> 0 | BF25: =IF(Makro!$C$11=-1,'Ark1'!R25,0) -> 0
B26: NEd | C26: (kN) | D26: =IF(Makro!$C$11=-1,Brand!BB35,"-") -> - | E26: =IF(Makro!$C$11=-1,Brand!BC35,"-") -> - | F26: =IF(Makro!$C$11=-1,Brand!BD35,"-") -> - | G26: =IF(Makro!$C$11=-1,Brand!BE35,"-") -> - | H26: =IF(Makro!$C$11=-1,Brand!BF35,"-") -> - | I26: =IF(Makro!$C$11=-1,Brand!BG35,"-") -> - | J26: =IF(Makro!$C$11=-1,IF($BH$32=10,"-",Brand!BH35),"-") -> - | K26: B | N26: 35.5 | O26: 9 | P26: 11.7 | Q26: 0.16 | AN26: 18 | AO26: 0 | AP26: 0 | AW26: At | AX26: =AP41/1000000 -> 0.000335270768 | AY26: m2 | BA26: =IF(Makro!$C$11=-1,'Ark1'!M26,0)*$AT$40 -> 0 | BB26: =IF(Makro!$C$11=-1,'Ark1'!N26,0)*$AT$40 -> 0 | BC26: =IF(Makro!$C$11=-1,'Ark1'!O26,0) -> 0 | BD26: =IF(Makro!$C$11=-1,'Ark1'!P26,0) -> 0 | BE26: =IF(Makro!$C$11=-1,'Ark1'!Q26,0) -> 0 | BF26: =IF(Makro!$C$11=-1,'Ark1'!R26,0) -> 0
B27: M0Ed | C27: (kNm) | D27: =IF(Makro!$C$11=-1,Brand!BB36,"-") -> - | E27: =IF(Makro!$C$11=-1,Brand!BC36,"-") -> - | F27: =IF(Makro!$C$11=-1,Brand!BD36,"-") -> - | G27: =IF(Makro!$C$11=-1,Brand!BE36,"-") -> - | H27: =IF(Makro!$C$11=-1,Brand!BF36,"-") -> - | I27: =IF(Makro!$C$11=-1,Brand!BG36,"-") -> - | J27: =IF(Makro!$C$11=-1,IF($BH$32=10,"-",Brand!BH36),"-") -> - | K27: C | N27: 35.5 | O27: 312 | P27: 11.7 | Q27: 0.16 | AN27: 19 | AO27: 0 | AP27: 0 | AW27: L | AX27: =BL35*N11/1000 -> 2.52 | AY27: m | BA27: =IF(Makro!$C$11=-1,'Ark1'!M27,0)*$AT$40 -> 0 | BB27: =IF(Makro!$C$11=-1,'Ark1'!N27,0)*$AT$40 -> 0 | BC27: =IF(Makro!$C$11=-1,'Ark1'!O27,0) -> 0 | BD27: =IF(Makro!$C$11=-1,'Ark1'!P27,0) -> 0 | BE27: =IF(Makro!$C$11=-1,'Ark1'!Q27,0) -> 0 | BF27: =IF(Makro!$C$11=-1,'Ark1'!R27,0) -> 0
B28: M0Rd | C28: (kNm) | D28: =IF(Makro!$C$11=-1,Brand!BB37,"-") -> - | E28: =IF(Makro!$C$11=-1,Brand!BC37,"-") -> - | F28: =IF(Makro!$C$11=-1,Brand!BD37,"-") -> - | G28: =IF(Makro!$C$11=-1,Brand!BE37,"-") -> - | H28: =IF(Makro!$C$11=-1,Brand!BF37,"-") -> - | I28: =IF(Makro!$C$11=-1,Brand!BG37,"-") -> - | J28: =IF(Makro!$C$11=-1,IF($BH$32=10,"-",Brand!BH37),"-") -> - | K28: D | N28: 35.5 | O28: 312 | P28: 28 | Q28: 0.16 | AS28: Ingen negative inddata | AT28: =IF(MIN(N9,N10,Q13,N19,N25:Q33,N35:P35)<0,1,0) -> 0 | AU28: =IF(AT28=1,AS28&" ! ","") ->  | AW28: e1 | AX28: =Firsidig!F21 -> 0.005340681611 | BA28: =IF(Makro!$C$11=-1,'Ark1'!M28,0)*$AT$40 -> 0 | BB28: =IF(Makro!$C$11=-1,'Ark1'!N28,0)*$AT$40 -> 0 | BC28: =IF(Makro!$C$11=-1,'Ark1'!O28,0) -> 0 | BD28: =IF(Makro!$C$11=-1,'Ark1'!P28,0) -> 0 | BE28: =IF(Makro!$C$11=-1,'Ark1'!Q28,0) -> 0 | BF28: =IF(Makro!$C$11=-1,'Ark1'!R28,0) -> 0
B29: u | C29: (mm) | D29: =IF(Makro!$C$11=-1,Brand!BB38+0.4*$AX$32*1000,"-") -> - | E29: =IF(Makro!$C$11=-1,Brand!BC38+0.4*$AX$32*1000,"-") -> - | F29: =IF(Makro!$C$11=-1,Brand!BD38+0.4*$AX$32*1000,"-") -> - | G29: =IF(Makro!$C$11=-1,Brand!BE38+0.4*$AX$32*1000,"-") -> - | H29: =IF(Makro!$C$11=-1,Brand!BF38+0.4*$AX$32*1000,"-") -> - | I29: =IF(Makro!$C$11=-1,Brand!BG38+0.4*$AX$32*1000,"-") -> - | J29: =IF(Makro!$C$11=-1,IF($BH$32=10,"-",Brand!BH38+0.4*AX32*1000),"-") -> - | K29: E | AR29: =MAX(AP9:AQ38,Kold!AP9:AQ38) -> 15.7832 | AU29: =IF(AX32>0,"Underliggende konstruktion skal kontrolleres for forsætning af væggens reaktion under brand på exc( R ) = "&ROUND(AX32*1000,0)&" mm mod væggens trækside ","") -> 
B30: wk | C30: (mm) | D30: =IF(Makro!$C$11=-1,Brand!BB39,"-") -> - | E30: =IF(Makro!$C$11=-1,Brand!BC39,"-") -> - | F30: =IF(Makro!$C$11=-1,Brand!BD39,"-") -> - | G30: =IF(Makro!$C$11=-1,Brand!BE39,"-") -> - | H30: =IF(Makro!$C$11=-1,Brand!BF39,"-") -> - | I30: =IF(Makro!$C$11=-1,Brand!BG39,"-") -> - | J30: =IF(Makro!$C$11=-1,Brand!BH39,"-") -> - | K30: F | AO30: =N25+O25+P25+$AO$9 -> 29.1 | AQ30: =(N25*$N$35+O25*$O$35-P25*$P$35)/1000+0.125*Q25*($N$11/1000)^2+0.001+AT10*AO30 -> 0.577
B31: e0 | C31: (o/oo) | D31: =IF(Makro!$C$11=-1,Brand!BB40,"-") -> - | E31: =IF(Makro!$C$11=-1,Brand!BC40,"-") -> - | F31: =IF(Makro!$C$11=-1,Brand!BD40,"-") -> - | G31: =IF(Makro!$C$11=-1,Brand!BE40,"-") -> - | H31: =IF(Makro!$C$11=-1,Brand!BF40,"-") -> - | I31: =IF(Makro!$C$11=-1,Brand!BG40,"-") -> - | J31: =IF(Makro!$C$11=-1,IF($BH$32=10,"-",Brand!BH40),"-") -> - | K31: G | AO31: 56.2 | AQ31: =(N26*$N$35+O26*$O$35-P26*$P$35)/1000+0.125*Q26*($N$11/1000)^2+0.001+AO31*AT10 -> 2.5282 | AW31: Forsætning af reaktion | BA31: Lastpunkt | BB31: 1 | BC31: 2 | BD31: 3 | BE31: 4 | BF31: 5 | BG31: 6 | BH31: 7 | BI31: A | BK31: =Makro!H6 -> 1,0 L | BL31: =Makro!H5 -> 2
B32: sc0 | C32: (Mpa) | D32: =IF(Makro!$C$11=-1,Brand!BB41,"-") -> - | E32: =IF(Makro!$C$11=-1,Brand!BC41,"-") -> - | F32: =IF(Makro!$C$11=-1,Brand!BD41,"-") -> - | G32: =IF(Makro!$C$11=-1,Brand!BE41,"-") -> - | H32: =IF(Makro!$C$11=-1,Brand!BF41,"-") -> - | I32: =IF(Makro!$C$11=-1,Brand!BG41,"-") -> - | J32: =IF(Makro!$C$11=-1,IF($BH$32=10,"-",Brand!BH41),"-") -> - | K32: H | S32: NB: Resultaterne skal altid kontrolleres af ansvarlig statiker | AO32: 359.2 | AQ32: =(N27*$N$35+O27*$O$35-P27*$P$35)/1000+0.125*Q27*($N$11/1000)^2+0.001+AO32*AT10 -> 8.5882 | AW32: exc( R ) | AX32: =IF(AND(AT21=2,N19>5),MIN(AX33:AX35),0) -> 0 | BA32: Indeks | BB32: =Makro!B3 -> 1 | BC32: =Makro!C3 -> 2 | BD32: =Makro!D3 -> 3 | BE32: =Makro!E3 -> 4 | BF32: =Makro!F3 -> 5 | BG32: =Makro!G3 -> 6 | BH32: =Makro!H3 -> 1 | BI32: B | BK32: =Makro!H7 -> 0,7 L
B33: sst | C33: (Mpa) | D33: =IF(Makro!$C$11=-1,Brand!BB42,"-") -> - | E33: =IF(Makro!$C$11=-1,Brand!BC42,"-") -> - | F33: =IF(Makro!$C$11=-1,Brand!BD42,"-") -> - | G33: =IF(Makro!$C$11=-1,Brand!BE42,"-") -> - | H33: =IF(Makro!$C$11=-1,Brand!BF42,"-") -> - | I33: =IF(Makro!$C$11=-1,Brand!BG42,"-") -> - | J33: =IF(Makro!$C$11=-1,IF($BH$32=10,"-",Brand!BH42),"-") -> - | K33: I | AO33: 375.5 | AQ33: =(N28*$N$35+O28*$O$35-P28*$P$35)/1000+0.125*Q28*($N$11/1000)^2+0.001+AO33*AT10 -> 7.9362 | AS33: Ref-last er for stor - der regnes med fuld krybning | AT33: =IF(AR61=1,1,0) -> 0 | AW33: 0,5 (h -2a) | AX33: =0.5*(N12-2*Q18)/1000 -> 0.05900330917 | BB33: =INDEX($BI$31:$BI$39,BB32) -> A | BC33: =INDEX($BI$31:$BI$39,BC32) -> B | BD33: C | BE33: D | BF33: E | BG33: F | BH33: A | BI33: C | BK33: =Makro!H8 -> 0,5 L
B34: ssc | C34: (Mpa) | D34: =IF(Makro!$C$11=-1,Brand!BB43,"-") -> - | E34: =IF(Makro!$C$11=-1,Brand!BC43,"-") -> - | F34: =IF(Makro!$C$11=-1,Brand!BD43,"-") -> - | G34: =IF(Makro!$C$11=-1,Brand!BE43,"-") -> - | H34: =IF(Makro!$C$11=-1,Brand!BF43,"-") -> - | I34: =IF(Makro!$C$11=-1,Brand!BG43,"-") -> - | J34: =IF(Makro!$C$11=-1,IF($BH$32=10,"-",Brand!BH43),"-") -> - | Q34: Red. søjlelængde | S34: Vejledning: | V34: Betonelementbyggeriers statik | AO34: 0 | AQ34: =(N29*$N$35+O29*$O$35-P29*$P$35)/1000+0.125*Q29*($N$11/1000)^2+0.001+AO34*AT10 -> 0.001 | AS34: Resttværsnit meget spinkelt | AT34: =IF(AT43<0.25*Kold!Q23/1000,1,0) -> 0 | AW34: max exc(R ) | AX34: =AX40/1000 -> 0 | BA34: N | BB34: =INDEX($AN$30:$AQ$38,BB32,2) -> 29.1 | BC34: =INDEX($AN$30:$AQ$38,BC32,2) -> 56.2 | BD34: 359.2 | BE34: 375.5 | BF34: 0 | BG34: 0 | BH34: 29.1 | BI34: D | BK34: Ls | BL34: =IF(BL31=1,1,IF(BL31=2,0.7,0.5))*N11 -> 2520
B35: x | C35: (mm) | D35: =IF(Makro!$C$11=-1,Brand!BB44,"-") -> - | E35: =IF(Makro!$C$11=-1,Brand!BC44,"-") -> - | F35: =IF(Makro!$C$11=-1,Brand!BD44,"-") -> - | G35: =IF(Makro!$C$11=-1,Brand!BE44,"-") -> - | H35: =IF(Makro!$C$11=-1,Brand!BF44,"-") -> - | I35: =IF(Makro!$C$11=-1,Brand!BG44,"-") -> - | J35: =IF(Makro!$C$11=-1,IF($BH$32=10,"-",Brand!BH44),"-") -> - | K35: Excentriciteter (mm) : | N35: 72 | O35: 20 | P35: 40 | Q35: =INDEX(BK31:BK33,BL31)&" = "&BL34&" mm" -> 0,7 L = 2520 mm | S35: Polyteknisk Forlag 2010 eller www.bef.dk | AO35: 0 | AQ35: =(N30*$N$35+O30*$O$35-P30*$P$35)/1000+0.125*Q30*($N$11/1000)^2+0.001+AO35*AT10 -> 0.001 | AS35: f_yk højst 600 MPa | AT35: =IF(N8>600,1,0) -> 0 | AW35: 2 utermisk | AX35: =1.1*Firsidig!X34*AX27^2/(800000*(AX21-AX24))+IF(OR(BH32=10,AR61=1),0,$Q$16/1000)*2 -> 0.03024368124 | BA35: N | BB35: =INDEX(Lastresult,1+5*(BB31-1),16)*1000 -> 29.10008793 | BC35: 95.49997694 | BD35: 514.0999102 | BE35: 561.4998438 | BF35: 95.49997694 | BG35: 514.0999102 | BH35: 0.1 | BI35: E | BK35: Lbrand/Ls | BL35: =IF(BL31=1,1,IF(BL31=2,0.7,0.5)) -> 0.7
AO36: 0 | AQ36: =(N31*$N$35+O31*$O$35-P31*$P$35)/1000+0.125*Q31*($N$11/1000)^2+0.001+AO36*AT10 -> 0.001 | AS36: Partialkoefficienter mindst 1,0 | AT36: =IF(MIN(N9,N10)<1,1,0) -> 0 | BA36: M | BB36: =INDEX($AN$30:$AQ$38,BB32,4) -> 0.577 | BC36: =INDEX($AN$30:$AQ$38,BC32,4) -> 2.5282 | BD36: 8.5882 | BE36: 7.9362 | BF36: 0.001 | BG36: 0.001 | BH36: 0.577 | BI36: F
AO37: 0 | AQ37: =(N32*$N$35+O32*$O$35-P32*$P$35)/1000+0.125*Q32*($N$11/1000)^2+0.001+AO37*AT10 -> 0.001 | AS37: Programmet indstillet til kold beregning | AT37: =IF(Makro!$C$11=1,1,0) -> 1 | AU37: Programmet indstillet til kold beregning ! | BA37: Mud | BB37: =INDEX(Lastresult,1+5*(BB31-1),17)*1000 -> 20.48241873 | BC37: 22.56383747 | BD37: 28.42554447 | BE37: 28.44946435 | BF37: 22.56383747 | BG37: 28.42554447 | BH37: 19.41919309 | BI37: G
AO38: 0 | AQ38: =(N33*$N$35+O33*$O$35-P33*$P$35)/1000+0.125*Q33*($N$11/1000)^2+0.001+AO38*AT10 -> 0.001 | AT38: =Kold!AT30 -> 1 | AU38: =Kold!AU30 -> For ny bruger: Klik på knappen 'angiv nyt brugernavn' for ibrugtagning. | BA38: u | BB38: =INDEX(Lastresult,1+5*(BB31-1),15)*1000 -> 31.06423318 | BC38: 33.54253401 | BD38: 42.94358888 | BE38: 43.80368799 | BF38: 33.54253401 | BG38: 42.94358888 | BH38: 29.74048372 | BI38: H
AS39: Nulstilling for fejl | AX39: max exc( R )brand | BA39: wr | BB39: - | BC39: - | BD39: - | BE39: - | BF39: - | BG39: - | BH39: - | BI39: I
AN40: Trykarmering | AP40: =N15^2*N16*PI()/4 -> 335.270768 | AQ40: mm^2 | AS40: Testfaktor | AT40: =IF(MAX(AT28,AT29,AT30,AT34,AT36)=1,0,1) -> 1 | AX40: 0 | BA40: e0 | BB40: =INDEX(Lastresult,1+5*(BB31-1),3)*1000 -> 0.3553127187 | BC40: 0.4279260915 | BD40: 0.8056106497 | BE40: 0.8449978664 | BF40: 0.4279260915 | BG40: 0.8056106497 | BH40: 0.3210578024
AN41: Trækarmering | AP41: =N17^2*N18*PI()/4 -> 335.270768 | AQ41: mm^2 | BA41: sc0 | BB41: =3*(BB40/1000)*$Q$8/(Firsidig!$F$21*(2+((BB40/1000)/Firsidig!$F$21)^3)) -> 3.492283004 | BC41: =3*(BC40/1000)*$Q$8/(Firsidig!$F$21*(2+((BC40/1000)/Firsidig!$F$21)^3)) -> 4.205519901 | BD41: =3*(BD40/1000)*$Q$8/(Firsidig!$F$21*(2+((BD40/1000)/Firsidig!$F$21)^3)) -> 7.905751115 | BE41: =3*(BE40/1000)*$Q$8/(Firsidig!$F$21*(2+((BE40/1000)/Firsidig!$F$21)^3)) -> 8.290085576 | BF41: =3*(BF40/1000)*$Q$8/(Firsidig!$F$21*(2+((BF40/1000)/Firsidig!$F$21)^3)) -> 4.205519901 | BG41: =3*(BG40/1000)*$Q$8/(Firsidig!$F$21*(2+((BG40/1000)/Firsidig!$F$21)^3)) -> 7.905751115 | BH41: =3*(BH40/1000)*$Q$8/(Firsidig!$F$21*(2+((BH40/1000)/Firsidig!$F$21)^3)) -> 3.15572152
AS42: Kritisk normalspænding | AT42: =Q8/(1+12*Q8*AX27^2/(PI()^2*AX16*AX21^2)) -> 14.10951293 | AU42: MPa | BA42: sst | BB42: =INDEX(Lastresult,1+5*(BB31-1),12) -> 458.3333333 | BC42: 458.3333333 | BD42: 458.3333333 | BE42: 458.3333333 | BF42: 458.3333333 | BG42: 458.3333333 | BH42: 458.3215629
AS43: Kritisk normalkraft, Ncr | AT43: =AT42*AX22*AX21 -> 1.665015907 | AU43: MN | BA43: ssc | BB43: =INDEX(Lastresult,1+5*(BB31-1),10) -> 12.12035409 | BC43: 38.48702702 | BD43: 197.1674415 | BE43: 214.4581782 | BF43: 38.48702702 | BG43: 197.1674415 | BH43: 0.6365191477
BA44: hc | BB44: =INDEX(Lastresult,1+5*(BB31-1),2)*1000 -> 42.52830624 | BC44: 47.4352145 | BD44: 69.75170576 | BE44: 71.72538794 | BF44: 47.4352145 | BG44: 69.75170576 | BH44: 40.13868786
AN46: gc | AO46: 1 | AQ46: Referencelast før krybning | AT46: Mo | AV46: sc,max | AW46: sc,min | AX46: sc | AY46: st | AZ46: hc | BA46: u | BB46: a | BC46: Mt | BD46: a*fc | BE46: a*ft | BF46: B | BG46: C | BH46: D | BI46: p | BJ46: q | BK46: C' | BL46: y' | BM46: b | BN46: m | BO46: Ec | BP46: Atr | BQ46: Syt | BR46: Iyt | BS46: z | BT46: Io | BU46: sc | BV46: sm | BW46: hc | BZ46: Referencelast
AN47: ga | AO47: 1 | AT47: =BC47-AR50*BA47 -> 0.0008371164107 | AV47: =IF(BL47*SQRT(4*ABS(BI47)/3)-BF47/3<=AO53,BC47/(BN47*AO54*AO53^2),BU47) -> 0.3105477065 | AW47: =IF(BL47*SQRT(4*ABS(BI47)/3)-BF47/3<=AO53,0,BV47) -> 0.005976408644 | AX47: =BB47*(AZ47-AO55)*AV47/AZ47 -> 1.425384593 | AY47: =BB47*(AO53-AO55-AZ47)*AV47/AZ47 -> -0.4323068537 | AZ47: =IF(BL47*SQRT(4*ABS(BI47)/3)-BF47/3<=AO53,BL47*SQRT(4*ABS(BI47)/3)-BF47/3,BW47) -> 0.1835320254 | BA47: =0.1*(AV47/(AZ47*BO47))*AO59^2 -> 6.43624277e-05 | BB47: =AO56 -> 5.869036064 | BC47: =IF(AR53>0,AR53+AO53*AR50/20,0)+0.000000000001 -> 0.000838990001 | BD47: =BB47*AO57/(AO53*AO54) -> 0.01093175683 | BE47: =BB47*AO58/(AO53*AO54) -> 0.01093175683 | BF47: =-6*AO53*(0.25-0.5*BC47/(AO53*AR52)) -> -0.1835358982 | BG47: =-6*AO53*(BD47*(0.5*AO53-AO55)-BE47*(0.5*AO53-AO55)-(BD47+BE47)*AO53*BC47/(AO53*AR52)) -> 0.0006805472651 | BH47: =6*AO53*((BD47*AO55-BE47*(AO53-AO55))*(0.5*AO53-AO55)-(BD47*AO55+BE47*(AO53-AO55))*BC47/AR52) -> -0.0001202807407 | BI47: =(3*BG47-BF47^2)/3 -> -0.01054792805 | BJ47: =(9*BG47*BF47-27*BH47-2*BF47^3)/27 -> 0.0005366076344 | BK47: =0.5*BJ47*(3/ABS(BI47))^(3/2) -> 1.2869391 | BL47: =IF(BI47>0,SINH(ASINH(BK47)/3),IF(BK47>=1,COSH(ACOSH(BK47)/3),IF(BK47<=-1,-COSH(ACOSH(ABS(BK47))/3),COS(ACOS(BK47)/3)))) -> 1.030619308 | BM47: =AZ47/AO53 -> 1.019622363 | BN47: =0.5*BM47*(0.5-BM47/3)+BD47*(0.5-AO55/AO53)*(BM47-AO55/AO53)/BM47+BE47*(0.5-AO55/AO53)*(1-AO55/AO53-BM47)/BM47 -> 0.08328849719 | BO47: =IF(BL47*SQRT(4*ABS(BI47)/3)-BF47/3<=AO53,AO52*(1-AO51*AV47/AO50),AO52*(1-AO51*AV47/AO50-(1-AO51)*BV47/AO50)) -> 34071.32737 | BP47: =(1+BD47+BE47)*AO53*AO54 -> 0.1839354325 | BQ47: =0.5*(AO53-AO55)*(BE47-BD47)*AO53*AO54 -> 0 | BR47: =AO54*AO53^3/12+(0.5*AO53-AO55)^2*(BD47+BE47)*AO54*AO53 -> 0.0004958385811 | BS47: =BQ47/BP47 -> 0 | BT47: =BR47-BP47*BS47^2 -> 0.0004958385811 | BU47: =AR52/BP47+(BC47+BS47*AR52)*(0.5*AO53+BS47)/BT47 -> 0.3105477065 | BV47: =AR52/BP47+(BC47+BS47*AR52)*(-0.5*AO53+BS47)/BT47 -> 0.005976408644 | BW47: =AR52*BT47/((BC47+AR52*BS47)*BP47)+(0.5*AO53+BS47) -> 0.1835320254 | BZ47: A | CA47: =AO30 -> 29.1 | CB47: =(N25*$N$35+O25*$O$35-P25*$P$35)/1000+0.125*Q25*($N$11/1000)^2+0.001 -> 0.577
AN48: fck | AO48: =$N$7 -> 35 | AP48: MPa | AT48: =BC48-AR50*BA48 -> 0.0005775791324 | AU48: =BA48/BA47 -> 0.6908969839 | AV48: =IF(BL48*SQRT(4*ABS(BI48)/3)-BF48/3<=AO53,BC48/(BN48*AO54*AO53^2),BU48) -> 0.2633337989 | AW48: =IF(BL48*SQRT(4*ABS(BI48)/3)-BF48/3<=AO53,0,BV48) -> 0.05319031627 | AX48: =BB48*(AZ48-AO55)*AV48/AZ48 -> 1.271440078 | AY48: =BB48*(AO53-AO55-AZ48)*AV48/AZ48 -> -0.5862513684 | AZ48: =IF(BL48*SQRT(4*ABS(BI48)/3)-BF48/3<=AO53,BL48*SQRT(4*ABS(BI48)/3)-BF48/3,BW48) -> 0.2255605704 | BA48: =0.1*(AV48/(AZ48*BO48))*AO59^2 -> 4.446780717e-05 | BB48: =AO56 -> 5.869036064 | BC48: =AR53+BA47*AR50 -> 0.0005788735903 | BD48: =BB48*AO57/(AO53*AO54) -> 0.01093175683 | BE48: =BB48*AO58/(AO53*AO54) -> 0.01093175683 | BF48: =-6*AO53*(0.25-0.5*BC48/(AO53*AR52)) -> -0.210342811 | BG48: =-6*AO53*(BD48*(0.5*AO53-AO55)-BE48*(0.5*AO53-AO55)-(BD48+BE48)*AO53*BC48/(AO53*AR52)) -> 0.0004695536755 | BH48: =6*AO53*((BD48*AO55-BE48*(AO53-AO55))*(0.5*AO53-AO55)-(BD48*AO55+BE48*(AO53-AO55))*BC48/AR52) -> -0.0001012913177 | BI48: =(3*BG48-BF48^2)/3 -> -0.01427847904 | BJ48: =(9*BG48*BF48-27*BH48-2*BF48^3)/27 -> 0.0007577339397 | BK48: =0.5*BJ48*(3/ABS(BI48))^(3/2) -> 1.153840301 | BL48: =IF(BI48>0,SINH(ASINH(BK48)/3),IF(BK48>=1,COSH(ACOSH(BK48)/3),IF(BK48<=-1,-COSH(ACOSH(ABS(BK48))/3),COS(ACOS(BK48)/3)))) -> 1.016718607 | BM48: =AZ48/AO53 -> 1.25311428 | BN48: =0.5*BM48*(0.5-BM48/3)+BD48*(0.5-AO55/AO53)*(BM48-AO55/AO53)/BM48+BE48*(0.5-AO55/AO53)*(1-AO55/AO53-BM48)/BM48 -> 0.05290891577 | BO48: =IF(BL48*SQRT(4*ABS(BI48)/3)-BF48/3<=AO53,AO52*(1-AO51*AV48/AO50),AO52*(1-AO51*AV48/AO50-(1-AO51)*BV48/AO50)) -> 34025.35837 | BP48: =(1+BD48+BE48)*AO53*AO54 -> 0.1839354325 | BQ48: =0.5*(AO53-AO55)*(BE48-BD48)*AO53*AO54 -> 0 | BR48: =AO54*AO53^3/12+(0.5*AO53-AO55)^2*(BD48+BE48)*AO54*AO53 -> 0.0004958385811 | BS48: =BQ48/BP48 -> 0 | BT48: =BR48-BP48*BS48^2 -> 0.0004958385811 | BU48: =AR52/BP48+(BC48+BS48*AR52)*(0.5*AO53+BS48)/BT48 -> 0.2633337989 | BV48: =AR52/BP48+(BC48+BS48*AR52)*(-0.5*AO53+BS48)/BT48 -> 0.05319031627 | BW48: =AR52*BT48/((BC48+AR52*BS48)*BP48)+(0.5*AO53+BS48) -> 0.2255605704 | BZ48: B | CA48: =AO31 -> 56.2 | CB48: 2.5282
AN49: Es | AO49: 200000 | AP49: MPa | AQ49: Max_N | AR49: =(AO53*AO54+AO56*(AO57+AO58))*AO50/(1+(12*(AO50/AO52)/PI()^2)*(AO59/AO53)^2) -> 4.293222192 | AT49: =BC49-AR50*BA49 -> 0.0005770012911 | AU49: =BA49/BA48 -> 0.9990025579 | AV49: =IF(BL49*SQRT(4*ABS(BI49)/3)-BF49/3<=AO53,BC49/(BN49*AO54*AO53^2),BU49) -> 0.2632286801 | AW49: =IF(BL49*SQRT(4*ABS(BI49)/3)-BF49/3<=AO53,0,BV49) -> 0.05329543499 | AX49: =BB49*(AZ49-AO55)*AV49/AZ49 -> 1.271097331 | AY49: =BB49*(AO53-AO55-AZ49)*AV49/AZ49 -> -0.5865941159 | AZ49: =IF(BL49*SQRT(4*ABS(BI49)/3)-BF49/3<=AO53,BL49*SQRT(4*ABS(BI49)/3)-BF49/3,BW49) -> 0.2256963274 | BA49: =0.1*(AV49/(AZ49*BO49))*AO59^2 -> 4.442345311e-05 | BB49: =AO56 -> 5.869036064 | BC49: =AR53+BA48*AR50 -> 0.0005782944579 | BD49: =BB49*AO57/(AO53*AO54) -> 0.01093175683 | BE49: =BB49*AO58/(AO53*AO54) -> 0.01093175683 | BF49: =-6*AO53*(0.25-0.5*BC49/(AO53*AR52)) -> -0.2104024949 | BG49: =-6*AO53*(BD49*(0.5*AO53-AO55)-BE49*(0.5*AO53-AO55)-(BD49+BE49)*AO53*BC49/(AO53*AR52)) -> 0.0004690839119 | BH49: =6*AO53*((BD49*AO55-BE49*(AO53-AO55))*(0.5*AO53-AO55)-(BD49*AO55+BE49*(AO53-AO55))*BC49/AR52) -> -0.0001012490389 | BI49: =(3*BG49-BF49^2)/3 -> -0.01428731937 | BJ49: =(9*BG49*BF49-27*BH49-2*BF49^3)/27 -> 0.0007583022454 | BK49: =0.5*BJ49*(3/ABS(BI49))^(3/2) -> 1.153634138 | BL49: 1.016696685 | BM49: =AZ49/AO53 -> 1.253868485 | BN49: =0.5*BM49*(0.5-BM49/3)+BD49*(0.5-AO55/AO53)*(BM49-AO55/AO53)/BM49+BE49*(0.5-AO55/AO53)*(1-AO55/AO53-BM49)/BM49 -> 0.05278152734 | BO49: =IF(BL49*SQRT(4*ABS(BI49)/3)-BF49/3<=AO53,AO52*(1-AO51*AV49/AO50),AO52*(1-AO51*AV49/AO50-(1-AO51)*BV49/AO50)) -> 34025.25602 | BP49: =(1+BD49+BE49)*AO53*AO54 -> 0.1839354325 | BQ49: =0.5*(AO53-AO55)*(BE49-BD49)*AO53*AO54 -> 0 | BR49: =AO54*AO53^3/12+(0.5*AO53-AO55)^2*(BD49+BE49)*AO54*AO53 -> 0.0004958385811 | BS49: 0 | BT49: 0.0004958385811 | BU49: =AR52/BP49+(BC49+BS49*AR52)*(0.5*AO53+BS49)/BT49 -> 0.2632286801 | BV49: =AR52/BP49+(BC49+BS49*AR52)*(-0.5*AO53+BS49)/BT49 -> 0.05329543499 | BW49: =AR52*BT49/((BC49+AR52*BS49)*BP49)+(0.5*AO53+BS49) -> 0.2256963274 | BZ49: C | CA49: 359.2 | CB49: 8.5882
AN50: fcd | AO50: =AO48/AO46 -> 35 | AP50: MPa | AQ50: Nd | AR50: =INDEX(BZ47:CB56,BH32,2)/1000+0.00001 -> 0.02911 | AS50: MN | AT50: =BC50-AR50*BA50 -> 0.0005770000029 | AU50: 0.999997774 | AV50: =IF(BL50*SQRT(4*ABS(BI50)/3)-BF50/3<=AO53,BC50/(BN50*AO54*AO53^2),BU50) -> 0.2632284458 | AW50: =IF(BL50*SQRT(4*ABS(BI50)/3)-BF50/3<=AO53,0,BV50) -> 0.05329566934 | AX50: =BB50*(AZ50-AO55)*AV50/AZ50 -> 1.271096567 | AY50: =BB50*(AO53-AO55-AZ50)*AV50/AZ50 -> -0.5865948801 | AZ50: =IF(BL50*SQRT(4*ABS(BI50)/3)-BF50/3<=AO53,BL50*SQRT(4*ABS(BI50)/3)-BF50/3,BW50) -> 0.2256966303 | BA50: =0.1*(AV50/(AZ50*BO50))*AO59^2 -> 4.442335422e-05 | BB50: =AO56 -> 5.869036064 | BC50: =AR53+BA49*AR50 -> 0.0005782931667 | BD50: =BB50*AO57/(AO53*AO54) -> 0.01093175683 | BE50: =BB50*AO58/(AO53*AO54) -> 0.01093175683 | BF50: =-6*AO53*(0.25-0.5*BC50/(AO53*AR52)) -> -0.210402628 | BG50: =-6*AO53*(BD50*(0.5*AO53-AO55)-BE50*(0.5*AO53-AO55)-(BD50+BE50)*AO53*BC50/(AO53*AR52)) -> 0.0004690828646 | BH50: =6*AO53*((BD50*AO55-BE50*(AO53-AO55))*(0.5*AO53-AO55)-(BD50*AO55+BE50*(AO53-AO55))*BC50/AR52) -> -0.0001012489447 | BI50: -0.01428733909 | BJ50: 0.0007583035128 | BK50: 1.153633678 | BL50: 1.016696636 | BM50: =AZ50/AO53 -> 1.253870169 | BN50: =0.5*BM50*(0.5-BM50/3)+BD50*(0.5-AO55/AO53)*(BM50-AO55/AO53)/BM50+BE50*(0.5-AO55/AO53)*(1-AO55/AO53-BM50)/BM50 -> 0.05278124284 | BO50: =IF(BL50*SQRT(4*ABS(BI50)/3)-BF50/3<=AO53,AO52*(1-AO51*AV50/AO50),AO52*(1-AO51*AV50/AO50-(1-AO51)*BV50/AO50)) -> 34025.25579 | BP50: =(1+BD50+BE50)*AO53*AO54 -> 0.1839354325 | BQ50: =0.5*(AO53-AO55)*(BE50-BD50)*AO53*AO54 -> 0 | BR50: =AO54*AO53^3/12+(0.5*AO53-AO55)^2*(BD50+BE50)*AO54*AO53 -> 0.0004958385811 | BS50: 0 | BT50: 0.0004958385811 | BU50: =AR52/BP50+(BC50+BS50*AR52)*(0.5*AO53+BS50)/BT50 -> 0.2632284458 | BV50: =AR52/BP50+(BC50+BS50*AR52)*(-0.5*AO53+BS50)/BT50 -> 0.05329566934 | BW50: =AR52*BT50/((BC50+AR52*BS50)*BP50)+(0.5*AO53+BS50) -> 0.2256966303 | BZ50: D | CA50: 375.5 | CB50: 7.9362
AN51: k | AO51: 0 | AQ51: Nf | AR51: 0 | AS51: MN | AT51: =BC51-AR50*BA51 -> 0.000577 | AU51: 0.999999995 | AV51: =IF(BL51*SQRT(4*ABS(BI51)/3)-BF51/3<=AO53,BC51/(BN51*AO54*AO53^2),BU51) -> 0.2632284453 | AW51: =IF(BL51*SQRT(4*ABS(BI51)/3)-BF51/3<=AO53,0,BV51) -> 0.05329566986 | AX51: =BB51*(AZ51-AO55)*AV51/AZ51 -> 1.271096565 | AY51: =BB51*(AO53-AO55-AZ51)*AV51/AZ51 -> -0.5865948818 | AZ51: =IF(BL51*SQRT(4*ABS(BI51)/3)-BF51/3<=AO53,BL51*SQRT(4*ABS(BI51)/3)-BF51/3,BW51) -> 0.225696631 | BA51: =0.1*(AV51/(AZ51*BO51))*AO59^2 -> 4.4423354e-05 | BB51: =AO56 -> 5.869036064 | BC51: =AR53+BA50*AR50 -> 0.0005782931638 | BD51: =BB51*AO57/(AO53*AO54) -> 0.01093175683 | BE51: =BB51*AO58/(AO53*AO54) -> 0.01093175683 | BF51: =-6*AO53*(0.25-0.5*BC51/(AO53*AR52)) -> -0.2104026283 | BG51: =-6*AO53*(BD51*(0.5*AO53-AO55)-BE51*(0.5*AO53-AO55)-(BD51+BE51)*AO53*BC51/(AO53*AR52)) -> 0.0004690828622 | BH51: =6*AO53*((BD51*AO55-BE51*(AO53-AO55))*(0.5*AO53-AO55)-(BD51*AO55+BE51*(AO53-AO55))*BC51/AR52) -> -0.0001012489445 | BI51: -0.01428733913 | BJ51: 0.0007583035156 | BK51: 1.153633677 | BL51: 1.016696636 | BM51: =AZ51/AO53 -> 1.253870172 | BN51: =0.5*BM51*(0.5-BM51/3)+BD51*(0.5-AO55/AO53)*(BM51-AO55/AO53)/BM51+BE51*(0.5-AO55/AO53)*(1-AO55/AO53-BM51)/BM51 -> 0.0527812422 | BO51: =IF(BL51*SQRT(4*ABS(BI51)/3)-BF51/3<=AO53,AO52*(1-AO51*AV51/AO50),AO52*(1-AO51*AV51/AO50-(1-AO51)*BV51/AO50)) -> 34025.25579 | BP51: =(1+BD51+BE51)*AO53*AO54 -> 0.1839354325 | BQ51: =0.5*(AO53-AO55)*(BE51-BD51)*AO53*AO54 -> 0 | BR51: =AO54*AO53^3/12+(0.5*AO53-AO55)^2*(BD51+BE51)*AO54*AO53 -> 0.0004958385811 | BS51: 0 | BT51: 0.0004958385811 | BU51: =AR52/BP51+(BC51+BS51*AR52)*(0.5*AO53+BS51)/BT51 -> 0.2632284453 | BV51: =AR52/BP51+(BC51+BS51*AR52)*(-0.5*AO53+BS51)/BT51 -> 0.05329566986 | BW51: =AR52*BT51/((BC51+AR52*BS51)*BP51)+(0.5*AO53+BS51) -> 0.225696631 | BZ51: E | CA51: 0 | CB51: 0.001
AN52: Ecm | AO52: =1000*22*((AO50+8)/10)^0.3 -> 34077.1462 | AP52: MPa | AQ52: N | AR52: =AR51+AR50 -> 0.02911 | AS52: MN | AT52: =BC52-AR50*BA52 -> 0.000577 | AU52: 1 | AV52: =IF(BL52*SQRT(4*ABS(BI52)/3)-BF52/3<=AO53,BC52/(BN52*AO54*AO53^2),BU52) -> 0.2632284453 | AW52: =IF(BL52*SQRT(4*ABS(BI52)/3)-BF52/3<=AO53,0,BV52) -> 0.05329566987 | AX52: =BB52*(AZ52-AO55)*AV52/AZ52 -> 1.271096565 | AY52: =BB52*(AO53-AO55-AZ52)*AV52/AZ52 -> -0.5865948818 | AZ52: =IF(BL52*SQRT(4*ABS(BI52)/3)-BF52/3<=AO53,BL52*SQRT(4*ABS(BI52)/3)-BF52/3,BW52) -> 0.225696631 | BA52: =0.1*(AV52/(AZ52*BO52))*AO59^2 -> 4.4423354e-05 | BB52: =AO56 -> 5.869036064 | BC52: =AR53+BA51*AR50 -> 0.0005782931638 | BD52: =BB52*AO57/(AO53*AO54) -> 0.01093175683 | BE52: =BB52*AO58/(AO53*AO54) -> 0.01093175683 | BF52: =-6*AO53*(0.25-0.5*BC52/(AO53*AR52)) -> -0.2104026283 | BG52: =-6*AO53*(BD52*(0.5*AO53-AO55)-BE52*(0.5*AO53-AO55)-(BD52+BE52)*AO53*BC52/(AO53*AR52)) -> 0.0004690828622 | BH52: =6*AO53*((BD52*AO55-BE52*(AO53-AO55))*(0.5*AO53-AO55)-(BD52*AO55+BE52*(AO53-AO55))*BC52/AR52) -> -0.0001012489445 | BI52: =(3*BG52-BF52^2)/3 -> -0.01428733913 | BJ52: =(9*BG52*BF52-27*BH52-2*BF52^3)/27 -> 0.0007583035156 | BK52: =0.5*BJ52*(3/ABS(BI52))^(3/2) -> 1.153633677 | BL52: =IF(BI52>0,SINH(ASINH(BK52)/3),IF(BK52>=1,COSH(ACOSH(BK52)/3),IF(BK52<=-1,-COSH(ACOSH(ABS(BK52))/3),COS(ACOS(BK52)/3)))) -> 1.016696636 | BM52: =AZ52/AO53 -> 1.253870172 | BN52: =0.5*BM52*(0.5-BM52/3)+BD52*(0.5-AO55/AO53)*(BM52-AO55/AO53)/BM52+BE52*(0.5-AO55/AO53)*(1-AO55/AO53-BM52)/BM52 -> 0.0527812422 | BO52: =IF(BL52*SQRT(4*ABS(BI52)/3)-BF52/3<=AO53,AO52*(1-AO51*AV52/AO50),AO52*(1-AO51*AV52/AO50-(1-AO51)*BV52/AO50)) -> 34025.25579 | BP52: =(1+BD52+BE52)*AO53*AO54 -> 0.1839354325 | BQ52: =0.5*(AO53-AO55)*(BE52-BD52)*AO53*AO54 -> 0 | BR52: =AO54*AO53^3/12+(0.5*AO53-AO55)^2*(BD52+BE52)*AO54*AO53 -> 0.0004958385811 | BS52: 0 | BT52: 0.0004958385811 | BU52: =AR52/BP52+(BC52+BS52*AR52)*(0.5*AO53+BS52)/BT52 -> 0.2632284453 | BV52: =AR52/BP52+(BC52+BS52*AR52)*(-0.5*AO53+BS52)/BT52 -> 0.05329566987 | BW52: =AR52*BT52/((BC52+AR52*BS52)*BP52)+(0.5*AO53+BS52) -> 0.225696631 | BZ52: F | CA52: 0 | CB52: 0.001
AN53: h | AO53: =$N$12/1000 -> 0.18 | AP53: m | AQ53: Mo | AR53: =INDEX(BZ47:CB56,BH32,3)/1000 -> 0.000577 | AS53: MNm | AT53: =BC53-AR50*BA53 -> 0.000577 | AU53: 1 | AV53: =IF(BL53*SQRT(4*ABS(BI53)/3)-BF53/3<=AO53,BC53/(BN53*AO54*AO53^2),BU53) -> 0.2632284453 | AW53: =IF(BL53*SQRT(4*ABS(BI53)/3)-BF53/3<=AO53,0,BV53) -> 0.05329566987 | AX53: =BB53*(AZ53-AO55)*AV53/AZ53 -> 1.271096565 | AY53: =BB53*(AO53-AO55-AZ53)*AV53/AZ53 -> -0.5865948818 | AZ53: =IF(BL53*SQRT(4*ABS(BI53)/3)-BF53/3<=AO53,BL53*SQRT(4*ABS(BI53)/3)-BF53/3,BW53) -> 0.225696631 | BA53: =0.1*(AV53/(AZ53*BO53))*AO59^2 -> 4.4423354e-05 | BB53: =AO56 -> 5.869036064 | BC53: =AR53+BA52*AR50 -> 0.0005782931638 | BD53: =BB53*AO57/(AO53*AO54) -> 0.01093175683 | BE53: =BB53*AO58/(AO53*AO54) -> 0.01093175683 | BF53: =-6*AO53*(0.25-0.5*BC53/(AO53*AR52)) -> -0.2104026283 | BG53: =-6*AO53*(BD53*(0.5*AO53-AO55)-BE53*(0.5*AO53-AO55)-(BD53+BE53)*AO53*BC53/(AO53*AR52)) -> 0.0004690828622 | BH53: =6*AO53*((BD53*AO55-BE53*(AO53-AO55))*(0.5*AO53-AO55)-(BD53*AO55+BE53*(AO53-AO55))*BC53/AR52) -> -0.0001012489445 | BI53: -0.01428733913 | BJ53: 0.0007583035156 | BK53: 1.153633677 | BL53: 1.016696636 | BM53: =AZ53/AO53 -> 1.253870172 | BN53: =0.5*BM53*(0.5-BM53/3)+BD53*(0.5-AO55/AO53)*(BM53-AO55/AO53)/BM53+BE53*(0.5-AO55/AO53)*(1-AO55/AO53-BM53)/BM53 -> 0.0527812422 | BO53: =IF(BL53*SQRT(4*ABS(BI53)/3)-BF53/3<=AO53,AO52*(1-AO51*AV53/AO50),AO52*(1-AO51*AV53/AO50-(1-AO51)*BV53/AO50)) -> 34025.25579 | BP53: =(1+BD53+BE53)*AO53*AO54 -> 0.1839354325 | BQ53: =0.5*(AO53-AO55)*(BE53-BD53)*AO53*AO54 -> 0 | BR53: =AO54*AO53^3/12+(0.5*AO53-AO55)^2*(BD53+BE53)*AO54*AO53 -> 0.0004958385811 | BS53: 0 | BT53: 0.0004958385811 | BU53: =AR52/BP53+(BC53+BS53*AR52)*(0.5*AO53+BS53)/BT53 -> 0.2632284453 | BV53: =AR52/BP53+(BC53+BS53*AR52)*(-0.5*AO53+BS53)/BT53 -> 0.05329566987 | BW53: =AR52*BT53/((BC53+AR52*BS53)*BP53)+(0.5*AO53+BS53) -> 0.225696631 | BZ53: G | CA53: 0 | CB53: 0.001
AN54: b | AO54: =$N$13/1000 -> 1 | AP54: m | AQ54: u | AR54: =BA59 -> 4.4423354e-05 | AS54: m | AT54: =BC54-AR50*BA54 -> 0.000577 | AU54: 1 | AV54: =IF(BL54*SQRT(4*ABS(BI54)/3)-BF54/3<=AO53,BC54/(BN54*AO54*AO53^2),BU54) -> 0.2632284453 | AW54: =IF(BL54*SQRT(4*ABS(BI54)/3)-BF54/3<=AO53,0,BV54) -> 0.05329566987 | AX54: =BB54*(AZ54-AO55)*AV54/AZ54 -> 1.271096565 | AY54: =BB54*(AO53-AO55-AZ54)*AV54/AZ54 -> -0.5865948818 | AZ54: =IF(BL54*SQRT(4*ABS(BI54)/3)-BF54/3<=AO53,BL54*SQRT(4*ABS(BI54)/3)-BF54/3,BW54) -> 0.225696631 | BA54: =0.1*(AV54/(AZ54*BO54))*AO59^2 -> 4.4423354e-05 | BB54: =AO56 -> 5.869036064 | BC54: =AR53+BA53*AR50 -> 0.0005782931638 | BD54: =BB54*AO57/(AO53*AO54) -> 0.01093175683 | BE54: =BB54*AO58/(AO53*AO54) -> 0.01093175683 | BF54: =-6*AO53*(0.25-0.5*BC54/(AO53*AR52)) -> -0.2104026283 | BG54: =-6*AO53*(BD54*(0.5*AO53-AO55)-BE54*(0.5*AO53-AO55)-(BD54+BE54)*AO53*BC54/(AO53*AR52)) -> 0.0004690828622 | BH54: =6*AO53*((BD54*AO55-BE54*(AO53-AO55))*(0.5*AO53-AO55)-(BD54*AO55+BE54*(AO53-AO55))*BC54/AR52) -> -0.0001012489445 | BI54: -0.01428733913 | BJ54: 0.0007583035156 | BK54: 1.153633677 | BL54: 1.016696636 | BM54: =AZ54/AO53 -> 1.253870172 | BN54: =0.5*BM54*(0.5-BM54/3)+BD54*(0.5-AO55/AO53)*(BM54-AO55/AO53)/BM54+BE54*(0.5-AO55/AO53)*(1-AO55/AO53-BM54)/BM54 -> 0.0527812422 | BO54: =IF(BL54*SQRT(4*ABS(BI54)/3)-BF54/3<=AO53,AO52*(1-AO51*AV54/AO50),AO52*(1-AO51*AV54/AO50-(1-AO51)*BV54/AO50)) -> 34025.25579 | BP54: =(1+BD54+BE54)*AO53*AO54 -> 0.1839354325 | BQ54: =0.5*(AO53-AO55)*(BE54-BD54)*AO53*AO54 -> 0 | BR54: =AO54*AO53^3/12+(0.5*AO53-AO55)^2*(BD54+BE54)*AO54*AO53 -> 0.0004958385811 | BS54: 0 | BT54: 0.0004958385811 | BU54: =AR52/BP54+(BC54+BS54*AR52)*(0.5*AO53+BS54)/BT54 -> 0.2632284453 | BV54: =AR52/BP54+(BC54+BS54*AR52)*(-0.5*AO53+BS54)/BT54 -> 0.05329566987 | BW54: =AR52*BT54/((BC54+AR52*BS54)*BP54)+(0.5*AO53+BS54) -> 0.225696631 | BZ54: H | CA54: 0 | CB54: 0.001
AN55: a | AO55: =$N$14/1000 -> 0.04 | AP55: m | AQ55: ec,max | AR55: =1000*AV59/BO59 -> 0.007736266463 | AS55: o/oo | AT55: =BC55-AR50*BA55 -> 0.000577 | AU55: 1 | AV55: =IF(BL55*SQRT(4*ABS(BI55)/3)-BF55/3<=AO53,BC55/(BN55*AO54*AO53^2),BU55) -> 0.2632284453 | AW55: =IF(BL55*SQRT(4*ABS(BI55)/3)-BF55/3<=AO53,0,BV55) -> 0.05329566987 | AX55: =BB55*(AZ55-AO55)*AV55/AZ55 -> 1.271096565 | AY55: =BB55*(AO53-AO55-AZ55)*AV55/AZ55 -> -0.5865948818 | AZ55: =IF(BL55*SQRT(4*ABS(BI55)/3)-BF55/3<=AO53,BL55*SQRT(4*ABS(BI55)/3)-BF55/3,BW55) -> 0.225696631 | BA55: =0.1*(AV55/(AZ55*BO55))*AO59^2 -> 4.4423354e-05 | BB55: =AO56 -> 5.869036064 | BC55: =AR53+BA54*AR50 -> 0.0005782931638 | BD55: =BB55*AO57/(AO53*AO54) -> 0.01093175683 | BE55: =BB55*AO58/(AO53*AO54) -> 0.01093175683 | BF55: =-6*AO53*(0.25-0.5*BC55/(AO53*AR52)) -> -0.2104026283 | BG55: =-6*AO53*(BD55*(0.5*AO53-AO55)-BE55*(0.5*AO53-AO55)-(BD55+BE55)*AO53*BC55/(AO53*AR52)) -> 0.0004690828622 | BH55: =6*AO53*((BD55*AO55-BE55*(AO53-AO55))*(0.5*AO53-AO55)-(BD55*AO55+BE55*(AO53-AO55))*BC55/AR52) -> -0.0001012489445 | BI55: -0.01428733913 | BJ55: 0.0007583035156 | BK55: 1.153633677 | BL55: 1.016696636 | BM55: =AZ55/AO53 -> 1.253870172 | BN55: =0.5*BM55*(0.5-BM55/3)+BD55*(0.5-AO55/AO53)*(BM55-AO55/AO53)/BM55+BE55*(0.5-AO55/AO53)*(1-AO55/AO53-BM55)/BM55 -> 0.0527812422 | BO55: =IF(BL55*SQRT(4*ABS(BI55)/3)-BF55/3<=AO53,AO52*(1-AO51*AV55/AO50),AO52*(1-AO51*AV55/AO50-(1-AO51)*BV55/AO50)) -> 34025.25579 | BP55: =(1+BD55+BE55)*AO53*AO54 -> 0.1839354325 | BQ55: =0.5*(AO53-AO55)*(BE55-BD55)*AO53*AO54 -> 0 | BR55: =AO54*AO53^3/12+(0.5*AO53-AO55)^2*(BD55+BE55)*AO54*AO53 -> 0.0004958385811 | BS55: 0 | BT55: 0.0004958385811 | BU55: =AR52/BP55+(BC55+BS55*AR52)*(0.5*AO53+BS55)/BT55 -> 0.2632284453 | BV55: =AR52/BP55+(BC55+BS55*AR52)*(-0.5*AO53+BS55)/BT55 -> 0.05329566987 | BW55: =AR52*BT55/((BC55+AR52*BS55)*BP55)+(0.5*AO53+BS55) -> 0.225696631 | BZ55: I | CA55: 0 | CB55: 0.001
AN56: a | AO56: =AO49/AO52 -> 5.869036064 | AQ56: ec,min | AR56: =1000*AW59/BO59 -> 0.001566356185 | AS56: o/oo | AT56: =BC56-AR50*BA56 -> 0.000577 | AU56: =BA56/BA55 -> 1 | AV56: =IF(BL56*SQRT(4*ABS(BI56)/3)-BF56/3<=AO53,BC56/(BN56*AO54*AO53^2),BU56) -> 0.2632284453 | AW56: =IF(BL56*SQRT(4*ABS(BI56)/3)-BF56/3<=AO53,0,BV56) -> 0.05329566987 | AX56: =BB56*(AZ56-AO55)*AV56/AZ56 -> 1.271096565 | AY56: =BB56*(AO53-AO55-AZ56)*AV56/AZ56 -> -0.5865948818 | AZ56: =IF(BL56*SQRT(4*ABS(BI56)/3)-BF56/3<=AO53,BL56*SQRT(4*ABS(BI56)/3)-BF56/3,BW56) -> 0.225696631 | BA56: =0.1*(AV56/(AZ56*BO56))*AO59^2 -> 4.4423354e-05 | BB56: =AO56 -> 5.869036064 | BC56: =AR53+BA55*AR50 -> 0.0005782931638 | BD56: =BB56*AO57/(AO53*AO54) -> 0.01093175683 | BE56: =BB56*AO58/(AO53*AO54) -> 0.01093175683 | BF56: =-6*AO53*(0.25-0.5*BC56/(AO53*AR52)) -> -0.2104026283 | BG56: =-6*AO53*(BD56*(0.5*AO53-AO55)-BE56*(0.5*AO53-AO55)-(BD56+BE56)*AO53*BC56/(AO53*AR52)) -> 0.0004690828622 | BH56: =6*AO53*((BD56*AO55-BE56*(AO53-AO55))*(0.5*AO53-AO55)-(BD56*AO55+BE56*(AO53-AO55))*BC56/AR52) -> -0.0001012489445 | BI56: -0.01428733913 | BJ56: 0.0007583035156 | BK56: 1.153633677 | BL56: 1.016696636 | BM56: =AZ56/AO53 -> 1.253870172 | BN56: =0.5*BM56*(0.5-BM56/3)+BD56*(0.5-AO55/AO53)*(BM56-AO55/AO53)/BM56+BE56*(0.5-AO55/AO53)*(1-AO55/AO53-BM56)/BM56 -> 0.0527812422 | BO56: =IF(BL56*SQRT(4*ABS(BI56)/3)-BF56/3<=AO53,AO52*(1-AO51*AV56/AO50),AO52*(1-AO51*AV56/AO50-(1-AO51)*BV56/AO50)) -> 34025.25579 | BP56: =(1+BD56+BE56)*AO53*AO54 -> 0.1839354325 | BQ56: =0.5*(AO53-AO55)*(BE56-BD56)*AO53*AO54 -> 0 | BR56: =AO54*AO53^3/12+(0.5*AO53-AO55)^2*(BD56+BE56)*AO54*AO53 -> 0.0004958385811 | BS56: 0 | BT56: 0.0004958385811 | BU56: =AR52/BP56+(BC56+BS56*AR52)*(0.5*AO53+BS56)/BT56 -> 0.2632284453 | BV56: =AR52/BP56+(BC56+BS56*AR52)*(-0.5*AO53+BS56)/BT56 -> 0.05329566987 | BW56: =AR52*BT56/((BC56+AR52*BS56)*BP56)+(0.5*AO53+BS56) -> 0.225696631 | BZ56: INGEN
AN57: Ac | AO57: =$AP$40/1000000 -> 0.000335270768 | AP57: m2 | AQ57: sa,c | AR57: =AX59 -> 1.271096565 | AS57: MPa | AT57: =BC57-AR50*BA57 -> 0.000577 | AU57: =BA57/BA56 -> 1 | AV57: =IF(BL57*SQRT(4*ABS(BI57)/3)-BF57/3<=AO53,BC57/(BN57*AO54*AO53^2),BU57) -> 0.2632284453 | AW57: =IF(BL57*SQRT(4*ABS(BI57)/3)-BF57/3<=AO53,0,BV57) -> 0.05329566987 | AX57: =BB57*(AZ57-AO55)*AV57/AZ57 -> 1.271096565 | AY57: =BB57*(AO53-AO55-AZ57)*AV57/AZ57 -> -0.5865948818 | AZ57: =IF(BL57*SQRT(4*ABS(BI57)/3)-BF57/3<=AO53,BL57*SQRT(4*ABS(BI57)/3)-BF57/3,BW57) -> 0.225696631 | BA57: =0.1*(AV57/(AZ57*BO57))*AO59^2 -> 4.4423354e-05 | BB57: =AO56 -> 5.869036064 | BC57: =AR53+BA56*AR50 -> 0.0005782931638 | BD57: =BB57*AO57/(AO53*AO54) -> 0.01093175683 | BE57: =BB57*AO58/(AO53*AO54) -> 0.01093175683 | BF57: =-6*AO53*(0.25-0.5*BC57/(AO53*AR52)) -> -0.2104026283 | BG57: =-6*AO53*(BD57*(0.5*AO53-AO55)-BE57*(0.5*AO53-AO55)-(BD57+BE57)*AO53*BC57/(AO53*AR52)) -> 0.0004690828622 | BH57: =6*AO53*((BD57*AO55-BE57*(AO53-AO55))*(0.5*AO53-AO55)-(BD57*AO55+BE57*(AO53-AO55))*BC57/AR52) -> -0.0001012489445 | BI57: -0.01428733913 | BJ57: 0.0007583035156 | BK57: 1.153633677 | BL57: 1.016696636 | BM57: =AZ57/AO53 -> 1.253870172 | BN57: =0.5*BM57*(0.5-BM57/3)+BD57*(0.5-AO55/AO53)*(BM57-AO55/AO53)/BM57+BE57*(0.5-AO55/AO53)*(1-AO55/AO53-BM57)/BM57 -> 0.0527812422 | BO57: =IF(BL57*SQRT(4*ABS(BI57)/3)-BF57/3<=AO53,AO52*(1-AO51*AV57/AO50),AO52*(1-AO51*AV57/AO50-(1-AO51)*BV57/AO50)) -> 34025.25579 | BP57: =(1+BD57+BE57)*AO53*AO54 -> 0.1839354325 | BQ57: =0.5*(AO53-AO55)*(BE57-BD57)*AO53*AO54 -> 0 | BR57: =AO54*AO53^3/12+(0.5*AO53-AO55)^2*(BD57+BE57)*AO54*AO53 -> 0.0004958385811 | BS57: 0 | BT57: 0.0004958385811 | BU57: =AR52/BP57+(BC57+BS57*AR52)*(0.5*AO53+BS57)/BT57 -> 0.2632284453 | BV57: =AR52/BP57+(BC57+BS57*AR52)*(-0.5*AO53+BS57)/BT57 -> 0.05329566987 | BW57: =AR52*BT57/((BC57+AR52*BS57)*BP57)+(0.5*AO53+BS57) -> 0.225696631
AN58: At | AO58: =$AP$41/1000000 -> 0.000335270768 | AP58: m2 | AQ58: sa,t | AR58: =AY59 -> -0.5865948818 | AS58: MPa | AT58: =BC58-AR50*BA58 -> 0.000577 | AU58: =BA58/BA57 -> 1 | AV58: =IF(BL58*SQRT(4*ABS(BI58)/3)-BF58/3<=AO53,BC58/(BN58*AO54*AO53^2),BU58) -> 0.2632284453 | AW58: =IF(BL58*SQRT(4*ABS(BI58)/3)-BF58/3<=AO53,0,BV58) -> 0.05329566987 | AX58: =BB58*(AZ58-AO55)*AV58/AZ58 -> 1.271096565 | AY58: =BB58*(AO53-AO55-AZ58)*AV58/AZ58 -> -0.5865948818 | AZ58: =IF(BL58*SQRT(4*ABS(BI58)/3)-BF58/3<=AO53,BL58*SQRT(4*ABS(BI58)/3)-BF58/3,BW58) -> 0.225696631 | BA58: =0.1*(AV58/(AZ58*BO58))*AO59^2 -> 4.4423354e-05 | BB58: =AO56 -> 5.869036064 | BC58: =AR53+BA57*AR50 -> 0.0005782931638 | BD58: =BB58*AO57/(AO53*AO54) -> 0.01093175683 | BE58: =BB58*AO58/(AO53*AO54) -> 0.01093175683 | BF58: =-6*AO53*(0.25-0.5*BC58/(AO53*AR52)) -> -0.2104026283 | BG58: =-6*AO53*(BD58*(0.5*AO53-AO55)-BE58*(0.5*AO53-AO55)-(BD58+BE58)*AO53*BC58/(AO53*AR52)) -> 0.0004690828622 | BH58: =6*AO53*((BD58*AO55-BE58*(AO53-AO55))*(0.5*AO53-AO55)-(BD58*AO55+BE58*(AO53-AO55))*BC58/AR52) -> -0.0001012489445 | BI58: -0.01428733913 | BJ58: 0.0007583035156 | BK58: 1.153633677 | BL58: 1.016696636 | BM58: =AZ58/AO53 -> 1.253870172 | BN58: =0.5*BM58*(0.5-BM58/3)+BD58*(0.5-AO55/AO53)*(BM58-AO55/AO53)/BM58+BE58*(0.5-AO55/AO53)*(1-AO55/AO53-BM58)/BM58 -> 0.0527812422 | BO58: =IF(BL58*SQRT(4*ABS(BI58)/3)-BF58/3<=AO53,AO52*(1-AO51*AV58/AO50),AO52*(1-AO51*AV58/AO50-(1-AO51)*BV58/AO50)) -> 34025.25579 | BP58: =(1+BD58+BE58)*AO53*AO54 -> 0.1839354325 | BQ58: =0.5*(AO53-AO55)*(BE58-BD58)*AO53*AO54 -> 0 | BR58: =AO54*AO53^3/12+(0.5*AO53-AO55)^2*(BD58+BE58)*AO54*AO53 -> 0.0004958385811 | BS58: 0 | BT58: 0.0004958385811 | BU58: =AR52/BP58+(BC58+BS58*AR52)*(0.5*AO53+BS58)/BT58 -> 0.2632284453 | BV58: =AR52/BP58+(BC58+BS58*AR52)*(-0.5*AO53+BS58)/BT58 -> 0.05329566987 | BW58: =AR52*BT58/((BC58+AR52*BS58)*BP58)+(0.5*AO53+BS58) -> 0.225696631
AN59: L | AO59: =$N$11/1000 -> 3.6 | AP59: m | AQ59: hc | AR59: =AZ59 -> 0.225696631 | AS59: m | AT59: =BC59-AR50*BA59 -> 0.000577 | AU59: =BA59/BA58 -> 1 | AV59: =IF(BL59*SQRT(4*ABS(BI59)/3)-BF59/3<=AO53,BC59/(BN59*AO54*AO53^2),BU59) -> 0.2632284453 | AW59: =IF(BL59*SQRT(4*ABS(BI59)/3)-BF59/3<=AO53,0,BV59) -> 0.05329566987 | AX59: =BB59*(AZ59-AO55)*AV59/AZ59 -> 1.271096565 | AY59: =BB59*(AO53-AO55-AZ59)*AV59/AZ59 -> -0.5865948818 | AZ59: =IF(BL59*SQRT(4*ABS(BI59)/3)-BF59/3<=AO53,BL59*SQRT(4*ABS(BI59)/3)-BF59/3,BW59) -> 0.225696631 | BA59: =0.1*(AV59/(AZ59*BO59))*AO59^2 -> 4.4423354e-05 | BB59: =AO56 -> 5.869036064 | BC59: =AR53+BA58*AR50 -> 0.0005782931638 | BD59: =BB59*AO57/(AO53*AO54) -> 0.01093175683 | BE59: =BB59*AO58/(AO53*AO54) -> 0.01093175683 | BF59: =-6*AO53*(0.25-0.5*BC59/(AO53*AR52)) -> -0.2104026283 | BG59: =-6*AO53*(BD59*(0.5*AO53-AO55)-BE59*(0.5*AO53-AO55)-(BD59+BE59)*AO53*BC59/(AO53*AR52)) -> 0.0004690828622 | BH59: =6*AO53*((BD59*AO55-BE59*(AO53-AO55))*(0.5*AO53-AO55)-(BD59*AO55+BE59*(AO53-AO55))*BC59/AR52) -> -0.0001012489445 | BI59: -0.01428733913 | BJ59: 0.0007583035156 | BK59: 1.153633677 | BL59: 1.016696636 | BM59: =AZ59/AO53 -> 1.253870172 | BN59: =0.5*BM59*(0.5-BM59/3)+BD59*(0.5-AO55/AO53)*(BM59-AO55/AO53)/BM59+BE59*(0.5-AO55/AO53)*(1-AO55/AO53-BM59)/BM59 -> 0.0527812422 | BO59: =IF(BL59*SQRT(4*ABS(BI59)/3)-BF59/3<=AO53,AO52*(1-AO51*AV59/AO50),AO52*(1-AO51*AV59/AO50-(1-AO51)*BV59/AO50)) -> 34025.25579 | BP59: =(1+BD59+BE59)*AO53*AO54 -> 0.1839354325 | BQ59: =0.5*(AO53-AO55)*(BE59-BD59)*AO53*AO54 -> 0 | BR59: =AO54*AO53^3/12+(0.5*AO53-AO55)^2*(BD59+BE59)*AO54*AO53 -> 0.0004958385811 | BS59: 0 | BT59: 0.0004958385811 | BU59: =AR52/BP59+(BC59+BS59*AR52)*(0.5*AO53+BS59)/BT59 -> 0.2632284453 | BV59: =AR52/BP59+(BC59+BS59*AR52)*(-0.5*AO53+BS59)/BT59 -> 0.05329566987 | BW59: =AR52*BT59/((BC59+AR52*BS59)*BP59)+(0.5*AO53+BS59) -> 0.225696631
AN60: gc | AO60: 1 | AQ60: Referencelast efter krybning | AT60: Mo | AV60: sc,max | AW60: sc,min | AX60: sc | AY60: st | AZ60: hc | BA60: u | BB60: a | BC60: Mt | BD60: a*fc | BE60: a*ft | BF60: B | BG60: C | BH60: D | BI60: p | BJ60: q | BK60: C' | BL60: y' | BM60: b | BN60: m | BO60: Ec | BP60: Atr | BQ60: Syt | BR60: Iyt | BS60: z | BT60: Io | BU60: sc | BV60: sm | BW60: hc
AN61: ga | AO61: 1 | AQ61: Kontrol | AR61: =IF(AND(BH32<10,ABS(1-AU73)>0.01),1,0) -> 0 | AT61: =BC61-AR64*BA61 -> 0.0008334539216 | AV61: =IF(BL61*SQRT(4*ABS(BI61)/3)-BF61/3<=AO67,BC61/(BN61*AO68*AO67^2),BU61) -> 0.2977885895 | AW61: =IF(BL61*SQRT(4*ABS(BI61)/3)-BF61/3<=AO67,0,BV61) -> 0.005270430136 | AX61: =BB61*(AZ61-AO69)*AV61/AZ61 -> 4.203330428 | AY61: =BB61*(AO67-AO69-AZ61)*AV61/AZ61 -> -1.268927831 | AZ61: =IF(BL61*SQRT(4*ABS(BI61)/3)-BF61/3<=AO67,BL61*SQRT(4*ABS(BI61)/3)-BF61/3,BW61) -> 0.1832431403 | BA61: =0.1*(AV61/(AZ61*BO61))*AO73^2 -> 0.000190177926 | BB61: =AO70 -> 18.05674111 | BC61: =IF(AR67>0,AR67+AO67*AR64/20,0)+0.000000000001 -> 0.000838990001 | BD61: =BB61*AO71/(AO67*AO68) -> 0.03363276366 | BE61: =BB61*AO72/(AO67*AO68) -> 0.03363276366 | BF61: =-6*AO67*(0.25-0.5*BC61/(AO67*AR66)) -> -0.1835358982 | BG61: =-6*AO67*(BD61*(0.5*AO67-AO69)-BE61*(0.5*AO67-AO69)-(BD61+BE61)*AO67*BC61/(AO67*AR66)) -> 0.002093779225 | BH61: =6*AO67*((BD61*AO69-BE61*(AO67-AO69))*(0.5*AO67-AO69)-(BD61*AO69+BE61*(AO67-AO69))*BC61/AR66) -> -0.000370057054 | BI61: =(3*BG61-BF61^2)/3 -> -0.009134696086 | BJ61: =(9*BG61*BF61-27*BH61-2*BF61^3)/27 -> 0.0006999243486 | BK61: =0.5*BJ61*(3/ABS(BI61))^(3/2) -> 2.082868413 | BL61: =IF(BI61>0,SINH(ASINH(BK61)/3),IF(BK61>=1,COSH(ACOSH(BK61)/3),IF(BK61<=-1,-COSH(ACOSH(ABS(BK61))/3),COS(ACOS(BK61)/3)))) -> 1.105080484 | BM61: =AZ61/AO67 -> 1.018017446 | BN61: =0.5*BM61*(0.5-BM61/3)+BD61*(0.5-AO69/AO67)*(BM61-AO69/AO67)/BM61+BE61*(0.5-AO69/AO67)*(1-AO69/AO67-BM61)/BM61 -> 0.08687615627 | BO61: =IF(BL61*SQRT(4*ABS(BI61)/3)-BF61/3<=AO67,AO66*(1-AO65*AV61/AO64),AO66*(1-AO65*AV61/AO64-(1-AO65)*BV61/AO64)) -> 11074.5279 | BP61: =(1+BD61+BE61)*AO67*AO68 -> 0.1921077949 | BQ61: =0.5*(AO67-AO69)*(BE61-BD61)*AO67*AO68 -> 0 | BR61: =AO68*AO67^3/12+(0.5*AO67-AO69)^2*(BD61+BE61)*AO68*AO67 -> 0.0005162694873 | BS61: =BQ61/BP61 -> 0 | BT61: =BR61-BP61*BS61^2 -> 0.0005162694873 | BU61: =AR66/BP61+(BC61+BS61*AR66)*(0.5*AO67+BS61)/BT61 -> 0.2977885895 | BV61: =AR66/BP61+(BC61+BS61*AR66)*(-0.5*AO67+BS61)/BT61 -> 0.005270430136 | BW61: =AR66*BT61/((BC61+AR66*BS61)*BP61)+(0.5*AO67+BS61) -> 0.1832431403
AN62: fck | AO62: =$N$7 -> 35 | AP62: MPa | AQ62: feff | AR62: =$Q$12 -> 2.076611033 | AT62: =BC62-AR64*BA62 -> 0.0005786872954 | AU62: =BA62/BA61 -> 0.6952183469 | AV62: =IF(BL62*SQRT(4*ABS(BI62)/3)-BF62/3<=AO67,BC62/(BN62*AO68*AO67^2),BU62) -> 0.2530816031 | AW62: =IF(BL62*SQRT(4*ABS(BI62)/3)-BF62/3<=AO67,0,BV62) -> 0.04997741653 | AX62: =BB62*(AZ62-AO69)*AV62/AZ62 -> 3.754851273 | AY62: =BB62*(AO67-AO69-AZ62)*AV62/AZ62 -> -1.717406986 | AZ62: =IF(BL62*SQRT(4*ABS(BI62)/3)-BF62/3<=AO67,BL62*SQRT(4*ABS(BI62)/3)-BF62/3,BW62) -> 0.2242922183 | BA62: =0.1*(AV62/(AZ62*BO62))*AO73^2 -> 0.0001322151833 | BB62: =AO70 -> 18.05674111 | BC62: =AR67+BA61*AR64 -> 0.0005825360794 | BD62: =BB62*AO71/(AO67*AO68) -> 0.03363276366 | BE62: =BB62*AO72/(AO67*AO68) -> 0.03363276366 | BF62: =-6*AO67*(0.25-0.5*BC62/(AO67*AR66)) -> -0.2099653645 | BG62: =-6*AO67*(BD62*(0.5*AO67-AO69)-BE62*(0.5*AO67-AO69)-(BD62+BE62)*AO67*BC62/(AO67*AR66)) -> 0.001453774108 | BH62: =6*AO67*((BD62*AO69-BE62*(AO67-AO69))*(0.5*AO67-AO69)-(BD62*AO69+BE62*(AO67-AO69))*BC62/AR66) -> -0.0003124565935 | BI62: -0.01324137733 | BJ62: 0.0008963698185 | BK62: 1.528408236 | BL62: 1.054656368 | BM62: =AZ62/AO67 -> 1.24606788 | BN62: =0.5*BM62*(0.5-BM62/3)+BD62*(0.5-AO69/AO67)*(BM62-AO69/AO67)/BM62+BE62*(0.5-AO69/AO67)*(1-AO69/AO67-BM62)/BM62 -> 0.05690140562 | BO62: =IF(BL62*SQRT(4*ABS(BI62)/3)-BF62/3<=AO67,AO66*(1-AO65*AV62/AO64),AO66*(1-AO65*AV62/AO64-(1-AO65)*BV62/AO64)) -> 11060.37981 | BP62: =(1+BD62+BE62)*AO67*AO68 -> 0.1921077949 | BQ62: =0.5*(AO67-AO69)*(BE62-BD62)*AO67*AO68 -> 0 | BR62: =AO68*AO67^3/12+(0.5*AO67-AO69)^2*(BD62+BE62)*AO68*AO67 -> 0.0005162694873 | BS62: =BQ62/BP62 -> 0 | BT62: =BR62-BP62*BS62^2 -> 0.0005162694873 | BU62: =AR66/BP62+(BC62+BS62*AR66)*(0.5*AO67+BS62)/BT62 -> 0.2530816031 | BV62: =AR66/BP62+(BC62+BS62*AR66)*(-0.5*AO67+BS62)/BT62 -> 0.04997741653 | BW62: =AR66*BT62/((BC62+AR66*BS62)*BP62)+(0.5*AO67+BS62) -> 0.2242922183
AN63: Es | AO63: 200000 | AP63: MPa | AQ63: Max_N | AR63: =(AO67*AO68+AO70*(AO71+AO72))*AO64/(1+(12*(AO64/AO66)/PI()^2)*(AO73/AO67)^2) -> 2.650488091 | AT63: =BC63-AR64*BA63 -> 0.0005770111156 | AU63: =BA63/BA62 -> 0.9971119266 | AV63: =IF(BL63*SQRT(4*ABS(BI63)/3)-BF63/3<=AO67,BC63/(BN63*AO68*AO67^2),BU63) -> 0.2527874611 | AW63: =IF(BL63*SQRT(4*ABS(BI63)/3)-BF63/3<=AO67,0,BV63) -> 0.05027155862 | AX63: =BB63*(AZ63-AO69)*AV63/AZ63 -> 3.75190058 | AY63: =BB63*(AO67-AO69-AZ63)*AV63/AZ63 -> -1.720357679 | AZ63: =IF(BL63*SQRT(4*ABS(BI63)/3)-BF63/3<=AO67,BL63*SQRT(4*ABS(BI63)/3)-BF63/3,BW63) -> 0.224682321 | BA63: =0.1*(AV63/(AZ63*BO63))*AO73^2 -> 0.0001318333362 | BB63: =AO70 -> 18.05674111 | BC63: =AR67+BA62*AR64 -> 0.000580848784 | BD63: =BB63*AO71/(AO67*AO68) -> 0.03363276366 | BE63: =BB63*AO72/(AO67*AO68) -> 0.03363276366 | BF63: =-6*AO67*(0.25-0.5*BC63/(AO67*AR66)) -> -0.2101392528 | BG63: =-6*AO67*(BD63*(0.5*AO67-AO69)-BE63*(0.5*AO67-AO69)-(BD63+BE63)*AO67*BC63/(AO67*AR66)) -> 0.001449563302 | BH63: =6*AO67*((BD63*AO69-BE63*(AO67-AO69))*(0.5*AO67-AO69)-(BD63*AO69+BE63*(AO67-AO69))*BC63/AR66) -> -0.000312077621 | BI63: -0.01326993855 | BJ63: 0.0008979064868 | BK63: 1.526088178 | BL63: 1.054432094 | BM63: =AZ63/AO67 -> 1.248235116 | BN63: =0.5*BM63*(0.5-BM63/3)+BD63*(0.5-AO69/AO67)*(BM63-AO69/AO67)/BM63+BE63*(0.5-AO69/AO67)*(1-AO69/AO67-BM63)/BM63 -> 0.0565350253 | BO63: =IF(BL63*SQRT(4*ABS(BI63)/3)-BF63/3<=AO67,AO66*(1-AO65*AV63/AO64),AO66*(1-AO65*AV63/AO64-(1-AO65)*BV63/AO64)) -> 11060.28672 | BP63: =(1+BD63+BE63)*AO67*AO68 -> 0.1921077949 | BQ63: =0.5*(AO67-AO69)*(BE63-BD63)*AO67*AO68 -> 0 | BR63: =AO68*AO67^3/12+(0.5*AO67-AO69)^2*(BD63+BE63)*AO68*AO67 -> 0.0005162694873 | BS63: 0 | BT63: 0.0005162694873 | BU63: =AR66/BP63+(BC63+BS63*AR66)*(0.5*AO67+BS63)/BT63 -> 0.2527874611 | BV63: =AR66/BP63+(BC63+BS63*AR66)*(-0.5*AO67+BS63)/BT63 -> 0.05027155862 | BW63: =AR66*BT63/((BC63+AR66*BS63)*BP63)+(0.5*AO67+BS63) -> 0.224682321
AN64: fcd | AO64: =AO62/AO60 -> 35 | AP64: MPa | AQ64: Nd | AR64: =INDEX(BZ47:CB56,BH32,2)/1000+0.00001 -> 0.02911 | AS64: MN | AT64: =BC64-AR64*BA64 -> 0.0005770000732 | AU64: 0.9999809187 | AV64: =IF(BL64*SQRT(4*ABS(BI64)/3)-BF64/3<=AO67,BC64/(BN64*AO68*AO67^2),BU64) -> 0.2527855233 | AW64: =IF(BL64*SQRT(4*ABS(BI64)/3)-BF64/3<=AO67,0,BV64) -> 0.05027349637 | AX64: =BB64*(AZ64-AO69)*AV64/AZ64 -> 3.751881141 | AY64: =BB64*(AO67-AO69-AZ64)*AV64/AZ64 -> -1.720377118 | AZ64: =IF(BL64*SQRT(4*ABS(BI64)/3)-BF64/3<=AO67,BL64*SQRT(4*ABS(BI64)/3)-BF64/3,BW64) -> 0.2246848984 | BA64: =0.1*(AV64/(AZ64*BO64))*AO73^2 -> 0.0001318308206 | BB64: =AO70 -> 18.05674111 | BC64: =AR67+BA63*AR64 -> 0.0005808376684 | BD64: =BB64*AO71/(AO67*AO68) -> 0.03363276366 | BE64: =BB64*AO72/(AO67*AO68) -> 0.03363276366 | BF64: =-6*AO67*(0.25-0.5*BC64/(AO67*AR66)) -> -0.2101403983 | BG64: =-6*AO67*(BD64*(0.5*AO67-AO69)-BE64*(0.5*AO67-AO69)-(BD64+BE64)*AO67*BC64/(AO67*AR66)) -> 0.001449535562 | BH64: =6*AO67*((BD64*AO69-BE64*(AO67-AO69))*(0.5*AO67-AO69)-(BD64*AO69+BE64*(AO67-AO69))*BC64/AR66) -> -0.0003120751244 | BI64: -0.01327012677 | BJ64: 0.0008979166211 | BK64: 1.526072933 | BL64: 1.05443062 | BM64: =AZ64/AO67 -> 1.248249436 | BN64: =0.5*BM64*(0.5-BM64/3)+BD64*(0.5-AO69/AO67)*(BM64-AO69/AO67)/BM64+BE64*(0.5-AO69/AO67)*(1-AO69/AO67-BM64)/BM64 -> 0.05653259948 | BO64: =IF(BL64*SQRT(4*ABS(BI64)/3)-BF64/3<=AO67,AO66*(1-AO65*AV64/AO64),AO66*(1-AO65*AV64/AO64-(1-AO65)*BV64/AO64)) -> 11060.28611 | BP64: =(1+BD64+BE64)*AO67*AO68 -> 0.1921077949 | BQ64: =0.5*(AO67-AO69)*(BE64-BD64)*AO67*AO68 -> 0 | BR64: =AO68*AO67^3/12+(0.5*AO67-AO69)^2*(BD64+BE64)*AO68*AO67 -> 0.0005162694873 | BS64: 0 | BT64: 0.0005162694873 | BU64: =AR66/BP64+(BC64+BS64*AR66)*(0.5*AO67+BS64)/BT64 -> 0.2527855233 | BV64: =AR66/BP64+(BC64+BS64*AR66)*(-0.5*AO67+BS64)/BT64 -> 0.05027349637 | BW64: =AR66*BT64/((BC64+AR66*BS64)*BP64)+(0.5*AO67+BS64) -> 0.2246848984
AN65: k | AO65: 0 | AQ65: Nf | AR65: 0 | AS65: MN | AT65: =BC65-AR64*BA65 -> 0.0005770000005 | AU65: 0.9999998743 | AV65: =IF(BL65*SQRT(4*ABS(BI65)/3)-BF65/3<=AO67,BC65/(BN65*AO68*AO67^2),BU65) -> 0.2527855105 | AW65: =IF(BL65*SQRT(4*ABS(BI65)/3)-BF65/3<=AO67,0,BV65) -> 0.05027350914 | AX65: =BB65*(AZ65-AO69)*AV65/AZ65 -> 3.751881013 | AY65: =BB65*(AO67-AO69-AZ65)*AV65/AZ65 -> -1.720377246 | AZ65: =IF(BL65*SQRT(4*ABS(BI65)/3)-BF65/3<=AO67,BL65*SQRT(4*ABS(BI65)/3)-BF65/3,BW65) -> 0.2246849154 | BA65: =0.1*(AV65/(AZ65*BO65))*AO73^2 -> 0.000131830804 | BB65: =AO70 -> 18.05674111 | BC65: =AR67+BA64*AR64 -> 0.0005808375952 | BD65: =BB65*AO71/(AO67*AO68) -> 0.03363276366 | BE65: =BB65*AO72/(AO67*AO68) -> 0.03363276366 | BF65: =-6*AO67*(0.25-0.5*BC65/(AO67*AR66)) -> -0.2101404059 | BG65: =-6*AO67*(BD65*(0.5*AO67-AO69)-BE65*(0.5*AO67-AO69)-(BD65+BE65)*AO67*BC65/(AO67*AR66)) -> 0.00144953538 | BH65: =6*AO67*((BD65*AO69-BE65*(AO67-AO69))*(0.5*AO67-AO69)-(BD65*AO69+BE65*(AO67-AO69))*BC65/AR66) -> -0.000312075108 | BI65: -0.01327012801 | BJ65: 0.0008979166879 | BK65: 1.526072832 | BL65: 1.05443061 | BM65: =AZ65/AO67 -> 1.24824953 | BN65: =0.5*BM65*(0.5-BM65/3)+BD65*(0.5-AO69/AO67)*(BM65-AO69/AO67)/BM65+BE65*(0.5-AO69/AO67)*(1-AO69/AO67-BM65)/BM65 -> 0.0565325835 | BO65: =IF(BL65*SQRT(4*ABS(BI65)/3)-BF65/3<=AO67,AO66*(1-AO65*AV65/AO64),AO66*(1-AO65*AV65/AO64-(1-AO65)*BV65/AO64)) -> 11060.28611 | BP65: =(1+BD65+BE65)*AO67*AO68 -> 0.1921077949 | BQ65: =0.5*(AO67-AO69)*(BE65-BD65)*AO67*AO68 -> 0 | BR65: =AO68*AO67^3/12+(0.5*AO67-AO69)^2*(BD65+BE65)*AO68*AO67 -> 0.0005162694873 | BS65: 0 | BT65: 0.0005162694873 | BU65: =AR66/BP65+(BC65+BS65*AR66)*(0.5*AO67+BS65)/BT65 -> 0.2527855105 | BV65: =AR66/BP65+(BC65+BS65*AR66)*(-0.5*AO67+BS65)/BT65 -> 0.05027350914 | BW65: =AR66*BT65/((BC65+AR66*BS65)*BP65)+(0.5*AO67+BS65) -> 0.2246849154
AN66: Ecm | AO66: =(1000*22*((AO64+8)/10)^0.3)/(1+$Q$12*$Q$13) -> 11076.1958 | AP66: MPa | AQ66: N | AR66: =AR65+AR64 -> 0.02911 | AS66: MN | AT66: =BC66-AR64*BA66 -> 0.000577 | AU66: 0.9999999992 | AV66: =IF(BL66*SQRT(4*ABS(BI66)/3)-BF66/3<=AO67,BC66/(BN66*AO68*AO67^2),BU66) -> 0.2527855105 | AW66: =IF(BL66*SQRT(4*ABS(BI66)/3)-BF66/3<=AO67,0,BV66) -> 0.05027350922 | AX66: =BB66*(AZ66-AO69)*AV66/AZ66 -> 3.751881012 | AY66: =BB66*(AO67-AO69-AZ66)*AV66/AZ66 -> -1.720377247 | AZ66: =IF(BL66*SQRT(4*ABS(BI66)/3)-BF66/3<=AO67,BL66*SQRT(4*ABS(BI66)/3)-BF66/3,BW66) -> 0.2246849155 | BA66: =0.1*(AV66/(AZ66*BO66))*AO73^2 -> 0.0001318308039 | BB66: =AO70 -> 18.05674111 | BC66: =AR67+BA65*AR64 -> 0.0005808375947 | BD66: =BB66*AO71/(AO67*AO68) -> 0.03363276366 | BE66: =BB66*AO72/(AO67*AO68) -> 0.03363276366 | BF66: =-6*AO67*(0.25-0.5*BC66/(AO67*AR66)) -> -0.2101404059 | BG66: =-6*AO67*(BD66*(0.5*AO67-AO69)-BE66*(0.5*AO67-AO69)-(BD66+BE66)*AO67*BC66/(AO67*AR66)) -> 0.001449535378 | BH66: =6*AO67*((BD66*AO69-BE66*(AO67-AO69))*(0.5*AO67-AO69)-(BD66*AO69+BE66*(AO67-AO69))*BC66/AR66) -> -0.0003120751078 | BI66: -0.01327012802 | BJ66: 0.0008979166883 | BK66: 1.526072832 | BL66: 1.05443061 | BM66: =AZ66/AO67 -> 1.24824953 | BN66: =0.5*BM66*(0.5-BM66/3)+BD66*(0.5-AO69/AO67)*(BM66-AO69/AO67)/BM66+BE66*(0.5-AO69/AO67)*(1-AO69/AO67-BM66)/BM66 -> 0.05653258339 | BO66: =IF(BL66*SQRT(4*ABS(BI66)/3)-BF66/3<=AO67,AO66*(1-AO65*AV66/AO64),AO66*(1-AO65*AV66/AO64-(1-AO65)*BV66/AO64)) -> 11060.28611 | BP66: =(1+BD66+BE66)*AO67*AO68 -> 0.1921077949 | BQ66: =0.5*(AO67-AO69)*(BE66-BD66)*AO67*AO68 -> 0 | BR66: =AO68*AO67^3/12+(0.5*AO67-AO69)^2*(BD66+BE66)*AO68*AO67 -> 0.0005162694873 | BS66: 0 | BT66: 0.0005162694873 | BU66: =AR66/BP66+(BC66+BS66*AR66)*(0.5*AO67+BS66)/BT66 -> 0.2527855105 | BV66: =AR66/BP66+(BC66+BS66*AR66)*(-0.5*AO67+BS66)/BT66 -> 0.05027350922 | BW66: =AR66*BT66/((BC66+AR66*BS66)*BP66)+(0.5*AO67+BS66) -> 0.2246849155
AN67: h | AO67: =$N$12/1000 -> 0.18 | AP67: m | AQ67: Mo | AR67: =INDEX(BZ47:CB56,BH32,3)/1000 -> 0.000577 | AS67: MNm | AT67: =BC67-AR64*BA67 -> 0.000577 | AU67: 1 | AV67: =IF(BL67*SQRT(4*ABS(BI67)/3)-BF67/3<=AO67,BC67/(BN67*AO68*AO67^2),BU67) -> 0.2527855105 | AW67: =IF(BL67*SQRT(4*ABS(BI67)/3)-BF67/3<=AO67,0,BV67) -> 0.05027350922 | AX67: =BB67*(AZ67-AO69)*AV67/AZ67 -> 3.751881012 | AY67: =BB67*(AO67-AO69-AZ67)*AV67/AZ67 -> -1.720377247 | AZ67: =IF(BL67*SQRT(4*ABS(BI67)/3)-BF67/3<=AO67,BL67*SQRT(4*ABS(BI67)/3)-BF67/3,BW67) -> 0.2246849155 | BA67: =0.1*(AV67/(AZ67*BO67))*AO73^2 -> 0.0001318308039 | BB67: =AO70 -> 18.05674111 | BC67: =AR67+BA66*AR64 -> 0.0005808375947 | BD67: =BB67*AO71/(AO67*AO68) -> 0.03363276366 | BE67: =BB67*AO72/(AO67*AO68) -> 0.03363276366 | BF67: =-6*AO67*(0.25-0.5*BC67/(AO67*AR66)) -> -0.2101404059 | BG67: =-6*AO67*(BD67*(0.5*AO67-AO69)-BE67*(0.5*AO67-AO69)-(BD67+BE67)*AO67*BC67/(AO67*AR66)) -> 0.001449535378 | BH67: =6*AO67*((BD67*AO69-BE67*(AO67-AO69))*(0.5*AO67-AO69)-(BD67*AO69+BE67*(AO67-AO69))*BC67/AR66) -> -0.0003120751078 | BI67: -0.01327012802 | BJ67: 0.0008979166883 | BK67: 1.526072832 | BL67: 1.05443061 | BM67: =AZ67/AO67 -> 1.24824953 | BN67: =0.5*BM67*(0.5-BM67/3)+BD67*(0.5-AO69/AO67)*(BM67-AO69/AO67)/BM67+BE67*(0.5-AO69/AO67)*(1-AO69/AO67-BM67)/BM67 -> 0.05653258339 | BO67: =IF(BL67*SQRT(4*ABS(BI67)/3)-BF67/3<=AO67,AO66*(1-AO65*AV67/AO64),AO66*(1-AO65*AV67/AO64-(1-AO65)*BV67/AO64)) -> 11060.28611 | BP67: =(1+BD67+BE67)*AO67*AO68 -> 0.1921077949 | BQ67: =0.5*(AO67-AO69)*(BE67-BD67)*AO67*AO68 -> 0 | BR67: =AO68*AO67^3/12+(0.5*AO67-AO69)^2*(BD67+BE67)*AO68*AO67 -> 0.0005162694873 | BS67: 0 | BT67: 0.0005162694873 | BU67: =AR66/BP67+(BC67+BS67*AR66)*(0.5*AO67+BS67)/BT67 -> 0.2527855105 | BV67: =AR66/BP67+(BC67+BS67*AR66)*(-0.5*AO67+BS67)/BT67 -> 0.05027350922 | BW67: =AR66*BT67/((BC67+AR66*BS67)*BP67)+(0.5*AO67+BS67) -> 0.2246849155
AN68: b | AO68: =$N$13/1000 -> 1 | AP68: m | AQ68: u | AR68: =BA73 -> 0.0001318308039 | AS68: =AR68-AR54 -> 8.740744992e-05 | AT68: =BC68-AR64*BA68 -> 0.000577 | AU68: 1 | AV68: =IF(BL68*SQRT(4*ABS(BI68)/3)-BF68/3<=AO67,BC68/(BN68*AO68*AO67^2),BU68) -> 0.2527855105 | AW68: =IF(BL68*SQRT(4*ABS(BI68)/3)-BF68/3<=AO67,0,BV68) -> 0.05027350922 | AX68: =BB68*(AZ68-AO69)*AV68/AZ68 -> 3.751881012 | AY68: =BB68*(AO67-AO69-AZ68)*AV68/AZ68 -> -1.720377247 | AZ68: =IF(BL68*SQRT(4*ABS(BI68)/3)-BF68/3<=AO67,BL68*SQRT(4*ABS(BI68)/3)-BF68/3,BW68) -> 0.2246849155 | BA68: =0.1*(AV68/(AZ68*BO68))*AO73^2 -> 0.0001318308039 | BB68: =AO70 -> 18.05674111 | BC68: =AR67+BA67*AR64 -> 0.0005808375947 | BD68: =BB68*AO71/(AO67*AO68) -> 0.03363276366 | BE68: =BB68*AO72/(AO67*AO68) -> 0.03363276366 | BF68: =-6*AO67*(0.25-0.5*BC68/(AO67*AR66)) -> -0.2101404059 | BG68: =-6*AO67*(BD68*(0.5*AO67-AO69)-BE68*(0.5*AO67-AO69)-(BD68+BE68)*AO67*BC68/(AO67*AR66)) -> 0.001449535378 | BH68: =6*AO67*((BD68*AO69-BE68*(AO67-AO69))*(0.5*AO67-AO69)-(BD68*AO69+BE68*(AO67-AO69))*BC68/AR66) -> -0.0003120751078 | BI68: -0.01327012802 | BJ68: 0.0008979166883 | BK68: 1.526072832 | BL68: 1.05443061 | BM68: =AZ68/AO67 -> 1.24824953 | BN68: =0.5*BM68*(0.5-BM68/3)+BD68*(0.5-AO69/AO67)*(BM68-AO69/AO67)/BM68+BE68*(0.5-AO69/AO67)*(1-AO69/AO67-BM68)/BM68 -> 0.05653258339 | BO68: =IF(BL68*SQRT(4*ABS(BI68)/3)-BF68/3<=AO67,AO66*(1-AO65*AV68/AO64),AO66*(1-AO65*AV68/AO64-(1-AO65)*BV68/AO64)) -> 11060.28611 | BP68: =(1+BD68+BE68)*AO67*AO68 -> 0.1921077949 | BQ68: =0.5*(AO67-AO69)*(BE68-BD68)*AO67*AO68 -> 0 | BR68: =AO68*AO67^3/12+(0.5*AO67-AO69)^2*(BD68+BE68)*AO68*AO67 -> 0.0005162694873 | BS68: 0 | BT68: 0.0005162694873 | BU68: =AR66/BP68+(BC68+BS68*AR66)*(0.5*AO67+BS68)/BT68 -> 0.2527855105 | BV68: =AR66/BP68+(BC68+BS68*AR66)*(-0.5*AO67+BS68)/BT68 -> 0.05027350922 | BW68: =AR66*BT68/((BC68+AR66*BS68)*BP68)+(0.5*AO67+BS68) -> 0.2246849155
AN69: a | AO69: =$N$14/1000 -> 0.04 | AP69: m | AQ69: ec,max | AR69: =1000*AV73/BO73 -> 0.02285524154 | AS69: o/oo | AT69: =BC69-AR64*BA69 -> 0.000577 | AU69: 1 | AV69: =IF(BL69*SQRT(4*ABS(BI69)/3)-BF69/3<=AO67,BC69/(BN69*AO68*AO67^2),BU69) -> 0.2527855105 | AW69: =IF(BL69*SQRT(4*ABS(BI69)/3)-BF69/3<=AO67,0,BV69) -> 0.05027350922 | AX69: =BB69*(AZ69-AO69)*AV69/AZ69 -> 3.751881012 | AY69: =BB69*(AO67-AO69-AZ69)*AV69/AZ69 -> -1.720377247 | AZ69: =IF(BL69*SQRT(4*ABS(BI69)/3)-BF69/3<=AO67,BL69*SQRT(4*ABS(BI69)/3)-BF69/3,BW69) -> 0.2246849155 | BA69: =0.1*(AV69/(AZ69*BO69))*AO73^2 -> 0.0001318308039 | BB69: =AO70 -> 18.05674111 | BC69: =AR67+BA68*AR64 -> 0.0005808375947 | BD69: =BB69*AO71/(AO67*AO68) -> 0.03363276366 | BE69: =BB69*AO72/(AO67*AO68) -> 0.03363276366 | BF69: =-6*AO67*(0.25-0.5*BC69/(AO67*AR66)) -> -0.2101404059 | BG69: =-6*AO67*(BD69*(0.5*AO67-AO69)-BE69*(0.5*AO67-AO69)-(BD69+BE69)*AO67*BC69/(AO67*AR66)) -> 0.001449535378 | BH69: =6*AO67*((BD69*AO69-BE69*(AO67-AO69))*(0.5*AO67-AO69)-(BD69*AO69+BE69*(AO67-AO69))*BC69/AR66) -> -0.0003120751078 | BI69: -0.01327012802 | BJ69: 0.0008979166883 | BK69: 1.526072832 | BL69: 1.05443061 | BM69: =AZ69/AO67 -> 1.24824953 | BN69: =0.5*BM69*(0.5-BM69/3)+BD69*(0.5-AO69/AO67)*(BM69-AO69/AO67)/BM69+BE69*(0.5-AO69/AO67)*(1-AO69/AO67-BM69)/BM69 -> 0.05653258339 | BO69: =IF(BL69*SQRT(4*ABS(BI69)/3)-BF69/3<=AO67,AO66*(1-AO65*AV69/AO64),AO66*(1-AO65*AV69/AO64-(1-AO65)*BV69/AO64)) -> 11060.28611 | BP69: =(1+BD69+BE69)*AO67*AO68 -> 0.1921077949 | BQ69: =0.5*(AO67-AO69)*(BE69-BD69)*AO67*AO68 -> 0 | BR69: =AO68*AO67^3/12+(0.5*AO67-AO69)^2*(BD69+BE69)*AO68*AO67 -> 0.0005162694873 | BS69: 0 | BT69: 0.0005162694873 | BU69: =AR66/BP69+(BC69+BS69*AR66)*(0.5*AO67+BS69)/BT69 -> 0.2527855105 | BV69: =AR66/BP69+(BC69+BS69*AR66)*(-0.5*AO67+BS69)/BT69 -> 0.05027350922 | BW69: =AR66*BT69/((BC69+AR66*BS69)*BP69)+(0.5*AO67+BS69) -> 0.2246849155
AN70: a | AO70: =AO63/AO66 -> 18.05674111 | AQ70: ec,min | AR70: =1000*AW73/BO73 -> 0.004545407663 | AS70: o/oo | AT70: =BC70-AR64*BA70 -> 0.000577 | AU70: =BA70/BA69 -> 1 | AV70: =IF(BL70*SQRT(4*ABS(BI70)/3)-BF70/3<=AO67,BC70/(BN70*AO68*AO67^2),BU70) -> 0.2527855105 | AW70: =IF(BL70*SQRT(4*ABS(BI70)/3)-BF70/3<=AO67,0,BV70) -> 0.05027350922 | AX70: =BB70*(AZ70-AO69)*AV70/AZ70 -> 3.751881012 | AY70: =BB70*(AO67-AO69-AZ70)*AV70/AZ70 -> -1.720377247 | AZ70: =IF(BL70*SQRT(4*ABS(BI70)/3)-BF70/3<=AO67,BL70*SQRT(4*ABS(BI70)/3)-BF70/3,BW70) -> 0.2246849155 | BA70: =0.1*(AV70/(AZ70*BO70))*AO73^2 -> 0.0001318308039 | BB70: =AO70 -> 18.05674111 | BC70: =AR67+BA69*AR64 -> 0.0005808375947 | BD70: =BB70*AO71/(AO67*AO68) -> 0.03363276366 | BE70: =BB70*AO72/(AO67*AO68) -> 0.03363276366 | BF70: =-6*AO67*(0.25-0.5*BC70/(AO67*AR66)) -> -0.2101404059 | BG70: =-6*AO67*(BD70*(0.5*AO67-AO69)-BE70*(0.5*AO67-AO69)-(BD70+BE70)*AO67*BC70/(AO67*AR66)) -> 0.001449535378 | BH70: =6*AO67*((BD70*AO69-BE70*(AO67-AO69))*(0.5*AO67-AO69)-(BD70*AO69+BE70*(AO67-AO69))*BC70/AR66) -> -0.0003120751078 | BI70: -0.01327012802 | BJ70: 0.0008979166883 | BK70: 1.526072832 | BL70: 1.05443061 | BM70: =AZ70/AO67 -> 1.24824953 | BN70: =0.5*BM70*(0.5-BM70/3)+BD70*(0.5-AO69/AO67)*(BM70-AO69/AO67)/BM70+BE70*(0.5-AO69/AO67)*(1-AO69/AO67-BM70)/BM70 -> 0.05653258339 | BO70: =IF(BL70*SQRT(4*ABS(BI70)/3)-BF70/3<=AO67,AO66*(1-AO65*AV70/AO64),AO66*(1-AO65*AV70/AO64-(1-AO65)*BV70/AO64)) -> 11060.28611 | BP70: =(1+BD70+BE70)*AO67*AO68 -> 0.1921077949 | BQ70: =0.5*(AO67-AO69)*(BE70-BD70)*AO67*AO68 -> 0 | BR70: =AO68*AO67^3/12+(0.5*AO67-AO69)^2*(BD70+BE70)*AO68*AO67 -> 0.0005162694873 | BS70: 0 | BT70: 0.0005162694873 | BU70: =AR66/BP70+(BC70+BS70*AR66)*(0.5*AO67+BS70)/BT70 -> 0.2527855105 | BV70: =AR66/BP70+(BC70+BS70*AR66)*(-0.5*AO67+BS70)/BT70 -> 0.05027350922 | BW70: =AR66*BT70/((BC70+AR66*BS70)*BP70)+(0.5*AO67+BS70) -> 0.2246849155
AN71: Ac | AO71: =$AP$40/1000000 -> 0.000335270768 | AP71: m2 | AQ71: sa,c | AR71: =AX73 -> 3.751881012 | AS71: MPa | AT71: =BC71-AR64*BA71 -> 0.000577 | AU71: =BA71/BA70 -> 1 | AV71: =IF(BL71*SQRT(4*ABS(BI71)/3)-BF71/3<=AO67,BC71/(BN71*AO68*AO67^2),BU71) -> 0.2527855105 | AW71: =IF(BL71*SQRT(4*ABS(BI71)/3)-BF71/3<=AO67,0,BV71) -> 0.05027350922 | AX71: =BB71*(AZ71-AO69)*AV71/AZ71 -> 3.751881012 | AY71: =BB71*(AO67-AO69-AZ71)*AV71/AZ71 -> -1.720377247 | AZ71: =IF(BL71*SQRT(4*ABS(BI71)/3)-BF71/3<=AO67,BL71*SQRT(4*ABS(BI71)/3)-BF71/3,BW71) -> 0.2246849155 | BA71: =0.1*(AV71/(AZ71*BO71))*AO73^2 -> 0.0001318308039 | BB71: =AO70 -> 18.05674111 | BC71: =AR67+BA70*AR64 -> 0.0005808375947 | BD71: =BB71*AO71/(AO67*AO68) -> 0.03363276366 | BE71: =BB71*AO72/(AO67*AO68) -> 0.03363276366 | BF71: =-6*AO67*(0.25-0.5*BC71/(AO67*AR66)) -> -0.2101404059 | BG71: =-6*AO67*(BD71*(0.5*AO67-AO69)-BE71*(0.5*AO67-AO69)-(BD71+BE71)*AO67*BC71/(AO67*AR66)) -> 0.001449535378 | BH71: =6*AO67*((BD71*AO69-BE71*(AO67-AO69))*(0.5*AO67-AO69)-(BD71*AO69+BE71*(AO67-AO69))*BC71/AR66) -> -0.0003120751078 | BI71: -0.01327012802 | BJ71: 0.0008979166883 | BK71: 1.526072832 | BL71: 1.05443061 | BM71: =AZ71/AO67 -> 1.24824953 | BN71: =0.5*BM71*(0.5-BM71/3)+BD71*(0.5-AO69/AO67)*(BM71-AO69/AO67)/BM71+BE71*(0.5-AO69/AO67)*(1-AO69/AO67-BM71)/BM71 -> 0.05653258339 | BO71: =IF(BL71*SQRT(4*ABS(BI71)/3)-BF71/3<=AO67,AO66*(1-AO65*AV71/AO64),AO66*(1-AO65*AV71/AO64-(1-AO65)*BV71/AO64)) -> 11060.28611 | BP71: =(1+BD71+BE71)*AO67*AO68 -> 0.1921077949 | BQ71: =0.5*(AO67-AO69)*(BE71-BD71)*AO67*AO68 -> 0 | BR71: =AO68*AO67^3/12+(0.5*AO67-AO69)^2*(BD71+BE71)*AO68*AO67 -> 0.0005162694873 | BS71: 0 | BT71: 0.0005162694873 | BU71: =AR66/BP71+(BC71+BS71*AR66)*(0.5*AO67+BS71)/BT71 -> 0.2527855105 | BV71: =AR66/BP71+(BC71+BS71*AR66)*(-0.5*AO67+BS71)/BT71 -> 0.05027350922 | BW71: =AR66*BT71/((BC71+AR66*BS71)*BP71)+(0.5*AO67+BS71) -> 0.2246849155
AN72: At | AO72: =$AP$41/1000000 -> 0.000335270768 | AP72: m2 | AQ72: sa,t | AR72: =AY73 -> -1.720377247 | AS72: MPa | AT72: =BC72-AR64*BA72 -> 0.000577 | AU72: =BA72/BA71 -> 1 | AV72: =IF(BL72*SQRT(4*ABS(BI72)/3)-BF72/3<=AO67,BC72/(BN72*AO68*AO67^2),BU72) -> 0.2527855105 | AW72: =IF(BL72*SQRT(4*ABS(BI72)/3)-BF72/3<=AO67,0,BV72) -> 0.05027350922 | AX72: =BB72*(AZ72-AO69)*AV72/AZ72 -> 3.751881012 | AY72: =BB72*(AO67-AO69-AZ72)*AV72/AZ72 -> -1.720377247 | AZ72: =IF(BL72*SQRT(4*ABS(BI72)/3)-BF72/3<=AO67,BL72*SQRT(4*ABS(BI72)/3)-BF72/3,BW72) -> 0.2246849155 | BA72: =0.1*(AV72/(AZ72*BO72))*AO73^2 -> 0.0001318308039 | BB72: =AO70 -> 18.05674111 | BC72: =AR67+BA71*AR64 -> 0.0005808375947 | BD72: =BB72*AO71/(AO67*AO68) -> 0.03363276366 | BE72: =BB72*AO72/(AO67*AO68) -> 0.03363276366 | BF72: =-6*AO67*(0.25-0.5*BC72/(AO67*AR66)) -> -0.2101404059 | BG72: =-6*AO67*(BD72*(0.5*AO67-AO69)-BE72*(0.5*AO67-AO69)-(BD72+BE72)*AO67*BC72/(AO67*AR66)) -> 0.001449535378 | BH72: =6*AO67*((BD72*AO69-BE72*(AO67-AO69))*(0.5*AO67-AO69)-(BD72*AO69+BE72*(AO67-AO69))*BC72/AR66) -> -0.0003120751078 | BI72: -0.01327012802 | BJ72: 0.0008979166883 | BK72: 1.526072832 | BL72: 1.05443061 | BM72: =AZ72/AO67 -> 1.24824953 | BN72: =0.5*BM72*(0.5-BM72/3)+BD72*(0.5-AO69/AO67)*(BM72-AO69/AO67)/BM72+BE72*(0.5-AO69/AO67)*(1-AO69/AO67-BM72)/BM72 -> 0.05653258339 | BO72: =IF(BL72*SQRT(4*ABS(BI72)/3)-BF72/3<=AO67,AO66*(1-AO65*AV72/AO64),AO66*(1-AO65*AV72/AO64-(1-AO65)*BV72/AO64)) -> 11060.28611 | BP72: =(1+BD72+BE72)*AO67*AO68 -> 0.1921077949 | BQ72: =0.5*(AO67-AO69)*(BE72-BD72)*AO67*AO68 -> 0 | BR72: =AO68*AO67^3/12+(0.5*AO67-AO69)^2*(BD72+BE72)*AO68*AO67 -> 0.0005162694873 | BS72: 0 | BT72: 0.0005162694873 | BU72: =AR66/BP72+(BC72+BS72*AR66)*(0.5*AO67+BS72)/BT72 -> 0.2527855105 | BV72: =AR66/BP72+(BC72+BS72*AR66)*(-0.5*AO67+BS72)/BT72 -> 0.05027350922 | BW72: =AR66*BT72/((BC72+AR66*BS72)*BP72)+(0.5*AO67+BS72) -> 0.2246849155
AN73: L | AO73: =$N$11/1000 -> 3.6 | AP73: m | AQ73: hc | AR73: =AZ73 -> 0.2246849155 | AS73: m | AT73: =BC73-AR64*BA73 -> 0.000577 | AU73: =BA73/BA72 -> 1 | AV73: =IF(BL73*SQRT(4*ABS(BI73)/3)-BF73/3<=AO67,BC73/(BN73*AO68*AO67^2),BU73) -> 0.2527855105 | AW73: =IF(BL73*SQRT(4*ABS(BI73)/3)-BF73/3<=AO67,0,BV73) -> 0.05027350922 | AX73: =BB73*(AZ73-AO69)*AV73/AZ73 -> 3.751881012 | AY73: =BB73*(AO67-AO69-AZ73)*AV73/AZ73 -> -1.720377247 | AZ73: =IF(BL73*SQRT(4*ABS(BI73)/3)-BF73/3<=AO67,BL73*SQRT(4*ABS(BI73)/3)-BF73/3,BW73) -> 0.2246849155 | BA73: =0.1*(AV73/(AZ73*BO73))*AO73^2 -> 0.0001318308039 | BB73: =AO70 -> 18.05674111 | BC73: =AR67+BA72*AR64 -> 0.0005808375947 | BD73: =BB73*AO71/(AO67*AO68) -> 0.03363276366 | BE73: =BB73*AO72/(AO67*AO68) -> 0.03363276366 | BF73: =-6*AO67*(0.25-0.5*BC73/(AO67*AR66)) -> -0.2101404059 | BG73: =-6*AO67*(BD73*(0.5*AO67-AO69)-BE73*(0.5*AO67-AO69)-(BD73+BE73)*AO67*BC73/(AO67*AR66)) -> 0.001449535378 | BH73: =6*AO67*((BD73*AO69-BE73*(AO67-AO69))*(0.5*AO67-AO69)-(BD73*AO69+BE73*(AO67-AO69))*BC73/AR66) -> -0.0003120751078 | BI73: -0.01327012802 | BJ73: 0.0008979166883 | BK73: 1.526072832 | BL73: 1.05443061 | BM73: =AZ73/AO67 -> 1.24824953 | BN73: =0.5*BM73*(0.5-BM73/3)+BD73*(0.5-AO69/AO67)*(BM73-AO69/AO67)/BM73+BE73*(0.5-AO69/AO67)*(1-AO69/AO67-BM73)/BM73 -> 0.05653258339 | BO73: =IF(BL73*SQRT(4*ABS(BI73)/3)-BF73/3<=AO67,AO66*(1-AO65*AV73/AO64),AO66*(1-AO65*AV73/AO64-(1-AO65)*BV73/AO64)) -> 11060.28611 | BP73: =(1+BD73+BE73)*AO67*AO68 -> 0.1921077949 | BQ73: =0.5*(AO67-AO69)*(BE73-BD73)*AO67*AO68 -> 0 | BR73: =AO68*AO67^3/12+(0.5*AO67-AO69)^2*(BD73+BE73)*AO68*AO67 -> 0.0005162694873 | BS73: 0 | BT73: 0.0005162694873 | BU73: =AR66/BP73+(BC73+BS73*AR66)*(0.5*AO67+BS73)/BT73 -> 0.2527855105 | BV73: =AR66/BP73+(BC73+BS73*AR66)*(-0.5*AO67+BS73)/BT73 -> 0.05027350922 | BW73: =AR66*BT73/((BC73+AR66*BS73)*BP73)+(0.5*AO67+BS73) -> 0.2246849155

Sheet Ark1
B2: Tilstand: | C2: =Makro!$C$11 -> 1
B4: L | C4: h | D4: b | E4: fck | F4: fcd | G4: Ecd | H4: Ac | I4: ac | J4: Esc | K4: fyd_c | L4: At | M4: at | N4: Est | O4: fyd_t | P4: Modenhed | Q4: 1+f | R4: uterm | S4: Iterationstyring | V4: Iterationsfakt.
B5: (m) | C5: (m) | D5: (m) | E5: (Mpa) | F5: (Mpa) | G5: (Mpa) | H5: (m2) | I5: (m) | J5: (Mpa) | K5: (Mpa) | L5: (m2) | M5: (m) | N5: (Mpa) | O5: (Mpa) | P5: (døgn) | R5: (m) | S5: Ncr-korr | T5: hc-step | U5: e-skift
B6: =IF(Makro!$C$11=1,Kold!$N$11/1000,Brand!$AX$27) -> 3.6 | C6: =IF(Makro!$C$11=1,Kold!$N$12/1000,Brand!$AX$21) -> 0.18 | D6: =IF(Makro!$C$11=1,Kold!$N$13/1000,Brand!$AX$22) -> 1 | E6: =IF(Makro!$C$11=1,Kold!$N$7,Brand!$AX$14) -> 35 | F6: =IF(Makro!$C$11=1,Kold!$Q$8,Brand!$AX$14) -> 25 | G6: =1000*22*((E6+8)/10)^0.3/IF(C2=1,Kold!N9,Brand!N9) -> 24340.81871 | H6: =Kold!$AP$40/1000000 -> 0.000335270768 | I6: =IF(Makro!$C$11=1,Kold!$N$14/1000,Brand!$AX$23) -> 0.04 | J6: =IF(Makro!$C$11=1,200000,Brand!$AX$12) -> 200000 | K6: =IF(Makro!$C$11=1,Kold!$Q$9,Brand!$AX$19) -> 458.3333333 | L6: =Kold!$AP$41/1000000 -> 0.000335270768 | M6: =IF(Makro!$C$11=1,Kold!$N$14/1000,Brand!$AX$24) -> 0.04 | N6: =IF(Makro!$C$11=1,200000,Brand!$AX$13) -> 200000 | O6: =IF(Makro!$C$11=1,Kold!$Q$9,Brand!$AX$20) -> 458.3333333 | Q6: =IF(Makro!$C$11=1,Kold!$Q$16,IF(OR(Brand!$BH$32=10,Brand!AR61=1),Brand!$Q$14,0))+1 -> 2.86894993 | R6: =IF(Makro!$C$11=1,0,Brand!AT$11) -> 0 | S6: =MIN(1,15*C6/B6) -> 0.75 | T6: 0.1 | U6: -0.1 | V6: =MAX(1,IF(C2=1,0.05,0.08)*B6/C6) -> 1 | Y6: Checkpunkt | Z6: 7
M9: N | N9: M | O9: hc | P9: e0 | Q9: sac | R9: sat | U9: hc_0 | V9: 1/hc_0 | Y9: Test-fakt | Z9: hc | AA9: e0 | AB9: a' | AC9: b' | AD9: N' | AE9: tN' | AF9: t | AG9: Nc | AH9: sac | AI9: Nac | AJ9: sat | AK9: Nat | AL9: Mtot | AM9: u | AN9: N | AO9: Mo | AP9: x | HD9: Bruger skal registreres | HE9: 1
L10: =IF($Z$6=29-ROW(),1,0) -> 0 | M10: =Q955 -> 0.0001 | N10: =R955 -> 0.01941919309 | O10: =C955 -> 0.04013868786 | P10: =D955 -> 0.0003210578024 | Q10: =K955 -> 0.6365191477 | R10: =M955 -> 458.3215629 | S10: 1 | U10: =Y93 -> 0.04013868786 | V10: =1/U10 -> 24.91361958 | Y10: 0.5 | Z10: =$Z$15 -> 0.1164138618 | AA10: =Y10*$AA$15 -> 0.0003613666642 | AB10: =IF($C$2=1,AA10/($O$31*$O$30),2^(1/3)*$O$30/AA10) -> 0.070051444 | AC10: =IF($C$2=1,-($O$31-2)*AA10/$O$30,3*($O$30/AA10)^2) -> -0.0476905145 | AD10: =IF($C$2=1,0.5*($O$31*AA10*$F$6/$O$30)*(1-AP10^2+(AB10-AC10)*(AC10^2*(1-AP10^2)+2*AC10*(1-AP10)+2*LN((1-AC10)/(1-AC10*AP10)))/(AC10^3)),$F$6*AC10*(LN((1-AB10+AB10^2)/(1+AB10)^2)/(6*AB10)+ATAN((2-AB10)/(AB10*3^0.5))/(AB10*3^0.5)-LN((AP10^2-AB10*AP10+AB10^2)/(AP10+AB10)^2)/(6*AB10)-ATAN((2*AP10-AB10)/(AB10*3^0.5))/(AB10*3^0.5))) -> 4.267889815 | AE10: =IF($C$2=1,($O$31*AA10*$F$6/$O$30)*(1-AP10^3-(AB10-AC10)*(-2*AC10^3*(1-AP10^3)-3*AC10^2*(1-AP10^2)-6*AC10*(1-AP10)-6*LN((1-AC10)/(1-AC10*AP10)))/(2*AC10^4))/3,$F$6*AC10*(LN((1+AB10^3)/(AB10^3+AP10^3)))/3) -> 2.816703135 | AF10: =AE10/AD10 -> 0.6599755986 | AG10: =AD10*Z10*$D$6 -> 0.4968415352 | AH10: =MAX(MIN($K$6,$Q$6*$J$6*AA10*(Z10-$I$6)/Z10),-$K$6) -> 136.1032524 | AI10: =AH10*$H$6 -> 0.04563144197 | AJ10: =MIN($O$6,$Q$6*$N$6*AA10*(C$6-Z10-$M$6)/Z10) -> 42.01004949 | AK10: =AJ10*$L$6 -> 0.01408474156 | AL10: =(0.5*$C$6-Z10+AF10*Z10)*AG10+(0.5*$C$6-$I$6)*AI10+(0.5*$C$6-$M$6)*AK10 -> 0.02803479376 | AM10: =0.1*$Q$6*AA10*$B$6^2/Z10+$R$6 -> 0.01154174196 | AN10: =AG10+AI10-AK10 -> 0.5283882356 | AO10: =AL10-AM10*AN10 -> 0.02193627309 | AP10: =IF(Z10<$C$6,0,(Z10-$C$6)/Z10) -> 0
L11: 0 | M11: =Q956 -> 0.0634389673 | N11: =R956 -> 0.02161434675 | O11: =C956 -> 0.04518142254 | P11: =D956 -> 0.0003933448487 | Q11: =K956 -> 25.88305533 | R11: =M956 -> 458.3333333 | S11: 2 | U11: =Y95 -> 0.04518142254 | V11: =1/U11 -> 22.13299059 | Y11: 0.6 | Z11: =$Z$15 -> 0.1164138618 | AA11: =Y11*$AA$15 -> 0.000433639997 | AB11: 0.0840617328 | AC11: -0.0572286174 | AD11: =IF($C$2=1,0.5*($O$31*AA11*$F$6/$O$30)*(1-AP11^2+(AB11-AC11)*(AC11^2*(1-AP11^2)+2*AC11*(1-AP11)+2*LN((1-AC11)/(1-AC11*AP11)))/(AC11^3)),$F$6*AC11*(LN((1-AB11+AB11^2)/(1+AB11)^2)/(6*AB11)+ATAN((2-AB11)/(AB11*3^0.5))/(AB11*3^0.5)-LN((AP11^2-AB11*AP11+AB11^2)/(AP11+AB11)^2)/(6*AB11)-ATAN((2*AP11-AB11)/(AB11*3^0.5))/(AB11*3^0.5))) -> 5.040910287 | AE11: =IF($C$2=1,($O$31*AA11*$F$6/$O$30)*(1-AP11^3-(AB11-AC11)*(-2*AC11^3*(1-AP11^3)-3*AC11^2*(1-AP11^2)-6*AC11*(1-AP11)-6*LN((1-AC11)/(1-AC11*AP11)))/(2*AC11^4))/3,$F$6*AC11*(LN((1+AB11^3)/(AB11^3+AP11^3)))/3) -> 3.319934457 | AF11: 0.6585982031 | AG11: 0.5868318337 | AH11: 163.3239029 | AI11: 0.05475773036 | AJ11: 50.41205939 | AK11: 0.01690168987 | AL11: 0.03307484938 | AM11: =0.1*$Q$6*AA11*$B$6^2/Z11+$R$6 -> 0.01385009036 | AN11: 0.6246878742 | AO11: 0.02442286588 | AP11: 0
L12: 0 | M12: =IF(ISERROR(Q957),M11,IF(AND(N11/M11>0.007,Q957>M11),Q957,M11)) -> 0.1249872297 | N12: =IF(ISERROR(Q957),N11,IF(AND(N11/M11>0.007,Q957>M11,ISNUMBER(Q957)),R957,N11)) -> 0.02335614057 | O12: =IF(AND(N11/M11>0.007,Q957>M11),C957,O11) -> 0.04941589192 | P12: =IF(AND(N11/M11>0.007,Q957>M11),D957,P11) -> 0.000458316779 | Q12: =IF(AND(N11/M11>0.007,Q957>M11),K957,Q11) -> 50.10874754 | R12: =IF(AND(N11/M11>0.007,Q957>M11),M957,R11) -> 458.3333333 | S12: 3 | U12: =Y97 -> 0.04941589192 | V12: =1/U12 -> 20.23640495 | Y12: 0.7 | Z12: =$Z$15 -> 0.1164138618 | AA12: =Y12*$AA$15 -> 0.0005059133299 | AB12: 0.0980720216 | AC12: -0.0667667203 | AD12: 5.788348558 | AE12: 3.804139916 | AF12: 0.6572064342 | AG12: 0.6738440092 | AH12: 190.5445534 | AI12: 0.06388401875 | AJ12: 58.81406929 | AK12: 0.01971863818 | AL12: 0.03793572666 | AM12: 0.01615843875 | AN12: 0.7180093898 | AO12: 0.02633381592 | AP12: 0
L13: 0 | M13: =IF(ISERROR(Q958),M12,IF(AND(N12/M12>0.007,Q958>M12),Q958,M12)) -> 0.1741041691 | N13: =IF(ISERROR(Q958),N12,IF(AND(N12/M12>0.007,Q958>M12,ISNUMBER(Q958)),R958,N12)) -> 0.02461346814 | O13: =IF(AND(N12/M12>0.007,Q958>M12),C958,O12) -> 0.05313596372 | P13: =IF(AND(N12/M12>0.007,Q958>M12),D958,P12) -> 0.0004993563809 | Q13: =IF(AND(N12/M12>0.007,Q958>M12),K958,Q12) -> 70.83321383 | R13: =IF(AND(N12/M12>0.007,Q958>M12),M958,R12) -> 458.3333333 | S13: 4 | U13: =Y99 -> 0.05313596372 | V13: =1/U13^(1/3) -> 2.659931664 | Y13: 0.8 | Z13: =$Z$15 -> 0.1164138618 | AA13: =Y13*$AA$15 -> 0.0005781866627 | AB13: 0.1120823104 | AC13: -0.0763048232 | AD13: 6.510717955 | AE13: 4.269726859 | AF13: 0.6557996964 | AG13: 0.7579378204 | AH13: 217.7652039 | AI13: 0.07301030714 | AJ13: 67.21607919 | AK13: 0.02253558649 | AL13: 0.04262136761 | AM13: 0.01846678714 | AN13: 0.8084125411 | AO13: 0.02769258529 | AP13: 0
L14: 0 | M14: 0.2383816785 | N14: 0.02593014299 | O14: 0.05742818137 | P14: 0.0005514539446 | Q14: 96.02608429 | R14: 454.9555829 | S14: 5 | U14: =1/V14^3 -> 0.05742818137 | V14: =V13+($V$28-$V$13)/15 -> 2.591940208 | Y14: 0.9 | Z14: =$Z$15 -> 0.1164138618 | AA14: =Y14*$AA$15 -> 0.0006504599955 | AB14: 0.1260925992 | AC14: -0.0858429261 | AD14: 7.208517298 | AE14: 4.717090636 | AF14: 0.6543773763 | AG14: 0.8391713367 | AH14: 244.9858544 | AI14: 0.08213659554 | AJ14: 75.61808909 | AK14: 0.0253525348 | AL14: 0.04713559624 | AM14: 0.02077513554 | AN14: 0.8959553974 | AO14: 0.02852200143 | AP14: 0
L15: 0 | M15: 0.329879615 | N15: 0.02738499164 | O15: 0.06219541963 | P15: 0.0006348145189 | Q15: 129.9884525 | R15: 455.6659511 | S15: 6 | U15: =1/V15^3 -> 0.06219541963 | V15: =V14+($V$28-$V$13)/15 -> 2.523948753 | Y15: 1 | Z15: =SUMPRODUCT(L10:L28,O10:O28) -> 0.1164138618 | AA15: =SUMPRODUCT(L10:L28,P10:P28) -> 0.0007227333284 | AB15: 0.140102888 | AC15: -0.09538102899 | AD15: 7.882231421 | AE15: 5.14661505 | AF15: 0.6529388411 | AG15: 0.9176009996 | AH15: 272.2065048 | AI15: 0.09126288393 | AJ15: 84.02009899 | AK15: 0.02816948311 | AL15: 0.05148212307 | AM15: 0.02308348393 | AN15: 0.9806944004 | AO15: 0.02884427964 | AP15: 0
L16: 0 | M16: 0.4613581949 | N16: 0.02827704655 | O16: 0.06750525256 | P16: 0.0007607799574 | Q16: 177.8648366 | R16: 458.3333333 | S16: 7 | U16: 0.06750525256 | V16: 2.455957297 | Y16: =MIN(1.1,$O$6/ABS($AJ$15)) -> 1.1 | Z16: =$Z$15 -> 0.1164138618 | AA16: =Y16*$AA$15 -> 0.0007950066612 | AB16: 0.1541131768 | AC16: -0.1049191319 | AD16: 8.532331685 | AE16: 5.558672781 | AF16: 0.6514834381 | AG16: 0.9932816819 | AH16: 299.4271553 | AI16: 0.1003891723 | AJ16: 92.42210889 | AK16: 0.03098643143 | AL16: 0.05566454934 | AM16: 0.02539183232 | AN16: 1.062684423 | AO16: 0.02868104467 | AP16: 0
L17: 0 | M17: 0.6037474464 | N17: 0.02835372287 | O17: 0.0734371256 | P17: 0.0008791576631 | Q17: 229.6851922 | R17: 457.2314852 | S17: 8 | U17: 0.0734371256 | V17: 2.387965841 | Y17: =MIN(1.2,$O$6/ABS($AJ$15)) -> 1.2 | Z17: =$Z$15 -> 0.1164138618 | AA17: =Y17*$AA$15 -> 0.000867279994 | AB17: 0.1681234656 | AC17: -0.1144572348 | AD17: 9.159276456 | AE17: 5.953625804 | AF17: 0.6500104929 | AG17: 1.066266744 | AH17: 326.6478058 | AI17: 0.1095154607 | AJ17: 100.8241188 | AK17: 0.03380337974 | AL17: 0.05968637115 | AM17: 0.02770018071 | AN17: 1.141978825 | AO17: 0.02805335133 | AP17: 0
L18: 0 | M18: 0.6508485514 | N18: 0.0281530016 | O18: 0.0800848618 | P18: 0.0008032212515 | Q18: 230.6843409 | R18: 344.8055836 | S18: 9 | U18: 0.0800848618 | V18: 2.319974385 | Y18: =MIN(1.3,$O$6/ABS($AJ$15)) -> 1.3 | Z18: =$Z$15 -> 0.1164138618 | AA18: =Y18*$AA$15 -> 0.0009395533269 | AB18: 0.1821337544 | AC18: -0.1239953377 | AD18: 9.76351157 | AE18: 6.331825777 | AF18: 0.648519309 | AG18: 1.136608087 | AH18: 353.8684563 | AI18: 0.1186417491 | AJ18: 109.2261287 | AK18: 0.03662032805 | AL18: 0.0635509833 | AM18: 0.03000852911 | AN18: 1.218629508 | AO18: 0.02698170425 | AP18: 0
L19: 0 | M19: 0.7108167638 | N19: 0.02824088418 | O19: 0.0875597913 | P19: 0.0007589601805 | Q19: 236.5414081 | R19: 260.81445 | S19: 10 | U19: 0.0875597913 | V19: 2.251982929 | Y19: =MIN(1.5,$O$6/ABS($AJ$15)) -> 1.5 | Z19: =$Z$15 -> 0.1164138618 | AA19: =Y19*$AA$15 -> 0.001084099993 | AB19: 0.210154332 | AC19: -0.1430715435 | AD19: 10.90557615 | AE19: 7.039323845 | AF19: 0.6454793173 | AG19: 1.269560234 | AH19: 408.3097573 | AI19: 0.1368943259 | AJ19: 126.0301485 | AK19: 0.04225422467 | AL19: 0.0708216736 | AM19: 0.03462522589 | AN19: 1.364200336 | AO19: 0.02358592881 | AP19: 0
L20: 0 | M20: 0.7777271394 | N20: 0.02847653178 | O20: 0.09599468428 | P20: 0.000726845306 | Q20: 243.2733694 | R20: 191.184602 | S20: 11 | U20: 0.09599468428 | V20: 2.183991473 | Y20: =MIN(2,$O$6/ABS($AJ$15)) -> 2 | Z20: =$Z$15 -> 0.1164138618 | AA20: =Y20*$AA$15 -> 0.001445466657 | AB20: 0.280205776 | AC20: -0.190762058 | AD20: 13.39230134 | AE20: 8.537678569 | AF20: 0.6375064564 | AG20: 1.559049518 | AH20: 458.3333333 | AI20: 0.1536657687 | AJ20: 168.040198 | AK20: 0.05633896623 | AL20: 0.08502393664 | AM20: 0.04616696786 | AN20: 1.65637632 | AO20: 0.008554064316 | AP20: 0
L21: 0 | M21: 0.8762143374 | N21: 0.0287685244 | O21: 0.1055487269 | P21: 0.0007259522539 | Q21: 258.685618 | R21: 135.960671 | S21: 12 | U21: 0.1055487269 | V21: 2.116000017
L22: 1 | M22: 0.9806944004 | N22: 0.02884427964 | O22: 0.1164138618 | P22: 0.0007227333284 | Q22: 272.2065048 | R22: 84.02009899 | S22: 13 | U22: 0.1164138618 | V22: 2.048008562
L23: 0 | M23: 1.175039291 | N23: 0.02826114334 | O23: 0.1288229302 | P23: 0.0007820441214 | Q23: 309.3970318 | R23: 38.93310229 | S23: 14 | U23: 0.1288229302 | V23: 1.980017106 | Y23: Lastpunkter | Z23: hc | AA23: e0 | AB23: a' | AC23: b' | AD23: N' | AE23: tN' | AF23: t | AG23: Nc | AH23: sac | AI23: Nac | AJ23: sat | AK23: Nat | AL23: Mtot | AM23: u | AN23: N | AO23: Mo | AP23: x
L24: 0 | M24: 1.502117692 | N24: 0.02488431043 | O24: 0.1430602099 | P24: 0.0009178421457 | Q24: 379.3963296 | R24: -11.26557374 | S24: 15 | U24: 0.1430602099 | V24: 1.91202565 | Y24: =MAX(IF(Makro!C11=1,Kold!BE12,Brand!BB34)/1000,M10) -> 0.0291 | Z24: =Z25+(Z28-Z27)*(Y24-AN25)/(Y28-Y27) -> 0.04252830624 | AA24: =AA25+(AA28-AA27)*(Y24-AN25)/(Y28-Y27) -> 0.0003553127187 | AB24: =IF($C$2=1,AA24/($O$31*$O$30),2^(1/3)*$O$30/AA24) -> 0.06887787802 | AC24: =IF($C$2=1,-($O$31-2)*AA24/$O$30,3*($O$30/AA24)^2) -> -0.0468915593 | AD24: =IF($C$2=1,0.5*($O$31*AA24*$F$6/$O$30)*(1-AP24^2+(AB24-AC24)*(AC24^2*(1-AP24^2)+2*AC24*(1-AP24)+2*LN((1-AC24)/(1-AC24*AP24)))/(AC24^3)),$F$6*AC24*(LN((1-AB24+AB24^2)/(1+AB24)^2)/(6*AB24)+ATAN((2-AB24)/(AB24*3^0.5))/(AB24*3^0.5)-LN((AP24^2-AB24*AP24+AB24^2)/(AP24+AB24)^2)/(6*AB24)-ATAN((2*AP24-AB24)/(AB24*3^0.5))/(AB24*3^0.5))) -> 4.201960341 | AE24: =IF($C$2=1,($O$31*AA24*$F$6/$O$30)*(1-AP24^3-(AB24-AC24)*(-2*AC24^3*(1-AP24^3)-3*AC24^2*(1-AP24^2)-6*AC24*(1-AP24)-6*LN((1-AC24)/(1-AC24*AP24)))/(2*AC24^4))/3,$F$6*AC24*(LN((1+AB24^3)/(AB24^3+AP24^3)))/3) -> 2.773673436 | AF24: =AE24/AD24 -> 0.6600903415 | AG24: =AD24*Z24*$D$6 -> 0.1787022562 | AH24: =MAX(MIN($K$6,$Q$6*$J$6*AA24*(Z24-$I$6)/Z24),-$K$6) -> 12.12035409 | AI24: =AH24*$H$6 -> 0.004063600426 | AJ24: =MIN($O$6,$Q$6*$N$6*AA24*(C$6-Z24-$M$6)/Z24) -> 458.3333333 | AK24: =AJ24*$L$6 -> 0.1536657687 | AL24: =(0.5*$C$6-Z24+AF24*Z24)*AG24+(0.5*$C$6-$I$6)*AI24+(0.5*$C$6-$M$6)*AK24 -> 0.02138639064 | AM24: =0.1*$Q$6*AA24*$B$6^2/Z24+$R$6 -> 0.03106423318 | AN24: =AG24+AI24-AK24 -> 0.02910008793 | AO24: =AL24-AM24*AN24 -> 0.02048241873 | AP24: =IF(Z24<$C$6,0,(Z24-$C$6)/Z24) -> 0
L25: 0 | M25: 1.892031182 | N25: 0.01697820523 | O25: 0.159475176 | P25: 0.001063292827 | Q25: 457.0781252 | R25: -74.50649783 | S25: 16 | U25: 0.159475176 | V25: 1.844034194 | Y25: 1 | Z25: =Z27+(Z28-Z27)*(Y24*Y24/AN26-Y27)/(Y28-Y27) -> 0.04253089019 | AA25: =AA27+(AA28-AA27)*(Y24*Y24/AN26-Y27)/(Y28-Y27) -> 0.0003553497594 | AB25: 0.06888505841 | AC25: -0.04689644766 | AD25: 4.202364284 | AE25: 2.773937126 | AF25: 0.6600896397 | AG25: 0.1787302939 | AH25: 12.13326883 | AI25: 0.004067930358 | AJ25: 458.3333333 | AK25: 0.1536657687 | AL25: 0.02138856291 | AM25: 0.03106558407 | AN25: 0.02913245558 | AO25: 0.02048354616 | AP25: 0
L26: 0 | M26: 2.145180279 | N26: 0.009004105196 | O26: 0.178500634 | P26: 0.001084013806 | Q26: 458.3333333 | R26: -134.1577904 | S26: 17 | U26: 0.178500634 | V26: 1.776042738 | Y26: =VLOOKUP(Y24,Result,7) -> 1 | Z26: =Z27+(Z28-Z27)*(Y24-Y27)/(Y28-Y27) -> 0.04244752414 | AA26: =AA27+(AA28-AA27)*(Y24-Y27)/(Y28-Y27) -> 0.0003541547162 | AB26: 0.06865339759 | AC26: -0.04673873465 | AD26: 4.189328411 | AE26: 2.765427123 | AF26: 0.6601122786 | AG26: 0.1778266189 | AH26: 11.71711289 | AI26: 0.003928405438 | AJ26: 458.3333333 | AK26: 0.1536657687 | AL26: 0.02131853002 | AM26: 0.03102191732 | AN26: 0.02808925564 | AO26: 0.02044714745 | AP26: 0
L27: 0 | M27: 2.145180279 | N27: 0.009004105196 | O27: 0.178500634 | P27: 0.001084013806 | Q27: 458.3333333 | R27: -134.1577904 | S27: 18 | U27: 0.2006768534 | V27: 1.708051282 | Y27: =INDEX(Result,Y26,1) -> 0.0001 | Z27: =INDEX(Result,Y26,3) -> 0.04013868786 | AA27: =INDEX(Result,Y26,4) -> 0.0003210578024 | AB27: 0.06223751358 | AC27: -0.0423708474 | AD27: 3.825446827 | AE27: 2.527617251 | AF27: 0.6607377818 | AG27: 0.1535484161 | AH27: 0.6365191477 | AI27: 0.0002134062635 | AJ27: 458.3215629 | AK27: 0.1536618224 | AL27: 0.01942216714 | AM27: 0.02974048372 | AN27: 0.0001 | AO27: 0.01941919309 | AP27: 0
L28: 0 | M28: 2.145180279 | N28: 0.009004105196 | O28: 0.178500634 | P28: 0.001084013806 | Q28: 458.3333333 | R28: -134.1577904 | S28: 19 | U28: =Y124 -> 0.2266840316 | V28: =1/U28^(1/3) -> 1.640059826 | Y28: =INDEX(Result,Y26+1,1) -> 0.0634389673 | Z28: =INDEX(Result,Y26+1,3) -> 0.04518142254 | AA28: =INDEX(Result,Y26+1,4) -> 0.0003933448487 | AB28: 0.07625046074 | AC28: -0.05191076009 | AD28: 4.613110708 | AE28: 3.041737071 | AF28: 0.6593678893 | AG28: 0.2084269041 | AH28: 25.88305533 | AI28: 0.008677831839 | AJ28: 458.3333333 | AK28: 0.1536657687 | AL28: 0.02366786063 | AM28: 0.03236991334 | AN28: 0.0634389673 | AO28: 0.02161434675 | AP28: 0
M29: emax | O29: =IF(C2=1,0.0028,Firsidig!G21) -> 0.0028 | P29: Konv.krit: | Q29: =IF(Y123<0.6*C6,1.003,1.001) -> 1.001 | U29: N_max | V29: =AP124 -> 2.31962402 | Y29: =MAX(IF(Makro!C11=1,Kold!BF12,Brand!BC34)/1000,M10) -> 0.0955 | Z29: =Z30+(Z33-Z32)*(Y29-AN30)/(Y33-Y32) -> 0.0474352145 | AA29: =AA30+(AA33-AA32)*(Y29-AN30)/(Y33-Y32) -> 0.0004279260915 | AB29: 0.08295408406 | AC29: -0.05647453818 | AD29: 4.980733681 | AE29: 3.280847205 | AF29: 0.6587076151 | AG29: 0.2362621705 | AH29: 38.48702702 | AI29: 0.01290357511 | AJ29: 458.3333333 | AK29: 0.1536657687 | AL29: 0.0257671487 | AM29: 0.03354253401 | AN29: 0.09549997694 | AO29: 0.02256383747 | AP29: 0
M30: e1 | O30: =IF(C2=1,0.7*(E6+8)^0.31/1000,Firsidig!F21) -> 0.002246328469 | P30: Vælg checkpunkt: | U30: e | V30: =Z124 -> 0.0009406500465 | Y30: 1 | Z30: =Z32+(Z33-Z32)*(Y29*Y29/AN31-Y32)/(Y33-Y32) -> 0.04743570261 | AA30: =AA32+(AA33-AA32)*(Y29*Y29/AN31-Y32)/(Y33-Y32) -> 0.000427933581 | AB30: 0.0829555359 | AC30: -0.05647552658 | AD30: 4.980812662 | AE30: 3.280898516 | AF30: 0.6587074718 | AG30: 0.2362683482 | AH30: 38.48983122 | AI30: 0.01290451527 | AJ30: 458.3333333 | AK30: 0.1536657687 | AL30: 0.02576761072 | AM30: 0.0335427759 | AN30: 0.09550709478 | AO30: 0.02256403764 | AP30: 0
M31: k | O31: =1.05*G6*O30/F6 -> 2.29645391 | P31: Stepmax: | Q31: =IF(Y123<0.6*C6,0.025,0.06)*0.5*(0.0024+O30)/(0.0024*V6) -> 0.05807910586 | Y31: =VLOOKUP(Y29,Result,7) -> 2 | Z31: =Z32+(Z33-Z32)*(Y29-Y32)/(Y33-Y32) -> 0.04738719498 | AA31: =AA32+(AA33-AA32)*(Y29-Y32)/(Y33-Y32) -> 0.0004271893002 | AB31: 0.082811256 | AC31: -0.05637730187 | AD31: 4.972962432 | AE31: 3.275798352 | AF31: 0.6587217169 | AG31: 0.2356547404 | AH31: 38.21130684 | AI31: 0.01281113419 | AJ31: 458.3333333 | AK31: 0.1536657687 | AL31: 0.02572171135 | AM31: 0.03351871299 | AN31: 0.09480010594 | AO31: 0.0225441338 | AP31: 0
Y32: =INDEX(Result,Y31,1) -> 0.0634389673 | Z32: =INDEX(Result,Y31,3) -> 0.04518142254 | AA32: =INDEX(Result,Y31,4) -> 0.0003933448487 | AB32: 0.07625046074 | AC32: -0.05191076009 | AD32: 4.613110708 | AE32: 3.041737071 | AF32: 0.6593678893 | AG32: 0.2084269041 | AH32: 25.88305533 | AI32: 0.008677831839 | AJ32: 458.3333333 | AK32: 0.1536657687 | AL32: 0.02366786063 | AM32: 0.03236991334 | AN32: 0.0634389673 | AO32: 0.02161434675 | AP32: 0
Y33: =INDEX(Result,Y31+1,1) -> 0.1249872297 | Z33: =INDEX(Result,Y31+1,3) -> 0.04941589192 | AA33: =INDEX(Result,Y31+1,4) -> 0.000458316779 | AB33: 0.08884536223 | AC33: -0.06048527758 | AD33: 5.298963349 | AE33: 3.487378386 | AF33: =AE33/AD33 -> 0.6581246474 | AG33: =AD33*Z33*$D$6 -> 0.2618530001 | AH33: 50.10874754 | AI33: 0.01679999827 | AJ33: 458.3333333 | AK33: 0.1536657687 | AL33: =(0.5*$C$6-Z33+AF33*Z33)*AG33+(0.5*$C$6-$I$6)*AI33+(0.5*$C$6-$M$6)*AK33 -> 0.02766629401 | AM33: =0.1*$Q$6*AA33*$B$6^2/Z33+$R$6 -> 0.03448475057 | AN33: =AG33+AI33-AK33 -> 0.1249872297 | AO33: =AL33-AM33*AN33 -> 0.02335614057 | AP33: 0
B34: hc/hcm | C34: hc | D34: e0 | E34: a' | F34: b' | G34: N' | H34: tN' | I34: t | J34: Nc | K34: sac | L34: Nac | M34: sat | N34: Nat | O34: Mtot | P34: u | Q34: N | R34: Mo | S34: a'' | T34: b'' | U34: c'' | W34: x | Y34: =MAX(IF(Makro!C11=1,Kold!BG12,Brand!BD34)/1000,M10) -> 0.5141 | Z34: =Z35+(Z38-Z37)*(Y34-AN35)/(Y38-Y37) -> 0.06975170576 | AA34: =AA35+(AA38-AA37)*(Y34-AN35)/(Y38-Y37) -> 0.0008056106497 | AB34: 0.1561687751 | AC34: -0.1063185683 | AD34: 8.62575607 | AE34: 5.61768271 | AF34: 0.6512684412 | AG34: 0.6016611993 | AH34: 197.1674415 | AI34: 0.06610447952 | AJ34: 458.3333333 | AK34: 0.1536657687 | AL34: 0.05050283966 | AM34: 0.04294358888 | AN34: 0.5140999102 | AO34: 0.02842554447 | AP34: 0
B35: =C35/$Y$123 -> 0.1764429163 | C35: =U10 -> 0.04013868786 | D35: =Z93 -> 0.0003210578024 | E35: =IF($C$2=1,D35/($O$31*$O$30),2^(1/3)*$O$30/D35) -> 0.06223751358 | F35: =IF($C$2=1,-($O$31-2)*D35/$O$30,3*($O$30/D35)^2) -> -0.0423708474 | G35: =IF($C$2=1,0.5*($O$31*D35*$F$6/$O$30)*(1-W35^2+(E35-F35)*(F35^2*(1-W35^2)+2*F35*(1-W35)+2*LN((1-F35)/(1-F35*W35)))/(F35^3)),$F$6*F35*(LN((1-E35+E35^2)/(1+E35)^2)/(6*E35)+ATAN((2-E35)/(E35*3^0.5))/(E35*3^0.5)-LN((W35^2-E35*W35+E35^2)/(W35+E35)^2)/(6*E35)-ATAN((2*W35-E35)/(E35*3^0.5))/(E35*3^0.5))) -> 3.825446827 | H35: =IF($C$2=1,($O$31*D35*$F$6/$O$30)*(1-W35^3-(E35-F35)*(-2*F35^3*(1-W35^3)-3*F35^2*(1-W35^2)-6*F35*(1-W35)-6*LN((1-F35)/(1-F35*W35)))/(2*F35^4))/3,$F$6*F35*(LN((1+E35^3)/(E35^3+W35^3)))/3) -> 2.527617251 | I35: =H35/G35 -> 0.6607377818 | J35: =G35*C35*$D$6 -> 0.1535484161 | K35: =MAX(MIN($K$6,$Q$6*$J$6*D35*(C35-$I$6)/C35),-$K$6) -> 0.6365191477 | L35: =K35*$H$6 -> 0.0002134062635 | M35: =MIN($O$6,$Q$6*$N$6*D35*(C$6-C35-$M$6)/C35) -> 458.3215629 | N35: =M35*$L$6 -> 0.1536618224 | O35: =(0.5*$C$6-C35+I35*C35)*J35+(0.5*$C$6-$I$6)*L35+(0.5*$C$6-$M$6)*N35 -> 0.01942216714 | P35: =0.1*$Q$6*D35*$B$6^2/C35+$R$6 -> 0.02974048372 | Q35: =(J35+L35-N35) -> 0.0001 | R35: =O35-P35*Q35 -> 0.01941919309 | W35: =IF(C35<$C$6,0,(C35-$C$6)/C35) -> 0 | Y35: 1 | Z35: =Z37+(Z38-Z37)*(Y34*Y34/AN36-Y37)/(Y38-Y37) -> 0.06975132457 | AA35: =AA37+(AA38-AA37)*(Y34*Y34/AN36-Y37)/(Y38-Y37) -> 0.0008056030427 | AB35: 0.1561673005 | AC35: -0.1063175644 | AD35: 8.625689228 | AE35: 5.617640509 | AF35: 0.6512685955 | AG35: 0.601653249 | AH35: 197.164131 | AI35: 0.06610336964 | AJ35: 458.3333333 | AK35: 0.1536657687 | AL35: 0.05050234848 | AM35: 0.04294341807 | AN35: 0.51409085 | AO35: 0.02842553018 | AP35: 0
B36: 0.1986099292 | C36: =U11 -> 0.04518142254 | D36: =Z95 -> 0.0003912789278 | E36: 0.07584997902 | F36: =IF($C$2=1,-($O$31-2)*D36/$O$30,3*($O$30/D36)^2) -> -0.05163811504 | G36: =IF($C$2=1,0.5*($O$31*D36*$F$6/$O$30)*(1-W36^2+(E36-F36)*(F36^2*(1-W36^2)+2*F36*(1-W36)+2*LN((1-F36)/(1-F36*W36)))/(F36^3)),$F$6*F36*(LN((1-E36+E36^2)/(1+E36)^2)/(6*E36)+ATAN((2-E36)/(E36*3^0.5))/(E36*3^0.5)-LN((W36^2-E36*W36+E36^2)/(W36+E36)^2)/(6*E36)-ATAN((2*W36-E36)/(E36*3^0.5))/(E36*3^0.5))) -> 4.590961576 | H36: =IF($C$2=1,($O$31*D36*$F$6/$O$30)*(1-W36^3-(E36-F36)*(-2*F36^3*(1-W36^3)-3*F36^2*(1-W36^2)-6*F36*(1-W36)-6*LN((1-F36)/(1-F36*W36)))/(2*F36^4))/3,$F$6*F36*(LN((1+E36^3)/(E36^3+W36^3)))/3) -> 3.027313267 | I36: =H36/G36 -> 0.6594072323 | J36: =G36*C36*$D$6 -> 0.2074261748 | K36: =MAX(MIN($K$6,$Q$6*$J$6*D36*(C36-$I$6)/C36),-$K$6) -> 25.74711267 | L36: 0.008632254238 | M36: =MIN($O$6,$Q$6*$N$6*D36*(C$6-C36-$M$6)/C36) -> 458.3333333 | N36: 0.1536657687 | O36: =(0.5*$C$6-C36+I36*C36)*J36+(0.5*$C$6-$I$6)*L36+(0.5*$C$6-$M$6)*N36 -> 0.02359128629 | P36: =0.1*$Q$6*D36*$B$6^2/C36+$R$6 -> 0.03219990049 | Q36: =(J36+L36-N36) -> 0.06239266041 | R36: =O36-P36*Q36 -> 0.02158224884 | S36: =((R36-R35)*(Q36-Q37)-(R36-R37)*(Q36-Q35))/((Q36^2-Q35^2)*(Q36-Q37)-(Q36^2-Q37^2)*(Q36-Q35)) -> -0.04919963966 | T36: =-(S36*(Q36^2-Q35^2)-(R36-R35))/(Q36-Q35) -> 0.03779870311 | U36: =R36-S36*Q36^2-T36*Q36 -> 0.01941541372 | V36: =S36*Q35^2+T36*Q35+U36 -> 0.01941919309 | W36: =IF(C36<$C$6,0,(C36-$C$6)/C36) -> 0 | Y36: =VLOOKUP(Y34,Result,7) -> 7 | Z36: =Z37+(Z38-Z37)*(Y34-Y37)/(Y38-Y37) -> 0.06970245276 | AA36: =AA37+(AA38-AA37)*(Y34-Y37)/(Y38-Y37) -> 0.0008046277466 | AB36: 0.1559782379 | AC36: -0.106188852 | AD36: 8.617117314 | AE36: 5.612228424 | AF36: 0.6512883855 | AG36: 0.6006342125 | AH36: 196.7397985 | AI36: 0.06596110333 | AJ36: 458.3333333 | AK36: 0.1536657687 | AL36: 0.05043937462 | AM36: 0.04292150229 | AN36: 0.5129295472 | AO36: 0.02842366789 | AP36: 0
B37: 0.2172239439 | C37: 0.04941589192 | D37: =Z97 -> 0.0004535276012 | E37: 0.08791697328 | F37: -0.05985323713 | G37: 5.249113626 | H37: 3.455054172 | I37: 0.6582166855 | J37: 0.2593896316 | K37: 49.58513656 | L37: 0.01662444681 | M37: 458.3333333 | N37: 0.1536657687 | O37: 0.02747860934 | P37: =0.1*$Q$6*D37*$B$6^2/C37+$R$6 -> 0.03412440242 | Q37: 0.1223483097 | R37: =O37-P37*Q37 -> 0.02330354639 | S37: -0.04125154939 | T37: 0.0363303652 | U37: 0.01947608655 | V37: 0.02158224884 | W37: 0 | Y37: =INDEX(Result,Y36,1) -> 0.4613581949 | Z37: =INDEX(Result,Y36,3) -> 0.06750525256 | AA37: =INDEX(Result,Y36,4) -> 0.0007607799574 | AB37: 0.1474782814 | AC37: -0.1004021433 | AD37: 8.227375827 | AE37: 5.365687371 | AF37: 0.6521748226 | AG37: 0.5553910831 | AH37: 177.8648366 | AI37: 0.05963288038 | AJ37: 458.3333333 | AK37: 0.1536657687 | AL37: 0.04760953262 | AM37: 0.04190341968 | AN37: 0.4613581949 | AO37: 0.02827704655 | AP37: 0
B38: 0.2335767534 | C38: 0.05313596372 | D38: =Z99 -> 0.0005115788342 | E38: 0.09917028772 | F38: -0.0675144119 | G38: 5.845874057 | H38: 3.841304602 | I38: 0.6570967086 | J38: 0.3106261518 | K38: 72.56695687 | L38: 0.02432957936 | M38: 458.3333333 | N38: 0.1536657687 | O38: 0.03119635825 | P38: 0.03579744055 | Q38: 0.1812899625 | R38: 0.02470664159 | S38: -0.06130412725 | T38: 0.0424190953 | U38: 0.01903130993 | V38: 0.02330354639 | W38: 0 | Y38: =INDEX(Result,Y36+1,1) -> 0.6037474464 | Z38: =INDEX(Result,Y36+1,3) -> 0.0734371256 | AA38: =INDEX(Result,Y36+1,4) -> 0.0008791576631 | AB38: 0.1704259687 | AC38: -0.1160247622 | AD38: 9.260126417 | AE38: 6.016921761 | AF38: 0.6497666975 | AG38: 0.6800370668 | AH38: 229.6851922 | AI38: 0.0770067308 | AJ38: 457.2314852 | AK38: 0.1532963512 | AL38: 0.05522785037 | AM38: 0.0445122007 | AN38: 0.6037474464 | AO38: 0.02835372287 | AP38: 0
B39: 0.2524446198 | C39: 0.05742818137 | D39: =D38+($D$53-$D$38)/15 -> 0.0005401835817 | E39: 0.1047153589 | F39: -0.07128945608 | G39: 6.133972869 | H39: 4.027206501 | I39: 0.6565412967 | J39: 0.3522629064 | K39: 94.0635472 | L39: 0.03153675771 | M39: 445.6574093 | N39: 0.1494159019 | O39: 0.03380318747 | P39: 0.03497391798 | Q39: 0.2343837623 | R39: 0.025605869 | S39: -0.1001237004 | T39: 0.05855537186 | U39: 0.01738181101 | V39: 0.02470664159 | W39: 0 | Y39: =MAX(IF(Makro!$C$11=1,Kold!$BH$12,Brand!$BE$34)/1000,M10) -> 0.5615 | Z39: =Z40+(Z43-Z42)*(Y39-AN40)/(Y43-Y42) -> 0.07172538794 | AA39: =AA40+(AA43-AA42)*(Y39-AN40)/(Y43-Y42) -> 0.0008449978664 | AB39: 0.1638040433 | AC39: -0.1115166035 | AD39: 8.968429071 | AE39: 5.83366284 | AF39: 0.6504665191 | AG39: 0.6432640544 | AH39: 214.4581782 | AI39: 0.07190155811 | AJ39: 458.3333333 | AK39: 0.1536657687 | AL39: 0.05304522831 | AM39: 0.04380368799 | AN39: 0.5614998438 | AO39: 0.02844946435 | AP39: 0
B40: 0.2734005969 | C40: 0.06219541963 | D40: =D39+($D$53-$D$38)/15 -> 0.0005687883292 | E40: 0.11026043 | F40: -0.07506450027 | G40: 6.418182221 | H40: 4.210221605 | I40: 0.655983495 | J40: 0.3991815365 | K40: 116.4685314 | L40: 0.03904849396 | M40: 408.2727589 | N40: 0.1368819214 | O40: 0.03618187075 | P40: 0.03400323561 | Q40: 0.3013481091 | R40: 0.02593506 | S40: 0.003061799834 | T40: 0.003275610733 | U40: 0.02466991676 | V40: 0.025605869 | W40: 0 | Y40: 1 | Z40: =Z42+(Z43-Z42)*(Y39*Y39/AN41-Y42)/(Y43-Y42) -> 0.07172599872 | AA40: =AA42+(AA43-AA42)*(Y39*Y39/AN41-Y42)/(Y43-Y42) -> 0.0008450100552 | AB40: 0.1638064061 | AC40: -0.1115182121 | AD40: 8.96853406 | AE40: 5.833728899 | AF40: 0.6504662701 | AG40: 0.6432770625 | AH40: 214.4635742 | AI40: 0.07190336723 | AJ40: 458.3333333 | AK40: 0.1536657687 | AL40: 0.05304601456 | AM40: 0.04380394683 | AN40: 0.5615146611 | AO40: 0.0284494562 | AP40: 0
B41: 0.2967417287 | C41: 0.06750525256 | D41: 0.0005973930767 | E41: 0.1158055012 | F41: -0.07883954445 | G41: 6.698532885 | H41: 4.390374296 | I41: 0.6554232652 | J41: 0.4521861542 | K41: 139.6661689 | L41: 0.0468259837 | M41: 368.1138217 | N41: 0.1234178037 | O41: 0.03869075891 | P41: 0.03290414339 | Q41: 0.3755943342 | R41: 0.02633214908 | S41: 0.002429665029 | T41: 0.003703529613 | U41: 0.02459836881 | V41: =S41*Q40^2+T41*Q40+U41 -> 0.02593506 | W41: 0 | Y41: =VLOOKUP(Y39,Result,7) -> 7 | Z41: =Z42+(Z43-Z42)*(Y39-Y42)/(Y43-Y42) -> 0.07167711573 | AA41: =AA42+(AA43-AA42)*(Y39-Y42)/(Y43-Y42) -> 0.000844034536 | AB41: 0.1636173004 | AC41: -0.1113894702 | AD41: 8.960129229 | AE41: 5.828440377 | AF41: 0.6504861959 | AG41: 0.6422362197 | AH41: 214.0317942 | AI41: 0.071758604 | AJ41: 458.3333333 | AK41: 0.1536657687 | AL41: 0.05298308583 | AM41: 0.04378321681 | AN41: 0.5603290551 | AO41: 0.02845007732 | AP41: 0
B42: 0.3228172443 | C42: 0.0734371256 | D42: 0.0006259978242 | E42: 0.1213505723 | F42: -0.08261458864 | G42: 6.975055287 | H42: 4.567688672 | I42: 0.6548605687 | J42: 0.5122280112 | K42: 163.5456717 | L42: 0.05483208297 | M42: 325.5683558 | N42: 0.1091535527 | O42: 0.04131684715 | P42: 0.03169458899 | Q42: 0.4579065415 | R42: 0.02680368753 | S42: 0.0007547207525 | T42: 0.005099597134 | U42: 0.0243103 | V42: =S42*Q41^2+T42*Q41+U42 -> 0.02633214908 | W42: 0 | Y42: =INDEX(Result,Y41,1) -> 0.4613581949 | Z42: =INDEX(Result,Y41,3) -> 0.06750525256 | AA42: =INDEX(Result,Y41,4) -> 0.0007607799574 | AB42: 0.1474782814 | AC42: -0.1004021433 | AD42: 8.227375827 | AE42: 5.365687371 | AF42: 0.6521748226 | AG42: 0.5553910831 | AH42: 177.8648366 | AI42: 0.05963288038 | AJ42: 458.3333333 | AK42: 0.1536657687 | AL42: 0.04760953262 | AM42: 0.04190341968 | AN42: 0.4613581949 | AO42: 0.02827704655 | AP42: 0
B43: 0.3520395737 | C43: 0.0800848618 | D43: 0.0006546025716 | E43: 0.1268956435 | F43: -0.08638963282 | G43: 7.247779514 | H43: 4.742188552 | I43: 0.6542953663 | J43: 0.5804374207 | K43: 188.0012045 | L43: 0.06303130823 | M43: 281.0067852 | N43: 0.0942133607 | O43: 0.04403178048 | P43: 0.03039171774 | Q43: 0.5492553683 | R43: 0.02733896636 | S43: -0.00160476532 | T43: 0.007475981632 | U43: 0.02371687126 | V43: 0.02680368753 | W43: 0 | Y43: =INDEX(Result,Y41+1,1) -> 0.6037474464 | Z43: =INDEX(Result,Y41+1,3) -> 0.0734371256 | AA43: =INDEX(Result,Y41+1,4) -> 0.0008791576631 | AB43: 0.1704259687 | AC43: -0.1160247622 | AD43: 9.260126417 | AE43: 6.016921761 | AF43: 0.6497666975 | AG43: 0.6800370668 | AH43: 229.6851922 | AI43: 0.0770067308 | AJ43: 457.2314852 | AK43: 0.1532963512 | AL43: 0.05522785037 | AM43: 0.0445122007 | AN43: 0.6037474464 | AO43: 0.02835372287 | AP43: 0
B44: 0.3848981057 | C44: 0.0875597913 | D44: 0.0006832073191 | E44: 0.1324407147 | F44: -0.09016467701 | G44: 7.516735317 | H44: 4.913897476 | I44: 0.6537276183 | J44: 0.6581637756 | K44: 212.9318843 | L44: 0.07138983636 | M44: 234.7822003 | N44: 0.07871560862 | O44: 0.04678479079 | P44: 0.02901187268 | Q44: 0.6508380034 | R44: 0.0279027615 | S44: -0.004376267607 | T44: 0.01080204316 | U44: 0.02272612497 | V44: 0.02733896636 | W44: 0 | Y44: =MAX(IF(Makro!$C$11=1,Kold!$BI$12,Brand!$BF$34)/1000,M10) -> 0.0955 | Z44: =Z45+(Z48-Z47)*(Y44-AN45)/(Y48-Y47) -> 0.0474352145 | AA44: =AA45+(AA48-AA47)*(Y44-AN45)/(Y48-Y47) -> 0.0004279260915 | AB44: =IF($C$2=1,AA44/($O$31*$O$30),2^(1/3)*$O$30/AA44) -> 0.08295408406 | AC44: =IF($C$2=1,-($O$31-2)*AA44/$O$30,3*($O$30/AA44)^2) -> -0.05647453818 | AD44: =IF($C$2=1,0.5*($O$31*AA44*$F$6/$O$30)*(1-AP44^2+(AB44-AC44)*(AC44^2*(1-AP44^2)+2*AC44*(1-AP44)+2*LN((1-AC44)/(1-AC44*AP44)))/(AC44^3)),$F$6*AC44*(LN((1-AB44+AB44^2)/(1+AB44)^2)/(6*AB44)+ATAN((2-AB44)/(AB44*3^0.5))/(AB44*3^0.5)-LN((AP44^2-AB44*AP44+AB44^2)/(AP44+AB44)^2)/(6*AB44)-ATAN((2*AP44-AB44)/(AB44*3^0.5))/(AB44*3^0.5))) -> 4.980733681 | AE44: =IF($C$2=1,($O$31*AA44*$F$6/$O$30)*(1-AP44^3-(AB44-AC44)*(-2*AC44^3*(1-AP44^3)-3*AC44^2*(1-AP44^2)-6*AC44*(1-AP44)-6*LN((1-AC44)/(1-AC44*AP44)))/(2*AC44^4))/3,$F$6*AC44*(LN((1+AB44^3)/(AB44^3+AP44^3)))/3) -> 3.280847205 | AF44: =AE44/AD44 -> 0.6587076151 | AG44: =AD44*Z44*$D$6 -> 0.2362621705 | AH44: =MAX(MIN($K$6,$Q$6*$J$6*AA44*(Z44-$I$6)/Z44),-$K$6) -> 38.48702702 | AI44: =AH44*$H$6 -> 0.01290357511 | AJ44: =MIN($O$6,$Q$6*$N$6*AA44*(C$6-Z44-$M$6)/Z44) -> 458.3333333 | AK44: =AJ44*$L$6 -> 0.1536657687 | AL44: =(0.5*$C$6-Z44+AF44*Z44)*AG44+(0.5*$C$6-$I$6)*AI44+(0.5*$C$6-$M$6)*AK44 -> 0.0257671487 | AM44: =0.1*$Q$6*AA44*$B$6^2/Z44+$R$6 -> 0.03354253401 | AN44: =AG44+AI44-AK44 -> 0.09549997694 | AO44: =AL44-AM44*AN44 -> 0.02256383747 | AP44: =IF(Z44<$C$6,0,(Z44-$C$6)/Z44) -> 0
B45: 0.4219764756 | C45: 0.09599468428 | D45: 0.0007118120666 | E45: 0.1379857858 | F45: -0.0939397212 | G45: 7.781952119 | H45: 5.082838715 | I45: 0.6531572845 | J45: 0.7470260368 | K45: 238.2417805 | L45: 0.07987550471 | M45: 187.2303577 | N45: 0.06277286582 | O45: 0.04949248739 | P45: 0.02757059455 | Q45: 0.7641286757 | R45: 0.02842500548 | S45: -0.007346219706 | T45: 0.01500442642 | U45: 0.02124909656 | V45: 0.0279027615 | W45: 0 | Y45: 1 | Z45: =Z47+(Z48-Z47)*(Y44*Y44/AN46-Y47)/(Y48-Y47) -> 0.04743570261 | AA45: =AA47+(AA48-AA47)*(Y44*Y44/AN46-Y47)/(Y48-Y47) -> 0.000427933581 | AB45: 0.0829555359 | AC45: -0.05647552658 | AD45: 4.980812662 | AE45: 3.280898516 | AF45: 0.6587074718 | AG45: 0.2362683482 | AH45: 38.48983122 | AI45: 0.01290451527 | AJ45: 458.3333333 | AK45: 0.1536657687 | AL45: 0.02576761072 | AM45: 0.0335427759 | AN45: 0.09550709478 | AO45: 0.02256403764 | AP45: 0
B46: 0.4639744388 | C46: 0.1055487269 | D46: 0.0007404168141 | E46: 0.143530857 | F46: -0.09771476538 | G46: 8.043459017 | H46: 5.249035268 | I46: 0.6525843244 | J46: 0.8489768588 | K46: 263.8399153 | L46: 0.08845781102 | M46: 138.6696801 | N46: 0.04649189015 | O46: 0.05202403029 | P46: 0.02608262178 | Q46: 0.8909427796 | R46: 0.02878590674 | S46: -0.01034583006 | T46: 0.01996899589 | U46: 0.01920697705 | V46: 0.02842500548 | W46: 0 | Y46: =VLOOKUP(Y44,Result,7) -> 2 | Z46: =Z47+(Z48-Z47)*(Y44-Y47)/(Y48-Y47) -> 0.04738719498 | AA46: =AA47+(AA48-AA47)*(Y44-Y47)/(Y48-Y47) -> 0.0004271893002 | AB46: 0.082811256 | AC46: -0.05637730187 | AD46: 4.972962432 | AE46: 3.275798352 | AF46: 0.6587217169 | AG46: 0.2356547404 | AH46: 38.21130684 | AI46: 0.01281113419 | AJ46: 458.3333333 | AK46: 0.1536657687 | AL46: 0.02572171135 | AM46: 0.03351871299 | AN46: 0.09480010594 | AO46: 0.0225441338 | AP46: 0
B47: 0.5117357434 | C47: 0.1164138618 | D47: 0.0007690215616 | E47: 0.1490759281 | F47: -0.1014898096 | G47: 8.301284787 | H47: 5.412509874 | I47: 0.6520086967 | J47: 0.9663846201 | K47: 289.6402632 | L47: 0.09710791347 | M47: 89.40125658 | N47: 0.02997362795 | O47: 0.05417947442 | P47: 0.02456189048 | Q47: 1.033518906 | R47: 0.02879429625 | S47: -0.01324368623 | T47: 0.02554580907 | U47: 0.0165386131 | V47: 0.02878590674 | W47: 0 | Y47: =INDEX(Result,Y46,1) -> 0.0634389673 | Z47: =INDEX(Result,Y46,3) -> 0.04518142254 | AA47: =INDEX(Result,Y46,4) -> 0.0003933448487 | AB47: 0.07625046074 | AC47: -0.05191076009 | AD47: 4.613110708 | AE47: 3.041737071 | AF47: 0.6593678893 | AG47: 0.2084269041 | AH47: 25.88305533 | AI47: 0.008677831839 | AJ47: 458.3333333 | AK47: 0.1536657687 | AL47: 0.02366786063 | AM47: 0.03236991334 | AN47: 0.0634389673 | AO47: 0.02161434675 | AP47: 0
B48: 0.5662839194 | C48: 0.1288229302 | D48: 0.0007976263091 | E48: 0.1546209993 | F48: -0.1052648538 | G48: 8.555457888 | H48: 5.573285009 | I48: 0.6514303597 | J48: 1.102139154 | K48: 315.5617513 | L48: 0.1057986307 | M48: 39.70884229 | N48: 0.01331321405 | O48: 0.05565792136 | P48: 0.02302153446 | Q48: 1.194624571 | R48: 0.02815583063 | S48: -0.01594168 | T48: 0.03155732628 | U48: 0.01320748902 | V48: 0.02879429625 | W48: 0 | Y48: =INDEX(Result,Y46+1,1) -> 0.1249872297 | Z48: =INDEX(Result,Y46+1,3) -> 0.04941589192 | AA48: =INDEX(Result,Y46+1,4) -> 0.000458316779 | AB48: 0.08884536223 | AC48: -0.06048527758 | AD48: 5.298963349 | AE48: 3.487378386 | AF48: 0.6581246474 | AG48: 0.2618530001 | AH48: 50.10874754 | AI48: 0.01679999827 | AJ48: 458.3333333 | AK48: 0.1536657687 | AL48: 0.02766629401 | AM48: 0.03448475057 | AN48: 0.1249872297 | AO48: 0.02335614057 | AP48: 0
B49: 0.6288686047 | C49: 0.1430602099 | D49: 0.0008262310565 | E49: 0.1601660704 | F49: -0.1090398979 | G49: 8.806006471 | H49: 5.731382893 | I49: 0.6508492711 | J49: 1.259789134 | K49: 341.5282592 | L49: 0.1145044418 | M49: -10.1411413 | N49: -0.003400028233 | O49: 0.05601030895 | P49: 0.02147388524 | Q49: 1.377693604 | R49: 0.0264258746 | S49: -0.01837213818 | T49: 0.03780923803 | U49: 0.009207376218 | V49: 0.02815583063 | W49: 0 | Y49: =MAX(IF(Makro!$C$11=1,Kold!$BJ$12,Brand!$BG$34)/1000,M10) -> 0.5141 | Z49: =Z50+(Z53-Z52)*(Y49-AN50)/(Y53-Y52) -> 0.06975170576 | AA49: =AA50+(AA53-AA52)*(Y49-AN50)/(Y53-Y52) -> 0.0008056106497 | AB49: 0.1561687751 | AC49: -0.1063185683 | AD49: 8.62575607 | AE49: 5.61768271 | AF49: 0.6512684412 | AG49: 0.6016611993 | AH49: 197.1674415 | AI49: 0.06610447952 | AJ49: 458.3333333 | AK49: 0.1536657687 | AL49: 0.05050283966 | AM49: 0.04294358888 | AN49: 0.5140999102 | AO49: 0.02842554447 | AP49: 0
B50: 0.7010260332 | C50: 0.159475176 | D50: 0.000854835804 | E50: 0.1657111416 | F50: -0.1128149421 | G50: 9.052958378 | H50: 5.886825494 | I50: 0.6502653882 | J50: 1.443722131 | K50: 367.4686191 | L50: 0.1232014861 | M50: -59.89960657 | N50: -0.0200825871 | O50: 0.0545687948 | P50: 0.01993047201 | Q50: 1.587006204 | R50: 0.02293901208 | S50: -0.02049493299 | T50: 0.04410268739 | U50: 0.004566080039 | V50: 0.0264258746 | W50: 0 | Y50: 1 | Z50: =Z52+(Z53-Z52)*(Y49*Y49/AN51-Y52)/(Y53-Y52) -> 0.06975132457 | AA50: =AA52+(AA53-AA52)*(Y49*Y49/AN51-Y52)/(Y53-Y52) -> 0.0008056030427 | AB50: 0.1561673005 | AC50: -0.1063175644 | AD50: 8.625689228 | AE50: 5.617640509 | AF50: 0.6512685955 | AG50: 0.601653249 | AH50: 197.164131 | AI50: 0.06610336964 | AJ50: 458.3333333 | AK50: 0.1536657687 | AL50: 0.05050234848 | AM50: 0.04294341807 | AN50: 0.51409085 | AO50: 0.02842553018 | AP50: 0
B51: 0.7846587445 | C51: 0.178500634 | D51: 0.0008834405515 | E51: 0.1712562127 | F51: -0.1165899863 | G51: 9.296341147 | H51: 6.039634529 | I51: 0.6496786676 | J51: 1.659402789 | K51: 393.3166154 | L51: 0.1318675637 | M51: -109.3347996 | N51: -0.03665676224 | O51: 0.0503400535 | P51: 0.01840202166 | Q51: 1.827927115 | R51: 0.01670249913 | S51: -0.008698378004 | T51: 0.003818238719 | U51: 0.03878708002 | V51: 0.02293901208 | W51: 0 | Y51: =VLOOKUP(Y49,Result,7) -> 7 | Z51: =Z52+(Z53-Z52)*(Y49-Y52)/(Y53-Y52) -> 0.06970245276 | AA51: =AA52+(AA53-AA52)*(Y49-Y52)/(Y53-Y52) -> 0.0008046277466 | AB51: 0.1559782379 | AC51: -0.106188852 | AD51: 8.617117314 | AE51: 5.612228424 | AF51: 0.6512883855 | AG51: 0.6006342125 | AH51: 196.7397985 | AI51: 0.06596110333 | AJ51: 458.3333333 | AK51: 0.1536657687 | AL51: 0.05043937462 | AM51: 0.04292150229 | AN51: 0.5129295472 | AO51: 0.02842366789 | AP51: 0
B52: 0.8821416725 | C52: 0.2006768534 | D52: 0.000912045299 | E52: 0.1768012839 | F52: -0.1203650305 | G52: 9.414951541 | H52: 6.181525473 | I52: 0.6565647678 | J52: 1.88936285 | K52: 419.0109854 | L52: 0.1404821349 | M52: -158.2323004 | N52: -0.05305066488 | O52: 0.04420028377 | P52: 0.01689845879 | Q52: 2.08289565 | R52: 0.009002557475 | S52: 0.008170422354 | T52: -0.06215264974 | U52: 0.1030130374 | V52: 0.01670249913 | W52: 0.1030355672 | Y52: =INDEX(Result,Y51,1) -> 0.4613581949 | Z52: =INDEX(Result,Y51,3) -> 0.06750525256 | AA52: =INDEX(Result,Y51,4) -> 0.0007607799574 | AB52: 0.1474782814 | AC52: -0.1004021433 | AD52: 8.227375827 | AE52: 5.365687371 | AF52: 0.6521748226 | AG52: 0.5553910831 | AH52: 177.8648366 | AI52: 0.05963288038 | AJ52: 458.3333333 | AK52: 0.1536657687 | AL52: 0.04760953262 | AM52: 0.04190341968 | AN52: 0.4613581949 | AO52: 0.02827704655 | AP52: 0
B53: 0.9964648509 | C53: 0.2266840316 | D53: =$Z$124 -> 0.0009406500465 | E53: 0.1823463551 | F53: =IF($C$2=1,-($O$31-2)*D53/$O$30,3*($O$30/D53)^2) -> -0.1241400747 | G53: 9.28373703 | H53: 6.270688688 | I53: =H53/G53 -> 0.6754487625 | J53: =G53*C53*$D$6 -> 2.104474939 | K53: 444.4954186 | L53: 0.1490263204 | M53: =MIN($O$6,$Q$6*$N$6*D53*(C$6-C53-$M$6)/C53) -> -206.3950226 | N53: -0.06919821774 | O53: =(0.5*$C$6-C53+I53*C53)*J53+(0.5*$C$6-$I$6)*L53+(0.5*$C$6-$M$6)*N53 -> 0.03856670146 | P53: =0.1*$Q$6*D53*$B$6^2/C53+$R$6 -> 0.01542890566 | Q53: =(J53+L53-N53) -> 2.322699477 | R53: =O53-P53*Q53 -> 0.002729990355 | W53: 0.2059431858 | Y53: =INDEX(Result,Y51+1,1) -> 0.6037474464 | Z53: =INDEX(Result,Y51+1,3) -> 0.0734371256 | AA53: =INDEX(Result,Y51+1,4) -> 0.0008791576631 | AB53: 0.1704259687 | AC53: -0.1160247622 | AD53: 9.260126417 | AE53: 6.016921761 | AF53: 0.6497666975 | AG53: 0.6800370668 | AH53: 229.6851922 | AI53: 0.0770067308 | AJ53: 457.2314852 | AK53: 0.1532963512 | AL53: 0.05522785037 | AM53: 0.0445122007 | AN53: 0.6037474464 | AO53: 0.02835372287 | AP53: 0
B54: De | C54: hc | D54: e0 | E54: a' | F54: b' | G54: N' | H54: tN' | I54: t | J54: Nc | K54: sac | L54: Nac | M54: sat | N54: Nat | O54: Mtot | P54: u | Q54: N | R54: Mo | S54: a'' | T54: b'' | U54: c'' | W54: x | Y54: =MAX(IF(Makro!$C$11=1,Kold!$BK$12,Brand!$BH$34)/1000,M10) -> 0.0001 | Z54: =Z55+(Z58-Z57)*(Y54-AN55)/(Y58-Y57) -> 0.04013868786 | AA54: =AA55+(AA58-AA57)*(Y54-AN55)/(Y58-Y57) -> 0.0003210578024 | AB54: =IF($C$2=1,AA54/($O$31*$O$30),2^(1/3)*$O$30/AA54) -> 0.06223751358 | AC54: =IF($C$2=1,-($O$31-2)*AA54/$O$30,3*($O$30/AA54)^2) -> -0.0423708474 | AD54: =IF($C$2=1,0.5*($O$31*AA54*$F$6/$O$30)*(1-AP54^2+(AB54-AC54)*(AC54^2*(1-AP54^2)+2*AC54*(1-AP54)+2*LN((1-AC54)/(1-AC54*AP54)))/(AC54^3)),$F$6*AC54*(LN((1-AB54+AB54^2)/(1+AB54)^2)/(6*AB54)+ATAN((2-AB54)/(AB54*3^0.5))/(AB54*3^0.5)-LN((AP54^2-AB54*AP54+AB54^2)/(AP54+AB54)^2)/(6*AB54)-ATAN((2*AP54-AB54)/(AB54*3^0.5))/(AB54*3^0.5))) -> 3.825446827 | AE54: =IF($C$2=1,($O$31*AA54*$F$6/$O$30)*(1-AP54^3-(AB54-AC54)*(-2*AC54^3*(1-AP54^3)-3*AC54^2*(1-AP54^2)-6*AC54*(1-AP54)-6*LN((1-AC54)/(1-AC54*AP54)))/(2*AC54^4))/3,$F$6*AC54*(LN((1+AB54^3)/(AB54^3+AP54^3)))/3) -> 2.527617251 | AF54: =AE54/AD54 -> 0.6607377818 | AG54: =AD54*Z54*$D$6 -> 0.1535484161 | AH54: =MAX(MIN($K$6,$Q$6*$J$6*AA54*(Z54-$I$6)/Z54),-$K$6) -> 0.6365191477 | AI54: =AH54*$H$6 -> 0.0002134062635 | AJ54: =MIN($O$6,$Q$6*$N$6*AA54*(C$6-Z54-$M$6)/Z54) -> 458.3215629 | AK54: =AJ54*$L$6 -> 0.1536618224 | AL54: =(0.5*$C$6-Z54+AF54*Z54)*AG54+(0.5*$C$6-$I$6)*AI54+(0.5*$C$6-$M$6)*AK54 -> 0.01942216714 | AM54: =0.1*$Q$6*AA54*$B$6^2/Z54+$R$6 -> 0.02974048372 | AN54: =AG54+AI54-AK54 -> 0.0001 | AO54: =AL54-AM54*AN54 -> 0.01941919309
C55: =$C$35 -> 0.04013868786 | D55: =$D$35 -> 0.0003210578024 | E55: =$E$35 -> 0.06223751358 | F55: =$F$35 -> -0.0423708474 | G55: =IF($C$2=1,0.5*($O$31*D55*$F$6/$O$30)*(1-W55^2+(E55-F55)*(F55^2*(1-W55^2)+2*F55*(1-W55)+2*LN((1-F55)/(1-F55*W55)))/(F55^3)),$F$6*F55*(LN((1-E55+E55^2)/(1+E55)^2)/(6*E55)+ATAN((2-E55)/(E55*3^0.5))/(E55*3^0.5)-LN((W55^2-E55*W55+E55^2)/(W55+E55)^2)/(6*E55)-ATAN((2*W55-E55)/(E55*3^0.5))/(E55*3^0.5))) -> 3.825446827 | H55: =IF($C$2=1,($O$31*D55*$F$6/$O$30)*(1-W55^3-(E55-F55)*(-2*F55^3*(1-W55^3)-3*F55^2*(1-W55^2)-6*F55*(1-W55)-6*LN((1-F55)/(1-F55*W55)))/(2*F55^4))/3,$F$6*F55*(LN((1+E55^3)/(E55^3+W55^3)))/3) -> 2.527617251 | I55: =$I$35 -> 0.6607377818 | J55: =$J$35 -> 0.1535484161 | K55: =$K$35 -> 0.6365191477 | L55: =$L$35 -> 0.0002134062635 | M55: =$M$35 -> 458.3215629 | N55: =$N$35 -> 0.1536618224 | O55: =$O$35 -> 0.01942216714 | P55: =$P$35 -> 0.02974048372 | Q55: =$Q$35 -> 0.0001 | R55: =$R$35 -> 0.01941919309 | W55: =IF(C55<$C$6,0,(C55-$C$6)/C55) -> 0 | Y55: 1 | Z55: =Z57+(Z58-Z57)*(Y54*Y54/AN56-Y57)/(Y58-Y57) -> 0.04013868786 | AA55: =AA57+(AA58-AA57)*(Y54*Y54/AN56-Y57)/(Y58-Y57) -> 0.0003210578024 | AB55: 0.06223751358 | AC55: -0.0423708474 | AD55: 3.825446827 | AE55: 2.527617251 | AF55: 0.6607377818 | AG55: 0.1535484161 | AH55: 0.6365191477 | AI55: 0.0002134062635 | AJ55: 458.3215629 | AK55: 0.1536618224 | AL55: 0.01942216714 | AM55: 0.02974048372 | AN55: 0.0001 | AO55: 0.01941919309
B56: =0.25*D36*$Q$31 -> 5.681282567e-06 | C56: =C36 -> 0.04518142254 | D56: =D36+B56 -> 0.0003969602103 | E56: =IF($C$2=1,D56/($O$31*$O$30),2^(1/3)*$O$30/D56) -> 0.07695130376 | F56: =IF($C$2=1,-($O$31-2)*D56/$O$30,3*($O$30/D56)^2) -> -0.05238788893 | G56: =IF($C$2=1,0.5*($O$31*D56*$F$6/$O$30)*(1-W56^2+(E56-F56)*(F56^2*(1-W56^2)+2*F56*(1-W56)+2*LN((1-F56)/(1-F56*W56)))/(F56^3)),$F$6*F56*(LN((1-E56+E56^2)/(1+E56)^2)/(6*E56)+ATAN((2-E56)/(E56*3^0.5))/(E56*3^0.5)-LN((W56^2-E56*W56+E56^2)/(W56+E56)^2)/(6*E56)-ATAN((2*W56-E56)/(E56*3^0.5))/(E56*3^0.5))) -> 4.651820826 | H56: =IF($C$2=1,($O$31*D56*$F$6/$O$30)*(1-W56^3-(E56-F56)*(-2*F56^3*(1-W56^3)-3*F56^2*(1-W56^2)-6*F56*(1-W56)-6*LN((1-F56)/(1-F56*W56)))/(2*F56^4))/3,$F$6*F56*(LN((1+E56^3)/(E56^3+W56^3)))/3) -> 3.066940871 | I56: =H56/G56 -> 0.6592990113 | J56: =G56*C56*$D$6 -> 0.2101758823 | K56: =MAX(MIN($K$6,$Q$6*$J$6*D56*(C56-$I$6)/C56),-$K$6) -> 26.12095499 | L56: =K56*$H$6 -> 0.00875759264 | M56: =MIN($O$6,$Q$6*$N$6*D56*(C$6-C56-$M$6)/C56) -> 458.3333333 | N56: =M56*$L$6 -> 0.1536657687 | O56: =(0.5*$C$6-C56+I56*C56)*J56+(0.5*$C$6-$I$6)*L56+(0.5*$C$6-$M$6)*N56 -> 0.02380168543 | P56: =0.1*$Q$6*D56*$B$6^2/C56+$R$6 -> 0.03266743585 | Q56: =(J56+L56-N56) -> 0.06526770629 | R56: =O56-P56*Q56 -> 0.02166955683 | S56: =((R56-R55)*(Q56-Q57)-(R56-R57)*(Q56-Q55))/((Q56^2-Q55^2)*(Q56-Q57)-(Q56^2-Q57^2)*(Q56-Q55)) -> -0.05375525589 | T56: =-(S56*(Q56^2-Q55^2)-(R56-R55))/(Q56-Q55) -> 0.03804574269 | U56: =R56-S56*Q56^2-T56*Q56 -> 0.01941538906 | V56: =S36*Q56^2+T36*Q56+U36 -> 0.02167286413 | W56: =IF(C56<$C$6,0,(C56-$C$6)/C56) -> 0 | Y56: =VLOOKUP(Y54,Result,7) -> 1 | Z56: =Z57+(Z58-Z57)*(Y54-Y57)/(Y58-Y57) -> 0.04013868786 | AA56: =AA57+(AA58-AA57)*(Y54-Y57)/(Y58-Y57) -> 0.0003210578024 | AB56: 0.06223751358 | AC56: -0.0423708474 | AD56: 3.825446827 | AE56: 2.527617251 | AF56: 0.6607377818 | AG56: 0.1535484161 | AH56: 0.6365191477 | AI56: 0.0002134062635 | AJ56: 458.3215629 | AK56: 0.1536618224 | AL56: 0.01942216714 | AM56: 0.02974048372 | AN56: 0.0001 | AO56: 0.01941919309
B57: =0.5*D37*$Q$31 -> 1.317023878e-05 | C57: 0.04941589192 | D57: 0.00046669784 | E57: 0.09047004288 | F57: -0.06159134837 | G57: 5.385932038 | H57: 3.5437463 | I57: 0.6579634267 | J57: 0.2661506355 | K57: 51.02506676 | L57: 0.01710721332 | M57: 458.3333333 | N57: 0.1536657687 | O57: 0.02799371698 | P57: =0.1*$Q$6*D57*$B$6^2/C57+$R$6 -> 0.03511535981 | Q57: 0.1295920801 | R57: 0.02344304446 | S57: -0.04622016995 | T57: 0.03657745745 | U57: 0.01947912215 | V57: =MAX(S37*Q57^2+T37*Q57+U37,S38*Q57^2+T38*Q57+U38) -> 0.02349894064 | W57: 0 | Y57: =INDEX(Result,Y56,1) -> 0.0001 | Z57: =INDEX(Result,Y56,3) -> 0.04013868786 | AA57: =INDEX(Result,Y56,4) -> 0.0003210578024 | AB57: 0.06223751358 | AC57: -0.0423708474 | AD57: 3.825446827 | AE57: 2.527617251 | AF57: 0.6607377818 | AG57: 0.1535484161 | AH57: 0.6365191477 | AI57: 0.0002134062635 | AJ57: 458.3215629 | AK57: 0.1536618224 | AL57: 0.01942216714 | AM57: 0.02974048372 | AN57: 0.0001 | AO57: 0.01941919309
B58: =0.75*D38*$Q$31 -> 2.228403095e-05 | C58: 0.05313596372 | D58: 0.0005338628652 | E58: 0.1034900789 | F58: -0.0704552944 | G58: 6.070648277 | H58: 3.98637757 | I58: 0.656664229 | J58: 0.3225697466 | K58: 75.72792485 | L58: 0.02538935952 | M58: 458.3333333 | N58: 0.1536657687 | O58: 0.03209923983 | P58: 0.03735675306 | Q58: 0.1942933375 | R58: 0.0248410716 | S58: 0.009564480215 | T58: 0.01850962274 | U58: 0.02088371704 | V58: =MAX(S38*Q58^2+T38*Q58+U38,S39*Q58^2+T39*Q58+U39) -> 0.02497906986 | W58: 0 | Y58: =INDEX(Result,Y56+1,1) -> 0.0634389673 | Z58: =INDEX(Result,Y56+1,3) -> 0.04518142254 | AA58: =INDEX(Result,Y56+1,4) -> 0.0003933448487 | AB58: 0.07625046074 | AC58: -0.05191076009 | AD58: 4.613110708 | AE58: 3.041737071 | AF58: 0.6593678893 | AG58: 0.2084269041 | AH58: 25.88305533 | AI58: 0.008677831839 | AJ58: 458.3333333 | AK58: 0.1536657687 | AL58: 0.02366786063 | AM58: 0.03236991334 | AN58: 0.0634389673 | AO58: 0.02161434675
B59: =D39*$Q$31 -> 3.137337943e-05 | C59: 0.05742818137 | D59: 0.0005715569611 | E59: 0.1107971333 | F59: -0.07542988395 | G59: 6.445485327 | H59: 4.227783178 | I59: 0.6559293775 | J59: 0.3701525004 | K59: 99.52667392 | L59: 0.0333683844 | M59: 458.3333333 | N59: 0.1536657687 | O59: 0.03535145984 | P59: 0.03700517187 | Q59: 0.2498551161 | R59: 0.02610552832 | S59: -0.1137676017 | T59: 0.07328737622 | U59: 0.01489653838 | V59: 0.02576169003 | W59: 0
B60: 3.303471759e-05 | C60: 0.06219541963 | D60: 0.0006018230468 | E60: 0.1166642572 | F60: -0.07942417932 | G60: 6.741607221 | H60: 4.418019823 | I60: 0.6553362838 | J60: 0.4192970901 | K60: 123.2329195 | L60: 0.04131639557 | M60: 431.9848757 | N60: 0.144831901 | O60: 0.038055889 | P60: 0.03597811313 | Q60: 0.3157815847 | R60: 0.02669466342 | S60: -0.0381411368 | T60: 0.0305102721 | U60: 0.02086343958 | V60: 0.02601015662 | W60: 0
B61: 3.469605574e-05 | C61: 0.06750525256 | D61: 0.0006320891324 | E61: 0.1225313811 | F61: -0.0834184747 | G61: 7.033448494 | H61: 4.605083032 | I61: 0.6547404216 | J61: 0.4747947169 | K61: 147.7778551 | L61: 0.04954559496 | M61: 389.4935434 | N61: 0.1305857994 | O61: 0.0406721321 | P61: 0.03481518662 | Q61: 0.3937545125 | R61: 0.02696349526 | S61: 0.003075277408 | T61: 0.001265738422 | U61: 0.02598830599 | V61: 0.02643530326 | W61: 0
B62: 3.63573939e-05 | C62: 0.0734371256 | D62: 0.0006623552181 | E62: 0.1283985051 | F62: -0.08741277008 | G62: 7.32104471 | H62: 4.789000959 | I62: 0.6541417446 | J62: 0.5376364799 | K62: 173.0442581 | L62: 0.05801668132 | M62: 344.4770748 | N62: 0.1154930934 | O62: 0.04340743107 | P62: 0.03353538238 | Q62: 0.4801600678 | R62: 0.0273050796 | S62: 0.001424420611 | T62: 0.002708446246 | U62: 0.02567618643 | V62: 0.02693655454 | W62: 0
B63: 3.801873206e-05 | C63: 0.0800848618 | D63: 0.0006926213037 | E63: 0.134265629 | F63: -0.09140706545 | G63: 7.604431017 | H63: 4.969801411 | I63: 0.6535402056 | J63: 0.6089998071 | K63: 198.9201464 | L63: 0.06669211025 | M63: 297.3274081 | N63: 0.09968518845 | O63: 0.04623142641 | P63: 0.03215684153 | Q63: 0.5760067289 | R63: 0.02770886931 | S63: -0.0008966115289 | T63: 0.005159843327 | U63: 0.02503424597 | V63: 0.02749620002 | W63: 0
B64: 3.968007022e-05 | C64: 0.0875597913 | D64: 0.0007228873893 | E64: 0.1401327529 | F64: -0.09540136083 | G64: 7.883642153 | H64: 5.147511856 | I64: 0.6529357569 | J64: 0.6902900616 | K64: 225.2987777 | L64: 0.07553609423 | M64: 248.4181406 | N64: 0.08328734079 | O64: 0.04909014049 | P64: 0.03069685631 | Q64: 0.682538815 | R64: 0.02813834456 | S64: -0.003622716091 | T64: 0.008590770075 | U64: 0.02396248628 | V64: 0.0280678957 | W64: 0
B65: 4.134140837e-05 | C65: 0.09599468428 | D65: 0.000753153475 | E65: 0.1459998769 | F65: -0.09939565621 | G65: 8.158712446 | H65: 5.322159429 | I65: 0.6523283501 | J65: 0.7831930254 | K65: 252.0786501 | L65: 0.0845146026 | M65: 198.1045295 | N65: 0.06641865774 | O65: 0.05189525765 | P65: 0.02917187003 | Q65: 0.8012889702 | R65: 0.02852015995 | S65: -0.006545670543 | T65: 0.01292793111 | U65: 0.02236389085 | V65: 0.02856522803 | W65: 0
B66: 4.300274653e-05 | C66: 0.1055487269 | D66: 0.0007834195606 | E66: 0.1518670008 | F66: -0.1033899516 | G66: 8.429675828 | H66: 5.493770932 | I66: 0.6517179361 | J66: 0.8897415514 | K66: 279.1635016 | L66: 0.09359536159 | M66: 146.7234912 | N66: 0.04919209756 | O66: 0.05450856504 | P66: 0.02759747713 | Q66: 0.9341448154 | R66: 0.02872852485 | S66: -0.009500463875 | T66: 0.01805577928 | U66: 0.02015216913 | V66: 0.02884530615 | W66: 0
B67: 4.466408469e-05 | C67: 0.1164138618 | D67: 0.0008136856463 | E67: 0.1577341247 | F67: -0.107384247 | G67: 8.696565835 | H67: 5.662372847 | I67: 0.6511044652 | J67: 1.012400813 | K67: 306.4623107 | L67: 0.1027478543 | M67: 94.59360163 | N67: 0.03171446946 | O67: 0.05671923795 | P67: 0.02598842312 | Q67: 1.083434198 | R67: 0.02856249158 | S67: -0.01235822181 | T67: 0.02382153172 | U67: 0.01725987679 | V67: 0.02868495867 | W67: 0
B68: 4.632542284e-05 | C68: 0.1288229302 | D68: 0.0008439517319 | E68: 0.1636012487 | F68: -0.1113785423 | G68: 8.959415618 | H68: 5.827991335 | I68: 0.650487887 | J68: 1.154178173 | K68: 333.8892957 | L68: 0.1119433206 | M68: 42.01509635 | N68: 0.01408643362 | O68: 0.05821044959 | P68: 0.0243586046 | Q68: 1.25203506 | R68: 0.02771262263 | S68: -0.01502236346 | T68: 0.03004355265 | U68: 0.01364597503 | V68: 0.02774585482 | W68: 0
B69: 4.7986761e-05 | C69: 0.1430602099 | D69: 0.0008742178175 | E69: 0.1694683726 | F69: -0.1153728377 | G69: 9.218257945 | H69: 5.990652241 | I69: 0.6498681505 | J69: 1.318765916 | K69: 361.3639151 | L69: 0.1211547574 | M69: -10.73012972 | N69: -0.003597498833 | O69: 0.05850989521 | P69: 0.0227210693 | Q69: 1.443518172 | R69: 0.02571161879 | S69: -0.01742592803 | T69: 0.03652248889 | U69: 0.009301927794 | V69: 0.02552290245 | W69: 0
B70: 4.964809916e-05 | C70: 0.159475176 | D70: 0.0009044839032 | E70: 0.1753354965 | F70: -0.1193671331 | G70: 9.473125207 | H70: 6.150381105 | I70: 0.6492452037 | J70: 1.51072831 | K70: 388.8108679 | L70: 0.1303569183 | M70: -63.37852216 | N70: -0.0212489658 | O70: 0.05691581514 | P70: 0.021088016 | Q70: 1.662334194 | R70: 0.02186048505 | S70: -0.01952886877 | T70: 0.04305391236 | U70: 0.00425569097 | V70: 0.02124471034 | W70: 0
B71: 5.130943732e-05 | C71: 0.178500634 | D71: 0.0009347499888 | E71: 0.1812026205 | F71: -0.1233614285 | G71: 9.724049427 | H71: 6.307203159 | I71: 0.6486189942 | J71: 1.735748988 | K71: 416.1600927 | L71: 0.1395263139 | M71: -115.684867 | N71: -0.03878575421 | O71: 0.05238525351 | P71: 0.01947079463 | Q71: 1.914061056 | R71: 0.01511696378 | S71: -0.008099793003 | T71: 0.002179020073 | U71: 0.04062082875 | V71: 0.01422778582 | W71: 0
B72: 5.297077547e-05 | C72: 0.2006768534 | D72: 0.0009650160745 | E72: 0.1870697444 | F72: -0.1273557238 | G72: 9.842943108 | H72: 6.452366684 | I72: 0.6555322542 | J72: 1.975250851 | K72: 443.3467688 | L72: 0.1486412116 | M72: -167.4222909 | N72: -0.05613180006 | O72: 0.04585546761 | P72: 0.01787990616 | Q72: 2.180023863 | R72: 0.006876845508 | S72: 0.006486775732 | T72: -0.05753963101 | U72: 0.1014861863 | V72: =S52*Q72^2+T52*Q72+U52 -> 0.006348743045 | W72: 0.1030355672
B73: 5.463211363e-05 | C73: 0.2266840316 | D73: 0.0009952821601 | E73: 0.1929368683 | F73: =IF($C$2=1,-($O$31-2)*D73/$O$30,3*($O$30/D73)^2) -> -0.1313500192 | G73: 9.698304614 | H73: 6.541796019 | I73: 0.6745298565 | J73: 2.19845079 | K73: 458.3333333 | L73: 0.1536657687 | M73: -218.382261 | N73: -0.07321718836 | O73: 0.03968375362 | P73: 0.01632500271 | Q73: 2.425333747 | R73: 9.017363508e-05 | W73: 0.2059431858
B74: De | C74: hc | D74: e0 | E74: a' | F74: b' | G74: N' | H74: tN' | I74: t | J74: Nc | K74: sac | L74: Nac | M74: sat | N74: Nat | O74: Mtot | P74: u | Q74: N | R74: Mo | S74: a'' | T74: b'' | U74: c'' | W74: x
C75: =$C$35 -> 0.04013868786 | D75: =$D$35 -> 0.0003210578024 | E75: =$E$35 -> 0.06223751358 | F75: =$F$35 -> -0.0423708474 | G75: =IF($C$2=1,0.5*($O$31*D75*$F$6/$O$30)*(1-W75^2+(E75-F75)*(F75^2*(1-W75^2)+2*F75*(1-W75)+2*LN((1-F75)/(1-F75*W75)))/(F75^3)),$F$6*F75*(LN((1-E75+E75^2)/(1+E75)^2)/(6*E75)+ATAN((2-E75)/(E75*3^0.5))/(E75*3^0.5)-LN((W75^2-E75*W75+E75^2)/(W75+E75)^2)/(6*E75)-ATAN((2*W75-E75)/(E75*3^0.5))/(E75*3^0.5))) -> 3.825446827 | H75: =IF($C$2=1,($O$31*D75*$F$6/$O$30)*(1-W75^3-(E75-F75)*(-2*F75^3*(1-W75^3)-3*F75^2*(1-W75^2)-6*F75*(1-W75)-6*LN((1-F75)/(1-F75*W75)))/(2*F75^4))/3,$F$6*F75*(LN((1+E75^3)/(E75^3+W75^3)))/3) -> 2.527617251 | I75: =$I$35 -> 0.6607377818 | J75: =$J$35 -> 0.1535484161 | K75: =$K$35 -> 0.6365191477 | L75: =$L$35 -> 0.0002134062635 | M75: =$M$35 -> 458.3215629 | N75: =$N$35 -> 0.1536618224 | O75: =$O$35 -> 0.01942216714 | P75: =$P$35 -> 0.02974048372 | Q75: =$Q$35 -> 0.0001 | R75: =$R$35 -> 0.01941919309 | W75: =IF(C75<$C$6,0,(C75-$C$6)/C75) -> 0
B76: =IF(R56>$Q$29*V56,B56,-0.7*B56) -> -3.976897797e-06 | C76: =IF(Q56>Q55,C56,(1-$T$6)*C56+$T$6*C57) -> 0.04518142254 | D76: =D56+B76 -> 0.0003929833125 | E76: =IF($C$2=1,D76/($O$31*$O$30),2^(1/3)*$O$30/D76) -> 0.07618037644 | F76: =IF($C$2=1,-($O$31-2)*D76/$O$30,3*($O$30/D76)^2) -> -0.05186304721 | G76: =IF($C$2=1,0.5*($O$31*D76*$F$6/$O$30)*(1-W76^2+(E76-F76)*(F76^2*(1-W76^2)+2*F76*(1-W76)+2*LN((1-F76)/(1-F76*W76)))/(F76^3)),$F$6*F76*(LN((1-E76+E76^2)/(1+E76)^2)/(6*E76)+ATAN((2-E76)/(E76*3^0.5))/(E76*3^0.5)-LN((W76^2-E76*W76+E76^2)/(W76+E76)^2)/(6*E76)-ATAN((2*W76-E76)/(E76*3^0.5))/(E76*3^0.5))) -> 4.609236137 | H76: =IF($C$2=1,($O$31*D76*$F$6/$O$30)*(1-W76^3-(E76-F76)*(-2*F76^3*(1-W76^3)-3*F76^2*(1-W76^2)-6*F76*(1-W76)-6*LN((1-F76)/(1-F76*W76)))/(2*F76^4))/3,$F$6*F76*(LN((1+E76^3)/(E76^3+W76^3)))/3) -> 3.039214041 | I76: =H76/G76 -> 0.6593747751 | J76: =G76*C76*$D$6 -> 0.2082518455 | K76: =MAX(MIN($K$6,$Q$6*$J$6*D76*(C76-$I$6)/C76),-$K$6) -> 25.85926537 | L76: =K76*$H$6 -> 0.008669855759 | M76: =MIN($O$6,$Q$6*$N$6*D76*(C$6-C76-$M$6)/C76) -> 458.3333333 | N76: =M76*$L$6 -> 0.1536657687 | O76: =(0.5*$C$6-C76+I76*C76)*J76+(0.5*$C$6-$I$6)*L76+(0.5*$C$6-$M$6)*N76 -> 0.02365446553 | P76: =0.1*$Q$6*D76*$B$6^2/C76+$R$6 -> 0.03234016109 | Q76: =(J76+L76-N76) -> 0.06325593257 | R76: =O76-P76*Q76 -> 0.02160875848 | S76: =((R76-R75)*(Q76-Q77)-(R76-R77)*(Q76-Q75))/((Q76^2-Q75^2)*(Q76-Q77)-(Q76^2-Q77^2)*(Q76-Q75)) -> -0.05061222891 | T76: =-(S76*(Q76^2-Q75^2)-(R76-R75))/(Q76-Q75) -> 0.03787578066 | U76: =R76-S76*Q76^2-T76*Q76 -> 0.01941540602 | V76: =S56*Q76^2+T56*Q76+U56 -> 0.02160691639 | W76: =IF(C76<$C$6,0,(C76-$C$6)/C76) -> 0
B77: =IF(R57>$Q$29*V57,B57,-0.7*B57) -> -9.219167147e-06 | C77: =IF(Q57>Q56,C57,(1-$T$6)*C57+$T$6*C58) -> 0.04941589192 | D77: =D57+B77 -> 0.0004574786728 | E77: 0.08868289416 | F77: -0.0603746705 | G77: 5.290247704 | H77: 3.481727638 | I77: 0.6581407587 | J77: 0.2614223087 | K77: 50.01711562 | L77: 0.01676927677 | M77: 458.3333333 | N77: 0.1536657687 | O77: 0.02763347998 | P77: =0.1*$Q$6*D77*$B$6^2/C77+$R$6 -> 0.03442168964 | Q77: 0.1245258168 | R77: 0.02334709096 | S77: -0.04282419828 | T77: 0.03641333064 | U77: 0.01947675231 | V77: =MAX(S57*Q77^2+T57*Q77+U57,S58*Q77^2+T58*Q77+U58) -> 0.02333695626 | W77: 0
B78: -1.559882167e-05 | C78: 0.05313596372 | D78: 0.0005182640435 | E78: 0.1004662251 | F78: -0.06839667665 | G78: 5.913555483 | H78: 3.885011488 | I78: 0.6569671154 | J78: 0.3142224696 | K78: 73.51524727 | L78: 0.02464751341 | M78: 458.3333333 | N78: 0.1536657687 | O78: 0.0314682331 | P78: 0.03626523431 | Q78: 0.1852042144 | R78: 0.02475175887 | S78: -0.04470973311 | T78: 0.03699733741 | U78: 0.01943326678 | V78: =MAX(S58*Q78^2+T58*Q78+U58,S59*Q78^2+T59*Q78+U59) -> 0.0246398446 | W78: 0
B79: 3.137337943e-05 | C79: 0.05742818137 | D79: 0.0006029303406 | E79: 0.1168789077 | F79: -0.07957031181 | G79: 6.752359543 | H79: 4.424919341 | I79: 0.655314533 | J79: 0.3877757285 | K79: 104.9898006 | L79: 0.03520001109 | M79: 458.3333333 | N79: 0.1536657687 | O79: 0.03666721604 | P79: 0.03903642575 | Q79: 0.2693099709 | R79: 0.02615431736 | S79: 0.02522769015 | T79: 0.005209786451 | U79: 0.02292155953 | V79: 0.0263822388 | W79: 0
B80: 3.303471759e-05 | C80: 0.06219541963 | D80: 0.0006348577644 | E80: 0.1230680844 | F80: -0.08378385838 | G80: 7.05993262 | H80: 4.622037455 | I80: 0.6546857745 | J80: 0.4390954719 | K80: 129.9973077 | L80: 0.04358429719 | M80: 455.6969924 | N80: 0.1527818806 | O80: 0.03990646409 | P80: 0.03795299065 | Q80: 0.3298978884 | R80: 0.02738585261 | S80: -0.1320540557 | T80: 0.09945424467 | U80: 0.008947895733 | V80: 0.02677771419 | W80: 0
B81: 3.469605574e-05 | C81: 0.06750525256 | D81: 0.0006667851882 | E81: 0.1292572611 | F81: -0.08799740495 | G81: 7.362785412 | H81: 4.815658357 | I81: 0.6540538788 | J81: 0.4970266888 | K81: 155.8895413 | L81: 0.05226520623 | M81: 410.873265 | N81: 0.1377537951 | O81: 0.04262619819 | P81: 0.03672622985 | Q81: 0.4115380999 | R81: 0.02751195534 | S81: 0.003665881902 | T81: -0.001173401365 | U81: 0.02737398772 | V81: 0.02703206027 | W81: 0
B82: 3.63573939e-05 | C82: 0.0734371256 | D82: 0.000698712612 | E82: 0.1354464378 | F82: -0.09221095152 | G82: 7.66095912 | H82: 5.005814643 | I82: 0.6534187906 | J82: 0.5625988171 | K82: 182.5428445 | L82: 0.06120127967 | M82: 363.3857938 | N82: 0.1218326342 | O82: 0.04546636475 | P82: 0.03537617576 | Q82: 0.5019674626 | R82: 0.02770867557 | S82: 0.002036689444 | T82: 0.0003148750068 | U82: 0.02703743121 | V82: 0.02739839903 | W82: 0
B83: 3.801873206e-05 | C83: 0.0800848618 | D83: 0.0007306400358 | E83: 0.1416356145 | F83: -0.09642449808 | G83: 7.954494436 | H83: 5.192538486 | I83: 0.6527804536 | J83: 0.6370345876 | K83: 209.8390883 | L83: 0.07035291227 | M83: 313.6480309 | N83: 0.1051570162 | O83: 0.04839456981 | P83: 0.03392196532 | Q83: 0.6022304837 | R83: 0.02796572823 | S83: -0.0002504016416 | T83: 0.002840276287 | U83: 0.02634604332 | V83: 0.02782221759 | W83: 0
B84: 3.968007022e-05 | C84: 0.0875597913 | D84: 0.0007625674596 | E84: 0.1478247912 | F84: -0.1006380447 | G84: 8.243431553 | H84: 5.375861651 | I84: 0.652138811 | J84: 0.7217931463 | K84: 237.6656711 | L84: 0.07968235209 | M84: 262.0540809 | N84: 0.08785907295 | O84: 0.05135360736 | P84: 0.03238183993 | Q84: 0.7136164255 | R84: 0.0282453945 | S84: 0.006410169881 | T84: -0.005924016164 | U84: 0.02920850097 | V84: 0.02825610257 | W84: 0
B85: -2.893898586e-05 | C85: 0.09599468428 | D85: 0.0007242144891 | E85: 0.1403900131 | F85: -0.0955765017 | G85: 7.89578992 | H85: 5.155233769 | I85: 0.6529091859 | J85: 0.7579538605 | K85: 242.3928414 | L85: 0.08126723408 | M85: 190.4926092 | N85: 0.0638666034 | O85: 0.05021837081 | P85: 0.0280509772 | Q85: 0.7753544912 | R85: 0.02846891966 | S85: -0.006081405733 | T85: 0.01267557663 | U85: 0.02229684097 | V85: 0.02845252951 | W85: 0
B86: -3.010192257e-05 | C86: 0.1055487269 | D86: 0.0007533176381 | E86: 0.1460317001 | F86: -0.09941732124 | G86: 8.160193197 | H86: 5.323098413 | I86: 0.6523250474 | J86: 0.8612980028 | K86: 268.4369912 | L86: 0.08999907619 | M86: 141.0858234 | N86: 0.04730195238 | O86: 0.05277512152 | P86: 0.02653707839 | Q86: 0.9039951266 | R86: 0.02878573199 | S86: -0.01008291991 | T86: 0.01939551793 | U86: 0.01949211293 | V86: 0.02871065823 | W86: 0
B87: -3.126485928e-05 | C87: 0.1164138618 | D87: 0.000782420787 | E87: 0.1516733871 | F87: -0.1032581408 | G87: 8.420799276 | H87: 5.488155957 | I87: 0.6517381281 | J87: 0.9802977634 | K87: 294.6868774 | L87: 0.09879989571 | M87: 90.9589601 | N87: 0.03049588041 | O87: 0.05494785619 | P87: 0.02498985027 | Q87: 1.048601779 | R87: 0.02874345474 | S87: -0.01296801805 | T87: 0.02502895163 | U87: 0.01675723927 | V87: 0.02865050063 | W87: 0
B88: -3.242779599e-05 | C88: 0.1288229302 | D88: 0.0008115239359 | E88: 0.1573150741 | F88: -0.1070989603 | G88: 8.67763798 | H88: 5.650429947 | I88: 0.6511483839 | J88: 1.117878752 | K88: 321.0600146 | L88: 0.1076420377 | M88: 40.40071851 | N88: 0.01354517992 | O88: 0.05643087974 | P88: 0.02342265551 | Q88: 1.211975609 | R88: 0.02804319256 | S88: -0.01458343183 | T88: 0.02868071949 | U88: 0.01470424256 | V88: 0.02799190554 | W88: 0 | Y88: hc | Z88: e0 | AA88: a' | AB88: b' | AC88: N' | AD88: tN' | AE88: t' | AF88: Nc | AG88: sac | AH88: Nac | AI88: sat | AJ88: Nat | AK88: Mtot | AL88: N | AM88: u | AN88: Mo | AP88: N | AQ88: A | AR88: B1 | AS88: B2 | AT88: B3 | AU88: C1 | AV88: C2 | AW88: x
B89: 4.7986761e-05 | C89: 0.1430602099 | D89: 0.0009222045785 | E89: 0.1787706748 | F89: -0.1217057775 | G89: 9.620516792 | H89: 6.242550929 | I89: 0.6488789598 | J89: 1.376313151 | K89: 381.1995711 | L89: 0.1278050729 | M89: -11.31911814 | N89: -0.003794969433 | O89: 0.06093448397 | P89: 0.02396825335 | Q89: 1.507913194 | R89: 0.02479243851 | S89: -0.01442244484 | T89: 0.02824285278 | U89: 0.01499845497 | V89: 0.02477246869 | W89: 0 | AW89: 0
B90: 4.964809916e-05 | C90: 0.159475176 | D90: 0.0009541320023 | E90: 0.1849598515 | F90: -0.1259193241 | G90: 9.882681682 | H90: 6.406114754 | I90: 0.6482162393 | J90: 1.576042401 | K90: 410.1531167 | L90: 0.1375123504 | M90: -66.85743775 | N90: -0.0224153445 | O90: 0.05918146285 | P90: 0.02224556 | Q90: 1.735970096 | R90: 0.02056383594 | S90: -0.01866539696 | T90: 0.04200649428 | U90: 0.003891712238 | V90: 0.02014394926 | W90: 0 | Y90: =0.5*(-(AR90+AS90+AT90)+SQRT(MAX((AR90+AS90+AT90)^2+4*AQ90*(AU90+AV90),0)))/AQ90 -> 0.03950570353 | Z90: =0.05*O30 -> 0.0001123164235 | AA90: =IF($C$2=1,Z90/($O$31*$O$30),2^(1/3)*$O$30/Z90) -> 0.02177269911 | AB90: =IF($C$2=1,-($O$31-2)*Z90/$O$30,3*($O$30/Z90)^2) -> -0.01482269548 | AC90: =IF($C$2=1,0.5*($O$31*Z90*$F$6/$O$30)*(1-AW89^2+(AA90-AB90)*(AB90^2*(1-AW89^2)+2*AB90*(1-AW89)+2*LN((1-AB90)/(1-AB90*AW89)))/(AB90^3)),$F$6*AB90*(LN((1-AA90+AA90^2)/(1+AA90)^2)/(6*AA90)+ATAN((2-AA90)/(AA90*3^0.5))/(AA90*3^0.5)-LN((AW89^2-AA90*AW89+AA90^2)/(AW89+AA90)^2)/(6*AA90)-ATAN((2*AW89-AA90)/(AA90*3^0.5))/(AA90*3^0.5))) -> 1.400651898 | AD90: =IF($C$2=1,($O$31*Z90*$F$6/$O$30)*(1-AW89^3-(AA90-AB90)*(-2*AB90^3*(1-AW89^3)-3*AB90^2*(1-AW89^2)-6*AB90*(1-AW89)-6*LN((1-AB90)/(1-AB90*AW89)))/(2*AB90^4))/3,$F$6*AB90*(LN((1+AA90^3)/(AA90^3+AW89^3)))/3) -> 0.9309010342 | AE90: =AD90/AC90 -> 0.6646198358 | AF90: =AC90*Y90*$D$6 -> 0.05533373862 | AG90: =MAX(MIN($K$6,$Q$6*$J$6*Z90*(Y90-$I$6)/Y90),-$K$6) -> -0.8063506476 | AH90: =AG90*$H$6 -> -0.0002703458009 | AI90: =MIN($O$6,$Q$6*$N$6*Z90*(C$6-Y90-$M$6)/Y90) -> 163.9373249 | AJ90: =AI90*$L$6 -> 0.05496339282 | AK90: =(0.5*$C$6-Y90+AE90*Y90)*AF90+(0.5*$C$6-$I$6)*AH90+(0.5*$C$6-$M$6)*AJ90 -> 0.006981548367 | AL90: =AF90+AH90-AJ90 -> 0.0001 | AO90: 0 | AP90: =AO90*$AP$123 -> 0 | AQ90: =AC90*$D$6 -> 1.400651898 | AR90: =$Q$6*Z90*$H$6*$J$6 -> 0.02160687301 | AS90: =$Q$6*Z90*$L$6*$N$6 -> 0.02160687301 | AT90: =-(AP90+0.0001) -> -0.0001 | AU90: =$I$6*$Q$6*Z90*$H$6*$J$6 -> 0.0008642749202 | AV90: =($C$6-$M$6)*$Q$6*Z90*$L$6*$N$6 -> 0.003024962221 | AW90: 0
B91: 5.130943732e-05 | C91: 0.178500634 | D91: 0.0009860594261 | E91: 0.1911490282 | F91: -0.1301328706 | G91: 10.14051635 | H91: 6.566489232 | I91: 0.6475497902 | J91: 1.810088597 | K91: 439.0035701 | L91: 0.1471850641 | M91: -122.0349344 | N91: -0.04091474619 | O91: 0.05434413527 | P91: 0.02053956759 | Q91: 1.998188407 | R91: 0.01330220942 | S91: -0.008947630063 | T91: 0.005718812379 | U91: 0.03760065659 | V91: 0.0126344169 | W91: 0 | Y91: =0.5*(-(AR91+AS91+AT91)+SQRT(MAX((AR91+AS91+AT91)^2+4*AQ91*(AU91+AV91),0)))/AQ91 -> 0.04011682632 | Z91: =MIN(Z90*$O$6/AI90,$O$30) -> 0.0003140124483 | AA91: 0.06087176161 | AB91: -0.04144105337 | AC91: =IF($C$2=1,0.5*($O$31*Z91*$F$6/$O$30)*(1-AW90^2+(AA91-AB91)*(AB91^2*(1-AW90^2)+2*AB91*(1-AW90)+2*LN((1-AB91)/(1-AB91*AW90)))/(AB91^3)),$F$6*AB91*(LN((1-AA91+AA91^2)/(1+AA91)^2)/(6*AA91)+ATAN((2-AA91)/(AA91*3^0.5))/(AA91*3^0.5)-LN((AW90^2-AA91*AW90+AA91^2)/(AW90+AA91)^2)/(6*AA91)-ATAN((2*AW90-AA91)/(AA91*3^0.5))/(AA91*3^0.5))) -> 3.747273977 | AD91: =IF($C$2=1,($O$31*Z91*$F$6/$O$30)*(1-AW90^3-(AA91-AB91)*(-2*AB91^3*(1-AW90^3)-3*AB91^2*(1-AW90^2)-6*AB91*(1-AW90)-6*LN((1-AB91)/(1-AB91*AW90)))/(2*AB91^4))/3,$F$6*AB91*(LN((1+AA91^3)/(AA91^3+AW90^3)))/3) -> 2.476463075 | AE91: 0.6608705662 | AF91: 0.1503287393 | AG91: =MAX(MIN($K$6,$Q$6*$J$6*Z91*(Y91-$I$6)/Y91),-$K$6) -> 0.5247034842 | AH91: 0.0001759177401 | AI91: 448.6065336 | AJ91: 0.150404657 | AK91: 0.01901342336 | AL91: 0.0001 | AP91: =AP90 -> 0 | AQ91: 3.747273977 | AR91: =IF(AG90<$K$6,$Q$6*Z91*$H$6*$J$6,$H$6*$K$6) -> 0.06040814765 | AS91: =IF(AI90<$O$6,$Q$6*Z91*$L$6*$N$6,-$L$6*$O$6) -> 0.06040814765 | AT91: -0.0001 | AU91: =IF(AG90<$K$6,$I$6*$Q$6*Z91*$H$6*$J$6,0) -> 0.002416325906 | AV91: =IF(AI90<$O$6,($C$6-$M$6)*$Q$6*Z91*$L$6*$N$6,0) -> 0.008457140671 | AW91: 0
B92: 5.297077547e-05 | C92: 0.2006768534 | D92: 0.00101798685 | E92: 0.1973382049 | F92: -0.1343464172 | G92: 10.25906596 | H92: 6.714457028 | I92: 0.6544900923 | J92: 2.058757076 | K92: 458.3333333 | L92: 0.1536657687 | M92: -176.6122815 | N92: -0.05921293524 | O92: 0.04726512502 | P92: 0.01886135354 | Q92: 2.27163578 | R92: 0.004418999463 | S92: 0.005807056459 | T92: -0.05728110501 | U92: 0.1045744846 | V92: =S72*Q92^2+T72*Q92+U72 -> 0.004250999394 | W92: 0.1030355672 | Y92: 0.04013795259 | Z92: =IF(ABS(Z91-Z90)/Z91<0.0001,Z91,MIN(Z91*$O$6/AI91,$O$30)) -> 0.0003208209452 | AA92: 0.06219159846 | AB92: -0.04233958872 | AC92: 3.82282282 | AD92: 2.525900543 | AE92: 0.6607422479 | AF92: 0.1534402811 | AG92: 0.6326890667 | AH92: 0.0002121221493 | AI92: 457.9952024 | AJ92: 0.1535524033 | AK92: 0.01940843814 | AL92: 0.0001 | AP92: =AP91 -> 0 | AQ92: 3.82282282 | AR92: =IF(AG91<$K$6,$Q$6*Z92*$H$6*$J$6,$H$6*$K$6) -> 0.06171793231 | AS92: =IF(AI91<$O$6,$Q$6*Z92*$L$6*$N$6,-$L$6*$O$6) -> 0.06171793231 | AT92: -0.0001 | AU92: =IF(AG91<$K$6,$I$6*$Q$6*Z92*$H$6*$J$6,0) -> 0.002468717292 | AV92: =IF(AI91<$O$6,($C$6-$M$6)*$Q$6*Z92*$L$6*$N$6,0) -> 0.008640510524 | AW92: 0
C93: =C73 -> 0.2266840316 | D93: =D73+(D92-D72) -> 0.001048252936 | E93: 0.2032053288 | F93: -0.1383407126 | G93: 10.08841839 | H93: 6.79586409 | I93: 0.6736302785 | J93: 2.286883354 | K93: 458.3333333 | L93: 0.1536657687 | M93: -230.0049728 | N93: -0.07711394387 | O93: 0.04045704952 | P93: 0.01719384984 | Q93: 2.517663066 | R93: -0.002831271188 | W93: 0.2059431858 | Y93: 0.04013868786 | Z93: =IF(ABS(Z92-Z91)/Z92<0.001,Z92,MIN(Z92*$O$6/AI92,$O$30)) -> 0.0003210578024 | AA93: 0.06223751358 | AB93: =IF($C$2=1,-($O$31-2)*Z93/$O$30,3*($O$30/Z93)^2) -> -0.0423708474 | AC93: =IF($C$2=1,0.5*($O$31*Z93*$F$6/$O$30)*(1-AW92^2+(AA93-AB93)*(AB93^2*(1-AW92^2)+2*AB93*(1-AW92)+2*LN((1-AB93)/(1-AB93*AW92)))/(AB93^3)),$F$6*AB93*(LN((1-AA93+AA93^2)/(1+AA93)^2)/(6*AA93)+ATAN((2-AA93)/(AA93*3^0.5))/(AA93*3^0.5)-LN((AW92^2-AA93*AW92+AA93^2)/(AW92+AA93)^2)/(6*AA93)-ATAN((2*AW92-AA93)/(AA93*3^0.5))/(AA93*3^0.5))) -> 3.825446827 | AD93: 2.527617251 | AE93: 0.6607377818 | AF93: 0.1535484161 | AG93: 0.6365191477 | AH93: 0.0002134062635 | AI93: 458.3215629 | AJ93: 0.1536618224 | AK93: 0.01942216714 | AL93: 0.0001 | AP93: =AP92 -> 0 | AQ93: 3.825446827 | AR93: =IF(AG92<$K$6,$Q$6*Z93*$H$6*$J$6,$H$6*$K$6) -> 0.06176349772 | AS93: =IF(AI92<$O$6,$Q$6*Z93*$L$6*$N$6,-$L$6*$O$6) -> 0.06176349772 | AT93: -0.0001 | AU93: =IF(AG92<$K$6,$I$6*$Q$6*Z93*$H$6*$J$6,0) -> 0.002470539909 | AV93: =IF(AI92<$O$6,($C$6-$M$6)*$Q$6*Z93*$L$6*$N$6,0) -> 0.008646889681 | AW93: =IF(Y93<=$C$6,0,(Y93-$C$6)/Y93) -> 0
B94: De | C94: hc | D94: e0 | E94: a' | F94: b' | G94: N' | H94: tN' | I94: t | J94: Nc | K94: sac | L94: Nac | M94: sat | N94: Nat | O94: Mtot | P94: u | Q94: N | R94: Mo | S94: a'' | T94: b'' | U94: c'' | W94: x | Y94: 0.0460304434 | Z94: =Z93 -> 0.0003210578024 | AA94: 0.06223751358 | AB94: -0.0423708474 | AC94: 3.825446827 | AD94: 2.527617251 | AE94: 0.6607377818 | AF94: 0.1760870137 | AG94: 24.13460974 | AH94: 0.008091629144 | AI94: 376.0782458 | AJ94: 0.1260880423 | AK94: 0.01980697126 | AL94: 0.0580906005 | AO94: 0.025 | AP94: =AO94*$AP$123 -> 0.0579906005 | AQ94: 3.825446827 | AR94: =$Q$6*Z94*$H$6*$J$6 -> 0.06176349772 | AS94: =$Q$6*Z94*$L$6*$N$6 -> 0.06176349772 | AT94: -0.0580906005 | AU94: =$I$6*$Q$6*Z94*$H$6*$J$6 -> 0.002470539909 | AV94: =($C$6-$M$6)*$Q$6*Z94*$L$6*$N$6 -> 0.008646889681 | AW94: 0
C95: =$C$35 -> 0.04013868786 | D95: =$D$35 -> 0.0003210578024 | E95: =$E$35 -> 0.06223751358 | F95: =$F$35 -> -0.0423708474 | G95: =IF($C$2=1,0.5*($O$31*D95*$F$6/$O$30)*(1-W95^2+(E95-F95)*(F95^2*(1-W95^2)+2*F95*(1-W95)+2*LN((1-F95)/(1-F95*W95)))/(F95^3)),$F$6*F95*(LN((1-E95+E95^2)/(1+E95)^2)/(6*E95)+ATAN((2-E95)/(E95*3^0.5))/(E95*3^0.5)-LN((W95^2-E95*W95+E95^2)/(W95+E95)^2)/(6*E95)-ATAN((2*W95-E95)/(E95*3^0.5))/(E95*3^0.5))) -> 3.825446827 | H95: =IF($C$2=1,($O$31*D95*$F$6/$O$30)*(1-W95^3-(E95-F95)*(-2*F95^3*(1-W95^3)-3*F95^2*(1-W95^2)-6*F95*(1-W95)-6*LN((1-F95)/(1-F95*W95)))/(2*F95^4))/3,$F$6*F95*(LN((1+E95^3)/(E95^3+W95^3)))/3) -> 2.527617251 | I95: =$I$35 -> 0.6607377818 | J95: =$J$35 -> 0.1535484161 | K95: =$K$35 -> 0.6365191477 | L95: =$L$35 -> 0.0002134062635 | M95: =$M$35 -> 458.3215629 | N95: =$N$35 -> 0.1536618224 | O95: =$O$35 -> 0.01942216714 | P95: =$P$35 -> 0.02974048372 | Q95: =$Q$35 -> 0.0001 | R95: =$R$35 -> 0.01941919309 | W95: =IF(C95<$C$6,0,(C95-$C$6)/C95) -> 0 | Y95: 0.04518142254 | Z95: =MIN(Z94*$O$6/AI94,$O$30) -> 0.0003912789278 | AA95: 0.07584997902 | AB95: -0.05163811504 | AC95: 4.590961576 | AD95: 3.027313267 | AE95: 0.6594072323 | AF95: 0.2074261748 | AG95: 25.74711267 | AH95: 0.008632254238 | AI95: 458.3333333 | AJ95: 0.1536657687 | AK95: 0.02359128629 | AL95: 0.06239266041 | AP95: =AP94 -> 0.0579906005 | AQ95: 4.590961576 | AR95: =IF(AG94<$K$6,$Q$6*Z95*$H$6*$J$6,$H$6*$K$6) -> 0.07527228736 | AS95: =IF(AI94<$O$6,$Q$6*Z95*$L$6*$N$6,-$L$6*$O$6) -> 0.07527228736 | AT95: -0.0580906005 | AU95: =IF(AG94<$K$6,$I$6*$Q$6*Z95*$H$6*$J$6,0) -> 0.003010891494 | AV95: =IF(AI94<$O$6,($C$6-$M$6)*$Q$6*Z95*$L$6*$N$6,0) -> 0.01053812023 | AW95: 0
B96: =IF(R76>$Q$29*V76,B76/0.5,IF(Q76>Q75,$U$6,-0.5)*B76) -> 3.976897797e-07 | C96: =IF(Q76>Q75,C76,(1-$T$6)*C76+$T$6*C77) -> 0.04518142254 | D96: =D76+B96 -> 0.0003933810023 | E96: =IF($C$2=1,D96/($O$31*$O$30),2^(1/3)*$O$30/D96) -> 0.07625746917 | F96: =IF($C$2=1,-($O$31-2)*D96/$O$30,3*($O$30/D96)^2) -> -0.05191553138 | G96: =IF($C$2=1,0.5*($O$31*D96*$F$6/$O$30)*(1-W96^2+(E96-F96)*(F96^2*(1-W96^2)+2*F96*(1-W96)+2*LN((1-F96)/(1-F96*W96)))/(F96^3)),$F$6*F96*(LN((1-E96+E96^2)/(1+E96)^2)/(6*E96)+ATAN((2-E96)/(E96*3^0.5))/(E96*3^0.5)-LN((W96^2-E96*W96+E96^2)/(W96+E96)^2)/(6*E96)-ATAN((2*W96-E96)/(E96*3^0.5))/(E96*3^0.5))) -> 4.61349813 | H96: =IF($C$2=1,($O$31*D96*$F$6/$O$30)*(1-W96^3-(E96-F96)*(-2*F96^3*(1-W96^3)-3*F96^2*(1-W96^2)-6*F96*(1-W96)-6*LN((1-F96)/(1-F96*W96)))/(2*F96^4))/3,$F$6*F96*(LN((1+E96^3)/(E96^3+W96^3)))/3) -> 3.041989347 | I96: =H96/G96 -> 0.6593672007 | J96: =G96*C96*$D$6 -> 0.2084444084 | K96: =MAX(MIN($K$6,$Q$6*$J$6*D96*(C96-$I$6)/C96),-$K$6) -> 25.88543433 | L96: =K96*$H$6 -> 0.008678629447 | M96: =MIN($O$6,$Q$6*$N$6*D96*(C$6-C96-$M$6)/C96) -> 458.3333333 | N96: =M96*$L$6 -> 0.1536657687 | O96: =(0.5*$C$6-C96+I96*C96)*J96+(0.5*$C$6-$I$6)*L96+(0.5*$C$6-$M$6)*N96 -> 0.02366920001 | P96: =0.1*$Q$6*D96*$B$6^2/C96+$R$6 -> 0.03237288857 | Q96: =(J96+L96-N96) -> 0.06345726917 | R96: =O96-P96*Q96 -> 0.02161490491 | S96: =((R96-R95)*(Q96-Q97)-(R96-R97)*(Q96-Q95))/((Q96^2-Q95^2)*(Q96-Q97)-(Q96^2-Q97^2)*(Q96-Q95)) -> -0.05093603786 | T96: =-(S96*(Q96^2-Q95^2)-(R96-R95))/(Q96-Q95) -> 0.03789339165 | U96: =R96-S96*Q96^2-T96*Q96 -> 0.01941540426 | V96: =S76*Q96^2+T76*Q96+U76 -> 0.02161509304 | W96: =IF(C96<$C$6,0,(C96-$C$6)/C96) -> 0 | Y96: 0.05070139573 | Z96: =Z95 -> 0.0003912789278 | AA96: 0.07584997902 | AB96: -0.05163811504 | AC96: 4.590961576 | AD96: 3.027313267 | AE96: 0.6594072323 | AF96: 0.2327681597 | AG96: 47.3870784 | AH96: 0.01588750217 | AI96: 395.4250519 | AJ96: 0.1325744608 | AK96: 0.02435266887 | AL96: 0.116081201 | AO96: 0.05 | AP96: =AO96*$AP$123 -> 0.115981201 | AQ96: 4.590961576 | AR96: =$Q$6*Z96*$H$6*$J$6 -> 0.07527228736 | AS96: =$Q$6*Z96*$L$6*$N$6 -> 0.07527228736 | AT96: -0.116081201 | AU96: =$I$6*$Q$6*Z96*$H$6*$J$6 -> 0.003010891494 | AV96: =($C$6-$M$6)*$Q$6*Z96*$L$6*$N$6 -> 0.01053812023 | AW96: 0
B97: =IF(R77>$Q$29*V77,B77/0.5,IF(Q77>Q76,$U$6,-0.5)*B77) -> 9.219167147e-07 | C97: =IF(Q77>Q76,C77,(1-$T$6)*C77+$T$6*C78) -> 0.04941589192 | D97: =D77+B97 -> 0.0004584005896 | E97: 0.08886160903 | F97: -0.06049633829 | G97: 5.299834725 | H97: 3.487943321 | I97: 0.6581230362 | J97: 0.26189606 | K97: 50.11791073 | L97: 0.01680307042 | M97: 458.3333333 | N97: 0.1536657687 | O97: 0.0276695747 | P97: =0.1*$Q$6*D97*$B$6^2/C97+$R$6 -> 0.03449105666 | Q97: 0.1250333617 | R97: 0.02335704193 | S97: -0.02208623715 | T97: 0.03245547452 | U97: 0.01964430654 | V97: =MAX(S77*Q97^2+T77*Q97+U77,S78*Q97^2+T78*Q97+U78) -> 0.02336020572 | W97: 0 | Y97: 0.04941589192 | Z97: =MIN(Z96*$O$6/AI96,$O$30) -> 0.0004535276012 | AA97: 0.08791697328 | AB97: -0.05985323713 | AC97: 5.249113626 | AD97: 3.455054172 | AE97: 0.6582166855 | AF97: 0.2593896316 | AG97: 49.58513656 | AH97: 0.01662444681 | AI97: 458.3333333 | AJ97: 0.1536657687 | AK97: 0.02747860934 | AL97: 0.1223483097 | AP97: =AP96 -> 0.115981201 | AQ97: 5.249113626 | AR97: =IF(AG96<$K$6,$Q$6*Z97*$H$6*$J$6,$H$6*$K$6) -> 0.08724737649 | AS97: =IF(AI96<$O$6,$Q$6*Z97*$L$6*$N$6,-$L$6*$O$6) -> 0.08724737649 | AT97: -0.116081201 | AU97: =IF(AG96<$K$6,$I$6*$Q$6*Z97*$H$6*$J$6,0) -> 0.00348989506 | AV97: =IF(AI96<$O$6,($C$6-$M$6)*$Q$6*Z97*$L$6*$N$6,0) -> 0.01221463271 | AW97: 0
B98: =IF(R78>$Q$29*V78,B78/0.75,IF(Q78>Q77,$U$6,-0.5)*B78) -> -2.079842889e-05 | C98: =IF(Q78>Q77,C78,(1-$T$6)*C78+$T$6*C79) -> 0.05313596372 | D98: 0.0004974656146 | E98: 0.09643441994 | F98: -0.06565185297 | G98: 5.70228733 | H98: 3.748511898 | I98: 0.657369873 | J98: 0.3029965327 | K98: 70.56501049 | L98: 0.02365838526 | M98: 458.3333333 | N98: 0.1536657687 | O98: 0.03061954622 | P98: 0.03480987597 | Q98: 0.1729891493 | R98: 0.02459781539 | S98: -0.06598219461 | T98: 0.04553745798 | U98: 0.01869486266 | V98: =MAX(S78*Q98^2+T78*Q98+U78,S79*Q98^2+T79*Q98+U79) -> 0.02457774088 | W98: 0 | Y98: 0.05465747594 | Z98: =Z97 -> 0.0004535276012 | AA98: 0.08791697328 | AB98: -0.05985323713 | AC98: 5.249113626 | AD98: 3.455054172 | AE98: 0.6582166855 | AF98: 0.2869033017 | AG98: 69.78567846 | AH98: 0.02339709801 | AI98: 406.3241153 | AJ98: 0.1362285982 | AK98: 0.02844293757 | AL98: 0.1740718015 | AO98: 0.075 | AP98: =AO98*$AP$123 -> 0.1739718015 | AQ98: 5.249113626 | AR98: =$Q$6*Z98*$H$6*$J$6 -> 0.08724737649 | AS98: =$Q$6*Z98*$L$6*$N$6 -> 0.08724737649 | AT98: -0.1740718015 | AU98: =$I$6*$Q$6*Z98*$H$6*$J$6 -> 0.00348989506 | AV98: =($C$6-$M$6)*$Q$6*Z98*$L$6*$N$6 -> 0.01221463271 | AW98: 0
B99: =IF(R79>$Q$29*V79,B79,IF(Q79>Q78,$U$6,-0.5)*B79) -> -3.137337943e-06 | C99: =IF(Q79>Q78,C79,(1-$T$6)*C79+$T$6*C80) -> 0.05742818137 | D99: 0.0005997930026 | E99: 0.1162707303 | F99: -0.07915626903 | G99: 6.721879696 | H99: 4.40535964 | I99: 0.6553761506 | J99: 0.3860253263 | K99: 104.443488 | L99: 0.03501684842 | M99: 458.3333333 | N99: 0.1536657687 | O99: 0.03653653631 | P99: 0.03883330036 | Q99: 0.2673764061 | R99: 0.02615342802 | S99: -0.01029436453 | T99: 0.02101445576 | U99: 0.02127060395 | V99: 0.02611806467 | W99: 0 | Y99: 0.05313596372 | Z99: =MIN(Z98*$O$6/AI98,$O$30) -> 0.0005115788342 | AA99: 0.09917028772 | AB99: -0.0675144119 | AC99: 5.845874057 | AD99: 3.841304602 | AE99: 0.6570967086 | AF99: 0.3106261518 | AG99: 72.56695687 | AH99: 0.02432957936 | AI99: 458.3333333 | AJ99: 0.1536657687 | AK99: 0.03119635825 | AL99: 0.1812899625 | AP99: =AP98 -> 0.1739718015 | AQ99: 5.845874057 | AR99: =IF(AG98<$K$6,$Q$6*Z99*$H$6*$J$6,$H$6*$K$6) -> 0.09841498298 | AS99: =IF(AI98<$O$6,$Q$6*Z99*$L$6*$N$6,-$L$6*$O$6) -> 0.09841498298 | AT99: -0.1740718015 | AU99: =IF(AG98<$K$6,$I$6*$Q$6*Z99*$H$6*$J$6,0) -> 0.003936599319 | AV99: =IF(AI98<$O$6,($C$6-$M$6)*$Q$6*Z99*$L$6*$N$6,0) -> 0.01377809762 | AW99: 0
B100: =IF(R80>$Q$29*V80,B80,IF(Q80>Q79,$U$6,-0.5)*B80) -> 3.303471759e-05 | C100: =IF(Q80>Q79,C80,(1-$T$6)*C80+$T$6*C81) -> 0.06219541963 | D100: 0.000667892482 | E100: 0.1294719116 | F100: -0.08814353744 | G100: 7.373204638 | H100: 4.822311088 | I100: 0.6540319067 | J100: 0.4585795565 | K100: 136.7616959 | L100: 0.0458521988 | M100: 458.3333333 | N100: 0.1536657687 | O100: 0.0413805129 | P100: 0.03992786817 | Q100: 0.3507659867 | R100: 0.02737517482 | S100: -0.04281246027 | T100: 0.04111526927 | U100: 0.01822084398 | V100: 0.02758555654 | W100: 0
B101: 3.469605574e-05 | C101: 0.06750525256 | D101: 0.0007014812439 | E101: 0.1359831411 | F101: -0.0925763352 | G101: 7.686596545 | H101: 5.022142127 | I101: 0.6533635657 | J101: 0.5188856411 | K101: 164.0012275 | L101: 0.05498481749 | M101: 432.2529866 | N101: 0.1449217908 | O101: 0.04455322824 | P101: 0.03863727307 | Q101: 0.4289486678 | R101: 0.02797982143 | S101: -0.04252695087 | T101: 0.04089265341 | U101: 0.01826380189 | V101: 0.02754724109 | W101: 0
B102: 3.63573939e-05 | C102: 0.0734371256 | D102: 0.0007350700059 | E102: 0.1424943706 | F102: -0.09700913296 | G102: 7.994858659 | H102: 5.21817728 | I102: 0.6526916237 | J102: 0.5871194395 | K102: 192.0414309 | L102: 0.06438587802 | M102: 382.2945128 | N102: 0.1281721749 | O102: 0.04749397782 | P102: 0.03721696915 | Q102: 0.5233331426 | R102: 0.0280171044 | S102: 0.002600190921 | T102: -0.002081102878 | U102: 0.02839408051 | V102: 0.02776387464 | W102: 0 | Y102: hc | Z102: e0 | AA102: a' | AB102: b' | AC102: N' | AD102: tN' | AE102: t' | AF102: Nc | AG102: sac | AH102: Nac | AI102: sat | AJ102: Nat | AK102: Mtot | AL102: N | AM102: u | AN102: Mo | AP102: N | AQ102: A | AR102: B1 | AS102: B2 | AT102: B3 | AU102: C1 | AV102: C2 | AW102: gættet x | AX102: beregnet x | AY102: Max-valg | AZ102: hc' | BA102: sac | BB102: sat
B103: 3.801873206e-05 | C103: 0.0800848618 | D103: 0.0007686587678 | E103: 0.1490056 | F103: -0.1014419307 | G103: 8.298037714 | H103: 5.410453476 | I103: 0.6520160142 | J103: 0.6645472035 | K103: 220.7580301 | L103: 0.0740137143 | M103: 329.9686537 | N103: 0.1106288439 | O103: 0.05052160902 | P103: 0.03568708911 | Q103: 0.6279320739 | R103: 0.02811254114 | S103: 0.003392833766 | T103: -0.002993645015 | U103: 0.02865455696 | V103: 0.02803081086 | W103: 0 | Y103: =$C$6 -> 0.18
B104: -3.968007022e-06 | C104: 0.0875597913 | D104: 0.0007585994525 | E104: 0.1470555874 | F104: -0.1001143763 | G104: 8.207770713 | H104: 5.353261852 | I104: 0.6522187375 | J104: 0.7186706907 | K104: 236.4289818 | L104: 0.07926772631 | M104: 260.6904869 | N104: 0.08740189974 | O104: 0.0511291317 | P104: 0.03221334157 | Q104: 0.7105365172 | R104: 0.02824037618 | S104: 0.01310119126 | T104: -0.0159879766 | U104: 0.0329861219 | V104: 0.02823552325 | W104: 0 | Y104: =0.5*(-(AR104+AS104+AT104)+SQRT((AR104+AS104+AT104)^2+4*AQ104*(AU104+AV104)))/AQ104 -> 0.1216503823 | Z104: =$O$30 -> 0.002246328469 | AA104: =IF($C$2=1,Z104/($O$31*$O$30),2^(1/3)*$O$30/Z104) -> 0.4354539822 | AB104: =IF($C$2=1,-($O$31-2)*Z104/$O$30,3*($O$30/Z104)^2) -> -0.2964539097 | AC104: =IF($C$2=1,0.5*($O$31*Z104*$F$6/$O$30)*(1-AW104^2+(AA104-AB104)*(AB104^2*(1-AW104^2)+2*AB104*(1-AW104)+2*LN((1-AB104)/(1-AB104*AW104)))/(AB104^3)),$F$6*AB104*(LN((1-AA104+AA104^2)/(1+AA104)^2)/(6*AA104)+ATAN((2-AA104)/(AA104*3^0.5))/(AA104*3^0.5)-LN((AW104^2-AA104*AW104+AA104^2)/(AW104+AA104)^2)/(6*AA104)-ATAN((2*AW104-AA104)/(AA104*3^0.5))/(AA104*3^0.5))) -> 17.22034322 | AD104: =IF($C$2=1,($O$31*Z104*$F$6/$O$30)*(1-AW104^3-(AA104-AB104)*(-2*AB104^3*(1-AW104^3)-3*AB104^2*(1-AW104^2)-6*AB104*(1-AW104)-6*LN((1-AB104)/(1-AB104*AW104)))/(2*AB104^4))/3,$F$6*AB104*(LN((1+AA104^3)/(AA104^3+AW104^3)))/3) -> 10.63233514 | AE104: =AD104/AC104 -> 0.6174287587 | AF104: =AC104*Y104*$D$6 -> 2.094861335 | AG104: =MAX(MIN($K$6,$Q$6*$J$6*Z104*(Y104-$I$6)/Y104),-$K$6) -> 458.3333333 | AH104: =AG104*$H$6 -> 0.1536657687 | AI104: =MIN($O$6,$Q$6*$N$6*Z104*(C$6-Y104-$M$6)/Y104) -> 194.4194764 | AJ104: =AI104*$L$6 -> 0.06518316717 | AK104: =(0.5*$C$6-Y104+AE104*Y104)*AF104+(0.5*$C$6-$I$6)*AH104+(0.5*$C$6-$M$6)*AJ104 -> 0.1019852508 | AL104: =AF104+AH104-AJ104 -> 2.183343937 | AM104: =0.1*$Q$6*Z104*$B$6^2/Y104+$R$6 -> 0.06865746334 | AN104: =AK104-AM104*AL104 -> -0.04791760545 | AO104: =IF(AN104=$AO$122,Z104,0) -> 0 | AP104: =IF($C$2=1,Kold!$Q$23/1000,Brand!$AT$43)*V6*S6 -> 2.31962402 | AQ104: =AC104*$D$6 -> 17.22034322 | AR104: =$Q$6*Z104*$H$6*$J$6 -> 0.4321374601 | AS104: =$Q$6*Z104*$L$6*$N$6 -> 0.4321374601 | AT104: =-(AP104+0.0001) -> -2.31972402 | AU104: =$I$6*$Q$6*Z104*$H$6*$J$6 -> 0.0172854984 | AV104: =($C$6-$M$6)*$Q$6*Z104*$L$6*$N$6 -> 0.06049924441 | AW104: =IF(Y103<$C$6,0,(Y103-$C$6)/Y103) -> 0
B105: 2.893898586e-06 | C105: 0.09599468428 | D105: 0.0007271083877 | E105: 0.1409509995 | F105: -0.09595841715 | G105: 7.922251974 | H105: 5.172051904 | I105: 0.6528512248 | J105: 0.7604940771 | K105: 243.3614222 | L105: 0.08159197093 | M105: 191.2538013 | N105: 0.06412180883 | O105: 0.05038711891 | P105: 0.02816306648 | Q105: 0.7779642392 | R105: 0.02847726032 | S105: -0.003181729985 | T105: 0.008249163999 | U105: 0.02398537894 | V105: 0.02847866323 | W105: 0 | Y105: 0.1305996562 | Z105: =0.95*$O$30 -> 0.002134012046 | AA105: 0.4136812831 | AB105: =IF($C$2=1,-($O$31-2)*Z105/$O$30,3*($O$30/Z105)^2) -> -0.2816312142 | AC105: =IF($C$2=1,0.5*($O$31*Z105*$F$6/$O$30)*(1-AW105^2+(AA105-AB105)*(AB105^2*(1-AW105^2)+2*AB105*(1-AW105)+2*LN((1-AB105)/(1-AB105*AW105)))/(AB105^3)),$F$6*AB105*(LN((1-AA105+AA105^2)/(1+AA105)^2)/(6*AA105)+ATAN((2-AA105)/(AA105*3^0.5))/(AA105*3^0.5)-LN((AW105^2-AA105*AW105+AA105^2)/(AW105+AA105)^2)/(6*AA105)-ATAN((2*AW105-AA105)/(AA105*3^0.5))/(AA105*3^0.5))) -> 16.81174068 | AD105: =IF($C$2=1,($O$31*Z105*$F$6/$O$30)*(1-AW105^3-(AA105-AB105)*(-2*AB105^3*(1-AW105^3)-3*AB105^2*(1-AW105^2)-6*AB105*(1-AW105)-6*LN((1-AB105)/(1-AB105*AW105)))/(2*AB105^4))/3,$F$6*AB105*(LN((1+AA105^3)/(AA105^3+AW105^3)))/3) -> 10.43142954 | AE105: =AD105/AC105 -> 0.620484799 | AF105: =AC105*Y105*$D$6 -> 2.195607553 | AG105: =MAX(MIN($K$6,$Q$6*$J$6*Z105*(Y105-$I$6)/Y105),-$K$6) -> 458.3333333 | AH105: 0.1536657687 | AI105: 88.13563405 | AJ105: 0.02954930172 | AK105: =(0.5*$C$6-Y105+AE105*Y105)*AF105+(0.5*$C$6-$I$6)*AH105+(0.5*$C$6-$M$6)*AJ105 -> 0.09794112245 | AL105: =AF105+AH105-AJ105 -> 2.31972402 | AM105: =0.1*$Q$6*Z105*$B$6^2/Y105+$R$6 -> 0.06075510883 | AN105: =IF(Y105>5*$D$6,AN104-1,AK105-AM105*AL105) -> -0.04299396285 | AO105: 0 | AP105: =AP104 -> 2.31962402 | AQ105: =AC105*$D$6 -> 16.81174068 | AR105: =IF(AG104<$K$6,$Q$6*Z105*$H$6*$J$6,$H$6*$K$6) -> 0.1536657687 | AS105: =IF(AI104<$O$6,$Q$6*Z105*$L$6*$N$6,-$L$6*$O$6) -> 0.4105305871 | AT105: =-(AP105+0.0001) -> -2.31972402 | AU105: =IF(AG104<$K$6,$I$6*$Q$6*Z105*$H$6*$J$6,0) -> 0 | AV105: =IF(AI104<$O$6,($C$6-$M$6)*$Q$6*Z105*$L$6*$N$6,0) -> 0.05747428219 | AW105: =IF(Y104<=$C$6,0,(Y104-$C$6)/Y104) -> 0 | AY105: =IF(AN105=$AO$122,AX105,0) -> 0 | BA105: =IF(AN105=$AO$122,AG105,0) -> 0 | BB105: =IF(AN105=$AO$122,AI105,0) -> 0
B106: -3.010192257e-05 | C106: 0.1055487269 | D106: 0.0007232157155 | E106: 0.1401963994 | F106: -0.0954446909 | G106: 7.886648267 | H106: 5.149422815 | I106: 0.6529291837 | J106: 0.8324256837 | K106: 257.7104807 | L106: 0.08640279079 | M106: 135.4481557 | N106: 0.04541180719 | O106: 0.05101488893 | P106: 0.02547667964 | Q106: 0.8734166673 | R106: 0.02876313231 | S106: -0.01048848438 | T106: 0.0203153987 | U106: 0.0190205348 | V106: 0.02874065881 | W106: 0 | Y106: 0.1337252546 | Z106: =Z105+($Z$121-$Z$105)/16 -> 0.002014675846 | AA106: 0.3905477903 | AB106: =IF($C$2=1,-($O$31-2)*Z106/$O$30,3*($O$30/Z106)^2) -> -0.2658821002 | AC106: =IF($C$2=1,0.5*($O$31*Z106*$F$6/$O$30)*(1-AW106^2+(AA106-AB106)*(AB106^2*(1-AW106^2)+2*AB106*(1-AW106)+2*LN((1-AB106)/(1-AB106*AW106)))/(AB106^3)),$F$6*AB106*(LN((1-AA106+AA106^2)/(1+AA106)^2)/(6*AA106)+ATAN((2-AA106)/(AA106*3^0.5))/(AA106*3^0.5)-LN((AW106^2-AA106*AW106+AA106^2)/(AW106+AA106)^2)/(6*AA106)-ATAN((2*AW106-AA106)/(AA106*3^0.5))/(AA106*3^0.5))) -> 16.33381989 | AD106: =IF($C$2=1,($O$31*Z106*$F$6/$O$30)*(1-AW106^3-(AA106-AB106)*(-2*AB106^3*(1-AW106^3)-3*AB106^2*(1-AW106^2)-6*AB106*(1-AW106)-6*LN((1-AB106)/(1-AB106*AW106)))/(2*AB106^4))/3,$F$6*AB106*(LN((1+AA106^3)/(AA106^3+AW106^3)))/3) -> 10.18637577 | AE106: =AD106/AC106 -> 0.6236370815 | AF106: =AC106*Y106*$D$6 -> 2.184244223 | AG106: =MAX(MIN($K$6,$Q$6*$J$6*Z106*(Y106-$I$6)/Y106),-$K$6) -> 458.3333333 | AH106: 0.1536657687 | AI106: 54.24264025 | AJ106: 0.01818597166 | AK106: =(0.5*$C$6-Y106+AE106*Y106)*AF106+(0.5*$C$6-$I$6)*AH106+(0.5*$C$6-$M$6)*AJ106 -> 0.09524324358 | AL106: =AF106+AH106-AJ106 -> 2.31972402 | AM106: =0.1*$Q$6*Z106*$B$6^2/Y106+$R$6 -> 0.05601698327 | AN106: =IF(Y106>5*$D$6,AN105-1,AK106-AM106*AL106) -> -0.03470069804 | AO106: 0 | AP106: =AP105 -> 2.31962402 | AQ106: =AC106*$D$6 -> 16.33381989 | AR106: =IF(AG105<$K$6,$Q$6*Z106*$H$6*$J$6,$H$6*$K$6) -> 0.1536657687 | AS106: =IF(AI105<$O$6,$Q$6*Z106*$L$6*$N$6,-$L$6*$O$6) -> 0.3875732845 | AT106: =-(AP106+0.0001) -> -2.31972402 | AU106: =IF(AG105<$K$6,$I$6*$Q$6*Z106*$H$6*$J$6,0) -> 0 | AV106: =IF(AI105<$O$6,($C$6-$M$6)*$Q$6*Z106*$L$6*$N$6,0) -> 0.05426025983 | AW106: =IF(AZ106<=$C$6,0,(AZ106-$C$6)/AZ106) -> 0 | AX106: =IF(Y106<=$C$6,0,(Y106-$C$6)/Y106) -> 0 | AY106: 0 | AZ106: =Y105+(Y105-Y104)*(Z106-Z104)/(Z105-Z104) -> 0.1490575338 | BA106: 0 | BB106: 0
B107: -3.126485928e-05 | C107: 0.1164138618 | D107: 0.0007511559277 | E107: 0.1456126495 | F107: -0.09913203461 | G107: 8.140684889 | H107: 5.310726641 | I107: 0.6523685308 | J107: 0.9476885659 | K107: 282.9114442 | L107: 0.09485193716 | M107: 87.32431856 | N107: 0.02927729135 | O107: 0.05314630833 | P107: 0.02399127742 | Q107: 1.013263212 | R107: 0.02883682951 | S107: -0.01362573575 | T107: 0.02623438774 | U107: 0.01624406427 | V107: 0.02880386075 | W107: 0 | Y107: 0.1374393571 | Z107: 0.001895339646 | AA107: 0.3674142975 | AB107: =IF($C$2=1,-($O$31-2)*Z107/$O$30,3*($O$30/Z107)^2) -> -0.2501329863 | AC107: =IF($C$2=1,0.5*($O$31*Z107*$F$6/$O$30)*(1-AW107^2+(AA107-AB107)*(AB107^2*(1-AW107^2)+2*AB107*(1-AW107)+2*LN((1-AB107)/(1-AB107*AW107)))/(AB107^3)),$F$6*AB107*(LN((1-AA107+AA107^2)/(1+AA107)^2)/(6*AA107)+ATAN((2-AA107)/(AA107*3^0.5))/(AA107*3^0.5)-LN((AW107^2-AA107*AW107+AA107^2)/(AW107+AA107)^2)/(6*AA107)-ATAN((2*AW107-AA107)/(AA107*3^0.5))/(AA107*3^0.5))) -> 15.80952854 | AD107: =IF($C$2=1,($O$31*Z107*$F$6/$O$30)*(1-AW107^3-(AA107-AB107)*(-2*AB107^3*(1-AW107^3)-3*AB107^2*(1-AW107^2)-6*AB107*(1-AW107)-6*LN((1-AB107)/(1-AB107*AW107)))/(2*AB107^4))/3,$F$6*AB107*(LN((1+AA107^3)/(AA107^3+AW107^3)))/3) -> 9.907796006 | AE107: =AD107/AC107 -> 0.6266977527 | AF107: =AC107*Y107*$D$6 -> 2.172851439 | AG107: =MAX(MIN($K$6,$Q$6*$J$6*Z107*(Y107-$I$6)/Y107),-$K$6) -> 458.3333333 | AH107: 0.1536657687 | AI107: 20.26179457 | AJ107: 0.006793187427 | AK107: =(0.5*$C$6-Y107+AE107*Y107)*AF107+(0.5*$C$6-$I$6)*AH107+(0.5*$C$6-$M$6)*AJ107 -> 0.09209834685 | AL107: =AF107+AH107-AJ107 -> 2.31972402 | AM107: =0.1*$Q$6*Z107*$B$6^2/Y107+$R$6 -> 0.05127479142 | AN107: -0.02684501843 | AO107: 0 | AP107: =AP106 -> 2.31962402 | AQ107: =AC107*$D$6 -> 15.80952854 | AR107: =IF(AG106<$K$6,$Q$6*Z107*$H$6*$J$6,$H$6*$K$6) -> 0.1536657687 | AS107: =IF(AI106<$O$6,$Q$6*Z107*$L$6*$N$6,-$L$6*$O$6) -> 0.364615982 | AT107: =-(AP107+0.0001) -> -2.31972402 | AU107: =IF(AG106<$K$6,$I$6*$Q$6*Z107*$H$6*$J$6,0) -> 0 | AV107: =IF(AI106<$O$6,($C$6-$M$6)*$Q$6*Z107*$L$6*$N$6,0) -> 0.05104623748 | AW107: =IF(AZ107<=$C$6,0,(AZ107-$C$6)/AZ107) -> 0 | AX107: =IF(Y107<=$C$6,0,(Y107-$C$6)/Y107) -> 0 | AY107: 0 | AZ107: =Y106+(Y106-Y105)*(Z107-Z105)/(Z106-Z105) -> 0.1399764513 | BA107: 0 | BB107: 0
B108: -3.242779599e-05 | C108: 0.1288229302 | D108: 0.0007790961399 | E108: 0.1510288995 | F108: -0.1028193783 | G108: 8.391219664 | H108: 5.469441601 | I108: 0.6518053179 | J108: 1.080981505 | K108: 308.2307335 | L108: 0.1033407548 | M108: 38.78634067 | N108: 0.01300392622 | O108: 0.05461764768 | P108: 0.02248670641 | Q108: 1.171318333 | R108: 0.0282785562 | S108: -0.01376086472 | T108: 0.02652958798 | U108: 0.01608368595 | V108: 0.02829242462 | W108: 0 | Y108: 0.1418590428 | Z108: 0.001776003446 | AA108: 0.3442808047 | AB108: -0.2343838723 | AC108: 15.23752607 | AD108: 9.594651534 | AE108: 0.6296725263 | AF108: 2.161580863 | AG108: 458.3333333 | AH108: 0.1536657687 | AI108: -13.35454604 | AJ108: -0.004477388907 | AK108: 0.08844455707 | AL108: 2.31972402 | AM108: 0.04654947095 | AN108: -0.01953736881 | AO108: 0 | AP108: 2.31962402 | AQ108: 15.23752607 | AR108: 0.1536657687 | AS108: 0.3416586794 | AT108: -2.31972402 | AU108: 0 | AV108: 0.04783221512 | AW108: 0 | AX108: 0 | AY108: 0 | AZ108: =Y107+(Y107-Y106)*(Z108-Z106)/(Z107-Z106) -> 0.1448675622 | BA108: 0 | BB108: 0
B109: -4.7986761e-06 | C109: 0.1430602099 | D109: 0.0009174059024 | E109: 0.1778404445 | F109: -0.1210724835 | G109: 9.580736932 | H109: 6.217689869 | I109: 0.648978248 | J109: 1.370622236 | K109: 379.2160055 | L109: 0.1271400414 | M109: -11.2602193 | N109: -0.003775222373 | O109: 0.06069536888 | P109: 0.02384353494 | Q109: 1.5015375 | R109: 0.02489340702 | S109: -0.01382547515 | T109: 0.02670228234 | U109: 0.01597005052 | V109: 0.02488909903 | W109: 0 | Y109: 0.1471360245 | Z109: 0.001656667246 | AA109: 0.3211473119 | AB109: -0.2186347584 | AC109: 14.61641634 | AD109: 9.245858582 | AE109: 0.6325667228 | AF109: 2.150601392 | AG109: 458.3333333 | AH109: 0.1536657687 | AI109: -46.10261542 | AJ109: -0.01545685928 | AK109: 0.0841973138 | AL109: 2.31972402 | AM109: 0.04186433903 | AN109: -0.01291639904 | AO109: 0 | AP109: 2.31962402 | AQ109: 14.61641634 | AR109: 0.1536657687 | AS109: 0.3187013768 | AT109: -2.31972402 | AU109: 0 | AV109: 0.04461819276 | AW109: 0 | AX109: 0 | AY109: 0 | AZ109: =Y108+(Y108-Y107)*(Z109-Z107)/(Z108-Z107) -> 0.1506984141 | BA109: 0 | BB109: 0
B110: 4.964809916e-05 | C110: 0.159475176 | D110: 0.001003780102 | E110: 0.1945842064 | F110: -0.132471515 | G110: 10.28176703 | H110: 6.654136082 | I110: 0.6471782585 | J110: 1.639686607 | K110: 431.4953655 | L110: 0.1446677826 | M110: -70.33635334 | N110: -0.0235817232 | O110: 0.06136698378 | P110: 0.02340310399 | Q110: 1.807936113 | R110: 0.01905566692 | S110: -0.01695410114 | T110: 0.03705638751 | U110: 0.007476819997 | V110: 0.01882643797 | W110: 0 | Y110: 0.1534700612 | Z110: 0.001537331046 | AA110: 0.2980138191 | AB110: -0.2028856444 | AC110: 13.94474459 | AD110: 8.860285799 | AE110: 0.6353853053 | AF110: 2.140100806 | AG110: 458.3333333 | AH110: 0.1536657687 | AI110: -77.42233504 | AJ110: -0.02595744573 | AK110: 0.07923992728 | AL110: 2.31972402 | AM110: 0.0372453193 | AN110: -0.007158934541 | AO110: 0 | AP110: 2.31962402 | AQ110: 13.94474459 | AR110: 0.1536657687 | AS110: 0.2957440743 | AT110: -2.31972402 | AU110: 0 | AV110: 0.0414041704 | AW110: 0 | AX110: 0 | AY110: 0 | AZ110: 0.1576899878 | BA110: 0 | BB110: 0
B111: 5.130943732e-05 | C111: 0.178500634 | D111: 0.001037368863 | E111: 0.2010954359 | F111: -0.1369043128 | G111: 10.54589379 | H111: 6.817612298 | I111: 0.6464707908 | J111: 1.882448728 | K111: 458.3333333 | L111: 0.1536657687 | M111: -128.3850018 | N111: -0.04304373816 | O111: 0.05615920617 | P111: 0.02160834055 | Q111: 2.079158235 | R111: 0.01123204696 | S111: -0.01095327542 | T111: 0.01373061175 | U111: 0.03003383543 | V111: 0.0108112717 | W111: 0 | Y111: 0.1611291284 | Z111: 0.001417994846 | AA111: 0.2748803263 | AB111: -0.1871365305 | AC111: 13.2209942 | AD111: 8.436751534 | AE111: 0.6381329124 | AF111: 2.130287272 | AG111: 458.3333333 | AH111: 0.1536657687 | AI111: -106.6928071 | AJ111: -0.03577097937 | AK111: 0.07340923434 | AL111: 2.31972402 | AM111: 0.03272115046 | AN111: -0.002494804352 | AO111: 0 | AP111: 2.31962402 | AQ111: 13.2209942 | AR111: 0.1536657687 | AS111: 0.2727867717 | AT111: -2.31972402 | AU111: 0 | AV111: 0.03819014804 | AW111: 0 | AX111: 0 | AY111: 0 | AZ111: 0.1661381347 | BA111: 0 | BB111: 0
B112: 5.297077547e-05 | C112: 0.2006768534 | D112: 0.001070957625 | E112: 0.2076066654 | F112: -0.1413371105 | G112: 10.66348526 | H112: 6.967926452 | I112: 0.6534379972 | J112: 2.139914669 | K112: 458.3333333 | L112: 0.1536657687 | M112: -185.802272 | N112: -0.06229407043 | O112: 0.04833631902 | P112: 0.01984280092 | Q112: 2.355874508 | R112: 0.001589170183 | S112: 0.009237917168 | T112: -0.07581798846 | U112: 0.1289350595 | V112: =S92*Q112^2+T92*Q112+U92 -> 0.001857393136 | W112: 0.1030355672 | Y112: 0.1704806849 | Z112: 0.001298658646 | AA112: 0.2517468335 | AB112: -0.1713874165 | AC112: 12.44358323 | AD112: 7.974020933 | AE112: 0.6408138866 | AF112: 2.121390591 | AG112: 458.3333333 | AH112: 0.1536657687 | AI112: -133.2286157 | AJ112: -0.0446676603 | AK112: 0.06647320219 | AL112: 2.31972402 | AM112: 0.02832355747 | AN112: 0.0007703655847 | AO112: 0 | AP112: 2.31962402 | AQ112: 12.44358323 | AR112: 0.1536657687 | AS112: 0.2498294691 | AT112: -2.31972402 | AU112: 0 | AV112: 0.03497612568 | AW112: 0 | AX112: 0 | AY112: 0 | AZ112: 0.1764472628 | BA112: 0 | BB112: 0
C113: =C93+(C112-C92) -> 0.2266840316 | D113: =D93+(D112-D92) -> 0.001101223711 | E113: 0.2134737893 | F113: -0.1453314059 | G113: 10.46703273 | H113: 7.041402661 | I113: 0.6727219489 | J113: 2.37270918 | K113: 458.3333333 | L113: 0.1536657687 | M113: -241.6276846 | N113: -0.08101069939 | O113: 0.04114835092 | P113: 0.01806269698 | Q113: 2.607385648 | R113: -0.005948065929 | W113: 0.2059431858 | Y113: 0.1825514121 | Z113: 0.001179322446 | AA113: 0.2286133407 | AB113: -0.1556383026 | AC113: 11.57578552 | AD113: 7.469669462 | AE113: 0.6452840242 | AF113: 2.113175993 | AG113: 458.3333333 | AH113: 0.1536657687 | AI113: -157.7300022 | AJ113: -0.05288225899 | AK113: 0.05838862309 | AL113: 2.31972402 | AM113: 0.02402012916 | AN113: 0.002668552511 | AO113: 0 | AP113: 2.31962402 | AQ113: 11.57578552 | AR113: 0.1536657687 | AS113: 0.2268721666 | AT113: -2.31972402 | AU113: 0 | AV113: 0.03176210332 | AW113: 0.04854431456 | AX113: 0.01397640298 | AY113: 0 | AZ113: 0.1891837978 | BA113: 0 | BB113: 0
B114: De | C114: hc | D114: e0 | E114: a' | F114: b' | G114: N' | H114: tN' | I114: t | J114: Nc | K114: sac | L114: Nac | M114: sat | N114: Nat | O114: Mtot | P114: u | Q114: N | R114: Mo | S114: a'' | T114: b'' | U114: c'' | W114: x | Y114: 0.2004030289 | Z114: 0.001059986246 | AA114: 0.2054798479 | AB114: -0.1398891886 | AC114: 10.50182096 | AD114: 6.906938056 | AE114: 0.657689565 | AF114: 2.104596728 | AG114: 458.3333333 | AH114: 0.1536657687 | AI114: -183.3190636 | AJ114: -0.06146152326 | AK114: 0.04964848126 | AL114: 2.31972402 | AM114: 0.01966635704 | AN114: 0.004027960447 | AO114: 0 | AP114: 2.31962402 | AQ114: 10.50182096 | AR114: 0.1536657687 | AS114: 0.203914864 | AT114: -2.31972402 | AU114: 0 | AV114: 0.02854808096 | AW114: 0.1291426598 | AX114: 0.1018099826 | AY114: 0 | AZ114: 0.2066928666 | BA114: 0 | BB114: 0
C115: =$C$35 -> 0.04013868786 | D115: =$D$35 -> 0.0003210578024 | E115: =$E$35 -> 0.06223751358 | F115: =$F$35 -> -0.0423708474 | G115: =IF($C$2=1,0.5*($O$31*D115*$F$6/$O$30)*(1-W115^2+(E115-F115)*(F115^2*(1-W115^2)+2*F115*(1-W115)+2*LN((1-F115)/(1-F115*W115)))/(F115^3)),$F$6*F115*(LN((1-E115+E115^2)/(1+E115)^2)/(6*E115)+ATAN((2-E115)/(E115*3^0.5))/(E115*3^0.5)-LN((W115^2-E115*W115+E115^2)/(W115+E115)^2)/(6*E115)-ATAN((2*W115-E115)/(E115*3^0.5))/(E115*3^0.5))) -> 3.825446827 | H115: =IF($C$2=1,($O$31*D115*$F$6/$O$30)*(1-W115^3-(E115-F115)*(-2*F115^3*(1-W115^3)-3*F115^2*(1-W115^2)-6*F115*(1-W115)-6*LN((1-F115)/(1-F115*W115)))/(2*F115^4))/3,$F$6*F115*(LN((1+E115^3)/(E115^3+W115^3)))/3) -> 2.527617251 | I115: =$I$35 -> 0.6607377818 | J115: =$J$35 -> 0.1535484161 | K115: =$K$35 -> 0.6365191477 | L115: =$L$35 -> 0.0002134062635 | M115: =$M$35 -> 458.3215629 | N115: =$N$35 -> 0.1536618224 | O115: =$O$35 -> 0.01942216714 | P115: =$P$35 -> 0.02974048372 | Q115: =$Q$35 -> 0.0001 | R115: =$R$35 -> 0.01941919309 | W115: =IF(C115<$C$6,0,(C115-$C$6)/C115) -> 0 | Y115: 0.2296122504 | Z115: 0.0009406500465 | AA115: 0.1823463551 | AB115: -0.1241400747 | AC115: 9.125971181 | AD115: 6.2356428 | AE115: 0.6832853925 | AF115: 2.09543478 | AG115: 445.7100054 | AH115: 0.1494335358 | AI115: -210.6460765 | AJ115: -0.07062347185 | AK115: 0.0401463604 | AL115: 2.315491787 | AM115: 0.01523214259 | AN115: 0.004876459314 | AO115: 0.0009406500465 | AP115: 2.31962402 | AQ115: 9.125971181 | AR115: 0.1536657687 | AS115: 0.1809575614 | AT115: -2.31972402 | AU115: 0 | AV115: 0.0253340586 | AW115: 0.2376314033 | AX115: 0.2160697014 | AY115: 0.2160697014 | AZ115: 0.2361062625 | BA115: 445.7100054 | BB115: -210.6460765
B116: =IF(R96>$Q$29*V96,B96,IF(Q96>Q95,$U$6,-0.5)*B96) -> -3.976897797e-08 | C116: =IF(Q96>Q95,C96,(1-$T$6)*C96+$T$6*C97) -> 0.04518142254 | D116: =D96+B116 -> 0.0003933412333 | E116: =IF($C$2=1,D116/($O$31*$O$30),2^(1/3)*$O$30/D116) -> 0.0762497599 | F116: =IF($C$2=1,-($O$31-2)*D116/$O$30,3*($O$30/D116)^2) -> -0.05191028296 | G116: =IF($C$2=1,0.5*($O$31*D116*$F$6/$O$30)*(1-W116^2+(E116-F116)*(F116^2*(1-W116^2)+2*F116*(1-W116)+2*LN((1-F116)/(1-F116*W116)))/(F116^3)),$F$6*F116*(LN((1-E116+E116^2)/(1+E116)^2)/(6*E116)+ATAN((2-E116)/(E116*3^0.5))/(E116*3^0.5)-LN((W116^2-E116*W116+E116^2)/(W116+E116)^2)/(6*E116)-ATAN((2*W116-E116)/(E116*3^0.5))/(E116*3^0.5))) -> 4.613071966 | H116: =IF($C$2=1,($O$31*D116*$F$6/$O$30)*(1-W116^3-(E116-F116)*(-2*F116^3*(1-W116^3)-3*F116^2*(1-W116^2)-6*F116*(1-W116)-6*LN((1-F116)/(1-F116*W116)))/(2*F116^4))/3,$F$6*F116*(LN((1+E116^3)/(E116^3+W116^3)))/3) -> 3.041711843 | I116: =H116/G116 -> 0.6593679581 | J116: =G116*C116*$D$6 -> 0.2084251537 | K116: =MAX(MIN($K$6,$Q$6*$J$6*D116*(C116-$I$6)/C116),-$K$6) -> 25.88281743 | L116: =K116*$H$6 -> 0.008677752078 | M116: =MIN($O$6,$Q$6*$N$6*D116*(C$6-C116-$M$6)/C116) -> 458.3333333 | N116: =M116*$L$6 -> 0.1536657687 | O116: =(0.5*$C$6-C116+I116*C116)*J116+(0.5*$C$6-$I$6)*L116+(0.5*$C$6-$M$6)*N116 -> 0.02366772669 | P116: =0.1*$Q$6*D116*$B$6^2/C116+$R$6 -> 0.03236961582 | Q116: =(J116+L116-N116) -> 0.0634371371 | R116: =O116-P116*Q116 -> 0.02161429093 | S116: =((R116-R115)*(Q116-Q117)-(R116-R117)*(Q116-Q115))/((Q116^2-Q115^2)*(Q116-Q117)-(Q116^2-Q117^2)*(Q116-Q115)) -> -0.05090375433 | T116: =-(S116*(Q116^2-Q115^2)-(R116-R115))/(Q116-Q115) -> 0.03789163684 | U116: =R116-S116*Q116^2-T116*Q116 -> 0.01941540444 | V116: =S96*Q116^2+T96*Q116+U96 -> 0.02161427216 | W116: =IF(C116<$C$6,0,(C116-$C$6)/C116) -> 0 | Y116: 0.2849312175 | Z116: 0.0008213138465 | AA116: 0.1592128623 | AB116: -0.1083909607 | AC116: 7.382614117 | AD116: 5.362132144 | AE116: 0.7263188972 | AF116: 2.103537229 | AG116: 405.1037064 | AH116: 0.1358194308 | AI116: -239.7088211 | AJ116: -0.08036736053 | AK116: 0.02805651135 | AL116: 2.31972402 | AM116: 0.01071758857 | AN116: 0.003194663708 | AO116: 0 | AP116: 2.31962402 | AQ116: 7.382614117 | AR116: 0.1580002589 | AS116: 0.1580002589 | AT116: -2.31972402 | AU116: 0.006320010354 | AV116: 0.02212003624 | AW116: 0.3750666017 | AX116: 0.3682685893 | AY116: 0 | AZ116: 0.2880306933 | BA116: 0 | BB116: 0
B117: =IF(R97>$Q$29*V97,B97,IF(Q97>Q96,$U$6,-0.5)*B97) -> -9.219167147e-08 | C117: =IF(Q97>Q96,C97,(1-$T$6)*C97+$T$6*C98) -> 0.04941589192 | D117: =D97+B117 -> 0.0004583083979 | E117: 0.08884373754 | F117: -0.06048417151 | G117: 5.298876209 | H117: 3.487321891 | I117: 0.6581248085 | J117: 0.261848694 | K117: 50.10783122 | L117: 0.01679969106 | M117: 458.3333333 | N117: 0.1536657687 | O117: 0.02766596593 | P117: =0.1*$Q$6*D117*$B$6^2/C117+$R$6 -> 0.03448411996 | Q117: 0.1249826164 | R117: 0.0233560504 | S117: -0.02463298094 | T117: 0.03294170419 | U117: 0.0196236933 | V117: =MAX(S97*Q117^2+T97*Q117+U97,S98*Q117^2+T98*Q117+U98) -> 0.02335567518 | W117: 0 | Y117: 0.4026402369 | Z117: 0.0007019776466 | AA117: 0.1360793694 | AB117: -0.09264184678 | AC117: 5.240432428 | AD117: 4.144164901 | AE117: 0.7908059034 | AF117: 2.110008955 | AG117: 362.7730901 | AH117: 0.1216272125 | AI117: -262.7364551 | AJ117: -0.08808785308 | AK117: 0.01385180277 | AL117: 2.31972402 | AM117: 0.006482373946 | AN117: -0.001185515785 | AO117: 0 | AP117: 2.31962402 | AQ117: 5.240432428 | AR117: 0.1350429563 | AS117: 0.1350429563 | AT117: -2.31972402 | AU117: 0.005401718251 | AV117: 0.01890601388 | AW117: 0.5449594612 | AX117: 0.5529507896 | AY117: 0 | AZ117: 0.3955691518 | BA117: 0 | BB117: 0
B118: 2.079842889e-06 | C118: 0.05313596372 | D118: 0.0004995454575 | E118: 0.09683760045 | F118: -0.06592633534 | G118: 5.723507585 | H118: 3.762231254 | I118: 0.657329653 | J118: 0.3041240914 | K118: 70.86003417 | L118: 0.02375729807 | M118: 458.3333333 | N118: 0.1536657687 | O118: 0.03070479388 | P118: 0.0349554118 | Q118: 0.1742156208 | R118: 0.02461501511 | S118: -0.06213234786 | T118: 0.04416144867 | U118: 0.01880718493 | V118: =MAX(S98*Q118^2+T98*Q118+U98,S99*Q118^2+T99*Q118+U99) -> 0.02462556814 | W118: 0 | Y118: 0.6961069495 | Z118: 0.0005826414467 | AA118: 0.1129458766 | AB118: -0.07689273282 | AC118: 3.052025166 | AD118: 2.641132929 | AE118: 0.8653706262 | AF118: 2.124535928 | AG118: 315.1033411 | AH118: 0.1056449392 | AI118: -267.0771251 | AJ118: -0.08954315284 | AK118: -0.007090626757 | AL118: 2.31972402 | AM118: 0.003112098801 | AN118: -0.0143098371 | AO118: 0 | AP118: 2.31962402 | AQ118: 3.052025166 | AR118: 0.1120856537 | AS118: 0.1120856537 | AT118: -2.31972402 | AU118: 0.004483426149 | AV118: 0.01569199152 | AW118: 0.7178941065 | AX118: 0.7414190447 | AY118: 0 | AZ118: 0.6380582757 | BA118: 0 | BB118: 0
B119: -3.137337943e-06 | C119: 0.05742818137 | D119: 0.0005966556647 | E119: 0.1156625528 | F119: -0.07874222624 | G119: 6.691353828 | H119: 4.38576582 | I119: 0.6554377384 | J119: 0.3842722813 | K119: 103.8971753 | L119: 0.03483368575 | M119: 458.3333333 | N119: 0.1536657687 | O119: 0.03640565797 | P119: 0.03863017497 | Q119: 0.2654401984 | R119: 0.02615165666 | S119: -0.01131965118 | T119: 0.02182135089 | U119: 0.02115695858 | V119: 0.02612335978 | W119: 0 | Y119: 1.606552389 | Z119: 0.0004633052468 | AA119: 0.08981238384 | AB119: -0.06114361887 | AC119: 1.339174108 | AD119: 1.247256964 | AE119: 0.9313628127 | AF119: 2.151453362 | AG119: 259.2210193 | AH119: 0.08690923021 | AI119: -242.6737897 | AJ119: -0.08136142786 | AK119: -0.04333092824 | AL119: 2.31972402 | AM119: 0.001072260473 | AN119: -0.04581827662 | AO119: 0 | AP119: 2.31962402 | AQ119: 1.339174108 | AR119: 0.08912835115 | AS119: 0.08912835115 | AT119: -2.31972402 | AU119: 0.003565134046 | AV119: 0.01247796916 | AW119: 0.859708234 | AX119: 0.8879588358 | AY119: 0 | AZ119: 1.283040375 | BA119: 0 | BB119: 0
B120: -3.303471759e-06 | C120: 0.06219541963 | D120: 0.0006645890102 | E120: 0.1288315289 | F120: -0.08770756953 | G120: 7.342103534 | H120: 4.802451172 | I120: 0.6540974464 | J120: 0.4566452103 | K120: 136.085257 | L120: 0.04562540864 | M120: 458.3333333 | N120: 0.1536657687 | O120: 0.04123856618 | P120: 0.03973038042 | Q120: 0.3486048502 | R120: 0.02738836287 | S120: -0.02657003972 | T120: 0.03118577646 | U120: 0.01974578309 | V120: 0.02735107698 | W120: 0 | Y120: 5.439017356 | Z120: 0.0003439690468 | AA120: 0.06667889103 | AB120: -0.04539450492 | AC120: 0.4025675335 | AD120: 0.3920810603 | AE120: 0.973951021 | AF120: 2.189571802 | AG120: 195.9145118 | AH120: 0.06568440885 | AI120: -192.285805 | AJ120: -0.06446780952 | AK120: =(0.5*$C$6-Y120+AE120*Y120)*AF120+(0.5*$C$6-$I$6)*AH120+(0.5*$C$6-$M$6)*AJ120 -> -0.113098099 | AL120: 2.31972402 | AM120: 0.0002351402029 | AN120: -1.045818277 | AO120: 0 | AP120: 2.31962402 | AQ120: 0.4025675335 | AR120: 0.06617104858 | AS120: 0.06617104858 | AT120: -2.31972402 | AU120: 0.002646841943 | AV120: 0.009263946801 | AW120: 0.9474827193 | AX120: 0.9669057868 | AY120: 0 | AZ120: 3.427443267 | BA120: 0 | BB120: 0
B121: 3.469605574e-05 | C121: 0.06750525256 | D121: 0.0007361772997 | E121: 0.142709021 | F121: -0.09715526545 | G121: 8.004934087 | H121: 5.22457561 | I121: 0.6526694103 | J121: 0.5403750973 | K121: 172.1129137 | L121: 0.05770442876 | M121: 453.6327082 | N121: 0.1520897865 | O121: 0.04645348959 | P121: 0.0405483163 | Q121: 0.4459897396 | R121: 0.02836935656 | S121: -0.0585787423 | T121: 0.05661971836 | U121: 0.0147692561 | V121: 0.02804260399 | W121: 0 | Y121: 30.68476593 | Z121: =0.1*$O$30 -> 0.0002246328469 | AA121: 0.04354539822 | AB121: -0.02964539097 | AC121: 0.07279019268 | AD121: 0.0722913256 | AE121: 0.9931465069 | AF121: 2.233550024 | AG121: 128.7240572 | AH121: 0.0431574135 | AI121: -128.3040048 | AJ121: -0.04301658223 | AK121: -0.2686841815 | AL121: 2.31972402 | AM121: 2.72193918e-05 | AN121: -2.045818277 | AO121: 0 | AP121: 2.31962402 | AQ121: 0.07279019268 | AR121: 0.04321374601 | AS121: 0.04321374601 | AT121: =-(AP121+0.0001) -> -2.31972402 | AU121: 0.00172854984 | AV121: 0.006049924441 | AW121: 0.986263681 | AX121: 0.9941338969 | AY121: 0 | AZ121: 13.10394729 | BA121: 0 | BB121: 0
B122: 3.63573939e-05 | C122: 0.0734371256 | D122: 0.0007714273998 | E122: 0.1495423033 | F122: -0.1018073144 | G122: 8.322802627 | H122: 5.426135731 | I122: 0.6519601598 | J122: 0.6112027019 | K122: 201.5400173 | L122: 0.06757047638 | M122: 401.2032318 | N122: 0.1345117157 | O122: 0.04949059513 | P122: 0.03905776254 | Q122: 0.5442614626 | R122: 0.02823296016 | S122: 0.003121957154 | T122: -0.004479473456 | U122: 0.02974617711 | V122: 0.02803164638 | W122: 0 | AG122: =MAX(BA105:BA121) -> 445.7100054 | AI122: =MAX(BB105:BB121) -> 0 | AO122: =MAX(AN105:AN121) -> 0.004876459314 | AP122: 2.31962402
B123: 3.801873206e-05 | C123: 0.0800848618 | D123: 0.0008066774999 | E123: 0.1563755855 | F123: -0.1064593633 | G123: 8.635127805 | H123: 5.623599262 | I123: 0.6512467897 | J123: 0.6915430169 | K123: 231.676972 | L123: 0.07767451632 | M123: 346.2892766 | N123: 0.1161006717 | O123: 0.05261293636 | P123: 0.0374522129 | Q123: 0.6531168615 | R123: 0.02815226461 | S123: 0.01367066414 | T123: -0.01711026655 | U123: 0.03349588735 | V123: 0.02814660964 | W123: 0 | Y123: =0.5*(-(AR123+AS123+AT123)+SQRT((AR123+AS123+AT123)^2+4*AQ123*(AU123+AV123)))/AQ123 -> 0.2274882365 | Z123: =MAX(AO105:AO121) -> 0.0009406500465 | AA123: 0.1823463551 | AB123: =IF($C$2=1,-($O$31-2)*Z123/$O$30,3*($O$30/Z123)^2) -> -0.1241400747 | AC123: =IF($C$2=1,0.5*($O$31*Z123*$F$6/$O$30)*(1-AW123^2+(AA123-AB123)*(AB123^2*(1-AW123^2)+2*AB123*(1-AW123)+2*LN((1-AB123)/(1-AB123*AW123)))/(AB123^3)),$F$6*AB123*(LN((1-AA123+AA123^2)/(1+AA123)^2)/(6*AA123)+ATAN((2-AA123)/(AA123*3^0.5))/(AA123*3^0.5)-LN((AW123^2-AA123*AW123+AA123^2)/(AW123+AA123)^2)/(6*AA123)-ATAN((2*AW123-AA123)/(AA123*3^0.5))/(AA123*3^0.5))) -> 9.235605088 | AD123: =IF($C$2=1,($O$31*Z123*$F$6/$O$30)*(1-AW123^3-(AA123-AB123)*(-2*AB123^3*(1-AW123^3)-3*AB123^2*(1-AW123^2)-6*AB123*(1-AW123)-6*LN((1-AB123)/(1-AB123*AW123)))/(2*AB123^4))/3,$F$6*AB123*(LN((1+AA123^3)/(AA123^3+AW123^3)))/3) -> 6.260530716 | AE123: =AD123/AC123 -> 0.6778690358 | AF123: =AC123*Y123*$D$6 -> 2.100991514 | AG123: =MAX(MIN($K$6,$Q$6*$J$6*Z123*(Y123-$I$6)/Y123),-$K$6) -> 444.8321068 | AH123: 0.1491392021 | AI123: =MIN($O$6,$Q$6*$N$6*Z123*(C$6-Y123-$M$6)/Y123) -> -207.5734312 | AJ123: -0.06959330369 | AK123: =(0.5*$C$6-Y123+AE123*Y123)*AF123+(0.5*$C$6-$I$6)*AH123+(0.5*$C$6-$M$6)*AJ123 -> 0.03910376163 | AL123: =AF123+AH123-AJ123 -> 2.31972402 | AM123: =0.1*$Q$6*Z123*$B$6^2/Y123+$R$6 -> 0.01537436218 | AN123: =AK123-AM123*AL123 -> 0.003439484393 | AO123: =IF(AN123=$AO$111,Z123,0) -> 0 | AP123: =AP122 -> 2.31962402 | AQ123: =AC123*$D$6 -> 9.235605088 | AR123: =IF(AG122<$K$6,$Q$6*Z123*$H$6*$J$6,$H$6*$K$6) -> 0.1809575614 | AS123: =IF(AI122<$O$6,$Q$6*Z123*$L$6*$N$6,-$L$6*$O$6) -> 0.1809575614 | AT123: =-(AP123+0.0001) -> -2.31972402 | AU123: =IF(AG122<$K$6,$I$6*$Q$6*Z123*$H$6*$J$6,0) -> 0.007238302457 | AV123: =IF(AI122<$O$6,($C$6-$M$6)*$Q$6*Z123*$L$6*$N$6,0) -> 0.0253340586 | AW123: =MAX(AY105:AY121) -> 0.2160697014 | AX123: =IF(Y123<=$C$6,0,(Y123-$C$6)/Y123) -> 0.2087502951
B124: 3.968007022e-07 | C124: 0.0875597913 | D124: 0.0007589962532 | E124: 0.1471325078 | F124: -0.1001667431 | G124: 8.211339968 | H124: 5.355524176 | I124: 0.6522107472 | J124: 0.7189832138 | K124: 236.5526507 | L124: 0.07930918888 | M124: 260.8268463 | N124: 0.08744761706 | O124: 0.05115159792 | P124: 0.03223019141 | Q124: 0.7108447857 | R124: 0.02824093441 | S124: 0.01594653184 | T124: -0.0202144628 | U124: 0.03455249242 | V124: 0.02824152501 | W124: 0 | Y124: =0.5*(-(AR124+AS124+AT124)+SQRT((AR124+AS124+AT124)^2+4*AQ124*(AU124+AV124)))/AQ124 -> 0.2266840316 | Z124: =Z123 -> 0.0009406500465 | AA124: 0.1823463551 | AB124: =IF($C$2=1,-($O$31-2)*Z124/$O$30,3*($O$30/Z124)^2) -> -0.1241400747 | AC124: =IF($C$2=1,0.5*($O$31*Z124*$F$6/$O$30)*(1-AW124^2+(AA124-AB124)*(AB124^2*(1-AW124^2)+2*AB124*(1-AW124)+2*LN((1-AB124)/(1-AB124*AW124)))/(AB124^3)),$F$6*AB124*(LN((1-AA124+AA124^2)/(1+AA124)^2)/(6*AA124)+ATAN((2-AA124)/(AA124*3^0.5))/(AA124*3^0.5)-LN((AW124^2-AA124*AW124+AA124^2)/(AW124+AA124)^2)/(6*AA124)-ATAN((2*AW124-AA124)/(AA124*3^0.5))/(AA124*3^0.5))) -> 9.270611021 | AD124: =IF($C$2=1,($O$31*Z124*$F$6/$O$30)*(1-AW124^3-(AA124-AB124)*(-2*AB124^3*(1-AW124^3)-3*AB124^2*(1-AW124^2)-6*AB124*(1-AW124)-6*LN((1-AB124)/(1-AB124*AW124)))/(2*AB124^4))/3,$F$6*AB124*(LN((1+AA124^3)/(AA124^3+AW124^3)))/3) -> 6.267967014 | AE124: =AD124/AC124 -> 0.6761115313 | AF124: =AC124*Y124*$D$6 -> 2.101499482 | AG124: =MAX(MIN($K$6,$Q$6*$J$6*Z124*(Y124-$I$6)/Y124),-$K$6) -> 444.4954186 | AH124: 0.1490263204 | AI124: =MIN($O$6,$Q$6*$N$6*Z124*(C$6-Y124-$M$6)/Y124) -> -206.3950226 | AJ124: -0.06919821774 | AK124: =(0.5*$C$6-Y124+AE124*Y124)*AF124+(0.5*$C$6-$I$6)*AH124+(0.5*$C$6-$M$6)*AJ124 -> 0.03883354388 | AL124: =AF124+AH124-AJ124 -> 2.31972402 | AM124: =0.1*$Q$6*Z124*$B$6^2/Y124+$R$6 -> 0.01542890566 | AN124: =AK124-AM124*AL124 -> 0.003042740809 | AO124: =IF(AN124=$AO$111,Z124,0) -> 0 | AP124: =AP123 -> 2.31962402 | AQ124: =AC124*$D$6 -> 9.270611021 | AR124: =IF(AG123<$K$6,$Q$6*Z124*$H$6*$J$6,$H$6*$K$6) -> 0.1809575614 | AS124: =IF(AI123<$O$6,$Q$6*Z124*$L$6*$N$6,-$L$6*$O$6) -> 0.1809575614 | AT124: =-(AP124+0.0001) -> -2.31972402 | AU124: =IF(AG123<$K$6,$I$6*$Q$6*Z124*$H$6*$J$6,0) -> 0.007238302457 | AV124: =IF(AI123<$O$6,($C$6-$M$6)*$Q$6*Z124*$L$6*$N$6,0) -> 0.0253340586 | AW124: =IF(Y123<=$C$6,0,(Y123-$C$6)/Y123) -> 0.2087502951 | AX124: =IF(Y124<=$C$6,0,(Y124-$C$6)/Y124) -> 0.2059431858
B125: -2.893898586e-07 | C125: 0.09599468428 | D125: 0.0007268189979 | E125: 0.1408949009 | F125: -0.0959202256 | G125: 7.919607471 | H125: 5.17037135 | I125: 0.6528570221 | J125: 0.7602402188 | K125: 243.2645641 | L125: 0.08155949724 | M125: 191.1776821 | N125: 0.06409628829 | O125: 0.05037025472 | P125: 0.02815185755 | Q125: 0.7777034278 | R125: 0.0284764586 | S125: -0.003387992047 | T125: 0.008565908184 | U125: 0.02386385668 | V125: 0.02847639978 | W125: 0
B126: 3.010192257e-06 | C126: 0.1055487269 | D126: 0.0007262259077 | E126: 0.1407799295 | F126: -0.09584195393 | G126: 7.914186511 | H126: 5.166926263 | I126: 0.6528689026 | J126: 0.8353323104 | K126: 258.7831318 | L126: 0.08676241933 | M126: 136.0119225 | N126: 0.04560082171 | O126: 0.05119212449 | P126: 0.02558271951 | Q126: 0.876493908 | R126: 0.02876902668 | S126: -0.01126207526 | T126: 0.02159119565 | U126: 0.01849646961 | V126: 0.02877048866 | W126: 0
B127: -3.126485928e-05 | C127: 0.1164138618 | D127: 0.0007198910684 | E127: 0.1395519119 | F127: -0.09500592843 | G127: 7.856185685 | H127: 5.130055691 | I127: 0.652995728 | J127: 0.9145689149 | K127: 271.1360109 | L127: 0.09090397861 | M127: 83.68967703 | N127: 0.02805870229 | O127: 0.0513143123 | P127: 0.02299270458 | Q127: 0.9774141912 | R127: 0.02884091655 | S127: -0.01220924481 | T127: 0.02334716096 | U127: 0.01768503174 | V127: 0.02886873717 | W127: 0
B128: 3.242779599e-06 | C128: 0.1288229302 | D128: 0.0007823389195 | E128: 0.151657517 | F128: -0.1032473365 | G128: 8.420071486 | H128: 5.487695563 | I128: 0.651739783 | J128: 1.084698281 | K128: 309.5136617 | L128: 0.103770883 | M128: 38.94777846 | N128: 0.01305805159 | O128: 0.05480049507 | P128: 0.02258030132 | Q128: 1.175411113 | R128: 0.02825935797 | S128: -0.01409070243 | T128: 0.02739761052 | U128: 0.01552349376 | V128: 0.02825505396 | W128: 0
B129: 4.7986761e-07 | C129: 0.1430602099 | D129: 0.0009178857701 | E129: 0.1779334676 | F129: -0.1211358129 | G129: 9.584719361 | H129: 6.220179249 | I129: 0.6489683229 | J129: 1.371191963 | K129: 379.414362 | L129: 0.1272065445 | M129: -11.26610918 | N129: -0.003777197079 | O129: 0.06071931368 | P129: 0.02385600678 | Q129: 1.502175705 | R129: 0.02488339986 | S129: -0.01382960416 | T129: 0.02669849724 | U129: 0.01598450819 | V129: 0.02488455584 | W129: 0
B130: 4.964809916e-05 | C130: 0.159475176 | D130: 0.001053428201 | E130: 0.2042085613 | F130: -0.139023706 | G130: 10.6705179 | H130: 6.89455261 | I130: 0.6461310192 | J130: 1.701682721 | K130: 452.8376144 | L130: 0.1518232147 | M130: -73.81526893 | N130: -0.0247481019 | O130: 0.06347359842 | P130: 0.02456064798 | Q130: 1.878254038 | R130: 0.01734246217 | S130: -0.01738172505 | T130: 0.03870619236 | U130: 0.005962314233 | V130: 0.0172668033 | W130: 0
B131: 5.130943732e-05 | C131: 0.178500634 | D131: 0.001088678301 | E131: 0.2110418436 | F131: -0.1436757549 | G131: 10.94033075 | H131: 7.060689526 | I131: 0.6453817244 | J131: 1.952855976 | K131: 458.3333333 | L131: 0.1536657687 | M131: -134.7350692 | N131: -0.04517273014 | O131: 0.05756671293 | P131: 0.02267711352 | Q131: 2.151694475 | R131: 0.008772493068 | S131: -0.00818728242 | T131: 0.001653061951 | U131: 0.04312099981 | V131: 0.008866561609 | W131: 0
B132: -5.297077547e-06 | C132: 0.2006768534 | D132: 0.001065660548 | E132: 0.2065798193 | F132: -0.1406380412 | G132: 10.62356535 | H132: 6.942963803 | I132: 0.6535436619 | J132: 2.131903667 | K132: 458.3333333 | L132: 0.1536657687 | M132: -184.8832729 | N132: -0.06198595691 | O132: 0.04823308135 | P132: 0.01974465618 | Q132: 2.347555392 | R132: 0.001881407273 | S132: 0.01177902534 | T132: -0.08818034558 | U132: 0.1439752522 | V132: =S112*Q132^2+T112*Q132+U112 -> 0.00185844408 | W132: 0.1030355672
C133: =C113 -> 0.2266840316 | D133: =D113+(D132-D112) -> 0.001095926634 | E133: 0.2124469432 | F133: -0.1446323366 | G133: 10.4296842 | H133: 7.017229027 | I133: 0.6728131834 | J133: 2.364242863 | K133: 458.3333333 | L133: 0.1536657687 | M133: -240.4654134 | N133: -0.08062102384 | O133: 0.04108286717 | P133: 0.01797581226 | Q133: 2.598529655 | R133: -0.00562781407 | W133: 0.2059431858
B134: De | C134: hc | D134: e0 | E134: a' | F134: b' | G134: N' | H134: tN' | I134: t | J134: Nc | K134: sac | L134: Nac | M134: sat | N134: Nat | O134: Mtot | P134: u | Q134: N | R134: Mo | S134: a'' | T134: b'' | U134: c'' | W134: x
C135: =$C$35 -> 0.04013868786 | D135: =$D$35 -> 0.0003210578024 | E135: =$E$35 -> 0.06223751358 | F135: =$F$35 -> -0.0423708474 | G135: =IF($C$2=1,0.5*($O$31*D135*$F$6/$O$30)*(1-W135^2+(E135-F135)*(F135^2*(1-W135^2)+2*F135*(1-W135)+2*LN((1-F135)/(1-F135*W135)))/(F135^3)),$F$6*F135*(LN((1-E135+E135^2)/(1+E135)^2)/(6*E135)+ATAN((2-E135)/(E135*3^0.5))/(E135*3^0.5)-LN((W135^2-E135*W135+E135^2)/(W135+E135)^2)/(6*E135)-ATAN((2*W135-E135)/(E135*3^0.5))/(E135*3^0.5))) -> 3.825446827 | H135: =IF($C$2=1,($O$31*D135*$F$6/$O$30)*(1-W135^3-(E135-F135)*(-2*F135^3*(1-W135^3)-3*F135^2*(1-W135^2)-6*F135*(1-W135)-6*LN((1-F135)/(1-F135*W135)))/(2*F135^4))/3,$F$6*F135*(LN((1+E135^3)/(E135^3+W135^3)))/3) -> 2.527617251 | I135: =$I$35 -> 0.6607377818 | J135: =$J$35 -> 0.1535484161 | K135: =$K$35 -> 0.6365191477 | L135: =$L$35 -> 0.0002134062635 | M135: =$M$35 -> 458.3215629 | N135: =$N$35 -> 0.1536618224 | O135: =$O$35 -> 0.01942216714 | P135: =$P$35 -> 0.02974048372 | Q135: =$Q$35 -> 0.0001 | R135: =$R$35 -> 0.01941919309 | W135: =IF(C135<$C$6,0,(C135-$C$6)/C135) -> 0
B136: =IF(R116>$Q$29*V116,B116,IF(Q116>Q115,$U$6,-0.5)*B116) -> 3.976897797e-09 | C136: =IF(Q116>Q115,C116,(1-$T$6)*C116+$T$6*C117) -> 0.04518142254 | D136: =D116+B136 -> 0.0003933452102 | E136: =IF($C$2=1,D136/($O$31*$O$30),2^(1/3)*$O$30/D136) -> 0.07625053083 | F136: =IF($C$2=1,-($O$31-2)*D136/$O$30,3*($O$30/D136)^2) -> -0.0519108078 | G136: =IF($C$2=1,0.5*($O$31*D136*$F$6/$O$30)*(1-W136^2+(E136-F136)*(F136^2*(1-W136^2)+2*F136*(1-W136)+2*LN((1-F136)/(1-F136*W136)))/(F136^3)),$F$6*F136*(LN((1-E136+E136^2)/(1+E136)^2)/(6*E136)+ATAN((2-E136)/(E136*3^0.5))/(E136*3^0.5)-LN((W136^2-E136*W136+E136^2)/(W136+E136)^2)/(6*E136)-ATAN((2*W136-E136)/(E136*3^0.5))/(E136*3^0.5))) -> 4.613114583 | H136: =IF($C$2=1,($O$31*D136*$F$6/$O$30)*(1-W136^3-(E136-F136)*(-2*F136^3*(1-W136^3)-3*F136^2*(1-W136^2)-6*F136*(1-W136)-6*LN((1-F136)/(1-F136*W136)))/(2*F136^4))/3,$F$6*F136*(LN((1+E136^3)/(E136^3+W136^3)))/3) -> 3.041739594 | I136: =H136/G136 -> 0.6593678824 | J136: =G136*C136*$D$6 -> 0.2084270792 | K136: =MAX(MIN($K$6,$Q$6*$J$6*D136*(C136-$I$6)/C136),-$K$6) -> 25.88307912 | L136: =K136*$H$6 -> 0.008677839815 | M136: =MIN($O$6,$Q$6*$N$6*D136*(C$6-C136-$M$6)/C136) -> 458.3333333 | N136: =M136*$L$6 -> 0.1536657687 | O136: =(0.5*$C$6-C136+I136*C136)*J136+(0.5*$C$6-$I$6)*L136+(0.5*$C$6-$M$6)*N136 -> 0.02366787402 | P136: =0.1*$Q$6*D136*$B$6^2/C136+$R$6 -> 0.0323699431 | Q136: =(J136+L136-N136) -> 0.06343915032 | R136: =O136-P136*Q136 -> 0.02161435233 | S136: =((R136-R135)*(Q136-Q137)-(R136-R137)*(Q136-Q135))/((Q136^2-Q135^2)*(Q136-Q137)-(Q136^2-Q137^2)*(Q136-Q135)) -> -0.05090698366 | T136: =-(S136*(Q136^2-Q135^2)-(R136-R135))/(Q136-Q135) -> 0.03789181238 | U136: =R136-S136*Q136^2-T136*Q136 -> 0.01941540442 | V136: =S116*Q136^2+T116*Q136+U116 -> 0.02161435421 | W136: =IF(C136<$C$6,0,(C136-$C$6)/C136) -> 0
B137: =IF(R117>$Q$29*V117,B117,IF(Q117>Q116,$U$6,-0.5)*B117) -> 9.219167147e-09 | C137: =IF(Q117>Q116,C117,(1-$T$6)*C117+$T$6*C118) -> 0.04941589192 | D137: =D117+B137 -> 0.0004583176171 | E137: 0.08884552469 | F137: -0.06048538819 | G137: 5.298972063 | H137: 3.487384035 | I137: 0.6581246313 | J137: 0.2618534307 | K137: 50.10883917 | L137: 0.01680002899 | M137: 458.3333333 | N137: 0.1536657687 | O137: 0.02766632682 | P137: =0.1*$Q$6*D137*$B$6^2/C137+$R$6 -> 0.03448481363 | Q137: 0.124987691 | R137: 0.02335614959 | S137: -0.02438416649 | T137: 0.03289420172 | U137: 0.01962570683 | V137: =MAX(S117*Q137^2+T117*Q137+U117,S118*Q137^2+T118*Q137+U118) -> 0.02335619568 | W137: 0
B138: -2.079842889e-07 | C138: 0.05313596372 | D138: 0.0004993374732 | E138: 0.0967972824 | F138: -0.0658988871 | G138: 5.721386495 | H138: 3.760860014 | I138: 0.6573336755 | J138: 0.3040113853 | K138: 70.8305318 | L138: 0.02374740679 | M138: 458.3333333 | N138: 0.1536657687 | O138: 0.03069627291 | P138: 0.03494085822 | Q138: 0.1740930234 | R138: 0.02461331326 | S138: -0.06082609717 | T138: 0.04379328039 | U138: 0.01883274919 | V138: =MAX(S118*Q138^2+T118*Q138+U118,S119*Q138^2+T119*Q138+U119) -> 0.02461282324 | W138: 0
B139: -3.137337943e-06 | C139: 0.05742818137 | D139: 0.0005935183267 | E139: 0.1150543754 | F139: -0.07832818345 | G139: 6.660781899 | H139: 4.36613785 | I139: 0.6554992966 | J139: 0.382516591 | K139: 103.3508626 | L139: 0.03465052308 | M139: 458.3333333 | N139: 0.1536657687 | O139: 0.03627458084 | P139: 0.03842704959 | Q139: 0.2635013454 | R139: 0.02614900158 | S139: -0.01210168242 | T139: 0.02247175086 | U139: 0.02106792061 | V139: 0.02612095703 | W139: 0
B140: -3.303471759e-06 | C140: 0.06219541963 | D140: 0.0006612855384 | E140: 0.1281911462 | F140: -0.08727160163 | G140: 7.310952306 | H140: 4.782554142 | I140: 0.6541629519 | J140: 0.4547077466 | K140: 135.4088182 | L140: 0.04539861848 | M140: 458.3333333 | N140: 0.1536657687 | O140: 0.04109638922 | P140: 0.03953289267 | Q140: 0.3464405964 | R140: 0.02740059031 | S140: -0.04302240452 | T140: 0.04133159614 | U140: 0.01824524324 | V140: 0.02736083704 | W140: 0
B141: 3.469605574e-05 | C141: 0.06750525256 | D141: 0.0007708733554 | E141: 0.149434901 | F141: -0.1017341957 | G141: 8.317849538 | H141: 5.422999502 | I141: 0.6519713392 | J141: 0.5614985338 | K141: 180.2245999 | L141: 0.06042404002 | M141: 458.3333333 | N141: 0.1536657687 | O141: 0.0480476452 | P141: 0.04245935953 | Q141: 0.4682568052 | R141: 0.02816576115 | S141: -0.01960882562 | T141: 0.02225661426 | U141: 0.02204346815 | V141: 0.02843758966 | W141: 0
B142: 3.63573939e-05 | C142: 0.0734371256 | D142: 0.0008077847937 | E142: 0.156590236 | F142: -0.1066054958 | G142: 8.644849498 | H142: 5.629736178 | I142: 0.6512243133 | J142: 0.6348528984 | K142: 211.0386037 | L142: 0.07075507473 | M142: 420.1119508 | N142: 0.1408512564 | O142: 0.05145653686 | P142: 0.04089855593 | Q142: 0.5647567168 | R142: 0.02835880269 | S142: -0.02411064996 | T142: 0.02690705967 | U142: 0.02085295541 | V142: 0.02821211308 | W142: 0
B143: -3.801873206e-06 | C143: 0.0800848618 | D143: 0.0008028756267 | E143: 0.155638587 | F143: -0.1059576201 | G143: 8.601707302 | H143: 5.602497807 | I143: 0.6513239303 | J143: 0.6888665405 | K143: 230.5850778 | L143: 0.07730843612 | M143: 344.6572143 | N143: 0.1155534889 | O143: 0.0524053996 | P143: 0.03727570053 | Q143: 0.6506214877 | R143: 0.02815302787 | S143: 0.0264006412 | T143: -0.03448326268 | U143: 0.03941296846 | V143: 0.02815082817 | W143: 0
B144: -3.968007022e-08 | C144: 0.0875597913 | D144: 0.0007589565732 | E144: 0.1471248157 | F144: -0.1001615064 | G144: 8.210983074 | H144: 5.355297967 | I144: 0.6522115463 | J144: 0.7189519643 | K144: 236.5402838 | L144: 0.07930504263 | M144: 260.8132103 | N144: 0.08744304533 | O144: 0.05114935148 | P144: 0.03222850642 | Q144: 0.7108139616 | R144: 0.02824087915 | S144: 0.01622435325 | T144: -0.02062890353 | U144: 0.03470673205 | V144: 0.02824085871 | W144: 0
B145: 2.893898586e-08 | C145: 0.09599468428 | D145: 0.0007268479368 | E145: 0.1409005107 | F145: -0.09592404476 | G145: 7.919871938 | H145: 5.170539418 | I145: 0.6528564424 | J145: 0.7602656063 | K145: 243.2742499 | L145: 0.08156274461 | M145: 191.185294 | N145: 0.06409884034 | O145: 0.05037194124 | P145: 0.02815297845 | Q145: 0.7777295105 | R145: 0.0284765391 | S145: -0.003366033677 | T145: 0.008532239051 | U145: 0.02387675487 | V145: 0.02847656486 | W145: 0
B146: -3.010192257e-07 | C146: 0.1055487269 | D146: 0.0007259248885 | E146: 0.1407215765 | F146: -0.09580222763 | G146: 7.911434529 | H146: 5.16517728 | I146: 0.652874932 | J146: 0.8350418422 | K146: 258.6758667 | L146: 0.08672645647 | M146: 135.9555458 | N146: 0.04558192026 | O146: 0.05117441309 | P146: 0.02557211553 | Q146: 0.8761863784 | R146: 0.0287684738 | S146: -0.01101464905 | T146: 0.02118240554 | U146: 0.01866471298 | V146: 0.02876845702 | W146: 0
B147: 3.126485928e-06 | C147: 0.1164138618 | D147: 0.0007230175544 | E147: 0.1401579856 | F147: -0.09541853905 | G147: 7.884833986 | H147: 5.1482695 | I147: 0.652933151 | J147: 0.9179039742 | K147: 272.3135542 | L147: 0.09129877446 | M147: 84.05314119 | N147: 0.0281805612 | O147: 0.05149889019 | P147: 0.02309256186 | Q147: 0.9810221874 | R147: 0.02884457463 | S147: -0.0124915647 | T147: 0.02392534594 | U147: 0.01739521791 | V147: 0.02884020169 | W147: 0
B148: -3.242779599e-07 | C148: 0.1288229302 | D148: 0.0007820146416 | E148: 0.1515946552 | F148: -0.1032045407 | G148: 8.417188409 | H148: 5.485871723 | I148: 0.6517463381 | J148: 1.084326875 | K148: 309.3853688 | L148: 0.1037278702 | M148: 38.93163468 | N148: 0.01305263906 | O148: 0.05478222562 | P148: 0.02257094183 | Q148: 1.175002106 | R148: 0.02826132144 | S148: -0.01404122042 | T148: 0.02726644133 | U148: 0.01560892489 | V148: 0.02826173299 | W148: 0
B149: -4.7986761e-08 | C149: 0.1430602099 | D149: 0.0009178377833 | E149: 0.1779241653 | F149: -0.12112948 | G149: 9.584321163 | H149: 6.219930344 | I149: 0.6489693155 | J149: 1.371134997 | K149: 379.3945264 | L149: 0.1271998942 | M149: -11.2655202 | N149: -0.003776999608 | O149: 0.06071691953 | P149: 0.0238547596 | Q149: 1.502111891 | R149: 0.02488440148 | S149: -0.0149738203 | T149: 0.0297631175 | U149: 0.01396290044 | V149: 0.02488434748 | W149: 0
B150: 4.964809916e-05 | C150: 0.159475176 | D150: 0.0011030763 | E150: 0.2138329163 | F150: -0.145575897 | G150: 11.04906843 | H150: 7.127469794 | I150: 0.6450742736 | J150: 1.762052134 | K150: 458.3333333 | L150: 0.1536657687 | M150: -77.29418452 | N150: -0.02591448061 | O150: 0.06523685873 | P150: 0.02571819198 | Q150: 1.941632383 | R150: 0.01530158436 | S150: -0.01419860669 | T150: 0.02709348007 | U150: 0.016223849 | V150: 0.01558751433 | W150: 0
B151: -5.130943732e-06 | C151: 0.178500634 | D151: 0.001083547357 | E151: 0.2100472028 | F151: -0.1429986107 | G151: 10.90137519 | H151: 7.036740575 | I151: 0.6454910919 | J151: 1.945902383 | K151: 458.3333333 | L151: 0.1536657687 | M151: -134.1000625 | N151: -0.04495983094 | O151: 0.05742968234 | P151: 0.02257023622 | Q151: 2.144527983 | R151: 0.009027179179 | S151: -0.01078858728 | T151: 0.01315959391 | U151: 0.03042277759 | V151: 0.009041774227 | W151: 0
B152: -5.297077547e-06 | C152: 0.2006768534 | D152: 0.00106036347 | E152: 0.2055529733 | F152: -0.1399389719 | G152: 10.58352987 | H152: 6.917916093 | I152: 0.6536492248 | J152: 2.123869472 | K152: 458.3333333 | L152: 0.1536657687 | M152: -183.9642739 | N152: -0.06167784339 | O152: 0.04812898514 | P152: 0.01964651144 | Q152: 2.339213084 | R152: 0.002171608527 | S152: 0.01199985447 | T152: -0.08901787819 | U152: 0.144741176 | V152: =S132*Q152^2+T132*Q152+U132 -> 0.002156493066 | W152: 0.1030355672
C153: =C133 -> 0.2266840316 | D153: =D133+(D152-D132) -> 0.001090629556 | E153: 0.2114200972 | F153: -0.1439332672 | G153: 10.39222211 | H153: 6.992971234 | I153: 0.672904328 | J153: 2.355750805 | K153: 458.3333333 | L153: 0.1536657687 | M153: -239.3031422 | N153: -0.08023134828 | O153: 0.04101657712 | P153: 0.01788892755 | Q153: 2.589647922 | R153: -0.005309446933 | W153: 0.2059431858
B154: De | C154: hc | D154: e0 | E154: a' | F154: b' | G154: N' | H154: tN' | I154: t | J154: Nc | K154: sac | L154: Nac | M154: sat | N154: Nat | O154: Mtot | P154: u | Q154: N | R154: Mo | S154: a'' | T154: b'' | U154: c'' | W154: x
C155: =$C$35 -> 0.04013868786 | D155: =$D$35 -> 0.0003210578024 | E155: =$E$35 -> 0.06223751358 | F155: =$F$35 -> -0.0423708474 | G155: =IF($C$2=1,0.5*($O$31*D155*$F$6/$O$30)*(1-W155^2+(E155-F155)*(F155^2*(1-W155^2)+2*F155*(1-W155)+2*LN((1-F155)/(1-F155*W155)))/(F155^3)),$F$6*F155*(LN((1-E155+E155^2)/(1+E155)^2)/(6*E155)+ATAN((2-E155)/(E155*3^0.5))/(E155*3^0.5)-LN((W155^2-E155*W155+E155^2)/(W155+E155)^2)/(6*E155)-ATAN((2*W155-E155)/(E155*3^0.5))/(E155*3^0.5))) -> 3.825446827 | H155: =IF($C$2=1,($O$31*D155*$F$6/$O$30)*(1-W155^3-(E155-F155)*(-2*F155^3*(1-W155^3)-3*F155^2*(1-W155^2)-6*F155*(1-W155)-6*LN((1-F155)/(1-F155*W155)))/(2*F155^4))/3,$F$6*F155*(LN((1+E155^3)/(E155^3+W155^3)))/3) -> 2.527617251 | I155: =$I$35 -> 0.6607377818 | J155: =$J$35 -> 0.1535484161 | K155: =$K$35 -> 0.6365191477 | L155: =$L$35 -> 0.0002134062635 | M155: =$M$35 -> 458.3215629 | N155: =$N$35 -> 0.1536618224 | O155: =$O$35 -> 0.01942216714 | P155: =$P$35 -> 0.02974048372 | Q155: =$Q$35 -> 0.0001 | R155: =$R$35 -> 0.01941919309 | W155: =IF(C155<$C$6,0,(C155-$C$6)/C155) -> 0
B156: =IF(R136>$Q$29*V136,IF(B136=B96,1.22,1)*B136,IF(Q136>Q135,$U$6,-0.5)*B136) -> -3.976897797e-10 | C156: =IF(Q136>Q135,C136,(1-$T$6)*C136+$T$6*C137) -> 0.04518142254 | D156: =D136+B156 -> 0.0003933448125 | E156: =IF($C$2=1,D156/($O$31*$O$30),2^(1/3)*$O$30/D156) -> 0.07625045374 | F156: =IF($C$2=1,-($O$31-2)*D156/$O$30,3*($O$30/D156)^2) -> -0.05191075532 | G156: =IF($C$2=1,0.5*($O$31*D156*$F$6/$O$30)*(1-W156^2+(E156-F156)*(F156^2*(1-W156^2)+2*F156*(1-W156)+2*LN((1-F156)/(1-F156*W156)))/(F156^3)),$F$6*F156*(LN((1-E156+E156^2)/(1+E156)^2)/(6*E156)+ATAN((2-E156)/(E156*3^0.5))/(E156*3^0.5)-LN((W156^2-E156*W156+E156^2)/(W156+E156)^2)/(6*E156)-ATAN((2*W156-E156)/(E156*3^0.5))/(E156*3^0.5))) -> 4.613110321 | H156: =IF($C$2=1,($O$31*D156*$F$6/$O$30)*(1-W156^3-(E156-F156)*(-2*F156^3*(1-W156^3)-3*F156^2*(1-W156^2)-6*F156*(1-W156)-6*LN((1-F156)/(1-F156*W156)))/(2*F156^4))/3,$F$6*F156*(LN((1+E156^3)/(E156^3+W156^3)))/3) -> 3.041736818 | I156: =H156/G156 -> 0.65936789 | J156: =G156*C156*$D$6 -> 0.2084268866 | K156: =MAX(MIN($K$6,$Q$6*$J$6*D156*(C156-$I$6)/C156),-$K$6) -> 25.88305295 | L156: =K156*$H$6 -> 0.008677831041 | M156: =MIN($O$6,$Q$6*$N$6*D156*(C$6-C156-$M$6)/C156) -> 458.3333333 | N156: =M156*$L$6 -> 0.1536657687 | O156: =(0.5*$C$6-C156+I156*C156)*J156+(0.5*$C$6-$I$6)*L156+(0.5*$C$6-$M$6)*N156 -> 0.02366785929 | P156: =0.1*$Q$6*D156*$B$6^2/C156+$R$6 -> 0.03236991037 | Q156: =(J156+L156-N156) -> 0.063438949 | R156: =O156-P156*Q156 -> 0.02161434619 | S156: =((R156-R155)*(Q156-Q157)-(R156-R157)*(Q156-Q155))/((Q156^2-Q155^2)*(Q156-Q157)-(Q156^2-Q157^2)*(Q156-Q155)) -> -0.05090666074 | T156: =-(S156*(Q156^2-Q155^2)-(R156-R155))/(Q156-Q155) -> 0.03789179483 | U156: =R156-S156*Q156^2-T156*Q156 -> 0.01941540442 | V156: =S136*Q156^2+T136*Q156+U136 -> 0.02161434601 | W156: =IF(C156<$C$6,0,(C156-$C$6)/C156) -> 0
B157: =IF(R137>$Q$29*V137,IF(B137=B97,1.22,1)*B137,IF(Q137>Q136,$U$6,-0.5)*B137) -> -9.219167147e-10 | C157: =IF(Q137>Q136,C137,(1-$T$6)*C137+$T$6*C138) -> 0.04941589192 | D157: =D137+B157 -> 0.0004583166951 | E157: 0.08884534598 | F157: -0.06048526652 | G157: 5.298962477 | H157: 3.487377821 | I157: 0.658124649 | J157: 0.261852957 | K157: 50.10873838 | L157: 0.0167999952 | M157: 458.3333333 | N157: 0.1536657687 | O157: 0.02766629073 | P157: =0.1*$Q$6*D157*$B$6^2/C157+$R$6 -> 0.03448474426 | Q157: 0.1249871836 | R157: 0.02335613967 | S157: -0.02440910512 | T157: 0.0328989629 | U157: 0.01962550501 | V157: =MAX(S137*Q157^2+T137*Q157+U137,S138*Q157^2+T138*Q157+U138) -> 0.02335613599 | W157: 0
B158: 2.079842889e-08 | C158: 0.05313596372 | D158: 0.0004993582717 | E158: 0.09680131421 | F158: -0.06590163193 | G158: 5.721598614 | H158: 3.760997145 | I158: 0.6573332733 | J158: 0.3040226564 | K158: 70.83348204 | L158: 0.02374839592 | M158: 458.3333333 | N158: 0.1536657687 | O158: 0.03069712504 | P158: 0.03494231358 | Q158: 0.1741052836 | R158: 0.02461348363 | S158: -0.0587993174 | T158: 0.04318481634 | U158: 0.01887714204 | V158: =MAX(S138*Q158^2+T138*Q158+U138,S139*Q158^2+T139*Q158+U139) -> 0.02461359051 | W158: 0
B159: -3.82755229e-06 | C159: 0.05742818137 | D159: 0.0005896907745 | E159: 0.1143123989 | F159: -0.07782305125 | G159: 6.623421712 | H159: 4.342145433 | I159: 0.6555743574 | J159: 0.3803710634 | K159: 102.6843612 | L159: 0.03442706463 | M159: 458.3333333 | N159: 0.1536657687 | O159: 0.03611439729 | P159: 0.03817923661 | Q159: 0.2611323594 | R159: 0.02614456316 | S159: -0.01381241625 | T159: 0.02360482352 | U159: 0.02092245007 | V159: 0.02611080689 | W159: 0
B160: -3.303471759e-06 | C160: 0.06219541963 | D160: 0.0006579820667 | E160: 0.1275507634 | F160: -0.08683563372 | G160: 7.279750911 | H160: 4.762619961 | I160: 0.6542284233 | J160: 0.4527671628 | K160: 134.7323794 | L160: 0.04517182832 | M160: 458.3333333 | N160: 0.1536657687 | O160: 0.04095398179 | P160: 0.03933540491 | Q160: 0.3442732224 | R160: 0.02741185519 | S160: -0.04259253755 | T160: 0.0410284696 | U160: 0.01833509187 | V160: 0.027381707 | W160: 0
B161: -3.469605574e-06 | C161: 0.06750525256 | D161: 0.0007674037498 | E161: 0.148762313 | F161: -0.1012763027 | G161: 8.286800534 | H161: 5.403336397 | I161: 0.6520413246 | J161: 0.5594025629 | K161: 179.4134313 | L161: 0.0601520789 | M161: 458.3333333 | N161: 0.1536657687 | O161: 0.04789729484 | P161: 0.04226825521 | Q161: 0.4658888732 | R161: 0.02820498505 | S161: -0.02036564793 | T161: 0.02302108612 | U161: 0.02190013079 | V161: 0.0281564336 | W161: 0
B162: 4.435602056e-05 | C162: 0.0734371256 | D162: 0.0008521408142 | E162: 0.165188714 | F162: -0.1124592772 | G162: 9.029844578 | H162: 5.872293213 | I162: 0.650320519 | J162: 0.6631258305 | K162: 222.6268791 | L162: 0.07464028472 | M162: 443.180588 | N162: 0.1485854961 | O162: 0.05381390322 | P162: 0.04314432387 | Q162: 0.5891806191 | R162: 0.02839410377 | S162: -0.02942014429 | T162: 0.032574209 | U162: 0.01941473769 | V162: 0.0283364519 | W162: 0
B163: 3.801873206e-07 | C163: 0.0800848618 | D163: 0.000803255814 | E163: 0.1557122869 | F163: -0.1060077944 | G163: 8.605052228 | H163: 5.604610076 | I163: 0.6513162184 | J163: 0.6891344185 | K163: 230.6942672 | L163: 0.07734504414 | M163: 344.8204205 | N163: 0.1156082072 | O163: 0.05242616918 | P163: 0.03729335176 | Q163: 0.6508712554 | R163: 0.0281529985 | S163: 0.04418405457 | T163: -0.05869881577 | U163: 0.04764052954 | V163: 0.0281531495 | W163: 0
B164: 3.968007022e-09 | C164: 0.0875597913 | D164: 0.0007589605412 | E164: 0.1471255849 | F164: -0.1001620301 | G164: 8.211018764 | H164: 5.355320588 | I164: 0.6522114664 | J164: 0.7189550893 | K164: 236.5415205 | L164: 0.07930545725 | M164: 260.8145739 | N164: 0.0874435025 | O164: 0.05114957613 | P164: 0.03222867492 | Q164: 0.710817044 | R164: 0.02824088469 | S164: 0.01620545776 | T164: -0.02060068785 | U164: 0.03469622104 | V164: 0.0282408907 | W164: 0
B165: -2.893898586e-09 | C165: 0.09599468428 | D165: 0.0007268450429 | E165: 0.1408999497 | F165: -0.09592366284 | G165: 7.919845492 | H165: 5.170522611 | I165: 0.6528565003 | J165: 0.7602630675 | K165: 243.2732814 | L165: 0.08156241988 | M165: 191.1845328 | N165: 0.06409858514 | O165: 0.05037177259 | P165: 0.02815286636 | Q165: 0.7777269023 | R165: 0.02847653105 | S165: -0.003368216887 | T165: 0.008535587051 | U165: 0.02387547212 | V165: 0.0284765305 | W165: 0
B166: 3.010192257e-08 | C166: 0.1055487269 | D166: 0.0007259549904 | E166: 0.1407274118 | F166: -0.09580620026 | G166: 7.911709746 | H166: 5.165352192 | I166: 0.6528743291 | J166: 0.8350708909 | K166: 258.6865932 | L166: 0.08673005276 | M166: 135.9611835 | N166: 0.0455838104 | O166: 0.05117618435 | P166: 0.02557317593 | Q166: 0.8762171333 | R166: 0.02876852945 | S166: -0.01103686825 | T166: 0.02121910723 | U166: 0.01864961109 | V166: 0.02876853639 | W166: 0
B167: -3.126485928e-07 | C167: 0.1164138618 | D167: 0.0007227049058 | E167: 0.1400973782 | F167: -0.09537727799 | G167: 7.881971145 | H167: 5.14644959 | I167: 0.6529394101 | J167: 0.9175706998 | K167: 272.1957999 | L167: 0.09125929488 | M167: 84.01679477 | N167: 0.02816837531 | O167: 0.05148044622 | P167: 0.02308257613 | Q167: 0.9806616193 | R167: 0.02884424973 | S167: -0.01246504622 | T167: 0.02387106056 | U167: 0.01742241702 | V167: 0.02884478346 | W167: 0
B168: 3.242779599e-08 | C168: 0.1288229302 | D168: 0.0007820470694 | E168: 0.1516009414 | F168: -0.1032088203 | G168: 8.417476738 | H168: 5.486054123 | I168: 0.6517456826 | J168: 1.084364018 | K168: 309.3981981 | L168: 0.1037321715 | M168: 38.93324906 | N168: 0.01305318031 | O168: 0.05478405272 | P168: 0.02257187778 | Q168: 1.175043009 | R168: 0.02826112553 | S168: -0.01404604953 | T168: 0.02727923672 | U168: 0.01560059594 | V168: 0.02826109949 | W168: 0
B169: 4.7986761e-09 | C169: 0.1430602099 | D169: 0.000917842582 | E169: 0.1779250955 | F169: -0.1211301133 | G169: 9.584360983 | H169: 6.219955235 | I169: 0.6489692162 | J169: 1.371140694 | K169: 379.3965099 | L169: 0.1272005593 | M169: -11.2655791 | N169: -0.003777019355 | O169: 0.06071715895 | P169: 0.02385488432 | Q169: 1.502118272 | R169: 0.02488430133 | S169: -0.01483796462 | T169: 0.02939932112 | U169: 0.01420282339 | V169: 0.02488430434 | W169: 0
B170: -4.964809916e-06 | C170: 0.159475176 | D170: 0.00109811149 | E170: 0.2128704808 | F170: -0.1449206779 | G170: 11.01166863 | H170: 7.104512583 | I170: 0.6451803831 | J170: 1.756087792 | K170: 458.3333333 | L170: 0.1536657687 | M170: -76.94629296 | N170: -0.02579784274 | O170: 0.06507320886 | P170: 0.02560243758 | Q170: 1.935551404 | R170: 0.01551837486 | S170: -0.01472164763 | T170: 0.02899946174 | U170: 0.01454100656 | V170: 0.01547592446 | W170: 0
B171: 5.130943732e-07 | C171: 0.178500634 | D171: 0.001084060451 | E171: 0.2101466669 | F171: -0.1430663251 | G171: 10.90527561 | H171: 7.039139042 | I171: 0.6454801598 | J171: 1.94659861 | K171: 458.3333333 | L171: 0.1536657687 | M171: -134.1635632 | N171: -0.04498112086 | O171: 0.05744342242 | P171: 0.02258092395 | Q171: 2.1452455 | R171: 0.009001796924 | S171: -0.01055165492 | T171: 0.01198256841 | U171: 0.03185578764 | V171: 0.009003414299 | W171: 0
B172: -5.297077547e-06 | C172: 0.2006768534 | D172: 0.001055066393 | E172: 0.2045261272 | F172: -0.1392399025 | G172: 10.54337865 | H172: 6.892783197 | I172: 0.6537546859 | J172: 2.115812052 | K172: 458.3333333 | L172: 0.1536657687 | M172: -183.0452748 | N172: -0.06136972987 | O172: 0.04802402887 | P172: 0.0195483667 | Q172: 2.33084755 | R172: 0.00245976623 | S172: 0.01245453496 | T172: -0.09099527824 | U172: 0.1468922636 | V172: =S152*Q172^2+T152*Q172+U152 -> 0.00244748568 | W172: 0.1030355672
C173: =C153 -> 0.2266840316 | D173: =D153+(D172-D152) -> 0.001085332478 | E173: 0.2103932511 | F173: -0.1432341979 | G173: 10.35464631 | H173: 6.968629156 | I173: 0.6729953829 | J173: 2.347232971 | K173: 458.3333333 | L173: 0.1536657687 | M173: -238.1408711 | N173: -0.07984167273 | O173: 0.04094947928 | P173: 0.01780204283 | Q173: 2.580740413 | R173: -0.004992972087 | W173: 0.2059431858
B174: De | C174: hc | D174: e0 | E174: a' | F174: b' | G174: N' | H174: tN' | I174: t | J174: Nc | K174: sac | L174: Nac | M174: sat | N174: Nat | O174: Mtot | P174: u | Q174: N | R174: Mo | S174: a'' | T174: b'' | U174: c'' | W174: x
C175: =$C$35 -> 0.04013868786 | D175: =$D$35 -> 0.0003210578024 | E175: =$E$35 -> 0.06223751358 | F175: =$F$35 -> -0.0423708474 | G175: =IF($C$2=1,0.5*($O$31*D175*$F$6/$O$30)*(1-W175^2+(E175-F175)*(F175^2*(1-W175^2)+2*F175*(1-W175)+2*LN((1-F175)/(1-F175*W175)))/(F175^3)),$F$6*F175*(LN((1-E175+E175^2)/(1+E175)^2)/(6*E175)+ATAN((2-E175)/(E175*3^0.5))/(E175*3^0.5)-LN((W175^2-E175*W175+E175^2)/(W175+E175)^2)/(6*E175)-ATAN((2*W175-E175)/(E175*3^0.5))/(E175*3^0.5))) -> 3.825446827 | H175: =IF($C$2=1,($O$31*D175*$F$6/$O$30)*(1-W175^3-(E175-F175)*(-2*F175^3*(1-W175^3)-3*F175^2*(1-W175^2)-6*F175*(1-W175)-6*LN((1-F175)/(1-F175*W175)))/(2*F175^4))/3,$F$6*F175*(LN((1+E175^3)/(E175^3+W175^3)))/3) -> 2.527617251 | I175: =$I$35 -> 0.6607377818 | J175: =$J$35 -> 0.1535484161 | K175: =$K$35 -> 0.6365191477 | L175: =$L$35 -> 0.0002134062635 | M175: =$M$35 -> 458.3215629 | N175: =$N$35 -> 0.1536618224 | O175: =$O$35 -> 0.01942216714 | P175: =$P$35 -> 0.02974048372 | Q175: =$Q$35 -> 0.0001 | R175: =$R$35 -> 0.01941919309 | W175: =IF(C175<$C$6,0,(C175-$C$6)/C175) -> 0
B176: =IF(R156>$Q$29*V156,B156,IF(Q156>Q155,$U$6,-0.5)*B156) -> 3.976897797e-11 | C176: =IF(Q156>Q155,C156,(1-$T$6)*C156+$T$6*C157) -> 0.04518142254 | D176: =D156+B176 -> 0.0003933448523 | E176: =IF($C$2=1,D176/($O$31*$O$30),2^(1/3)*$O$30/D176) -> 0.07625046145 | F176: =IF($C$2=1,-($O$31-2)*D176/$O$30,3*($O$30/D176)^2) -> -0.05191076057 | G176: =IF($C$2=1,0.5*($O$31*D176*$F$6/$O$30)*(1-W176^2+(E176-F176)*(F176^2*(1-W176^2)+2*F176*(1-W176)+2*LN((1-F176)/(1-F176*W176)))/(F176^3)),$F$6*F176*(LN((1-E176+E176^2)/(1+E176)^2)/(6*E176)+ATAN((2-E176)/(E176*3^0.5))/(E176*3^0.5)-LN((W176^2-E176*W176+E176^2)/(W176+E176)^2)/(6*E176)-ATAN((2*W176-E176)/(E176*3^0.5))/(E176*3^0.5))) -> 4.613110747 | H176: =IF($C$2=1,($O$31*D176*$F$6/$O$30)*(1-W176^3-(E176-F176)*(-2*F176^3*(1-W176^3)-3*F176^2*(1-W176^2)-6*F176*(1-W176)-6*LN((1-F176)/(1-F176*W176)))/(2*F176^4))/3,$F$6*F176*(LN((1+E176^3)/(E176^3+W176^3)))/3) -> 3.041737096 | I176: =H176/G176 -> 0.6593678892 | J176: =G176*C176*$D$6 -> 0.2084269059 | K176: =MAX(MIN($K$6,$Q$6*$J$6*D176*(C176-$I$6)/C176),-$K$6) -> 25.88305557 | L176: =K176*$H$6 -> 0.008677831919 | M176: =MIN($O$6,$Q$6*$N$6*D176*(C$6-C176-$M$6)/C176) -> 458.3333333 | N176: =M176*$L$6 -> 0.1536657687 | O176: =(0.5*$C$6-C176+I176*C176)*J176+(0.5*$C$6-$I$6)*L176+(0.5*$C$6-$M$6)*N176 -> 0.02366786076 | P176: =0.1*$Q$6*D176*$B$6^2/C176+$R$6 -> 0.03236991364 | Q176: =(J176+L176-N176) -> 0.06343896913 | R176: =O176-P176*Q176 -> 0.02161434681 | S176: =((R176-R175)*(Q176-Q177)-(R176-R177)*(Q176-Q175))/((Q176^2-Q175^2)*(Q176-Q177)-(Q176^2-Q177^2)*(Q176-Q175)) -> -0.05090669302 | T176: =-(S176*(Q176^2-Q175^2)-(R176-R175))/(Q176-Q175) -> 0.03789179658 | U176: =R176-S176*Q176^2-T176*Q176 -> 0.01941540442 | V176: =S156*Q176^2+T156*Q176+U156 -> 0.02161434683 | W176: =IF(C176<$C$6,0,(C176-$C$6)/C176) -> 0
B177: =IF(R157>$Q$29*V157,B157,IF(Q157>Q156,$U$6,-0.5)*B157) -> 9.219167147e-11 | C177: =IF(Q157>Q156,C157,(1-$T$6)*C157+$T$6*C158) -> 0.04941589192 | D177: =D157+B177 -> 0.0004583167873 | E177: 0.08884536385 | F177: -0.06048527869 | G177: 5.298963436 | H177: 3.487378442 | I177: 0.6581246473 | J177: 0.2618530044 | K177: 50.10874845 | L177: 0.01679999858 | M177: 458.3333333 | N177: 0.1536657687 | O177: 0.02766629434 | P177: =0.1*$Q$6*D177*$B$6^2/C177+$R$6 -> 0.0344847512 | Q177: 0.1249872343 | R177: 0.02335614066 | S177: -0.02440661183 | T177: 0.03289848689 | U177: 0.01962552519 | V177: =MAX(S157*Q177^2+T157*Q177+U157,S158*Q177^2+T158*Q177+U158) -> 0.02335614111 | W177: 0
B178: -2.079842889e-09 | C178: 0.05313596372 | D178: 0.0004993561918 | E178: 0.09680091103 | F178: -0.06590135745 | G178: 5.721577402 | H178: 3.760983432 | I178: 0.6573333135 | J178: 0.3040215293 | K178: 70.83318701 | L178: 0.02374829701 | M178: 458.3333333 | N178: 0.1536657687 | O178: 0.03069703983 | P178: 0.03494216804 | Q178: 0.1741040576 | R178: 0.02461346659 | S178: -0.05666711699 | T178: 0.04254732306 | U178: 0.01892351129 | V178: =MAX(S158*Q178^2+T158*Q178+U158,S159*Q178^2+T159*Q178+U159) -> 0.02461346058 | W178: 0
B179: -3.82755229e-06 | C179: 0.05742818137 | D179: 0.0005858632222 | E179: 0.1135704224 | F179: -0.07731791905 | G179: 6.585992836 | H179: 4.318102082 | I179: 0.6556493743 | J179: 0.3782215911 | K179: 102.0178597 | L179: 0.03420360617 | M179: 458.3333333 | N179: 0.1536657687 | O179: 0.03595391727 | P179: 0.03793142364 | Q179: 0.2587594286 | R179: 0.02613880376 | S179: -0.01559427094 | T179: 0.02476838773 | U179: 0.0207738868 | V179: 0.02610559047 | W179: 0
B180: -3.303471759e-06 | C180: 0.06219541963 | D180: 0.0006546785949 | E180: 0.1269103807 | F180: -0.08639966582 | G180: 7.248499303 | H180: 4.742648594 | I180: 0.6542938608 | J180: 0.4508234559 | K180: 134.0559406 | L180: 0.04494503815 | M180: 458.3333333 | N180: 0.1536657687 | O180: 0.04081134369 | P180: 0.03913791716 | Q180: 0.3421027254 | R180: 0.02742215556 | S180: -0.04217717697 | T180: 0.0407410499 | U180: 0.01842070667 | V180: 0.02739222826 | W180: 0
B181: -3.469605574e-06 | C181: 0.06750525256 | D181: 0.0007639341443 | E181: 0.148089725 | F181: -0.1008184096 | G181: 8.255697767 | H181: 5.383633557 | I181: 0.6521112702 | J181: 0.5573029628 | K181: 178.6022627 | L181: 0.05988011777 | M181: 458.3333333 | N181: 0.1536657687 | O181: 0.04774668177 | P181: 0.04207715088 | Q181: 0.4635173119 | R181: 0.0282431939 | S181: -0.02935297559 | T181: 0.03040961631 | U181: 0.02045424715 | V181: 0.02819527795 | W181: 0
B182: 4.435602056e-05 | C182: 0.0734371256 | D182: 0.0008964968348 | E182: 0.1737871919 | F182: -0.1183130585 | G182: 9.406251294 | H182: 6.108512816 | I182: 0.649409911 | J182: 0.6907680577 | K182: 234.2151544 | L182: 0.0785254947 | M182: 458.3333333 | N182: 0.1536657687 | O182: 0.0559939471 | P182: 0.0453900918 | Q182: 0.6156277838 | R182: 0.02805054548 | S182: 0.02229056532 | T182: -0.02532125759 | U182: 0.03519094512 | V182: 0.02831816264 | W182: 0
B183: -3.801873206e-08 | C183: 0.0800848618 | D183: 0.0008032177953 | E183: 0.1557049169 | F183: -0.106002777 | G183: 8.604717764 | H183: 5.604398871 | I183: 0.6513169896 | J183: 0.689107633 | K183: 230.6833483 | L183: 0.07734138333 | M183: 344.8040999 | N183: 0.1156027354 | O183: 0.05242409238 | P183: 0.03729158664 | Q183: 0.6508462809 | R183: 0.02815300191 | S183: -0.01516709585 | T183: 0.02211789881 | U183: 0.0201824449 | V183: 0.02815302806 | W183: 0
B184: -3.968007022e-10 | C184: 0.0875597913 | D184: 0.0007589601444 | E184: 0.147125508 | F184: -0.1001619777 | G184: 8.211015195 | H184: 5.355318326 | I184: 0.6522114744 | J184: 0.7189547768 | K184: 236.5413969 | L184: 0.07930541579 | M184: 260.8144376 | N184: 0.08744345678 | O184: 0.05114955366 | P184: 0.03222865807 | Q184: 0.7108167358 | R184: 0.02824088413 | S184: 0.01620743151 | T184: -0.02060363476 | U184: 0.03469731869 | V184: 0.02824088393 | W184: 0
B185: 2.893898586e-10 | C185: 0.09599468428 | D185: 0.0007268453323 | E185: 0.1409000058 | F185: -0.09592370104 | G185: 7.919848137 | H185: 5.170524292 | I185: 0.6528564945 | J185: 0.7602633214 | K185: 243.2733782 | L185: 0.08156245235 | M185: 191.1846089 | N185: 0.06409861066 | O185: 0.05037178946 | P185: 0.02815287757 | Q185: 0.7777271631 | R185: 0.02847653185 | S185: -0.003367998434 | T185: 0.008535252052 | U185: 0.02387560047 | V185: 0.02847653211 | W185: 0
B186: -3.010192257e-09 | C186: 0.1055487269 | D186: 0.0007259519802 | E186: 0.1407268283 | F186: -0.095805803 | G186: 7.911682224 | H186: 5.165334701 | I186: 0.6528743894 | J186: 0.8350679861 | K186: 258.6855205 | L186: 0.08672969313 | M186: 135.9606197 | N186: 0.04558362139 | O186: 0.05117600723 | P186: 0.02557306989 | Q186: 0.8762140578 | R186: 0.02876852389 | S186: -0.01103462224 | T186: 0.02121539719 | U186: 0.01865113772 | V186: 0.02876852368 | W186: 0
B187: 3.126485928e-08 | C187: 0.1164138618 | D187: 0.0007227361706 | E187: 0.140103439 | F187: -0.0953814041 | G187: 7.882257449 | H187: 5.146631596 | I187: 0.6529387842 | J187: 0.9176040295 | K187: 272.2075753 | L187: 0.09126324284 | M187: 84.02042941 | N187: 0.0281695939 | O187: 0.05148229075 | P187: 0.02308357471 | Q187: 0.9806976785 | R187: 0.02884428263 | S187: -0.01246771476 | T187: 0.0238765235 | U187: 0.01741967975 | V187: 0.02884423999 | W187: 0
B188: -3.242779599e-09 | C188: 0.1288229302 | D188: 0.0007820438266 | E188: 0.1516003128 | F188: -0.1032083923 | G188: 8.417447905 | H188: 5.486035883 | I188: 0.6517457482 | J188: 1.084360304 | K188: 309.3969152 | L188: 0.1037317414 | M188: 38.93308762 | N188: 0.01305312619 | O188: 0.05478387001 | P188: 0.02257178418 | Q188: 1.175038919 | R188: 0.02826114512 | S188: -0.0140455654 | T188: 0.02727795387 | U188: 0.01560143104 | V188: 0.02826114896 | W188: 0
B189: -4.7986761e-10 | C189: 0.1430602099 | D189: 0.0009178421021 | E189: 0.1779250025 | F189: -0.1211300499 | G189: 9.584357001 | H189: 6.219952746 | I189: 0.6489692261 | J189: 1.371140124 | K189: 379.3963116 | L189: 0.1272004928 | M189: -11.26557321 | N189: -0.00377701738 | O189: 0.060717135 | P189: 0.02385487185 | Q189: 1.502117634 | R189: 0.02488431134 | S189: -0.01469958578 | T189: 0.02902886884 | U189: 0.01444705453 | V189: 0.02488431104 | W189: 0
B190: -4.964809916e-06 | C190: 0.159475176 | D190: 0.00109314668 | E190: 0.2119080453 | F190: -0.1442654588 | G190: 10.974168 | H190: 7.081481311 | I190: 0.6452863953 | J190: 1.750107374 | K190: 458.3333333 | L190: 0.1536657687 | M190: -76.5984014 | N190: -0.02568120487 | O190: 0.06490879245 | P190: 0.02548668318 | Q190: 1.929454347 | R190: 0.0157334008 | S190: -0.01520828568 | T190: 0.03077450916 | U190: 0.01297270619 | V190: 0.01569396789 | W190: 0
B191: -5.130943732e-08 | C191: 0.178500634 | D191: 0.001084009142 | E191: 0.2101367205 | F191: -0.1430595537 | G191: 10.90488561 | H191: 7.038899231 | I191: 0.645481253 | J191: 1.946528996 | K191: 458.3333333 | L191: 0.1536657687 | M191: -134.1572131 | N191: -0.04497899187 | O191: 0.05744204878 | P191: 0.02257985518 | Q191: 2.145173757 | R191: 0.009004336014 | S191: -0.01045308597 | T191: 0.01139883876 | U191: 0.03265454833 | V191: 0.009004491599 | W191: 0
B192: -5.297077547e-06 | C192: 0.2006768534 | D192: 0.001049769315 | E192: 0.2034992812 | F192: -0.1385408332 | G192: 10.50311153 | H192: 6.867564988 | I192: 0.6538600457 | J192: 2.107731374 | K192: 458.3333333 | L192: 0.1536657687 | M192: -182.1262758 | N192: -0.06106161635 | O192: 0.04791821101 | P192: 0.01945022197 | Q192: 2.322458759 | R192: 0.00274587265 | S192: 0.01295495595 | T192: -0.09317969045 | U192: 0.1492752292 | V192: =S172*Q192^2+T172*Q192+U172 -> 0.002736936196 | W192: 0.1030355672
C193: =C173 -> 0.2266840316 | D193: =D173+(D192-D172) -> 0.001080035401 | E193: 0.2093664051 | F193: -0.1425351286 | G193: 10.31695664 | H193: 6.944202667 | I193: 0.6730863483 | J193: 2.338689325 | K193: 458.3333333 | L193: 0.1536657687 | M193: -236.9785999 | N193: -0.07945199718 | O193: 0.04088157215 | P193: 0.01771515812 | Q193: 2.57180709 | R193: -0.004678397114 | W193: 0.2059431858
B194: De | C194: hc | D194: e0 | E194: a' | F194: b' | G194: N' | H194: tN' | I194: t | J194: Nc | K194: sac | L194: Nac | M194: sat | N194: Nat | O194: Mtot | P194: u | Q194: N | R194: Mo | S194: a'' | T194: b'' | U194: c'' | W194: x
C195: =$C$35 -> 0.04013868786 | D195: =$D$35 -> 0.0003210578024 | E195: =$E$35 -> 0.06223751358 | F195: =$F$35 -> -0.0423708474 | G195: =IF($C$2=1,0.5*($O$31*D195*$F$6/$O$30)*(1-W195^2+(E195-F195)*(F195^2*(1-W195^2)+2*F195*(1-W195)+2*LN((1-F195)/(1-F195*W195)))/(F195^3)),$F$6*F195*(LN((1-E195+E195^2)/(1+E195)^2)/(6*E195)+ATAN((2-E195)/(E195*3^0.5))/(E195*3^0.5)-LN((W195^2-E195*W195+E195^2)/(W195+E195)^2)/(6*E195)-ATAN((2*W195-E195)/(E195*3^0.5))/(E195*3^0.5))) -> 3.825446827 | H195: =IF($C$2=1,($O$31*D195*$F$6/$O$30)*(1-W195^3-(E195-F195)*(-2*F195^3*(1-W195^3)-3*F195^2*(1-W195^2)-6*F195*(1-W195)-6*LN((1-F195)/(1-F195*W195)))/(2*F195^4))/3,$F$6*F195*(LN((1+E195^3)/(E195^3+W195^3)))/3) -> 2.527617251 | I195: =$I$35 -> 0.6607377818 | J195: =$J$35 -> 0.1535484161 | K195: =$K$35 -> 0.6365191477 | L195: =$L$35 -> 0.0002134062635 | M195: =$M$35 -> 458.3215629 | N195: =$N$35 -> 0.1536618224 | O195: =$O$35 -> 0.01942216714 | P195: =$P$35 -> 0.02974048372 | Q195: =$Q$35 -> 0.0001 | R195: =$R$35 -> 0.01941919309 | W195: =IF(C195<$C$6,0,(C195-$C$6)/C195) -> 0
B196: =IF(R176>$Q$29*V176,B176,IF(Q176>Q175,$U$6,-0.5)*B176) -> -3.976897797e-12 | C196: =IF(Q176>Q175,C176,(1-$T$6)*C176+$T$6*C177) -> 0.04518142254 | D196: =D176+B196 -> 0.0003933448483 | E196: =IF($C$2=1,D196/($O$31*$O$30),2^(1/3)*$O$30/D196) -> 0.07625046067 | F196: =IF($C$2=1,-($O$31-2)*D196/$O$30,3*($O$30/D196)^2) -> -0.05191076004 | G196: =IF($C$2=1,0.5*($O$31*D196*$F$6/$O$30)*(1-W196^2+(E196-F196)*(F196^2*(1-W196^2)+2*F196*(1-W196)+2*LN((1-F196)/(1-F196*W196)))/(F196^3)),$F$6*F196*(LN((1-E196+E196^2)/(1+E196)^2)/(6*E196)+ATAN((2-E196)/(E196*3^0.5))/(E196*3^0.5)-LN((W196^2-E196*W196+E196^2)/(W196+E196)^2)/(6*E196)-ATAN((2*W196-E196)/(E196*3^0.5))/(E196*3^0.5))) -> 4.613110704 | H196: =IF($C$2=1,($O$31*D196*$F$6/$O$30)*(1-W196^3-(E196-F196)*(-2*F196^3*(1-W196^3)-3*F196^2*(1-W196^2)-6*F196*(1-W196)-6*LN((1-F196)/(1-F196*W196)))/(2*F196^4))/3,$F$6*F196*(LN((1+E196^3)/(E196^3+W196^3)))/3) -> 3.041737068 | I196: =H196/G196 -> 0.6593678893 | J196: =G196*C196*$D$6 -> 0.208426904 | K196: =MAX(MIN($K$6,$Q$6*$J$6*D196*(C196-$I$6)/C196),-$K$6) -> 25.88305531 | L196: =K196*$H$6 -> 0.008677831831 | M196: =MIN($O$6,$Q$6*$N$6*D196*(C$6-C196-$M$6)/C196) -> 458.3333333 | N196: =M196*$L$6 -> 0.1536657687 | O196: =(0.5*$C$6-C196+I196*C196)*J196+(0.5*$C$6-$I$6)*L196+(0.5*$C$6-$M$6)*N196 -> 0.02366786061 | P196: =0.1*$Q$6*D196*$B$6^2/C196+$R$6 -> 0.03236991332 | Q196: =(J196+L196-N196) -> 0.06343896712 | R196: =O196-P196*Q196 -> 0.02161434675 | S196: =((R196-R195)*(Q196-Q197)-(R196-R197)*(Q196-Q195))/((Q196^2-Q195^2)*(Q196-Q197)-(Q196^2-Q197^2)*(Q196-Q195)) -> -0.05090668979 | T196: =-(S196*(Q196^2-Q195^2)-(R196-R195))/(Q196-Q195) -> 0.03789179641 | U196: =R196-S196*Q196^2-T196*Q196 -> 0.01941540442 | V196: =S176*Q196^2+T176*Q196+U176 -> 0.02161434674 | W196: =IF(C196<$C$6,0,(C196-$C$6)/C196) -> 0
B197: =IF(R177>$Q$29*V177,B177,IF(Q177>Q176,$U$6,-0.5)*B177) -> -9.219167147e-12 | C197: =IF(Q177>Q176,C177,(1-$T$6)*C177+$T$6*C178) -> 0.04941589192 | D197: =D177+B197 -> 0.0004583167781 | E197: 0.08884536206 | F197: -0.06048527747 | G197: 5.29896334 | H197: 3.48737838 | I197: 0.6581246474 | J197: 0.2618529997 | K197: 50.10874745 | L197: 0.01679999824 | M197: 458.3333333 | N197: 0.1536657687 | O197: 0.02766629398 | P197: =0.1*$Q$6*D197*$B$6^2/C197+$R$6 -> 0.0344847505 | Q197: 0.1249872293 | R197: 0.02335614056 | S197: -0.02440686118 | T197: 0.0328985345 | U197: 0.01962552317 | V197: =MAX(S177*Q197^2+T177*Q197+U177,S178*Q197^2+T178*Q197+U178) -> 0.02335614052 | W197: 0
B198: 2.079842889e-10 | C198: 0.05313596372 | D198: 0.0004993563998 | E198: 0.09680095134 | F198: -0.06590138489 | G198: 5.721579523 | H198: 3.760984803 | I198: 0.6573333095 | J198: 0.304021642 | K198: 70.83321651 | L198: 0.0237483069 | M198: 458.3333333 | N198: 0.1536657687 | O198: 0.03069704835 | P198: 0.03494218259 | Q198: 0.1741041802 | R198: 0.02461346829 | S198: -0.05438569292 | T198: 0.04186494554 | U198: 0.01897315984 | V198: =MAX(S178*Q198^2+T178*Q198+U178,S179*Q198^2+T179*Q198+U179) -> 0.02461346939 | W198: 0
B199: -3.82755229e-06 | C199: 0.05742818137 | D199: 0.0005820356699 | E199: 0.1128284459 | F199: -0.07681278686 | G199: 6.548495197 | H199: 4.294007739 | I199: 0.6557243473 | J199: 0.3760681699 | K199: 101.3513582 | L199: 0.03398014771 | M199: 458.3333333 | N199: 0.1536657687 | O199: 0.03579314046 | P199: 0.03768361066 | Q199: 0.256382549 | R199: 0.0261317203 | S199: -0.0174593927 | T199: 0.02596866334 | U199: 0.0206214492 | V199: 0.02609902639 | W199: 0
B200: -3.303471759e-06 | C200: 0.06219541963 | D200: 0.0006513751232 | E200: 0.126269998 | F200: -0.08596369791 | G200: 7.217197436 | H200: 4.722640004 | I200: 0.6543592642 | J200: 0.4488766231 | K200: 133.3795018 | L200: 0.04471824799 | M200: 458.3333333 | N200: 0.1536657687 | O200: 0.04066847468 | P200: 0.03894042941 | Q200: 0.3399291024 | R200: 0.02743148946 | S200: -0.04177623198 | T200: 0.04046907792 | U200: 0.01850219071 | V200: 0.02739957172 | W200: 0
B201: -3.469605574e-06 | C201: 0.06750525256 | D201: 0.0007604645387 | E201: 0.147417137 | F201: -0.1003605166 | G201: 8.224541186 | H201: 5.363890943 | I201: 0.6521811761 | J201: 0.55519973 | K201: 177.791094 | L201: 0.05960815664 | M201: 458.3333333 | N201: 0.1536657687 | O201: 0.04759580574 | P201: 0.04188604656 | Q201: 0.4611421179 | R201: 0.02828038552 | S201: -0.02911268554 | T201: 0.03032467532 | U201: 0.02048727286 | V201: 0.02825438124 | W201: 0
B202: -4.435602056e-06 | C202: 0.0734371256 | D202: 0.0008920612327 | E202: 0.1729273441 | F202: -0.1177276804 | G202: 9.368994196 | H202: 6.085173752 | I202: 0.6495012831 | J202: 0.6880320036 | K202: 233.0563269 | L202: 0.07813697371 | M202: 458.3333333 | N202: 0.1536657687 | O202: 0.05580333629 | P202: 0.04516551501 | Q202: 0.6125032086 | R202: 0.02813931343 | S202: 0.006794656071 | T202: -0.008227074187 | U202: 0.03062933837 | V202: 0.02804412611 | W202: 0
B203: 3.801873206e-09 | C203: 0.0800848618 | D203: 0.0008032215971 | E203: 0.1557056539 | F203: -0.1060032787 | G203: 8.604751211 | H203: 5.604419991 | I203: 0.6513169125 | J203: 0.6891103115 | K203: 230.6844402 | L203: 0.07734174941 | M203: 344.8057319 | N203: 0.1156032826 | O203: 0.05242430007 | P203: 0.03729176315 | Q203: 0.6508487784 | R203: 0.02815300157 | S203: 0.01127539364 | T203: -0.0138878229 | U203: 0.0324155708 | V203: 0.02815300784 | W203: 0
B204: 3.968007022e-11 | C204: 0.0875597913 | D204: 0.0007589601841 | E204: 0.1471255157 | F204: -0.100161983 | G204: 8.211015551 | H204: 5.355318552 | I204: 0.6522114736 | J204: 0.718954808 | K204: 236.5414092 | L204: 0.07930541994 | M204: 260.8144512 | N204: 0.08744346135 | O204: 0.05114955591 | P204: 0.03222865976 | Q204: 0.7108167666 | R204: 0.02824088419 | S204: 0.01620723496 | T204: -0.0206033413 | U204: 0.03469720939 | V204: 0.02824088425 | W204: 0
... 769 more rows

Sheet Firsidig
D2: =IF(Brand!N19=0,0,Brand!AU20) -> 1 | K2: Q | M2: y | N2: Q-3 | V2: Q-4
L3: Punkt | O3: 1 | P3: 2 | Q3: 3 | R3: Midte | S3: 4 | T3: 5 | U3: 6
K4: x | O4: =$E$16/(4*$E$19)+(O3-1)*$E$16/(2*$E$19) -> 0.08333333333 | P4: =$E$16/(4*$E$19)+(P3-1)*$E$16/(2*$E$19) -> 0.25 | Q4: =$E$16/(4*$E$19)+(Q3-1)*$E$16/(2*$E$19) -> 0.4166666667 | R4: =0.5*E16 -> 0.5 | S4: =$E$16/(4*$E$19)+(S3-1)*$E$16/(2*$E$19) -> 0.5833333333 | T4: =$E$16/(4*$E$19)+(T3-1)*$E$16/(2*$E$19) -> 0.75 | U4: =$E$16/(4*$E$19)+(U3-1)*$E$16/(2*$E$19) -> 0.9166666667
K5: Q-1 | O5: =MAX(312*LOG10(8*$E$17+1)*EXP(-1.9*O4*$E$18/SQRT($E$17))*SIN(PI()/2-O4*$E$18/SQRT($E$17)),0)*$B$6 -> 0 | P5: =MAX(312*LOG10(8*$E$17+1)*EXP(-1.9*P4*$E$18/SQRT($E$17))*SIN(PI()/2-P4*$E$18/SQRT($E$17)),0)*$B$6 -> 0 | Q5: =MAX(312*LOG10(8*$E$17+1)*EXP(-1.9*Q4*$E$18/SQRT($E$17))*SIN(PI()/2-Q4*$E$18/SQRT($E$17)),0)*$B$6 -> 0 | R5: 0 | S5: 0 | T5: 0 | U5: 0 | V5: =MAX(312*LOG10(8*$E$17+1)*EXP(-1.9*($E$16)*$E$18/SQRT($E$17))*SIN(PI()/2-($E$16)*$E$18/SQRT($E$17)),0) -> 0
B6: =IF(Brand!N19=0,0,Brand!AU22) -> 0 | F6: =IF(Brand!N19=0,0,Brand!AU22) -> 0 | L6: 1 | M6: =$E$15/(4*$E$19)+(L6-1)*$E$15/(2*$E$19) -> 0.015 | N6: =MAX(312*LOG10(8*$E$17+1)*EXP(-1.9*M6*$E$18/SQRT($E$17))*SIN(PI()/2-M6*$E$18/SQRT($E$17)),0)*$D$2 -> 684.6295887 | O6: =MAX(((O$5+O$13)*$E$20/($E$20+$V$5))*(1-($N6+$V6)/$E$20)+$N6+$V6,20) -> 684.6295887 | P6: =MAX(((P$5+P$13)*$E$20/($E$20+$V$5))*(1-($N6+$V6)/$E$20)+$N6+$V6,20) -> 684.6295887 | Q6: 684.6295887 | R6: 684.6295887 | S6: 684.6295887 | T6: 684.6295887 | U6: 684.6295887 | V6: =MAX(312*LOG10(8*$E$17+1)*EXP(-1.9*($E$15-M6)*$E$18/SQRT($E$17))*SIN(PI()/2-($E$15-M6)*$E$18/SQRT($E$17)),0)*$D$11 -> 0
L7: 2 | M7: =$E$15/(4*$E$19)+(L7-1)*$E$15/(2*$E$19) -> 0.045 | N7: =MAX(312*LOG10(8*$E$17+1)*EXP(-1.9*M7*$E$18/SQRT($E$17))*SIN(PI()/2-M7*$E$18/SQRT($E$17)),0)*$D$2 -> 343.3275459 | O7: 354.6691955 | P7: 354.6691955 | Q7: 354.6691955 | R7: 354.6691955 | S7: 354.6691955 | T7: 354.6691955 | U7: 354.6691955 | V7: =MAX(312*LOG10(8*$E$17+1)*EXP(-1.9*($E$15-M7)*$E$18/SQRT($E$17))*SIN(PI()/2-($E$15-M7)*$E$18/SQRT($E$17)),0)*$D$11 -> 11.34164955
L8: 3 | M8: =$E$15/(4*$E$19)+(L8-1)*$E$15/(2*$E$19) -> 0.075 | N8: 152.0557544 | O8: 207.0671883 | P8: 207.0671883 | Q8: 207.0671883 | R8: 207.0671883 | S8: 207.0671883 | T8: 207.0671883 | U8: 207.0671883 | V8: 55.01143394
L9: Midte | M9: =0.5*E15 -> 0.09 | N9: 94.68938705 | O9: 189.3787741 | P9: 189.3787741 | Q9: 189.3787741 | R9: 189.3787741 | S9: 189.3787741 | T9: 189.3787741 | U9: 189.3787741 | V9: 94.68938705
L10: 4 | M10: =$E$15/(4*$E$19)+(L10-1)*$E$15/(2*$E$19) -> 0.105 | N10: 55.01143394 | O10: 207.0671883 | P10: 207.0671883 | Q10: 207.0671883 | R10: 207.0671883 | S10: 207.0671883 | T10: 207.0671883 | U10: 207.0671883 | V10: 152.0557544
D11: =IF(Brand!N19=0,0,Brand!AU21) -> 1 | H11: =VLOOKUP(600,Bet,5) -> 7 | L11: 5 | M11: =$E$15/(4*$E$19)+(L11-1)*$E$15/(2*$E$19) -> 0.135 | N11: 11.34164955 | O11: 354.6691955 | P11: 354.6691955 | Q11: 354.6691955 | R11: 354.6691955 | S11: 354.6691955 | T11: 354.6691955 | U11: 354.6691955 | V11: 343.3275459
L12: 6 | M12: =$E$15/(4*$E$19)+(L12-1)*$E$15/(2*$E$19) -> 0.165 | N12: 0 | O12: 684.6295887 | P12: 684.6295887 | Q12: 684.6295887 | R12: 684.6295887 | S12: 684.6295887 | T12: 684.6295887 | U12: 684.6295887 | V12: 684.6295887
B13: Betontværsnit | K13: Q-2 | M13: =E15-E27 -> 0.1490033092 | O13: =MAX(312*LOG10(8*$E$17+1)*EXP(-1.9*($E$16-O4)*$E$18/SQRT($E$17))*SIN(PI()/2-($E$16-O4)*$E$18/SQRT($E$17)),0)*$F$6 -> 0 | P13: =MAX(312*LOG10(8*$E$17+1)*EXP(-1.9*($E$16-P4)*$E$18/SQRT($E$17))*SIN(PI()/2-($E$16-P4)*$E$18/SQRT($E$17)),0)*$F$6 -> 0 | Q13: 0 | R13: 0 | S13: 0 | T13: 0 | U13: 0 | V13: =MAX(312*LOG10(8*$E$17+1)*EXP(-1.9*($E$15-M13)*$E$18/SQRT($E$17))*SIN(PI()/2-($E$15-M13)*$E$18/SQRT($E$17)),0)*$D$11 -> 480.1863167
K14: z-1
D15: h | E15: =Brand!N12/1000 -> 0.18 | F15: m | L15: Punkt | O15: 1 | P15: 2 | Q15: 3 | R15: Midte | S15: 4 | T15: 5 | U15: 6
D16: b | E16: =Brand!N13/1000 -> 1 | F16: m
B17: Brandtid | D17: t | E17: =IF(D2+F6+D11+B6=0,0.0001,Brand!N19+0.0001) -> 120.0001 | F17: min
B18: Svækket tværsnit | D18: k | E18: =SQRT(PI()*2300*1000/(750*0.75)) -> 113.338534 | L18: 1 | O18: =INDEX(Bet,VLOOKUP(O6,Bet,5),2)+(INDEX(Bet,VLOOKUP(O6,Bet,5)+1,2)-INDEX(Bet,VLOOKUP(O6,Bet,5),2))*(O6-INDEX(Bet,VLOOKUP(O6,Bet,5),1))/(INDEX(Bet,VLOOKUP(O6,Bet,5)+1,1)-INDEX(Bet,VLOOKUP(O6,Bet,5),1)) -> 0.4307408226 | P18: 0.4307408226 | Q18: 0.4307408226 | S18: =INDEX(Bet,VLOOKUP(S6,Bet,5),2)+(INDEX(Bet,VLOOKUP(S6,Bet,5)+1,2)-INDEX(Bet,VLOOKUP(S6,Bet,5),2))*(S6-INDEX(Bet,VLOOKUP(S6,Bet,5),1))/(INDEX(Bet,VLOOKUP(S6,Bet,5)+1,1)-INDEX(Bet,VLOOKUP(S6,Bet,5),1)) -> 0.4307408226 | T18: 0.4307408226 | U18: 0.4307408226
D19: n | E19: 3 | L19: 2 | O19: 0.8968871515 | P19: 0.8968871515 | Q19: 0.8968871515 | S19: 0.8968871515 | T19: 0.8968871515 | U19: 0.8968871515
D20: Q-maks | E20: =MAX(312*LOG10(8*$E$17+1)*EXP(-1.9*0*$E$18/SQRT($E$17))*SIN(PI()/2-0*$E$18/SQRT($E$17)),0.0001) -> 930.6098098 | G20: ecu | L20: 3 | O20: 0.9952885387 | P20: 0.9952885387 | Q20: 0.9952885387 | S20: 0.9952885387 | T20: 0.9952885387 | U20: 0.9952885387
D21: z-M / e1 | E21: =R21 -> 1 | F21: =INDEX(Bet,VLOOKUP(R9,Bet,5),3)+(INDEX(Bet,VLOOKUP(R9,Bet,5)+1,3)-INDEX(Bet,VLOOKUP(R9,Bet,5),3))*(R9-INDEX(Bet,VLOOKUP(R9,Bet,5),1))/(INDEX(Bet,VLOOKUP(R9,Bet,5)+1,1)-INDEX(Bet,VLOOKUP(R9,Bet,5),1)) -> 0.005340681611 | G21: =INDEX(Bet,VLOOKUP(R9,Bet,5),4)+(INDEX(Bet,VLOOKUP(R9,Bet,5)+1,4)-INDEX(Bet,VLOOKUP(R9,Bet,5),4))*(R9-INDEX(Bet,VLOOKUP(R9,Bet,5),1))/(INDEX(Bet,VLOOKUP(R9,Bet,5)+1,1)-INDEX(Bet,VLOOKUP(R9,Bet,5),1)) -> 0.02473446935 | L21: Midte | R21: =INDEX(Bet,VLOOKUP(R9,Bet,5),2)+(INDEX(Bet,VLOOKUP(R9,Bet,5)+1,2)-INDEX(Bet,VLOOKUP(R9,Bet,5),2))*(R9-INDEX(Bet,VLOOKUP(R9,Bet,5),1))/(INDEX(Bet,VLOOKUP(R9,Bet,5)+1,1)-INDEX(Bet,VLOOKUP(R9,Bet,5),1)) -> 1
D22: z-middel | E22: =((1-0.2/E19)/(2*E19)^2)*IF(AND(D2=1,D11=0),2*SUM(O18:U20),IF(AND(D11=1,D2=0),2*SUM(O22:U24),SUM(O18:U20)+SUM(O22:U24))) -> 0.7226851373 | L22: 4 | O22: =INDEX(Bet,VLOOKUP(O10,Bet,5),2)+(INDEX(Bet,VLOOKUP(O10,Bet,5)+1,2)-INDEX(Bet,VLOOKUP(O10,Bet,5),2))*(O10-INDEX(Bet,VLOOKUP(O10,Bet,5),1))/(INDEX(Bet,VLOOKUP(O10,Bet,5)+1,1)-INDEX(Bet,VLOOKUP(O10,Bet,5),1)) -> 0.9952885387 | P22: 0.9952885387 | Q22: 0.9952885387 | S22: =INDEX(Bet,VLOOKUP(S10,Bet,5),2)+(INDEX(Bet,VLOOKUP(S10,Bet,5)+1,2)-INDEX(Bet,VLOOKUP(S10,Bet,5),2))*(S10-INDEX(Bet,VLOOKUP(S10,Bet,5),1))/(INDEX(Bet,VLOOKUP(S10,Bet,5)+1,1)-INDEX(Bet,VLOOKUP(S10,Bet,5),1)) -> 0.9952885387 | T22: 0.9952885387 | U22: 0.9952885387
D23: a (bjælke) | E23: =IF(D11+B6+D2+F6=0,0,0.5*IF(B6=0,E15,MIN(E15,E16))*(1-E22/E21)) -> 0.02495833764 | F23: m | L23: 5 | O23: 0.8968871515 | P23: 0.8968871515 | Q23: 0.8968871515 | S23: 0.8968871515 | T23: 0.8968871515 | U23: 0.8968871515
D24: a (instabilitet) | E24: =IF(D11+B6+D2+F6=0,0,0.5*IF(B6=0,E15,MIN(E15,E16))*(1-(E22/E21)^1.3)) -> 0.03099669083 | F24: m | L24: 6 | O24: 0.4307408226 | P24: 0.4307408226 | Q24: 0.4307408226 | S24: 0.4307408226 | T24: 0.4307408226 | U24: 0.4307408226
B25: Randzoner | D25: atop | E25: =E24*D2 -> 0.03099669083 | F25: m
D26: aside | E26: =E24*MAX(B6,F6) -> 0 | F26: m
D27: abund | E27: =E24*D11 -> 0.03099669083 | F27: m
B28: Stål-gen | C28: type | D28: =IF($E$28="Q",1,IF($E$28="AC",3,5)) -> 3 | E28: =Brand!AS18 -> AC | K28: Trykarmering | M28: =M85 -> 0.04 | N28: 0.224 | O28: 0.408 | P28: 0.592 | Q28: 0.776 | R28: 0.96 | S28: 0.96 | T28: 0.96 | U28: 0.96 | V28: 0.96
C29: side-"dæklag" | E29: =E38 -> 0.04 | F29: m | M29: =MAX(312*LOG10(8*$E$17+1)*EXP(-1.9*M28*$E$18/SQRT($E$17))*SIN(PI()/2-M28*$E$18/SQRT($E$17)),0)*$B$6 -> 0 | N29: =IF(N28=M28,0,MAX(312*LOG10(8*$E$17+1)*EXP(-1.9*N28*$E$18/SQRT($E$17))*SIN(PI()/2-N28*$E$18/SQRT($E$17)),0))*$B$6 -> 0 | O29: =IF(O28=N28,0,MAX(312*LOG10(8*$E$17+1)*EXP(-1.9*O28*$E$18/SQRT($E$17))*SIN(PI()/2-O28*$E$18/SQRT($E$17)),0))*$B$6 -> 0 | P29: 0 | Q29: 0 | R29: 0 | S29: 0 | T29: 0 | U29: 0 | V29: 0
B30: Trykarmering | D30: nc | E30: =Brand!N16 -> 6.67 | K30: =-M88 -> 0.04 | L30: =MAX(312*LOG10(8*$E$17+1)*EXP(-1.9*K30*$E$18/SQRT($E$17))*SIN(PI()/2-K30*$E$18/SQRT($E$17)),0)*$D$2 -> 388.121471 | M30: =MAX(((M$29+M$31)*$E$20/($E$20+$V$5))*(1-($L30+$W30)/$E$20)+$L30+$W30,20) -> 395.364293 | N30: =IF(N28=M28,0,MAX(((N$29+N$31)*$E$20/($E$20+$V$5))*(1-($L30+$W30)/$E$20)+$L30+$W30,20)) -> 395.364293 | O30: =IF(O28=N28,0,MAX(((O$29+O$31)*$E$20/($E$20+$V$5))*(1-($L30+$W30)/$E$20)+$L30+$W30,20)) -> 395.364293 | P30: 395.364293 | Q30: 395.364293 | R30: 395.364293 | S30: 0 | T30: 0 | U30: 0 | V30: 0 | W30: =MAX(312*LOG10(8*$E$17+1)*EXP(-1.9*($E$15-K30)*$E$18/SQRT($E$17))*SIN(PI()/2-($E$15-K30)*$E$18/SQRT($E$17)),0)*$D$11 -> 7.242821967
D31: reduc nc | E31: =MIN(FLOOR(E30,1),10) -> 6 | M31: =MAX(312*LOG10(8*$E$17+1)*EXP(-1.9*($E$16-M28)*$E$18/SQRT($E$17))*SIN(PI()/2-($E$16-M28)*$E$18/SQRT($E$17)),0)*$F$6 -> 0 | N31: =IF(N28=M28,0,MAX(312*LOG10(8*$E$17+1)*EXP(-1.9*($E$16-N28)*$E$18/SQRT($E$17))*SIN(PI()/2-($E$16-N28)*$E$18/SQRT($E$17)),0))*$F$6 -> 0 | O31: =IF(O28=N28,0,MAX(312*LOG10(8*$E$17+1)*EXP(-1.9*($E$16-O28)*$E$18/SQRT($E$17))*SIN(PI()/2-($E$16-O28)*$E$18/SQRT($E$17)),0))*$F$6 -> 0 | P31: 0 | Q31: 0 | R31: 0 | S31: 0 | T31: 0 | U31: 0 | V31: 0
D32: ac | E32: =Brand!N14/1000 -> 0.04 | F32: m | K32: Trækarmering | M32: =W85 -> 0.04 | N32: 0.224 | O32: 0.408 | P32: 0.592 | Q32: 0.776 | R32: 0.96 | S32: 0.96 | T32: 0.96 | U32: 0.96 | V32: 0.96
D33: dc | E33: =(E16-2*E29)/(E31-1) -> 0.184 | F33: m | M33: =MAX(312*LOG10(8*$E$17+1)*EXP(-1.9*M32*$E$18/SQRT($E$17))*SIN(PI()/2-M32*$E$18/SQRT($E$17)),0)*$B$6 -> 0 | N33: =IF(N32=M32,0,MAX(312*LOG10(8*$E$17+1)*EXP(-1.9*N32*$E$18/SQRT($E$17))*SIN(PI()/2-N32*$E$18/SQRT($E$17)),0))*$B$6 -> 0 | O33: =IF(O32=N32,0,MAX(312*LOG10(8*$E$17+1)*EXP(-1.9*O32*$E$18/SQRT($E$17))*SIN(PI()/2-O32*$E$18/SQRT($E$17)),0))*$B$6 -> 0 | P33: 0 | Q33: 0 | R33: 0 | S33: 0 | T33: 0 | U33: 0 | V33: 0
D34: E/Ek | E34: =IF(E30=0,0,(SUM(E44:E53)+0.5*(E30-E31)*(E48+E49))/E30) -> 0.9613907121 | K34: =-W89 -> 0.14 | L34: =MAX(312*LOG10(8*$E$17+1)*EXP(-1.9*K34*$E$18/SQRT($E$17))*SIN(PI()/2-K34*$E$18/SQRT($E$17)),0)*$D$2 -> 7.242821967 | M34: =MAX(((M$33+M$35)*$E$20/($E$20+$V$5))*(1-($L34+$W34)/$E$20)+$L34+$W34,20) -> 395.364293 | N34: =IF(N32=M32,0,MAX(((N$33+N$35)*$E$20/($E$20+$V$5))*(1-($L34+$W34)/$E$20)+$L34+$W34,20)) -> 395.364293 | O34: =IF(O32=N32,0,MAX(((O$33+O$35)*$E$20/($E$20+$V$5))*(1-($L34+$W34)/$E$20)+$L34+$W34,20)) -> 395.364293 | P34: 395.364293 | Q34: 395.364293 | R34: 395.364293 | S34: 0 | T34: 0 | U34: 0 | V34: 0 | W34: =MAX(312*LOG10(8*$E$17+1)*EXP(-1.9*($E$15-K34)*$E$18/SQRT($E$17))*SIN(PI()/2-($E$15-K34)*$E$18/SQRT($E$17)),0)*$D$11 -> 388.121471 | X34: =(SUM(D54:D63)+0.5*(E36-E37)*(D58+D59))/E36-20 -> 375.364293
D35: fy/fyk | E35: =IF(E30=0,0,(SUM(F44:F53)+0.5*(E30-E31)*(F48+F49))/E30) -> 0.7850992777 | M35: =MAX(312*LOG10(8*$E$17+1)*EXP(-1.9*($E$16-M32)*$E$18/SQRT($E$17))*SIN(PI()/2-($E$16-M32)*$E$18/SQRT($E$17)),0)*$F$6 -> 0 | N35: =IF(N32=M32,0,MAX(312*LOG10(8*$E$17+1)*EXP(-1.9*($E$16-N32)*$E$18/SQRT($E$17))*SIN(PI()/2-($E$16-N32)*$E$18/SQRT($E$17)),0))*$F$6 -> 0 | O35: =IF(O32=N32,0,MAX(312*LOG10(8*$E$17+1)*EXP(-1.9*($E$16-O32)*$E$18/SQRT($E$17))*SIN(PI()/2-($E$16-O32)*$E$18/SQRT($E$17)),0))*$F$6 -> 0 | P35: 0 | Q35: 0 | R35: 0 | S35: 0 | T35: 0 | U35: 0 | V35: 0
B36: Trækarmering | D36: nt | E36: =Brand!N18 -> 6.67
D37: reduc nt | E37: =MIN(FLOOR(E36,1),10) -> 6
D38: at | E38: =Brand!N14/1000 -> 0.04 | F38: m | K38: Trykarmering | R38: Trækarmering
D39: dt | E39: =(E16-2*E29)/(E37-1) -> 0.184 | F39: m | K39: Tabel | L39: type (+Q) | N39: type (+AC) | P39: type (+C) | R39: Tabel | S39: type (+Q) | U39: type (+AC) | W39: type (+C)
D40: E/Ek | E40: =IF(E36=0,0,(SUM(E54:E63)+0.5*(E36-E37)*(E58+E59))/E36) -> 0.9613907121 | K40: Q-stål | L40: E/Ek | M40: fy/fyk | N40: E/Ek | O40: fy/fyk | P40: E/Ek | Q40: fy/fyk | R40: Q-stål | S40: E/Ek | T40: fy/fyk | U40: E/Ek | V40: fy/fyk | W40: E/Ek | X40: fy/fyk
D41: fy/fyk | E41: =IF(E36=0,0,(SUM(F54:F63)+0.5*(E36-E37)*(F58+F59))/E36) -> 0.7850992777 | K41: Temp-1 | R41: Temp-11
K42: =D44 -> 395.364293 | L42: =IF(K42=K44,L44,L44+(L43-L44)*(K42-K44)/(K43-K44)) -> 0.704635707 | M42: =IF(K42=K44,M44,M44+(M43-M44)*(K42-K44)/(K43-K44)) -> 0.6555628484 | N42: =IF(K42=K44,N44,N44+(N43-N44)*(K42-K44)/(K43-K44)) -> 0.9613907121 | O42: =IF(K42=K44,O44,O44+(O43-O44)*(K42-K44)/(K43-K44)) -> 0.7850992777 | P42: =IF(K42=K44,P44,P44+(P43-P44)*(K42-K44)/(K43-K44)) -> 0.5674171312 | Q42: =IF(K42=K44,Q44,Q44+(Q43-Q44)*(K42-K44)/(K43-K44)) -> 0.7850992777 | R42: =D54 -> 395.364293 | S42: =IF(R42=R44,S44,S44+(S43-S44)*(R42-R44)/(R43-R44)) -> 0.704635707 | T42: =IF(R42=R44,T44,T44+(T43-T44)*(R42-R44)/(R43-R44)) -> 0.6555628484 | U42: =IF(R42=R44,U44,U44+(U43-U44)*(R42-R44)/(R43-R44)) -> 0.9613907121 | V42: =IF(R42=R44,V44,V44+(V43-V44)*(R42-R44)/(R43-R44)) -> 0.7850992777 | W42: =IF(R42=R44,W44,W44+(W43-W44)*(R42-R44)/(R43-R44)) -> 0.5674171312 | X42: =IF(R42=R44,X44,X44+(X43-X44)*(R42-R44)/(R43-R44)) -> 0.7850992777
D43: Temp | E43: E/Ek | F43: fy/fyk | K43: =CEILING(K42,100) -> 400 | L43: =VLOOKUP(K43,$B$68:$H$80,2,TRUE) -> 0.7 | M43: =VLOOKUP(K43,$B$68:$H$80,3,TRUE) -> 0.65 | N43: =VLOOKUP(K43,$B$68:$H$80,4,TRUE) -> 0.96 | O43: =VLOOKUP(K43,$B$68:$H$80,5,TRUE) -> 0.78 | P43: =VLOOKUP(K43,$B$68:$H$80,6,TRUE) -> 0.56 | Q43: =VLOOKUP(K43,$B$68:$H$80,7,TRUE) -> 0.78 | R43: =CEILING(R42,100) -> 400 | S43: =VLOOKUP(R43,$B$68:$H$80,2,TRUE) -> 0.7 | T43: =VLOOKUP(R43,$B$68:$H$80,3,TRUE) -> 0.65 | U43: =VLOOKUP(R43,$B$68:$H$80,4,TRUE) -> 0.96 | V43: =VLOOKUP(R43,$B$68:$H$80,5,TRUE) -> 0.78 | W43: =VLOOKUP(R43,$B$68:$H$80,6,TRUE) -> 0.56 | X43: =VLOOKUP(R43,$B$68:$H$80,7,TRUE) -> 0.78
B44: Trykarm. | C44: 1 | D44: =M30 -> 395.364293 | E44: =IF(D44=0,0,INDEX($L$41:$Q$80,2+(C44-1)*4,$D$28)) -> 0.9613907121 | F44: =IF(D44=0,0,INDEX($L$41:$Q$80,2+(C44-1)*4,$D$28+1)) -> 0.7850992777 | K44: =MAX(FLOOR(K42,100),20) -> 300 | L44: =VLOOKUP(K44,$B$68:$H$80,2,TRUE) -> 0.8 | M44: =VLOOKUP(K44,$B$68:$H$80,3,TRUE) -> 0.77 | N44: =VLOOKUP(K44,$B$68:$H$80,4,TRUE) -> 0.99 | O44: =VLOOKUP(K44,$B$68:$H$80,5,TRUE) -> 0.89 | P44: =VLOOKUP(K44,$B$68:$H$80,6,TRUE) -> 0.72 | Q44: =VLOOKUP(K44,$B$68:$H$80,7,TRUE) -> 0.89 | R44: =MAX(FLOOR(R42,100),20) -> 300 | S44: =VLOOKUP(R44,$B$68:$H$80,2,TRUE) -> 0.8 | T44: =VLOOKUP(R44,$B$68:$H$80,3,TRUE) -> 0.77 | U44: =VLOOKUP(R44,$B$68:$H$80,4,TRUE) -> 0.99 | V44: =VLOOKUP(R44,$B$68:$H$80,5,TRUE) -> 0.89 | W44: =VLOOKUP(R44,$B$68:$H$80,6,TRUE) -> 0.72 | X44: =VLOOKUP(R44,$B$68:$H$80,7,TRUE) -> 0.89
C45: 2 | D45: =N30 -> 395.364293 | E45: 0.9613907121 | F45: 0.7850992777 | K45: Temp-2 | R45: Temp-12
C46: 3 | D46: =O30 -> 395.364293 | E46: 0.9613907121 | F46: 0.7850992777 | K46: =D45 -> 395.364293 | L46: =IF(K46=K48,L48,L48+(L47-L48)*(K46-K48)/(K47-K48)) -> 0.704635707 | M46: =IF(K46=K48,M48,M48+(M47-M48)*(K46-K48)/(K47-K48)) -> 0.6555628484 | N46: =IF(K46=K48,N48,N48+(N47-N48)*(K46-K48)/(K47-K48)) -> 0.9613907121 | O46: =IF(K46=K48,O48,O48+(O47-O48)*(K46-K48)/(K47-K48)) -> 0.7850992777 | P46: =IF(K46=K48,P48,P48+(P47-P48)*(K46-K48)/(K47-K48)) -> 0.5674171312 | Q46: =IF(K46=K48,Q48,Q48+(Q47-Q48)*(K46-K48)/(K47-K48)) -> 0.7850992777 | R46: =D55 -> 395.364293 | S46: =IF(R46=R48,S48,S48+(S47-S48)*(R46-R48)/(R47-R48)) -> 0.704635707 | T46: =IF(R46=R48,T48,T48+(T47-T48)*(R46-R48)/(R47-R48)) -> 0.6555628484 | U46: =IF(R46=R48,U48,U48+(U47-U48)*(R46-R48)/(R47-R48)) -> 0.9613907121 | V46: =IF(R46=R48,V48,V48+(V47-V48)*(R46-R48)/(R47-R48)) -> 0.7850992777 | W46: =IF(R46=R48,W48,W48+(W47-W48)*(R46-R48)/(R47-R48)) -> 0.5674171312 | X46: =IF(R46=R48,X48,X48+(X47-X48)*(R46-R48)/(R47-R48)) -> 0.7850992777
C47: 4 | D47: =P30 -> 395.364293 | E47: 0.9613907121 | F47: 0.7850992777 | K47: =CEILING(K46,100) -> 400 | L47: =VLOOKUP(K47,$B$68:$H$80,2,TRUE) -> 0.7 | M47: =VLOOKUP(K47,$B$68:$H$80,3,TRUE) -> 0.65 | N47: =VLOOKUP(K47,$B$68:$H$80,4,TRUE) -> 0.96 | O47: =VLOOKUP(K47,$B$68:$H$80,5,TRUE) -> 0.78 | P47: =VLOOKUP(K47,$B$68:$H$80,6,TRUE) -> 0.56 | Q47: =VLOOKUP(K47,$B$68:$H$80,7,TRUE) -> 0.78 | R47: =CEILING(R46,100) -> 400 | S47: =VLOOKUP(R47,$B$68:$H$80,2,TRUE) -> 0.7 | T47: =VLOOKUP(R47,$B$68:$H$80,3,TRUE) -> 0.65 | U47: =VLOOKUP(R47,$B$68:$H$80,4,TRUE) -> 0.96 | V47: =VLOOKUP(R47,$B$68:$H$80,5,TRUE) -> 0.78 | W47: =VLOOKUP(R47,$B$68:$H$80,6,TRUE) -> 0.56 | X47: =VLOOKUP(R47,$B$68:$H$80,7,TRUE) -> 0.78
C48: 5 | D48: =Q30 -> 395.364293 | E48: 0.9613907121 | F48: 0.7850992777 | K48: =MAX(FLOOR(K46,100),20) -> 300 | L48: =VLOOKUP(K48,$B$68:$H$80,2,TRUE) -> 0.8 | M48: =VLOOKUP(K48,$B$68:$H$80,3,TRUE) -> 0.77 | N48: =VLOOKUP(K48,$B$68:$H$80,4,TRUE) -> 0.99 | O48: =VLOOKUP(K48,$B$68:$H$80,5,TRUE) -> 0.89 | P48: =VLOOKUP(K48,$B$68:$H$80,6,TRUE) -> 0.72 | Q48: =VLOOKUP(K48,$B$68:$H$80,7,TRUE) -> 0.89 | R48: =MAX(FLOOR(R46,100),20) -> 300 | S48: =VLOOKUP(R48,$B$68:$H$80,2,TRUE) -> 0.8 | T48: =VLOOKUP(R48,$B$68:$H$80,3,TRUE) -> 0.77 | U48: =VLOOKUP(R48,$B$68:$H$80,4,TRUE) -> 0.99 | V48: =VLOOKUP(R48,$B$68:$H$80,5,TRUE) -> 0.89 | W48: =VLOOKUP(R48,$B$68:$H$80,6,TRUE) -> 0.72 | X48: =VLOOKUP(R48,$B$68:$H$80,7,TRUE) -> 0.89
C49: 6 | D49: =R30 -> 395.364293 | E49: 0.9613907121 | F49: 0.7850992777 | K49: Temp-3 | R49: Temp-13
